Workbook

Sheet Cover Page
B2: PUBLIC RELEASE DRAFT
B3: November 2024
B5: Draft Land Releases for 1,3-Butadiene
B8: CASRN: 106-99-0

Sheet ReadMe
A1: Description of this spreadsheet
A2: This spreadsheet contains a summary of land releases for 1,3-butadiene.
A3: TRI data in this spreadsheet are for the 2016-2021 reporting years from basic plus data files downloaded from EPA's webpage.
A5: Worksheet | B5: Description
A6: OES Summary | B6: This tab summarizes the number of sites by OES reporting land releases by TRI land release category.
A7: Overall Release Summary | B7: This tab contains a summary of the total on- and off-site land releases per year in lb/yr and kg/yr.
A8: Facility Summary | B8: This worksheet contains a summary of unique facilities that reported land releases of 1,3-butadiene, with median and maximum values reported from 2016-2021
A9: 2016-2021 TRI_Nonzero Unique | B9: This worksheet contains 2016-2021 TRI data for facilities that reported non-zero land releases of 1,3-butadiene (without off-site transfer locations)
A10: 2016-2021 TRI Data All | B10: This worksheet contains 2016-2021 TRI data for facilities that reported land releases of 1,3-butadiene
A11: 2016-2021 BD OES Data Pull_rev | B11: This worksheet contains revised EPA's mapping of each 2016-2021 TRI facility to an OES and EPA's rationale.

Sheet OES Summary
AB1: Annual Release Range across Sites (kg/yr) | AD1: Daily Release Range across Sites (kg/day)
A2: OES | B2: Actual Unique Site Count | C2: Dups to Remove | D2: Release duration | E2: Release Days | F2: Release pattern | G2: # of Unique Facilities with Land Releases (TRI) | H2: Count of Facilities by Land Release Category (TRI)* | I2: 178 TOTAL ON-SITE UGRND INJ TO CL I WELLS | J2: 182 TOTAL ON-SITE UGRND INJ TO CL II-V WELLS | K2: 191 TOTAL ON-SITE RCRA SUBTITLE C LANDFILLS | L2: 195 TOTAL OTHER ON-SITE LANDFILLS | M2: 199 TOTAL ON-SITE LAND TREATMENT | N2: 207 TOTAL RCRA C SURFACE IMPOUNDMENTS | O2: 211 TOTAL OTHER SURFACE IMPOUNDMENTS | P2: 215 TOTAL OTHER DISPOSAL | Q2: 220 WASTE ROCK QUANTITY | R2: 230 OFF-SITE – UNDERGROUND INJECTION - CLASS 1 WELLS | S2: 231 OFF-SITE – UNDERGROUND INJECTION - CLASS II-V WELLS | T2: 234 OFF-SITE - RCRA SUBTITLE C SURFACE IMPOUNDMENTS | U2: 235 OFF-SITE - OTHER SURFACE IMPOUNDMENTS | V2: 236 OFF-SITE - OTHER LANDFILLS | W2: 237 OFF-SITE - RCRA SUBTITLE C LANDFILLS | X2: 238 OFF-SITE - DISPOSAL - LAND TREATMENT | Y2: 239 OFF-SITE - DISPOSAL - OTHER LAND DISPOSAL | Z2: 241 OFF-SITE - DISPOSAL - TRANSFER TO WASTE BROKER | AA2: 254 OFF-SITE - SOLIDIFICATION/STABILIZATION TREATMENT– NON META | AB2: 50th Percentile | AC2: 95th Percentile | AD2: 50th Percentile | AE2: 95th Percentile | AF2: Notes
A3: Manufacturing | B3: 4 sites, 5 count in column F | C3: 1 | D3: unknown | E3: 350 | F3: unknown - see notes for number of release days | G3: =H3-C3 -> 9 | H3: =COUNTIF('Facility Summary'!$A:$A, 'OES Summary'!A3) -> 10 | I3: =COUNTIFS('Facility Summary'!$A:$A, 'OES Summary'!A3,'Facility Summary'!$Q:$Q, 'OES Summary'!$I$2) -> 0 | J3: =COUNTIFS('Facility Summary'!$A:$A, 'OES Summary'!A3,'Facility Summary'!$Q:$Q, 'OES Summary'!$J$2) -> 0 | K3: =COUNTIFS('Facility Summary'!$A:$A, 'OES Summary'!A3,'Facility Summary'!$Q:$Q, 'OES Summary'!$K$2) -> 0 | L3: =COUNTIFS('Facility Summary'!$A:$A, 'OES Summary'!A3,'Facility Summary'!$Q:$Q, 'OES Summary'!$L$2) -> 0 | M3: =COUNTIFS('Facility Summary'!$A:$A, 'OES Summary'!A3,'Facility Summary'!$Q:$Q, 'OES Summary'!$M$2) -> 1 | N3: =COUNTIFS('Facility Summary'!$A:$A, 'OES Summary'!A3,'Facility Summary'!$Q:$Q, 'OES Summary'!$N$2) -> 0 | O3: =COUNTIFS('Facility Summary'!$A:$A, 'OES Summary'!A3,'Facility Summary'!$Q:$Q, 'OES Summary'!$O$2) -> 0 | P3: =COUNTIFS('Facility Summary'!$A:$A, 'OES Summary'!A3,'Facility Summary'!$Q:$Q, 'OES Summary'!$P$2) -> 1 | Q3: =COUNTIFS('Facility Summary'!$A:$A, 'OES Summary'!A3,'Facility Summary'!$Q:$Q, 'OES Summary'!$Q$2) -> 0 | R3: =COUNTIFS('Facility Summary'!$A:$A, 'OES Summary'!A3,'Facility Summary'!$Q:$Q, 'OES Summary'!$R$2) -> 1 | S3: =COUNTIFS('Facility Summary'!$A:$A, 'OES Summary'!A3,'Facility Summary'!$Q:$Q, 'OES Summary'!$S$2) -> 0 | T3: =COUNTIFS('Facility Summary'!$A:$A, 'OES Summary'!A3,'Facility Summary'!$Q:$Q, 'OES Summary'!$T$2) -> 0 | U3: =COUNTIFS('Facility Summary'!$A:$A, 'OES Summary'!A3,'Facility Summary'!$Q:$Q, 'OES Summary'!$U$2) -> 0 | V3: =COUNTIFS('Facility Summary'!$A:$A, 'OES Summary'!A3,'Facility Summary'!$Q:$Q, 'OES Summary'!$V$2) -> 3 | W3: =COUNTIFS('Facility Summary'!$A:$A, 'OES Summary'!A3,'Facility Summary'!$Q:$Q, 'OES Summary'!$W$2) -> 2 | X3: =COUNTIFS('Facility Summary'!$A:$A, 'OES Summary'!A3,'Facility Summary'!$Q:$Q, 'OES Summary'!$X$2) -> 0 | Y3: =COUNTIFS('Facility Summary'!$A:$A, 'OES Summary'!A3,'Facility Summary'!$Q:$Q, 'OES Summary'!$Y$2) -> 0 | Z3: =COUNTIFS('Facility Summary'!$A:$A, 'OES Summary'!A3,'Facility Summary'!$Q:$Q, 'OES Summary'!$Z$2) -> 1 | AA3: =COUNTIFS('Facility Summary'!$A:$A, 'OES Summary'!A3,'Facility Summary'!$Q:$Q, 'OES Summary'!$AA$2) -> 1 | AB3: =IFERROR(PERCENTILE(IF('2016-2021 TRI_Nonzero Unique'!$C:$C=$A3,'2016-2021 TRI_Nonzero Unique'!$AR:$AR),0.5)*0.453592,"") -> 0.45 | AC3: =IFERROR(PERCENTILE(IF('2016-2021 TRI_Nonzero Unique'!$C:$C=$A3,'2016-2021 TRI_Nonzero Unique'!$AR:$AR),0.95)*0.453592,"") -> 120 | AD3: =IFERROR(PERCENTILE(IF('2016-2021 TRI_Nonzero Unique'!$C:$C=$A3,'2016-2021 TRI_Nonzero Unique'!$AR:$AR),0.5)*0.453592/$E3,"") -> 1.3E-03 | AE3: =IFERROR(PERCENTILE(IF('2016-2021 TRI_Nonzero Unique'!$C:$C=$A3,'2016-2021 TRI_Nonzero Unique'!$AR:$AR),0.95)*0.453592/$E3,"") -> 0.34 | AF3: Assumes facility operates 7 days/week and 50 weeks/yr (with two weeks down for turnaround) and that the facility is producing and releasing the chemical daily during operation.
A4: Repackaging | B4: 2 sites, 3 count in column F | C4: 1 | D4: unknown | E4: 350 | F4: unknown - see notes for number of release days | G4: =H4-C4 -> 2 | H4: =COUNTIF('Facility Summary'!$A:$A, 'OES Summary'!A4) -> 3 | I4: =COUNTIFS('Facility Summary'!$A:$A, 'OES Summary'!A4,'Facility Summary'!$Q:$Q, 'OES Summary'!$I$2) -> 0 | J4: =COUNTIFS('Facility Summary'!$A:$A, 'OES Summary'!A4,'Facility Summary'!$Q:$Q, 'OES Summary'!$J$2) -> 0 | K4: =COUNTIFS('Facility Summary'!$A:$A, 'OES Summary'!A4,'Facility Summary'!$Q:$Q, 'OES Summary'!$K$2) -> 0 | L4: =COUNTIFS('Facility Summary'!$A:$A, 'OES Summary'!A4,'Facility Summary'!$Q:$Q, 'OES Summary'!$L$2) -> 0 | M4: =COUNTIFS('Facility Summary'!$A:$A, 'OES Summary'!A4,'Facility Summary'!$Q:$Q, 'OES Summary'!$M$2) -> 0 | N4: =COUNTIFS('Facility Summary'!$A:$A, 'OES Summary'!A4,'Facility Summary'!$Q:$Q, 'OES Summary'!$N$2) -> 0 | O4: =COUNTIFS('Facility Summary'!$A:$A, 'OES Summary'!A4,'Facility Summary'!$Q:$Q, 'OES Summary'!$O$2) -> 0 | P4: =COUNTIFS('Facility Summary'!$A:$A, 'OES Summary'!A4,'Facility Summary'!$Q:$Q, 'OES Summary'!$P$2) -> 0 | Q4: =COUNTIFS('Facility Summary'!$A:$A, 'OES Summary'!A4,'Facility Summary'!$Q:$Q, 'OES Summary'!$Q$2) -> 0 | R4: =COUNTIFS('Facility Summary'!$A:$A, 'OES Summary'!A4,'Facility Summary'!$Q:$Q, 'OES Summary'!$R$2) -> 0 | S4: =COUNTIFS('Facility Summary'!$A:$A, 'OES Summary'!A4,'Facility Summary'!$Q:$Q, 'OES Summary'!$S$2) -> 0 | T4: =COUNTIFS('Facility Summary'!$A:$A, 'OES Summary'!A4,'Facility Summary'!$Q:$Q, 'OES Summary'!$T$2) -> 0 | U4: =COUNTIFS('Facility Summary'!$A:$A, 'OES Summary'!A4,'Facility Summary'!$Q:$Q, 'OES Summary'!$U$2) -> 0 | V4: =COUNTIFS('Facility Summary'!$A:$A, 'OES Summary'!A4,'Facility Summary'!$Q:$Q, 'OES Summary'!$V$2) -> 0 | W4: =COUNTIFS('Facility Summary'!$A:$A, 'OES Summary'!A4,'Facility Summary'!$Q:$Q, 'OES Summary'!$W$2) -> 0 | X4: =COUNTIFS('Facility Summary'!$A:$A, 'OES Summary'!A4,'Facility Summary'!$Q:$Q, 'OES Summary'!$X$2) -> 0 | Y4: =COUNTIFS('Facility Summary'!$A:$A, 'OES Summary'!A4,'Facility Summary'!$Q:$Q, 'OES Summary'!$Y$2) -> 0 | Z4: =COUNTIFS('Facility Summary'!$A:$A, 'OES Summary'!A4,'Facility Summary'!$Q:$Q, 'OES Summary'!$Z$2) -> 1 | AA4: =COUNTIFS('Facility Summary'!$A:$A, 'OES Summary'!A4,'Facility Summary'!$Q:$Q, 'OES Summary'!$AA$2) -> 2 | AB4: =IFERROR(PERCENTILE(IF('2016-2021 TRI_Nonzero Unique'!$C:$C=$A4,'2016-2021 TRI_Nonzero Unique'!$AR:$AR),0.5)*0.453592,"") -> 2.27 | AC4: =IFERROR(PERCENTILE(IF('2016-2021 TRI_Nonzero Unique'!$C:$C=$A4,'2016-2021 TRI_Nonzero Unique'!$AR:$AR),0.95)*0.453592,"") -> 6.8 | AD4: =IFERROR(PERCENTILE(IF('2016-2021 TRI_Nonzero Unique'!$C:$C=$A4,'2016-2021 TRI_Nonzero Unique'!$AR:$AR),0.5)*0.453592/$E4,"") -> 6.5E-03 | AE4: =IFERROR(PERCENTILE(IF('2016-2021 TRI_Nonzero Unique'!$C:$C=$A4,'2016-2021 TRI_Nonzero Unique'!$AR:$AR),0.95)*0.453592/$E4,"") -> 1.9E-02 | AF4: Assumes repackaging occurs 7 days/week and 50 weeks/yr (with two weeks down for turnaround).
A5: Processing as a Reactant | B5: 13 sites, 15 count in column F | C5: 2 | D5: unknown | E5: 350 | F5: unknown - see notes for number of release days | G5: 13 | H5: =COUNTIF('Facility Summary'!$A:$A, 'OES Summary'!A5) -> 15 | I5: =COUNTIFS('Facility Summary'!$A:$A, 'OES Summary'!A5,'Facility Summary'!$Q:$Q, 'OES Summary'!$I$2) -> 0 | J5: =COUNTIFS('Facility Summary'!$A:$A, 'OES Summary'!A5,'Facility Summary'!$Q:$Q, 'OES Summary'!$J$2) -> 0 | K5: =COUNTIFS('Facility Summary'!$A:$A, 'OES Summary'!A5,'Facility Summary'!$Q:$Q, 'OES Summary'!$K$2) -> 0 | L5: =COUNTIFS('Facility Summary'!$A:$A, 'OES Summary'!A5,'Facility Summary'!$Q:$Q, 'OES Summary'!$L$2) -> 1 | M5: =COUNTIFS('Facility Summary'!$A:$A, 'OES Summary'!A5,'Facility Summary'!$Q:$Q, 'OES Summary'!$M$2) -> 0 | N5: =COUNTIFS('Facility Summary'!$A:$A, 'OES Summary'!A5,'Facility Summary'!$Q:$Q, 'OES Summary'!$N$2) -> 0 | O5: =COUNTIFS('Facility Summary'!$A:$A, 'OES Summary'!A5,'Facility Summary'!$Q:$Q, 'OES Summary'!$O$2) -> 0 | P5: =COUNTIFS('Facility Summary'!$A:$A, 'OES Summary'!A5,'Facility Summary'!$Q:$Q, 'OES Summary'!$P$2) -> 4 | Q5: =COUNTIFS('Facility Summary'!$A:$A, 'OES Summary'!A5,'Facility Summary'!$Q:$Q, 'OES Summary'!$Q$2) -> 0 | R5: =COUNTIFS('Facility Summary'!$A:$A, 'OES Summary'!A5,'Facility Summary'!$Q:$Q, 'OES Summary'!$R$2) -> 0 | S5: =COUNTIFS('Facility Summary'!$A:$A, 'OES Summary'!A5,'Facility Summary'!$Q:$Q, 'OES Summary'!$S$2) -> 0 | T5: =COUNTIFS('Facility Summary'!$A:$A, 'OES Summary'!A5,'Facility Summary'!$Q:$Q, 'OES Summary'!$T$2) -> 0 | U5: =COUNTIFS('Facility Summary'!$A:$A, 'OES Summary'!A5,'Facility Summary'!$Q:$Q, 'OES Summary'!$U$2) -> 0 | V5: =COUNTIFS('Facility Summary'!$A:$A, 'OES Summary'!A5,'Facility Summary'!$Q:$Q, 'OES Summary'!$V$2) -> 6 | W5: =COUNTIFS('Facility Summary'!$A:$A, 'OES Summary'!A5,'Facility Summary'!$Q:$Q, 'OES Summary'!$W$2) -> 2 | X5: =COUNTIFS('Facility Summary'!$A:$A, 'OES Summary'!A5,'Facility Summary'!$Q:$Q, 'OES Summary'!$X$2) -> 0 | Y5: =COUNTIFS('Facility Summary'!$A:$A, 'OES Summary'!A5,'Facility Summary'!$Q:$Q, 'OES Summary'!$Y$2) -> 0 | Z5: =COUNTIFS('Facility Summary'!$A:$A, 'OES Summary'!A5,'Facility Summary'!$Q:$Q, 'OES Summary'!$Z$2) -> 2 | AA5: =COUNTIFS('Facility Summary'!$A:$A, 'OES Summary'!A5,'Facility Summary'!$Q:$Q, 'OES Summary'!$AA$2) -> 0 | AB5: =IFERROR(PERCENTILE(IF('2016-2021 TRI_Nonzero Unique'!$C:$C=$A5,'2016-2021 TRI_Nonzero Unique'!$AR:$AR),0.5)*0.453592,"") -> 0.69 | AC5: =IFERROR(PERCENTILE(IF('2016-2021 TRI_Nonzero Unique'!$C:$C=$A5,'2016-2021 TRI_Nonzero Unique'!$AR:$AR),0.95)*0.453592,"") -> 207 | AD5: =IFERROR(PERCENTILE(IF('2016-2021 TRI_Nonzero Unique'!$C:$C=$A5,'2016-2021 TRI_Nonzero Unique'!$AR:$AR),0.5)*0.453592/$E5,"") -> 2.0E-03 | AE5: =IFERROR(PERCENTILE(IF('2016-2021 TRI_Nonzero Unique'!$C:$C=$A5,'2016-2021 TRI_Nonzero Unique'!$AR:$AR),0.95)*0.453592/$E5,"") -> 0.59 | AF5: Assumes facility operates 7 days/week and 50 weeks/yr (with two weeks down for turnaround) and that the facility is producing and releasing the chemical daily during operation.
A6: Processing - Incorporation into formulation, mixture, or reaction product | B6: 8 sites, 11 count in column F | C6: 3 | D6: unknown | E6: 250 | F6: unknown - see notes for number of release days | G6: 4 | H6: =COUNTIF('Facility Summary'!$A:$A, 'OES Summary'!A6) -> 7 | I6: =COUNTIFS('Facility Summary'!$A:$A, 'OES Summary'!A6,'Facility Summary'!$Q:$Q, 'OES Summary'!$I$2) -> 1 | J6: =COUNTIFS('Facility Summary'!$A:$A, 'OES Summary'!A6,'Facility Summary'!$Q:$Q, 'OES Summary'!$J$2) -> 0 | K6: =COUNTIFS('Facility Summary'!$A:$A, 'OES Summary'!A6,'Facility Summary'!$Q:$Q, 'OES Summary'!$K$2) -> 0 | L6: =COUNTIFS('Facility Summary'!$A:$A, 'OES Summary'!A6,'Facility Summary'!$Q:$Q, 'OES Summary'!$L$2) -> 0 | M6: =COUNTIFS('Facility Summary'!$A:$A, 'OES Summary'!A6,'Facility Summary'!$Q:$Q, 'OES Summary'!$M$2) -> 0 | N6: =COUNTIFS('Facility Summary'!$A:$A, 'OES Summary'!A6,'Facility Summary'!$Q:$Q, 'OES Summary'!$N$2) -> 0 | O6: =COUNTIFS('Facility Summary'!$A:$A, 'OES Summary'!A6,'Facility Summary'!$Q:$Q, 'OES Summary'!$O$2) -> 0 | P6: =COUNTIFS('Facility Summary'!$A:$A, 'OES Summary'!A6,'Facility Summary'!$Q:$Q, 'OES Summary'!$P$2) -> 3 | Q6: =COUNTIFS('Facility Summary'!$A:$A, 'OES Summary'!A6,'Facility Summary'!$Q:$Q, 'OES Summary'!$Q$2) -> 0 | R6: =COUNTIFS('Facility Summary'!$A:$A, 'OES Summary'!A6,'Facility Summary'!$Q:$Q, 'OES Summary'!$R$2) -> 0 | S6: =COUNTIFS('Facility Summary'!$A:$A, 'OES Summary'!A6,'Facility Summary'!$Q:$Q, 'OES Summary'!$S$2) -> 0 | T6: =COUNTIFS('Facility Summary'!$A:$A, 'OES Summary'!A6,'Facility Summary'!$Q:$Q, 'OES Summary'!$T$2) -> 0 | U6: =COUNTIFS('Facility Summary'!$A:$A, 'OES Summary'!A6,'Facility Summary'!$Q:$Q, 'OES Summary'!$U$2) -> 0 | V6: =COUNTIFS('Facility Summary'!$A:$A, 'OES Summary'!A6,'Facility Summary'!$Q:$Q, 'OES Summary'!$V$2) -> 1 | W6: =COUNTIFS('Facility Summary'!$A:$A, 'OES Summary'!A6,'Facility Summary'!$Q:$Q, 'OES Summary'!$W$2) -> 0 | X6: =COUNTIFS('Facility Summary'!$A:$A, 'OES Summary'!A6,'Facility Summary'!$Q:$Q, 'OES Summary'!$X$2) -> 0 | Y6: =COUNTIFS('Facility Summary'!$A:$A, 'OES Summary'!A6,'Facility Summary'!$Q:$Q, 'OES Summary'!$Y$2) -> 0 | Z6: =COUNTIFS('Facility Summary'!$A:$A, 'OES Summary'!A6,'Facility Summary'!$Q:$Q, 'OES Summary'!$Z$2) -> 1 | AA6: =COUNTIFS('Facility Summary'!$A:$A, 'OES Summary'!A6,'Facility Summary'!$Q:$Q, 'OES Summary'!$AA$2) -> 1 | AB6: =IFERROR(PERCENTILE(IF('2016-2021 TRI_Nonzero Unique'!$C:$C=$A6,'2016-2021 TRI_Nonzero Unique'!$AR:$AR),0.5)*0.453592,"") -> 27 | AC6: =IFERROR(PERCENTILE(IF('2016-2021 TRI_Nonzero Unique'!$C:$C=$A6,'2016-2021 TRI_Nonzero Unique'!$AR:$AR),0.95)*0.453592,"") -> 10001 | AD6: =IFERROR(PERCENTILE(IF('2016-2021 TRI_Nonzero Unique'!$C:$C=$A6,'2016-2021 TRI_Nonzero Unique'!$AR:$AR),0.5)*0.453592/$E6,"") -> 1.1E-01 | AE6: =IFERROR(PERCENTILE(IF('2016-2021 TRI_Nonzero Unique'!$C:$C=$A6,'2016-2021 TRI_Nonzero Unique'!$AR:$AR),0.95)*0.453592/$E6,"") -> 40.00 | AF6: The ESD on Formulation of Radiation Curable Coatings, Inks and Adhesives estimates 250 operating days/yr {OECD, 2010, 3840003}.
A7: Plastics and Rubber Compounding | B7: 8 sites, 10 count in column F | C7: 2 | D7: unknown | E7: 300 | F7: unknown - see notes for number of release days | G7: 7 | H7: =COUNTIF('Facility Summary'!$A:$A, 'OES Summary'!A7) -> 9 | I7: =COUNTIFS('Facility Summary'!$A:$A, 'OES Summary'!A7,'Facility Summary'!$Q:$Q, 'OES Summary'!$I$2) -> 1 | J7: =COUNTIFS('Facility Summary'!$A:$A, 'OES Summary'!A7,'Facility Summary'!$Q:$Q, 'OES Summary'!$J$2) -> 0 | K7: =COUNTIFS('Facility Summary'!$A:$A, 'OES Summary'!A7,'Facility Summary'!$Q:$Q, 'OES Summary'!$K$2) -> 0 | L7: =COUNTIFS('Facility Summary'!$A:$A, 'OES Summary'!A7,'Facility Summary'!$Q:$Q, 'OES Summary'!$L$2) -> 0 | M7: =COUNTIFS('Facility Summary'!$A:$A, 'OES Summary'!A7,'Facility Summary'!$Q:$Q, 'OES Summary'!$M$2) -> 0 | N7: =COUNTIFS('Facility Summary'!$A:$A, 'OES Summary'!A7,'Facility Summary'!$Q:$Q, 'OES Summary'!$N$2) -> 0 | O7: =COUNTIFS('Facility Summary'!$A:$A, 'OES Summary'!A7,'Facility Summary'!$Q:$Q, 'OES Summary'!$O$2) -> 0 | P7: =COUNTIFS('Facility Summary'!$A:$A, 'OES Summary'!A7,'Facility Summary'!$Q:$Q, 'OES Summary'!$P$2) -> 1 | Q7: =COUNTIFS('Facility Summary'!$A:$A, 'OES Summary'!A7,'Facility Summary'!$Q:$Q, 'OES Summary'!$Q$2) -> 0 | R7: =COUNTIFS('Facility Summary'!$A:$A, 'OES Summary'!A7,'Facility Summary'!$Q:$Q, 'OES Summary'!$R$2) -> 0 | S7: =COUNTIFS('Facility Summary'!$A:$A, 'OES Summary'!A7,'Facility Summary'!$Q:$Q, 'OES Summary'!$S$2) -> 0 | T7: =COUNTIFS('Facility Summary'!$A:$A, 'OES Summary'!A7,'Facility Summary'!$Q:$Q, 'OES Summary'!$T$2) -> 0 | U7: =COUNTIFS('Facility Summary'!$A:$A, 'OES Summary'!A7,'Facility Summary'!$Q:$Q, 'OES Summary'!$U$2) -> 0 | V7: =COUNTIFS('Facility Summary'!$A:$A, 'OES Summary'!A7,'Facility Summary'!$Q:$Q, 'OES Summary'!$V$2) -> 4 | W7: =COUNTIFS('Facility Summary'!$A:$A, 'OES Summary'!A7,'Facility Summary'!$Q:$Q, 'OES Summary'!$W$2) -> 1 | X7: =COUNTIFS('Facility Summary'!$A:$A, 'OES Summary'!A7,'Facility Summary'!$Q:$Q, 'OES Summary'!$X$2) -> 0 | Y7: =COUNTIFS('Facility Summary'!$A:$A, 'OES Summary'!A7,'Facility Summary'!$Q:$Q, 'OES Summary'!$Y$2) -> 0 | Z7: =COUNTIFS('Facility Summary'!$A:$A, 'OES Summary'!A7,'Facility Summary'!$Q:$Q, 'OES Summary'!$Z$2) -> 0 | AA7: =COUNTIFS('Facility Summary'!$A:$A, 'OES Summary'!A7,'Facility Summary'!$Q:$Q, 'OES Summary'!$AA$2) -> 2 | AB7: =IFERROR(PERCENTILE(IF('2016-2021 TRI_Nonzero Unique'!$C:$C=$A7,'2016-2021 TRI_Nonzero Unique'!$AR:$AR),0.5)*0.453592,"") -> 49.44 | AC7: =IFERROR(PERCENTILE(IF('2016-2021 TRI_Nonzero Unique'!$C:$C=$A7,'2016-2021 TRI_Nonzero Unique'!$AR:$AR),0.95)*0.453592,"") -> 366 | AD7: =IFERROR(PERCENTILE(IF('2016-2021 TRI_Nonzero Unique'!$C:$C=$A7,'2016-2021 TRI_Nonzero Unique'!$AR:$AR),0.5)*0.453592/$E7,"") -> 1.6E-01 | AE7: =IFERROR(PERCENTILE(IF('2016-2021 TRI_Nonzero Unique'!$C:$C=$A7,'2016-2021 TRI_Nonzero Unique'!$AR:$AR),0.95)*0.453592/$E7,"") -> 1.22 | AF7: The ESD on Plastic Additives references European technical guidance, which estimates up to 300 operating days/yr for the polymers industry {OECD, 2009, 5079084}.
A8: Plastics and Rubber Converting | B8: - | C8: 0 | D8: unknown | E8: 300 | F8: unknown - see notes for number of release days | G8: 1 | H8: =COUNTIF('Facility Summary'!$A:$A, 'OES Summary'!A8) -> 1 | I8: =COUNTIFS('Facility Summary'!$A:$A, 'OES Summary'!A8,'Facility Summary'!$Q:$Q, 'OES Summary'!$I$2) -> 0 | J8: =COUNTIFS('Facility Summary'!$A:$A, 'OES Summary'!A8,'Facility Summary'!$Q:$Q, 'OES Summary'!$J$2) -> 0 | K8: =COUNTIFS('Facility Summary'!$A:$A, 'OES Summary'!A8,'Facility Summary'!$Q:$Q, 'OES Summary'!$K$2) -> 0 | L8: =COUNTIFS('Facility Summary'!$A:$A, 'OES Summary'!A8,'Facility Summary'!$Q:$Q, 'OES Summary'!$L$2) -> 0 | M8: =COUNTIFS('Facility Summary'!$A:$A, 'OES Summary'!A8,'Facility Summary'!$Q:$Q, 'OES Summary'!$M$2) -> 0 | N8: =COUNTIFS('Facility Summary'!$A:$A, 'OES Summary'!A8,'Facility Summary'!$Q:$Q, 'OES Summary'!$N$2) -> 0 | O8: =COUNTIFS('Facility Summary'!$A:$A, 'OES Summary'!A8,'Facility Summary'!$Q:$Q, 'OES Summary'!$O$2) -> 0 | P8: =COUNTIFS('Facility Summary'!$A:$A, 'OES Summary'!A8,'Facility Summary'!$Q:$Q, 'OES Summary'!$P$2) -> 0 | Q8: =COUNTIFS('Facility Summary'!$A:$A, 'OES Summary'!A8,'Facility Summary'!$Q:$Q, 'OES Summary'!$Q$2) -> 0 | R8: =COUNTIFS('Facility Summary'!$A:$A, 'OES Summary'!A8,'Facility Summary'!$Q:$Q, 'OES Summary'!$R$2) -> 0 | S8: =COUNTIFS('Facility Summary'!$A:$A, 'OES Summary'!A8,'Facility Summary'!$Q:$Q, 'OES Summary'!$S$2) -> 0 | T8: =COUNTIFS('Facility Summary'!$A:$A, 'OES Summary'!A8,'Facility Summary'!$Q:$Q, 'OES Summary'!$T$2) -> 0 | U8: =COUNTIFS('Facility Summary'!$A:$A, 'OES Summary'!A8,'Facility Summary'!$Q:$Q, 'OES Summary'!$U$2) -> 0 | V8: =COUNTIFS('Facility Summary'!$A:$A, 'OES Summary'!A8,'Facility Summary'!$Q:$Q, 'OES Summary'!$V$2) -> 1 | W8: =COUNTIFS('Facility Summary'!$A:$A, 'OES Summary'!A8,'Facility Summary'!$Q:$Q, 'OES Summary'!$W$2) -> 0 | X8: =COUNTIFS('Facility Summary'!$A:$A, 'OES Summary'!A8,'Facility Summary'!$Q:$Q, 'OES Summary'!$X$2) -> 0 | Y8: =COUNTIFS('Facility Summary'!$A:$A, 'OES Summary'!A8,'Facility Summary'!$Q:$Q, 'OES Summary'!$Y$2) -> 0 | Z8: =COUNTIFS('Facility Summary'!$A:$A, 'OES Summary'!A8,'Facility Summary'!$Q:$Q, 'OES Summary'!$Z$2) -> 0 | AA8: =COUNTIFS('Facility Summary'!$A:$A, 'OES Summary'!A8,'Facility Summary'!$Q:$Q, 'OES Summary'!$AA$2) -> 0 | AB8: =IFERROR(PERCENTILE(IF('2016-2021 TRI_Nonzero Unique'!$C:$C=$A8,'2016-2021 TRI_Nonzero Unique'!$AR:$AR),0.5)*0.453592,"") -> 113.40 | AC8: =IFERROR(PERCENTILE(IF('2016-2021 TRI_Nonzero Unique'!$C:$C=$A8,'2016-2021 TRI_Nonzero Unique'!$AR:$AR),0.95)*0.453592,"") -> 113 | AD8: =IFERROR(PERCENTILE(IF('2016-2021 TRI_Nonzero Unique'!$C:$C=$A8,'2016-2021 TRI_Nonzero Unique'!$AR:$AR),0.5)*0.453592/$E8,"") -> 3.8E-01 | AE8: =IFERROR(PERCENTILE(IF('2016-2021 TRI_Nonzero Unique'!$C:$C=$A8,'2016-2021 TRI_Nonzero Unique'!$AR:$AR),0.95)*0.453592/$E8,"") -> 0.38 | AF8: The ESD on Plastic Additives references European technical guidance, which estimates up to 300 operating days/yr for the polymers industry {OECD, 2009, 5079084}.
A9: Use of Laboratory Chemicals | B9: - | C9: 0 | D9: unknown | E9: 250 | F9: unknown - see notes for number of release days | G9: 0 | H9: =COUNTIF('Facility Summary'!$A:$A, 'OES Summary'!A9) -> 0 | I9: =COUNTIFS('Facility Summary'!$A:$A, 'OES Summary'!A9,'Facility Summary'!$Q:$Q, 'OES Summary'!$I$2) -> 0 | J9: =COUNTIFS('Facility Summary'!$A:$A, 'OES Summary'!A9,'Facility Summary'!$Q:$Q, 'OES Summary'!$J$2) -> 0 | K9: =COUNTIFS('Facility Summary'!$A:$A, 'OES Summary'!A9,'Facility Summary'!$Q:$Q, 'OES Summary'!$K$2) -> 0 | L9: =COUNTIFS('Facility Summary'!$A:$A, 'OES Summary'!A9,'Facility Summary'!$Q:$Q, 'OES Summary'!$L$2) -> 0 | M9: =COUNTIFS('Facility Summary'!$A:$A, 'OES Summary'!A9,'Facility Summary'!$Q:$Q, 'OES Summary'!$M$2) -> 0 | N9: =COUNTIFS('Facility Summary'!$A:$A, 'OES Summary'!A9,'Facility Summary'!$Q:$Q, 'OES Summary'!$N$2) -> 0 | O9: =COUNTIFS('Facility Summary'!$A:$A, 'OES Summary'!A9,'Facility Summary'!$Q:$Q, 'OES Summary'!$O$2) -> 0 | P9: =COUNTIFS('Facility Summary'!$A:$A, 'OES Summary'!A9,'Facility Summary'!$Q:$Q, 'OES Summary'!$P$2) -> 0 | Q9: =COUNTIFS('Facility Summary'!$A:$A, 'OES Summary'!A9,'Facility Summary'!$Q:$Q, 'OES Summary'!$Q$2) -> 0 | R9: =COUNTIFS('Facility Summary'!$A:$A, 'OES Summary'!A9,'Facility Summary'!$Q:$Q, 'OES Summary'!$R$2) -> 0 | S9: =COUNTIFS('Facility Summary'!$A:$A, 'OES Summary'!A9,'Facility Summary'!$Q:$Q, 'OES Summary'!$S$2) -> 0 | T9: =COUNTIFS('Facility Summary'!$A:$A, 'OES Summary'!A9,'Facility Summary'!$Q:$Q, 'OES Summary'!$T$2) -> 0 | U9: =COUNTIFS('Facility Summary'!$A:$A, 'OES Summary'!A9,'Facility Summary'!$Q:$Q, 'OES Summary'!$U$2) -> 0 | V9: =COUNTIFS('Facility Summary'!$A:$A, 'OES Summary'!A9,'Facility Summary'!$Q:$Q, 'OES Summary'!$V$2) -> 0 | W9: =COUNTIFS('Facility Summary'!$A:$A, 'OES Summary'!A9,'Facility Summary'!$Q:$Q, 'OES Summary'!$W$2) -> 0 | X9: =COUNTIFS('Facility Summary'!$A:$A, 'OES Summary'!A9,'Facility Summary'!$Q:$Q, 'OES Summary'!$X$2) -> 0 | Y9: =COUNTIFS('Facility Summary'!$A:$A, 'OES Summary'!A9,'Facility Summary'!$Q:$Q, 'OES Summary'!$Y$2) -> 0 | Z9: =COUNTIFS('Facility Summary'!$A:$A, 'OES Summary'!A9,'Facility Summary'!$Q:$Q, 'OES Summary'!$Z$2) -> 0 | AA9: =COUNTIFS('Facility Summary'!$A:$A, 'OES Summary'!A9,'Facility Summary'!$Q:$Q, 'OES Summary'!$AA$2) -> 0 | AB9: =IFERROR(PERCENTILE(IF('2016-2021 TRI_Nonzero Unique'!$C:$C=$A9,'2016-2021 TRI_Nonzero Unique'!$AR:$AR),0.5)*0.453592,"") ->  | AC9: =IFERROR(PERCENTILE(IF('2016-2021 TRI_Nonzero Unique'!$C:$C=$A9,'2016-2021 TRI_Nonzero Unique'!$AR:$AR),0.95)*0.453592,"") ->  | AD9: =IFERROR(PERCENTILE(IF('2016-2021 TRI_Nonzero Unique'!$C:$C=$A9,'2016-2021 TRI_Nonzero Unique'!$AR:$AR),0.5)*0.453592/$E9,"") ->  | AE9: =IFERROR(PERCENTILE(IF('2016-2021 TRI_Nonzero Unique'!$C:$C=$A9,'2016-2021 TRI_Nonzero Unique'!$AR:$AR),0.95)*0.453592/$E9,"") ->  | AF9: Assumes operation 5 days/week for 50 weeks/yr.
A10: Application of Paints, Coatings, Adhesives, and Sealants | B10: - | C10: 0 | D10: unknown | E10: 250 | F10: unknown - see notes for number of release days | G10: 0 | H10: =COUNTIF('Facility Summary'!$A:$A, 'OES Summary'!A10) -> 0 | I10: =COUNTIFS('Facility Summary'!$A:$A, 'OES Summary'!A10,'Facility Summary'!$Q:$Q, 'OES Summary'!$I$2) -> 0 | J10: =COUNTIFS('Facility Summary'!$A:$A, 'OES Summary'!A10,'Facility Summary'!$Q:$Q, 'OES Summary'!$J$2) -> 0 | K10: =COUNTIFS('Facility Summary'!$A:$A, 'OES Summary'!A10,'Facility Summary'!$Q:$Q, 'OES Summary'!$K$2) -> 0 | L10: =COUNTIFS('Facility Summary'!$A:$A, 'OES Summary'!A10,'Facility Summary'!$Q:$Q, 'OES Summary'!$L$2) -> 0 | M10: =COUNTIFS('Facility Summary'!$A:$A, 'OES Summary'!A10,'Facility Summary'!$Q:$Q, 'OES Summary'!$M$2) -> 0 | N10: =COUNTIFS('Facility Summary'!$A:$A, 'OES Summary'!A10,'Facility Summary'!$Q:$Q, 'OES Summary'!$N$2) -> 0 | O10: =COUNTIFS('Facility Summary'!$A:$A, 'OES Summary'!A10,'Facility Summary'!$Q:$Q, 'OES Summary'!$O$2) -> 0 | P10: =COUNTIFS('Facility Summary'!$A:$A, 'OES Summary'!A10,'Facility Summary'!$Q:$Q, 'OES Summary'!$P$2) -> 0 | Q10: =COUNTIFS('Facility Summary'!$A:$A, 'OES Summary'!A10,'Facility Summary'!$Q:$Q, 'OES Summary'!$Q$2) -> 0 | R10: =COUNTIFS('Facility Summary'!$A:$A, 'OES Summary'!A10,'Facility Summary'!$Q:$Q, 'OES Summary'!$R$2) -> 0 | S10: =COUNTIFS('Facility Summary'!$A:$A, 'OES Summary'!A10,'Facility Summary'!$Q:$Q, 'OES Summary'!$S$2) -> 0 | T10: =COUNTIFS('Facility Summary'!$A:$A, 'OES Summary'!A10,'Facility Summary'!$Q:$Q, 'OES Summary'!$T$2) -> 0 | U10: =COUNTIFS('Facility Summary'!$A:$A, 'OES Summary'!A10,'Facility Summary'!$Q:$Q, 'OES Summary'!$U$2) -> 0 | V10: =COUNTIFS('Facility Summary'!$A:$A, 'OES Summary'!A10,'Facility Summary'!$Q:$Q, 'OES Summary'!$V$2) -> 0 | W10: =COUNTIFS('Facility Summary'!$A:$A, 'OES Summary'!A10,'Facility Summary'!$Q:$Q, 'OES Summary'!$W$2) -> 0 | X10: =COUNTIFS('Facility Summary'!$A:$A, 'OES Summary'!A10,'Facility Summary'!$Q:$Q, 'OES Summary'!$X$2) -> 0 | Y10: =COUNTIFS('Facility Summary'!$A:$A, 'OES Summary'!A10,'Facility Summary'!$Q:$Q, 'OES Summary'!$Y$2) -> 0 | Z10: =COUNTIFS('Facility Summary'!$A:$A, 'OES Summary'!A10,'Facility Summary'!$Q:$Q, 'OES Summary'!$Z$2) -> 0 | AA10: =COUNTIFS('Facility Summary'!$A:$A, 'OES Summary'!A10,'Facility Summary'!$Q:$Q, 'OES Summary'!$AA$2) -> 0 | AB10: =IFERROR(PERCENTILE(IF('2016-2021 TRI_Nonzero Unique'!$C:$C=$A10,'2016-2021 TRI_Nonzero Unique'!$AR:$AR),0.5)*0.453592,"") ->  | AC10: =IFERROR(PERCENTILE(IF('2016-2021 TRI_Nonzero Unique'!$C:$C=$A10,'2016-2021 TRI_Nonzero Unique'!$AR:$AR),0.95)*0.453592,"") ->  | AD10: =IFERROR(PERCENTILE(IF('2016-2021 TRI_Nonzero Unique'!$C:$C=$A10,'2016-2021 TRI_Nonzero Unique'!$AR:$AR),0.5)*0.453592/$E10,"") ->  | AE10: =IFERROR(PERCENTILE(IF('2016-2021 TRI_Nonzero Unique'!$C:$C=$A10,'2016-2021 TRI_Nonzero Unique'!$AR:$AR),0.95)*0.453592/$E10,"") ->  | AF10: The ESD on the Application of Radiation Curable Coatings, Inks, and Adhesives provides an estimate of 250 operating days/yr {OECD, 2011, 6568745}.
A11: Use of Lubricants and Greases | B11: - | C11: 0 | D11: unknown | E11: 256 | F11: unknown - see notes for number of release days | G11: 0 | H11: =COUNTIF('Facility Summary'!$A:$A, 'OES Summary'!A11) -> 0 | I11: =COUNTIFS('Facility Summary'!$A:$A, 'OES Summary'!A11,'Facility Summary'!$Q:$Q, 'OES Summary'!$I$2) -> 0 | J11: =COUNTIFS('Facility Summary'!$A:$A, 'OES Summary'!A11,'Facility Summary'!$Q:$Q, 'OES Summary'!$J$2) -> 0 | K11: =COUNTIFS('Facility Summary'!$A:$A, 'OES Summary'!A11,'Facility Summary'!$Q:$Q, 'OES Summary'!$K$2) -> 0 | L11: =COUNTIFS('Facility Summary'!$A:$A, 'OES Summary'!A11,'Facility Summary'!$Q:$Q, 'OES Summary'!$L$2) -> 0 | M11: =COUNTIFS('Facility Summary'!$A:$A, 'OES Summary'!A11,'Facility Summary'!$Q:$Q, 'OES Summary'!$M$2) -> 0 | N11: =COUNTIFS('Facility Summary'!$A:$A, 'OES Summary'!A11,'Facility Summary'!$Q:$Q, 'OES Summary'!$N$2) -> 0 | O11: =COUNTIFS('Facility Summary'!$A:$A, 'OES Summary'!A11,'Facility Summary'!$Q:$Q, 'OES Summary'!$O$2) -> 0 | P11: =COUNTIFS('Facility Summary'!$A:$A, 'OES Summary'!A11,'Facility Summary'!$Q:$Q, 'OES Summary'!$P$2) -> 0 | Q11: =COUNTIFS('Facility Summary'!$A:$A, 'OES Summary'!A11,'Facility Summary'!$Q:$Q, 'OES Summary'!$Q$2) -> 0 | R11: =COUNTIFS('Facility Summary'!$A:$A, 'OES Summary'!A11,'Facility Summary'!$Q:$Q, 'OES Summary'!$R$2) -> 0 | S11: =COUNTIFS('Facility Summary'!$A:$A, 'OES Summary'!A11,'Facility Summary'!$Q:$Q, 'OES Summary'!$S$2) -> 0 | T11: =COUNTIFS('Facility Summary'!$A:$A, 'OES Summary'!A11,'Facility Summary'!$Q:$Q, 'OES Summary'!$T$2) -> 0 | U11: =COUNTIFS('Facility Summary'!$A:$A, 'OES Summary'!A11,'Facility Summary'!$Q:$Q, 'OES Summary'!$U$2) -> 0 | V11: =COUNTIFS('Facility Summary'!$A:$A, 'OES Summary'!A11,'Facility Summary'!$Q:$Q, 'OES Summary'!$V$2) -> 0 | W11: =COUNTIFS('Facility Summary'!$A:$A, 'OES Summary'!A11,'Facility Summary'!$Q:$Q, 'OES Summary'!$W$2) -> 0 | X11: =COUNTIFS('Facility Summary'!$A:$A, 'OES Summary'!A11,'Facility Summary'!$Q:$Q, 'OES Summary'!$X$2) -> 0 | Y11: =COUNTIFS('Facility Summary'!$A:$A, 'OES Summary'!A11,'Facility Summary'!$Q:$Q, 'OES Summary'!$Y$2) -> 0 | Z11: =COUNTIFS('Facility Summary'!$A:$A, 'OES Summary'!A11,'Facility Summary'!$Q:$Q, 'OES Summary'!$Z$2) -> 0 | AA11: =COUNTIFS('Facility Summary'!$A:$A, 'OES Summary'!A11,'Facility Summary'!$Q:$Q, 'OES Summary'!$AA$2) -> 0 | AB11: =IFERROR(PERCENTILE(IF('2016-2021 TRI_Nonzero Unique'!$C:$C=$A11,'2016-2021 TRI_Nonzero Unique'!$AR:$AR),0.5)*0.453592,"") ->  | AC11: =IFERROR(PERCENTILE(IF('2016-2021 TRI_Nonzero Unique'!$C:$C=$A11,'2016-2021 TRI_Nonzero Unique'!$AR:$AR),0.95)*0.453592,"") ->  | AD11: =IFERROR(PERCENTILE(IF('2016-2021 TRI_Nonzero Unique'!$C:$C=$A11,'2016-2021 TRI_Nonzero Unique'!$AR:$AR),0.5)*0.453592/$E11,"") ->  | AE11: =IFERROR(PERCENTILE(IF('2016-2021 TRI_Nonzero Unique'!$C:$C=$A11,'2016-2021 TRI_Nonzero Unique'!$AR:$AR),0.95)*0.453592/$E11,"") ->  | AF11: The ESD on Chemical Additives in Automotive Lubricants provides an estimate of 256 operating days/yr {OECD, 2020, 6385735}.
A12: Use in Fuels and Related Products | B12: - | C12: 0 | D12: unknown | E12: 250 | F12: unknown - see notes for number of release days | G12: 0 | H12: =COUNTIF('Facility Summary'!$A:$A, 'OES Summary'!A12) -> 0 | I12: =COUNTIFS('Facility Summary'!$A:$A, 'OES Summary'!A12,'Facility Summary'!$Q:$Q, 'OES Summary'!$I$2) -> 0 | J12: =COUNTIFS('Facility Summary'!$A:$A, 'OES Summary'!A12,'Facility Summary'!$Q:$Q, 'OES Summary'!$J$2) -> 0 | K12: =COUNTIFS('Facility Summary'!$A:$A, 'OES Summary'!A12,'Facility Summary'!$Q:$Q, 'OES Summary'!$K$2) -> 0 | L12: =COUNTIFS('Facility Summary'!$A:$A, 'OES Summary'!A12,'Facility Summary'!$Q:$Q, 'OES Summary'!$L$2) -> 0 | M12: =COUNTIFS('Facility Summary'!$A:$A, 'OES Summary'!A12,'Facility Summary'!$Q:$Q, 'OES Summary'!$M$2) -> 0 | N12: =COUNTIFS('Facility Summary'!$A:$A, 'OES Summary'!A12,'Facility Summary'!$Q:$Q, 'OES Summary'!$N$2) -> 0 | O12: =COUNTIFS('Facility Summary'!$A:$A, 'OES Summary'!A12,'Facility Summary'!$Q:$Q, 'OES Summary'!$O$2) -> 0 | P12: =COUNTIFS('Facility Summary'!$A:$A, 'OES Summary'!A12,'Facility Summary'!$Q:$Q, 'OES Summary'!$P$2) -> 0 | Q12: =COUNTIFS('Facility Summary'!$A:$A, 'OES Summary'!A12,'Facility Summary'!$Q:$Q, 'OES Summary'!$Q$2) -> 0 | R12: =COUNTIFS('Facility Summary'!$A:$A, 'OES Summary'!A12,'Facility Summary'!$Q:$Q, 'OES Summary'!$R$2) -> 0 | S12: =COUNTIFS('Facility Summary'!$A:$A, 'OES Summary'!A12,'Facility Summary'!$Q:$Q, 'OES Summary'!$S$2) -> 0 | T12: =COUNTIFS('Facility Summary'!$A:$A, 'OES Summary'!A12,'Facility Summary'!$Q:$Q, 'OES Summary'!$T$2) -> 0 | U12: =COUNTIFS('Facility Summary'!$A:$A, 'OES Summary'!A12,'Facility Summary'!$Q:$Q, 'OES Summary'!$U$2) -> 0 | V12: =COUNTIFS('Facility Summary'!$A:$A, 'OES Summary'!A12,'Facility Summary'!$Q:$Q, 'OES Summary'!$V$2) -> 0 | W12: =COUNTIFS('Facility Summary'!$A:$A, 'OES Summary'!A12,'Facility Summary'!$Q:$Q, 'OES Summary'!$W$2) -> 0 | X12: =COUNTIFS('Facility Summary'!$A:$A, 'OES Summary'!A12,'Facility Summary'!$Q:$Q, 'OES Summary'!$X$2) -> 0 | Y12: =COUNTIFS('Facility Summary'!$A:$A, 'OES Summary'!A12,'Facility Summary'!$Q:$Q, 'OES Summary'!$Y$2) -> 0 | Z12: =COUNTIFS('Facility Summary'!$A:$A, 'OES Summary'!A12,'Facility Summary'!$Q:$Q, 'OES Summary'!$Z$2) -> 0 | AA12: =COUNTIFS('Facility Summary'!$A:$A, 'OES Summary'!A12,'Facility Summary'!$Q:$Q, 'OES Summary'!$AA$2) -> 0 | AB12: =IFERROR(PERCENTILE(IF('2016-2021 TRI_Nonzero Unique'!$C:$C=$A12,'2016-2021 TRI_Nonzero Unique'!$AR:$AR),0.5)*0.453592,"") ->  | AC12: =IFERROR(PERCENTILE(IF('2016-2021 TRI_Nonzero Unique'!$C:$C=$A12,'2016-2021 TRI_Nonzero Unique'!$AR:$AR),0.95)*0.453592,"") ->  | AD12: =IFERROR(PERCENTILE(IF('2016-2021 TRI_Nonzero Unique'!$C:$C=$A12,'2016-2021 TRI_Nonzero Unique'!$AR:$AR),0.5)*0.453592/$E12,"") ->  | AE12: =IFERROR(PERCENTILE(IF('2016-2021 TRI_Nonzero Unique'!$C:$C=$A12,'2016-2021 TRI_Nonzero Unique'!$AR:$AR),0.95)*0.453592/$E12,"") ->  | AF12: Assumes operation 5 days/week for 50 weeks/yr.
A13: Use of Plastics and Rubber Products | B13: - | C13: 0 | D13: unknown | E13: 350 | F13: unknown - see notes for number of release days | G13: 0 | H13: =COUNTIF('Facility Summary'!$A:$A, 'OES Summary'!A13) -> 0 | I13: =COUNTIFS('Facility Summary'!$A:$A, 'OES Summary'!A13,'Facility Summary'!$Q:$Q, 'OES Summary'!$I$2) -> 0 | J13: =COUNTIFS('Facility Summary'!$A:$A, 'OES Summary'!A13,'Facility Summary'!$Q:$Q, 'OES Summary'!$J$2) -> 0 | K13: =COUNTIFS('Facility Summary'!$A:$A, 'OES Summary'!A13,'Facility Summary'!$Q:$Q, 'OES Summary'!$K$2) -> 0 | L13: =COUNTIFS('Facility Summary'!$A:$A, 'OES Summary'!A13,'Facility Summary'!$Q:$Q, 'OES Summary'!$L$2) -> 0 | M13: =COUNTIFS('Facility Summary'!$A:$A, 'OES Summary'!A13,'Facility Summary'!$Q:$Q, 'OES Summary'!$M$2) -> 0 | N13: =COUNTIFS('Facility Summary'!$A:$A, 'OES Summary'!A13,'Facility Summary'!$Q:$Q, 'OES Summary'!$N$2) -> 0 | O13: =COUNTIFS('Facility Summary'!$A:$A, 'OES Summary'!A13,'Facility Summary'!$Q:$Q, 'OES Summary'!$O$2) -> 0 | P13: =COUNTIFS('Facility Summary'!$A:$A, 'OES Summary'!A13,'Facility Summary'!$Q:$Q, 'OES Summary'!$P$2) -> 0 | Q13: =COUNTIFS('Facility Summary'!$A:$A, 'OES Summary'!A13,'Facility Summary'!$Q:$Q, 'OES Summary'!$Q$2) -> 0 | R13: =COUNTIFS('Facility Summary'!$A:$A, 'OES Summary'!A13,'Facility Summary'!$Q:$Q, 'OES Summary'!$R$2) -> 0 | S13: =COUNTIFS('Facility Summary'!$A:$A, 'OES Summary'!A13,'Facility Summary'!$Q:$Q, 'OES Summary'!$S$2) -> 0 | T13: =COUNTIFS('Facility Summary'!$A:$A, 'OES Summary'!A13,'Facility Summary'!$Q:$Q, 'OES Summary'!$T$2) -> 0 | U13: =COUNTIFS('Facility Summary'!$A:$A, 'OES Summary'!A13,'Facility Summary'!$Q:$Q, 'OES Summary'!$U$2) -> 0 | V13: =COUNTIFS('Facility Summary'!$A:$A, 'OES Summary'!A13,'Facility Summary'!$Q:$Q, 'OES Summary'!$V$2) -> 0 | W13: =COUNTIFS('Facility Summary'!$A:$A, 'OES Summary'!A13,'Facility Summary'!$Q:$Q, 'OES Summary'!$W$2) -> 0 | X13: =COUNTIFS('Facility Summary'!$A:$A, 'OES Summary'!A13,'Facility Summary'!$Q:$Q, 'OES Summary'!$X$2) -> 0 | Y13: =COUNTIFS('Facility Summary'!$A:$A, 'OES Summary'!A13,'Facility Summary'!$Q:$Q, 'OES Summary'!$Y$2) -> 0 | Z13: =COUNTIFS('Facility Summary'!$A:$A, 'OES Summary'!A13,'Facility Summary'!$Q:$Q, 'OES Summary'!$Z$2) -> 0 | AA13: =COUNTIFS('Facility Summary'!$A:$A, 'OES Summary'!A13,'Facility Summary'!$Q:$Q, 'OES Summary'!$AA$2) -> 0 | AB13: =IFERROR(PERCENTILE(IF('2016-2021 TRI_Nonzero Unique'!$C:$C=$A13,'2016-2021 TRI_Nonzero Unique'!$AR:$AR),0.5)*0.453592,"") ->  | AC13: =IFERROR(PERCENTILE(IF('2016-2021 TRI_Nonzero Unique'!$C:$C=$A13,'2016-2021 TRI_Nonzero Unique'!$AR:$AR),0.95)*0.453592,"") ->  | AD13: =IFERROR(PERCENTILE(IF('2016-2021 TRI_Nonzero Unique'!$C:$C=$A13,'2016-2021 TRI_Nonzero Unique'!$AR:$AR),0.5)*0.453592/$E13,"") ->  | AE13: =IFERROR(PERCENTILE(IF('2016-2021 TRI_Nonzero Unique'!$C:$C=$A13,'2016-2021 TRI_Nonzero Unique'!$AR:$AR),0.95)*0.453592/$E13,"") ->  | AF13: Assumes facility operates 7 days/week and 50 weeks/yr (with two weeks down for turnaround)
A14: Recycling | B14: - | C14: 0 | D14: unknown | E14: 350 | F14: unknown - see notes for number of release days | G14: 1 | H14: =COUNTIF('Facility Summary'!$A:$A, 'OES Summary'!A14) -> 1 | I14: =COUNTIFS('Facility Summary'!$A:$A, 'OES Summary'!A14,'Facility Summary'!$Q:$Q, 'OES Summary'!$I$2) -> 0 | J14: =COUNTIFS('Facility Summary'!$A:$A, 'OES Summary'!A14,'Facility Summary'!$Q:$Q, 'OES Summary'!$J$2) -> 0 | K14: =COUNTIFS('Facility Summary'!$A:$A, 'OES Summary'!A14,'Facility Summary'!$Q:$Q, 'OES Summary'!$K$2) -> 0 | L14: =COUNTIFS('Facility Summary'!$A:$A, 'OES Summary'!A14,'Facility Summary'!$Q:$Q, 'OES Summary'!$L$2) -> 0 | M14: =COUNTIFS('Facility Summary'!$A:$A, 'OES Summary'!A14,'Facility Summary'!$Q:$Q, 'OES Summary'!$M$2) -> 0 | N14: =COUNTIFS('Facility Summary'!$A:$A, 'OES Summary'!A14,'Facility Summary'!$Q:$Q, 'OES Summary'!$N$2) -> 0 | O14: =COUNTIFS('Facility Summary'!$A:$A, 'OES Summary'!A14,'Facility Summary'!$Q:$Q, 'OES Summary'!$O$2) -> 0 | P14: =COUNTIFS('Facility Summary'!$A:$A, 'OES Summary'!A14,'Facility Summary'!$Q:$Q, 'OES Summary'!$P$2) -> 1 | Q14: =COUNTIFS('Facility Summary'!$A:$A, 'OES Summary'!A14,'Facility Summary'!$Q:$Q, 'OES Summary'!$Q$2) -> 0 | R14: =COUNTIFS('Facility Summary'!$A:$A, 'OES Summary'!A14,'Facility Summary'!$Q:$Q, 'OES Summary'!$R$2) -> 0 | S14: =COUNTIFS('Facility Summary'!$A:$A, 'OES Summary'!A14,'Facility Summary'!$Q:$Q, 'OES Summary'!$S$2) -> 0 | T14: =COUNTIFS('Facility Summary'!$A:$A, 'OES Summary'!A14,'Facility Summary'!$Q:$Q, 'OES Summary'!$T$2) -> 0 | U14: =COUNTIFS('Facility Summary'!$A:$A, 'OES Summary'!A14,'Facility Summary'!$Q:$Q, 'OES Summary'!$U$2) -> 0 | V14: =COUNTIFS('Facility Summary'!$A:$A, 'OES Summary'!A14,'Facility Summary'!$Q:$Q, 'OES Summary'!$V$2) -> 0 | W14: =COUNTIFS('Facility Summary'!$A:$A, 'OES Summary'!A14,'Facility Summary'!$Q:$Q, 'OES Summary'!$W$2) -> 0 | X14: =COUNTIFS('Facility Summary'!$A:$A, 'OES Summary'!A14,'Facility Summary'!$Q:$Q, 'OES Summary'!$X$2) -> 0 | Y14: =COUNTIFS('Facility Summary'!$A:$A, 'OES Summary'!A14,'Facility Summary'!$Q:$Q, 'OES Summary'!$Y$2) -> 0 | Z14: =COUNTIFS('Facility Summary'!$A:$A, 'OES Summary'!A14,'Facility Summary'!$Q:$Q, 'OES Summary'!$Z$2) -> 0 | AA14: =COUNTIFS('Facility Summary'!$A:$A, 'OES Summary'!A14,'Facility Summary'!$Q:$Q, 'OES Summary'!$AA$2) -> 0 | AB14: =IFERROR(PERCENTILE(IF('2016-2021 TRI_Nonzero Unique'!$C:$C=$A14,'2016-2021 TRI_Nonzero Unique'!$AR:$AR),0.5)*0.453592,"") -> 1.6E-04 | AC14: =IFERROR(PERCENTILE(IF('2016-2021 TRI_Nonzero Unique'!$C:$C=$A14,'2016-2021 TRI_Nonzero Unique'!$AR:$AR),0.95)*0.453592,"") -> 1.6E-04 | AD14: =IFERROR(PERCENTILE(IF('2016-2021 TRI_Nonzero Unique'!$C:$C=$A14,'2016-2021 TRI_Nonzero Unique'!$AR:$AR),0.5)*0.453592/$E14,"") -> 4.6E-07 | AE14: =IFERROR(PERCENTILE(IF('2016-2021 TRI_Nonzero Unique'!$C:$C=$A14,'2016-2021 TRI_Nonzero Unique'!$AR:$AR),0.95)*0.453592/$E14,"") -> 4.6E-07 | AF14: Assumes facility operates 7 days/week and 50 weeks/yr (with two weeks down for turnaround)
A15: Waste Handling, Disposal, Treatment, and Recycling | B15: - | C15: 0 | D15: unknown | E15: 250 | F15: unknown - see notes for number of release days | G15: 2 | H15: =COUNTIF('Facility Summary'!$A:$A, 'OES Summary'!A15) -> 2 | I15: =COUNTIFS('Facility Summary'!$A:$A, 'OES Summary'!A15,'Facility Summary'!$Q:$Q, 'OES Summary'!$I$2) -> 1 | J15: =COUNTIFS('Facility Summary'!$A:$A, 'OES Summary'!A15,'Facility Summary'!$Q:$Q, 'OES Summary'!$J$2) -> 0 | K15: =COUNTIFS('Facility Summary'!$A:$A, 'OES Summary'!A15,'Facility Summary'!$Q:$Q, 'OES Summary'!$K$2) -> 1 | L15: =COUNTIFS('Facility Summary'!$A:$A, 'OES Summary'!A15,'Facility Summary'!$Q:$Q, 'OES Summary'!$L$2) -> 0 | M15: =COUNTIFS('Facility Summary'!$A:$A, 'OES Summary'!A15,'Facility Summary'!$Q:$Q, 'OES Summary'!$M$2) -> 0 | N15: =COUNTIFS('Facility Summary'!$A:$A, 'OES Summary'!A15,'Facility Summary'!$Q:$Q, 'OES Summary'!$N$2) -> 0 | O15: =COUNTIFS('Facility Summary'!$A:$A, 'OES Summary'!A15,'Facility Summary'!$Q:$Q, 'OES Summary'!$O$2) -> 0 | P15: =COUNTIFS('Facility Summary'!$A:$A, 'OES Summary'!A15,'Facility Summary'!$Q:$Q, 'OES Summary'!$P$2) -> 0 | Q15: =COUNTIFS('Facility Summary'!$A:$A, 'OES Summary'!A15,'Facility Summary'!$Q:$Q, 'OES Summary'!$Q$2) -> 0 | R15: =COUNTIFS('Facility Summary'!$A:$A, 'OES Summary'!A15,'Facility Summary'!$Q:$Q, 'OES Summary'!$R$2) -> 0 | S15: =COUNTIFS('Facility Summary'!$A:$A, 'OES Summary'!A15,'Facility Summary'!$Q:$Q, 'OES Summary'!$S$2) -> 0 | T15: =COUNTIFS('Facility Summary'!$A:$A, 'OES Summary'!A15,'Facility Summary'!$Q:$Q, 'OES Summary'!$T$2) -> 0 | U15: =COUNTIFS('Facility Summary'!$A:$A, 'OES Summary'!A15,'Facility Summary'!$Q:$Q, 'OES Summary'!$U$2) -> 0 | V15: =COUNTIFS('Facility Summary'!$A:$A, 'OES Summary'!A15,'Facility Summary'!$Q:$Q, 'OES Summary'!$V$2) -> 0 | W15: =COUNTIFS('Facility Summary'!$A:$A, 'OES Summary'!A15,'Facility Summary'!$Q:$Q, 'OES Summary'!$W$2) -> 0 | X15: =COUNTIFS('Facility Summary'!$A:$A, 'OES Summary'!A15,'Facility Summary'!$Q:$Q, 'OES Summary'!$X$2) -> 0 | Y15: =COUNTIFS('Facility Summary'!$A:$A, 'OES Summary'!A15,'Facility Summary'!$Q:$Q, 'OES Summary'!$Y$2) -> 0 | Z15: =COUNTIFS('Facility Summary'!$A:$A, 'OES Summary'!A15,'Facility Summary'!$Q:$Q, 'OES Summary'!$Z$2) -> 0 | AA15: =COUNTIFS('Facility Summary'!$A:$A, 'OES Summary'!A15,'Facility Summary'!$Q:$Q, 'OES Summary'!$AA$2) -> 0 | AB15: =IFERROR(PERCENTILE(IF('2016-2021 TRI_Nonzero Unique'!$C:$C=$A15,'2016-2021 TRI_Nonzero Unique'!$AR:$AR),0.5)*0.453592,"") -> 5781 | AC15: =IFERROR(PERCENTILE(IF('2016-2021 TRI_Nonzero Unique'!$C:$C=$A15,'2016-2021 TRI_Nonzero Unique'!$AR:$AR),0.95)*0.453592,"") -> 6226 | AD15: =IFERROR(PERCENTILE(IF('2016-2021 TRI_Nonzero Unique'!$C:$C=$A15,'2016-2021 TRI_Nonzero Unique'!$AR:$AR),0.5)*0.453592/$E15,"") -> 23 | AE15: =IFERROR(PERCENTILE(IF('2016-2021 TRI_Nonzero Unique'!$C:$C=$A15,'2016-2021 TRI_Nonzero Unique'!$AR:$AR),0.95)*0.453592/$E15,"") -> 25 | AF15: Assumes operation 5 days/week for 50 weeks/yr.
A16: # of Mapped Facilities | G16: =SUM(G3:G15) -> 39 | H16: =SUM(H3:H15) -> 48 | I16: =SUM(I3:I15) -> 3 | J16: 0 | K16: 1 | L16: 1 | M16: 1 | N16: 0 | O16: 0 | P16: 10 | Q16: 0 | R16: 1 | S16: 0 | T16: 0 | U16: 0 | V16: 15 | W16: 5 | X16: 0 | Y16: 0 | Z16: 5 | AA16: 6
A17: * Some facilities are counted more than once based on releases to more than one Land Release Category

Sheet Overall Release Summary
B1: TRI Annual Releases (lb/yr) | I1: TRI Annual Releases (kg/yr)
A2: Land Release Category | B2: 2021 | C2: 2020 | D2: 2019 | E2: 2018 | F2: 2017 | G2: 2016 | I2: 2021 | J2: 2020 | K2: 2019 | L2: 2018 | M2: 2017 | N2: 2016
A3: 178 TOTAL ON-SITE UGRND INJ TO CL I WELLS – POUNDS | B3: =SUMIF('2016-2021 TRI_Nonzero Unique'!$E:$E, B$2,'2016-2021 TRI_Nonzero Unique'!$Y:$Y) -> 1118.2 | C3: =SUMIF('2016-2021 TRI_Nonzero Unique'!$E:$E, C$2,'2016-2021 TRI_Nonzero Unique'!$Y:$Y) -> 21039.5 | D3: =SUMIF('2016-2021 TRI_Nonzero Unique'!$E:$E, D$2,'2016-2021 TRI_Nonzero Unique'!$Y:$Y) -> 32654.0 | E3: =SUMIF('2016-2021 TRI_Nonzero Unique'!$E:$E, E$2,'2016-2021 TRI_Nonzero Unique'!$Y:$Y) -> 22340.3 | F3: =SUMIF('2016-2021 TRI_Nonzero Unique'!$E:$E, F$2,'2016-2021 TRI_Nonzero Unique'!$Y:$Y) -> 22008.0 | G3: =SUMIF('2016-2021 TRI_Nonzero Unique'!$E:$E, G$2,'2016-2021 TRI_Nonzero Unique'!$Y:$Y) -> 19019.0 | I3: =CONVERT(B3,"lbm", "g")/1000 -> 507.2 | J3: =CONVERT(C3,"lbm", "g")/1000 -> 9543.4 | K3: 14811.6 | L3: 10133.4 | M3: 9982.7 | N3: 8626.9
A4: 182 TOTAL ON-SITE UGRND INJ TO CL II-V WELLS – POUNDS | B4: =SUMIF('2016-2021 TRI_Nonzero Unique'!$E:$E, B$2,'2016-2021 TRI_Nonzero Unique'!$Z:$Z) -> 0.0 | C4: =SUMIF('2016-2021 TRI_Nonzero Unique'!$E:$E, C$2,'2016-2021 TRI_Nonzero Unique'!$Z:$Z) -> 0.0 | D4: =SUMIF('2016-2021 TRI_Nonzero Unique'!$E:$E, D$2,'2016-2021 TRI_Nonzero Unique'!$Z:$Z) -> 0.0 | E4: =SUMIF('2016-2021 TRI_Nonzero Unique'!$E:$E, E$2,'2016-2021 TRI_Nonzero Unique'!$Z:$Z) -> 0.0 | F4: =SUMIF('2016-2021 TRI_Nonzero Unique'!$E:$E, F$2,'2016-2021 TRI_Nonzero Unique'!$Z:$Z) -> 0.0 | G4: =SUMIF('2016-2021 TRI_Nonzero Unique'!$E:$E, G$2,'2016-2021 TRI_Nonzero Unique'!$Z:$Z) -> 0.0 | I4: =CONVERT(B4,"lbm", "g")/1000 -> 0.0 | J4: =CONVERT(C4,"lbm", "g")/1000 -> 0.0 | K4: =CONVERT(D4,"lbm", "g")/1000 -> 0.0 | L4: =CONVERT(E4,"lbm", "g")/1000 -> 0.0 | M4: =CONVERT(F4,"lbm", "g")/1000 -> 0.0 | N4: =CONVERT(G4,"lbm", "g")/1000 -> 0.0
A5: 191 TOTAL ON-SITE RCRA SUBTITLE C LANDFILLS | B5: =SUMIF('2016-2021 TRI_Nonzero Unique'!$E:$E, B$2,'2016-2021 TRI_Nonzero Unique'!$AA:$AA) -> 0.0 | C5: =SUMIF('2016-2021 TRI_Nonzero Unique'!$E:$E, C$2,'2016-2021 TRI_Nonzero Unique'!$AA:$AA) -> 0.0 | D5: =SUMIF('2016-2021 TRI_Nonzero Unique'!$E:$E, D$2,'2016-2021 TRI_Nonzero Unique'!$AA:$AA) -> 0.0 | E5: =SUMIF('2016-2021 TRI_Nonzero Unique'!$E:$E, E$2,'2016-2021 TRI_Nonzero Unique'!$AA:$AA) -> 0.0 | F5: =SUMIF('2016-2021 TRI_Nonzero Unique'!$E:$E, F$2,'2016-2021 TRI_Nonzero Unique'!$AA:$AA) -> 13836.0 | G5: =SUMIF('2016-2021 TRI_Nonzero Unique'!$E:$E, G$2,'2016-2021 TRI_Nonzero Unique'!$AA:$AA) -> 0.0 | I5: 0.0 | J5: 0.0 | K5: 0.0 | L5: 0.0 | M5: 6275.9 | N5: 0.0
A6: 195 TOTAL OTHER ON-SITE LANDFILLS | B6: =SUMIF('2016-2021 TRI_Nonzero Unique'!$E:$E, B$2,'2016-2021 TRI_Nonzero Unique'!$AB:$AB) -> 0.0 | C6: =SUMIF('2016-2021 TRI_Nonzero Unique'!$E:$E, C$2,'2016-2021 TRI_Nonzero Unique'!$AB:$AB) -> 1.0 | D6: =SUMIF('2016-2021 TRI_Nonzero Unique'!$E:$E, D$2,'2016-2021 TRI_Nonzero Unique'!$AB:$AB) -> 0.0 | E6: =SUMIF('2016-2021 TRI_Nonzero Unique'!$E:$E, E$2,'2016-2021 TRI_Nonzero Unique'!$AB:$AB) -> 0.0 | F6: =SUMIF('2016-2021 TRI_Nonzero Unique'!$E:$E, F$2,'2016-2021 TRI_Nonzero Unique'!$AB:$AB) -> 0.0 | G6: =SUMIF('2016-2021 TRI_Nonzero Unique'!$E:$E, G$2,'2016-2021 TRI_Nonzero Unique'!$AB:$AB) -> 0.0 | I6: 0.0 | J6: 0.5 | K6: 0.0 | L6: 0.0 | M6: 0.0 | N6: 0.0
A7: 199 TOTAL ON-SITE LAND TREATMENT | B7: =SUMIF('2016-2021 TRI_Nonzero Unique'!$E:$E, B$2,'2016-2021 TRI_Nonzero Unique'!$AC:$AC) -> 1.0 | C7: =SUMIF('2016-2021 TRI_Nonzero Unique'!$E:$E, C$2,'2016-2021 TRI_Nonzero Unique'!$AC:$AC) -> 0.0 | D7: =SUMIF('2016-2021 TRI_Nonzero Unique'!$E:$E, D$2,'2016-2021 TRI_Nonzero Unique'!$AC:$AC) -> 0.0 | E7: =SUMIF('2016-2021 TRI_Nonzero Unique'!$E:$E, E$2,'2016-2021 TRI_Nonzero Unique'!$AC:$AC) -> 0.0 | F7: =SUMIF('2016-2021 TRI_Nonzero Unique'!$E:$E, F$2,'2016-2021 TRI_Nonzero Unique'!$AC:$AC) -> 1.0 | G7: =SUMIF('2016-2021 TRI_Nonzero Unique'!$E:$E, G$2,'2016-2021 TRI_Nonzero Unique'!$AC:$AC) -> 0.0 | I7: 0.5 | J7: 0.0 | K7: 0.0 | L7: 0.0 | M7: 0.5 | N7: 0.0
A8: 207 TOTAL RCRA C SURFACE IMPOUNDMENTS | B8: =SUMIF('2016-2021 TRI_Nonzero Unique'!$E:$E, B$2,'2016-2021 TRI_Nonzero Unique'!$AD:$AD) -> 0.0 | C8: =SUMIF('2016-2021 TRI_Nonzero Unique'!$E:$E, C$2,'2016-2021 TRI_Nonzero Unique'!$AD:$AD) -> 0.0 | D8: =SUMIF('2016-2021 TRI_Nonzero Unique'!$E:$E, D$2,'2016-2021 TRI_Nonzero Unique'!$AD:$AD) -> 0.0 | E8: =SUMIF('2016-2021 TRI_Nonzero Unique'!$E:$E, E$2,'2016-2021 TRI_Nonzero Unique'!$AD:$AD) -> 0.0 | F8: =SUMIF('2016-2021 TRI_Nonzero Unique'!$E:$E, F$2,'2016-2021 TRI_Nonzero Unique'!$AD:$AD) -> 0.0 | G8: =SUMIF('2016-2021 TRI_Nonzero Unique'!$E:$E, G$2,'2016-2021 TRI_Nonzero Unique'!$AD:$AD) -> 0.0 | I8: 0.0 | J8: 0.0 | K8: 0.0 | L8: 0.0 | M8: 0.0 | N8: 0.0
A9: 211 TOTAL OTHER SURFACE IMPOUNDMENTS | B9: =SUMIF('2016-2021 TRI_Nonzero Unique'!$E:$E, B$2,'2016-2021 TRI_Nonzero Unique'!$AE:$AE) -> 0.0 | C9: =SUMIF('2016-2021 TRI_Nonzero Unique'!$E:$E, C$2,'2016-2021 TRI_Nonzero Unique'!$AE:$AE) -> 0.0 | D9: =SUMIF('2016-2021 TRI_Nonzero Unique'!$E:$E, D$2,'2016-2021 TRI_Nonzero Unique'!$AE:$AE) -> 0.0 | E9: =SUMIF('2016-2021 TRI_Nonzero Unique'!$E:$E, E$2,'2016-2021 TRI_Nonzero Unique'!$AE:$AE) -> 0.0 | F9: =SUMIF('2016-2021 TRI_Nonzero Unique'!$E:$E, F$2,'2016-2021 TRI_Nonzero Unique'!$AE:$AE) -> 0.0 | G9: =SUMIF('2016-2021 TRI_Nonzero Unique'!$E:$E, G$2,'2016-2021 TRI_Nonzero Unique'!$AE:$AE) -> 0.0 | I9: 0.0 | J9: 0.0 | K9: 0.0 | L9: 0.0 | M9: 0.0 | N9: 0.0
A10: 215 TOTAL OTHER DISPOSAL | B10: =SUMIF('2016-2021 TRI_Nonzero Unique'!$E:$E, B$2,'2016-2021 TRI_Nonzero Unique'!$AF:$AF) -> 364.2 | C10: =SUMIF('2016-2021 TRI_Nonzero Unique'!$E:$E, C$2,'2016-2021 TRI_Nonzero Unique'!$AF:$AF) -> 116.0 | D10: =SUMIF('2016-2021 TRI_Nonzero Unique'!$E:$E, D$2,'2016-2021 TRI_Nonzero Unique'!$AF:$AF) -> 131.1 | E10: =SUMIF('2016-2021 TRI_Nonzero Unique'!$E:$E, E$2,'2016-2021 TRI_Nonzero Unique'!$AF:$AF) -> 131.0 | F10: =SUMIF('2016-2021 TRI_Nonzero Unique'!$E:$E, F$2,'2016-2021 TRI_Nonzero Unique'!$AF:$AF) -> 8.1 | G10: =SUMIF('2016-2021 TRI_Nonzero Unique'!$E:$E, G$2,'2016-2021 TRI_Nonzero Unique'!$AF:$AF) -> 253.4 | I10: 165.2 | J10: 52.6 | K10: 59.5 | L10: 59.4 | M10: 3.7 | N10: 115.0
A11: 220 WASTE ROCK QUANTITY | B11: =SUMIF('2016-2021 TRI_Nonzero Unique'!$E:$E, B$2,'2016-2021 TRI_Nonzero Unique'!$AG:$AG) -> 0.0 | C11: =SUMIF('2016-2021 TRI_Nonzero Unique'!$E:$E, C$2,'2016-2021 TRI_Nonzero Unique'!$AG:$AG) -> 0.0 | D11: =SUMIF('2016-2021 TRI_Nonzero Unique'!$E:$E, D$2,'2016-2021 TRI_Nonzero Unique'!$AG:$AG) -> 0.0 | E11: =SUMIF('2016-2021 TRI_Nonzero Unique'!$E:$E, E$2,'2016-2021 TRI_Nonzero Unique'!$AG:$AG) -> 0.0 | F11: =SUMIF('2016-2021 TRI_Nonzero Unique'!$E:$E, F$2,'2016-2021 TRI_Nonzero Unique'!$AG:$AG) -> 0.0 | G11: =SUMIF('2016-2021 TRI_Nonzero Unique'!$E:$E, G$2,'2016-2021 TRI_Nonzero Unique'!$AG:$AG) -> 0.0 | I11: 0.0 | J11: 0.0 | K11: 0.0 | L11: 0.0 | M11: 0.0 | N11: 0.0
A12: 230 OFF-SITE – UNDERGROUND INJECTION - CLASS 1 WELLS | B12: =SUMIF('2016-2021 TRI_Nonzero Unique'!$E:$E, B$2,'2016-2021 TRI_Nonzero Unique'!$AH:$AH) -> 328.0 | C12: =SUMIF('2016-2021 TRI_Nonzero Unique'!$E:$E, C$2,'2016-2021 TRI_Nonzero Unique'!$AH:$AH) -> 0.0 | D12: =SUMIF('2016-2021 TRI_Nonzero Unique'!$E:$E, D$2,'2016-2021 TRI_Nonzero Unique'!$AH:$AH) -> 0.0 | E12: =SUMIF('2016-2021 TRI_Nonzero Unique'!$E:$E, E$2,'2016-2021 TRI_Nonzero Unique'!$AH:$AH) -> 0.0 | F12: =SUMIF('2016-2021 TRI_Nonzero Unique'!$E:$E, F$2,'2016-2021 TRI_Nonzero Unique'!$AH:$AH) -> 0.0 | G12: =SUMIF('2016-2021 TRI_Nonzero Unique'!$E:$E, G$2,'2016-2021 TRI_Nonzero Unique'!$AH:$AH) -> 0.0 | I12: 148.8 | J12: 0.0 | K12: 0.0 | L12: 0.0 | M12: 0.0 | N12: 0.0
A13: 231 OFF-SITE – UNDERGROUND INJECTION - CLASS II-V WELLS | B13: =SUMIF('2016-2021 TRI_Nonzero Unique'!$E:$E, B$2,'2016-2021 TRI_Nonzero Unique'!$AI:$AI) -> 0.0 | C13: =SUMIF('2016-2021 TRI_Nonzero Unique'!$E:$E, C$2,'2016-2021 TRI_Nonzero Unique'!$AI:$AI) -> 0.0 | D13: =SUMIF('2016-2021 TRI_Nonzero Unique'!$E:$E, D$2,'2016-2021 TRI_Nonzero Unique'!$AI:$AI) -> 0.0 | E13: =SUMIF('2016-2021 TRI_Nonzero Unique'!$E:$E, E$2,'2016-2021 TRI_Nonzero Unique'!$AI:$AI) -> 0.0 | F13: =SUMIF('2016-2021 TRI_Nonzero Unique'!$E:$E, F$2,'2016-2021 TRI_Nonzero Unique'!$AI:$AI) -> 0.0 | G13: =SUMIF('2016-2021 TRI_Nonzero Unique'!$E:$E, G$2,'2016-2021 TRI_Nonzero Unique'!$AI:$AI) -> 0.0 | I13: 0.0 | J13: 0.0 | K13: 0.0 | L13: 0.0 | M13: 0.0 | N13: 0.0
A14: 234 OFF-SITE - RCRA SUBTITLE C SURFACE IMPOUNDMENTS | B14: =SUMIF('2016-2021 TRI_Nonzero Unique'!$E:$E, B$2,'2016-2021 TRI_Nonzero Unique'!$AJ:$AJ) -> 0.0 | C14: =SUMIF('2016-2021 TRI_Nonzero Unique'!$E:$E, C$2,'2016-2021 TRI_Nonzero Unique'!$AJ:$AJ) -> 0.0 | D14: =SUMIF('2016-2021 TRI_Nonzero Unique'!$E:$E, D$2,'2016-2021 TRI_Nonzero Unique'!$AJ:$AJ) -> 0.0 | E14: =SUMIF('2016-2021 TRI_Nonzero Unique'!$E:$E, E$2,'2016-2021 TRI_Nonzero Unique'!$AJ:$AJ) -> 0.0 | F14: =SUMIF('2016-2021 TRI_Nonzero Unique'!$E:$E, F$2,'2016-2021 TRI_Nonzero Unique'!$AJ:$AJ) -> 0.0 | G14: =SUMIF('2016-2021 TRI_Nonzero Unique'!$E:$E, G$2,'2016-2021 TRI_Nonzero Unique'!$AJ:$AJ) -> 0.0 | I14: 0.0 | J14: 0.0 | K14: 0.0 | L14: 0.0 | M14: 0.0 | N14: 0.0
A15: 235 OFF-SITE - OTHER SURFACE IMPOUNDMENTS | B15: =SUMIF('2016-2021 TRI_Nonzero Unique'!$E:$E, B$2,'2016-2021 TRI_Nonzero Unique'!$AK:$AK) -> 0.0 | C15: =SUMIF('2016-2021 TRI_Nonzero Unique'!$E:$E, C$2,'2016-2021 TRI_Nonzero Unique'!$AK:$AK) -> 0.0 | D15: =SUMIF('2016-2021 TRI_Nonzero Unique'!$E:$E, D$2,'2016-2021 TRI_Nonzero Unique'!$AK:$AK) -> 0.0 | E15: =SUMIF('2016-2021 TRI_Nonzero Unique'!$E:$E, E$2,'2016-2021 TRI_Nonzero Unique'!$AK:$AK) -> 0.0 | F15: =SUMIF('2016-2021 TRI_Nonzero Unique'!$E:$E, F$2,'2016-2021 TRI_Nonzero Unique'!$AK:$AK) -> 0.0 | G15: =SUMIF('2016-2021 TRI_Nonzero Unique'!$E:$E, G$2,'2016-2021 TRI_Nonzero Unique'!$AK:$AK) -> 0.0 | I15: 0.0 | J15: 0.0 | K15: 0.0 | L15: 0.0 | M15: 0.0 | N15: 0.0
A16: 236 OFF-SITE - OTHER LANDFILLS | B16: =SUMIF('2016-2021 TRI_Nonzero Unique'!$E:$E, B$2,'2016-2021 TRI_Nonzero Unique'!$AL:$AL) -> 1177.0 | C16: =SUMIF('2016-2021 TRI_Nonzero Unique'!$E:$E, C$2,'2016-2021 TRI_Nonzero Unique'!$AL:$AL) -> 1212.0 | D16: =SUMIF('2016-2021 TRI_Nonzero Unique'!$E:$E, D$2,'2016-2021 TRI_Nonzero Unique'!$AL:$AL) -> 1207.0 | E16: =SUMIF('2016-2021 TRI_Nonzero Unique'!$E:$E, E$2,'2016-2021 TRI_Nonzero Unique'!$AL:$AL) -> 1567.3 | F16: =SUMIF('2016-2021 TRI_Nonzero Unique'!$E:$E, F$2,'2016-2021 TRI_Nonzero Unique'!$AL:$AL) -> 1311.1 | G16: =SUMIF('2016-2021 TRI_Nonzero Unique'!$E:$E, G$2,'2016-2021 TRI_Nonzero Unique'!$AL:$AL) -> 882.0 | I16: 533.9 | J16: 549.8 | K16: 547.5 | L16: 710.9 | M16: 594.7 | N16: 400.1
A17: 237 OFF-SITE - RCRA SUBTITLE C LANDFILLS | B17: =SUMIF('2016-2021 TRI_Nonzero Unique'!$E:$E, B$2,'2016-2021 TRI_Nonzero Unique'!$AM:$AM) -> 2.0 | C17: =SUMIF('2016-2021 TRI_Nonzero Unique'!$E:$E, C$2,'2016-2021 TRI_Nonzero Unique'!$AM:$AM) -> 23.0 | D17: =SUMIF('2016-2021 TRI_Nonzero Unique'!$E:$E, D$2,'2016-2021 TRI_Nonzero Unique'!$AM:$AM) -> 115.0 | E17: =SUMIF('2016-2021 TRI_Nonzero Unique'!$E:$E, E$2,'2016-2021 TRI_Nonzero Unique'!$AM:$AM) -> 2.0 | F17: =SUMIF('2016-2021 TRI_Nonzero Unique'!$E:$E, F$2,'2016-2021 TRI_Nonzero Unique'!$AM:$AM) -> 0.1 | G17: =SUMIF('2016-2021 TRI_Nonzero Unique'!$E:$E, G$2,'2016-2021 TRI_Nonzero Unique'!$AM:$AM) -> 0.2 | I17: 0.9 | J17: 10.4 | K17: 52.2 | L17: 0.9 | M17: 0.0 | N17: 0.1
A18: 238 OFF-SITE - DISPOSAL - LAND TREATMENT | B18: =SUMIF('2016-2021 TRI_Nonzero Unique'!$E:$E, B$2,'2016-2021 TRI_Nonzero Unique'!$AN:$AN) -> 0.0 | C18: =SUMIF('2016-2021 TRI_Nonzero Unique'!$E:$E, C$2,'2016-2021 TRI_Nonzero Unique'!$AN:$AN) -> 0.0 | D18: =SUMIF('2016-2021 TRI_Nonzero Unique'!$E:$E, D$2,'2016-2021 TRI_Nonzero Unique'!$AN:$AN) -> 0.0 | E18: =SUMIF('2016-2021 TRI_Nonzero Unique'!$E:$E, E$2,'2016-2021 TRI_Nonzero Unique'!$AN:$AN) -> 0.0 | F18: =SUMIF('2016-2021 TRI_Nonzero Unique'!$E:$E, F$2,'2016-2021 TRI_Nonzero Unique'!$AN:$AN) -> 0.0 | G18: =SUMIF('2016-2021 TRI_Nonzero Unique'!$E:$E, G$2,'2016-2021 TRI_Nonzero Unique'!$AN:$AN) -> 0.0 | I18: 0.0 | J18: 0.0 | K18: 0.0 | L18: 0.0 | M18: 0.0 | N18: 0.0
A19: 239 OFF-SITE - DISPOSAL - OTHER LAND DISPOSAL | B19: =SUMIF('2016-2021 TRI_Nonzero Unique'!$E:$E, B$2,'2016-2021 TRI_Nonzero Unique'!$AO:$AO) -> 0.0 | C19: =SUMIF('2016-2021 TRI_Nonzero Unique'!$E:$E, C$2,'2016-2021 TRI_Nonzero Unique'!$AO:$AO) -> 0.0 | D19: =SUMIF('2016-2021 TRI_Nonzero Unique'!$E:$E, D$2,'2016-2021 TRI_Nonzero Unique'!$AO:$AO) -> 0.0 | E19: =SUMIF('2016-2021 TRI_Nonzero Unique'!$E:$E, E$2,'2016-2021 TRI_Nonzero Unique'!$AO:$AO) -> 0.0 | F19: =SUMIF('2016-2021 TRI_Nonzero Unique'!$E:$E, F$2,'2016-2021 TRI_Nonzero Unique'!$AO:$AO) -> 0.0 | G19: =SUMIF('2016-2021 TRI_Nonzero Unique'!$E:$E, G$2,'2016-2021 TRI_Nonzero Unique'!$AO:$AO) -> 0.0 | I19: 0.0 | J19: 0.0 | K19: 0.0 | L19: 0.0 | M19: 0.0 | N19: 0.0
A20: 241 OFF-SITE - DISPOSAL - TRANSFER TO WASTE BROKER | B20: =SUMIF('2016-2021 TRI_Nonzero Unique'!$E:$E, B$2,'2016-2021 TRI_Nonzero Unique'!$AP:$AP) -> 4139.0 | C20: =SUMIF('2016-2021 TRI_Nonzero Unique'!$E:$E, C$2,'2016-2021 TRI_Nonzero Unique'!$AP:$AP) -> 5.0 | D20: =SUMIF('2016-2021 TRI_Nonzero Unique'!$E:$E, D$2,'2016-2021 TRI_Nonzero Unique'!$AP:$AP) -> 5.3 | E20: =SUMIF('2016-2021 TRI_Nonzero Unique'!$E:$E, E$2,'2016-2021 TRI_Nonzero Unique'!$AP:$AP) -> 1.0 | F20: =SUMIF('2016-2021 TRI_Nonzero Unique'!$E:$E, F$2,'2016-2021 TRI_Nonzero Unique'!$AP:$AP) -> 0.0 | G20: =SUMIF('2016-2021 TRI_Nonzero Unique'!$E:$E, G$2,'2016-2021 TRI_Nonzero Unique'!$AP:$AP) -> 5.0 | I20: 1877.4 | J20: 2.3 | K20: 2.4 | L20: 0.5 | M20: 0.0 | N20: 2.3
A21: 254 OFF-SITE - SOLIDIFICATION/STABILIZATION TREATMENT– NON META | B21: =SUMIF('2016-2021 TRI_Nonzero Unique'!$E:$E, B$2,'2016-2021 TRI_Nonzero Unique'!$AQ:$AQ) -> 21.0 | C21: =SUMIF('2016-2021 TRI_Nonzero Unique'!$E:$E, C$2,'2016-2021 TRI_Nonzero Unique'!$AQ:$AQ) -> 18.0 | D21: =SUMIF('2016-2021 TRI_Nonzero Unique'!$E:$E, D$2,'2016-2021 TRI_Nonzero Unique'!$AQ:$AQ) -> 14.4 | E21: =SUMIF('2016-2021 TRI_Nonzero Unique'!$E:$E, E$2,'2016-2021 TRI_Nonzero Unique'!$AQ:$AQ) -> 28.0 | F21: =SUMIF('2016-2021 TRI_Nonzero Unique'!$E:$E, F$2,'2016-2021 TRI_Nonzero Unique'!$AQ:$AQ) -> 423.0 | G21: =SUMIF('2016-2021 TRI_Nonzero Unique'!$E:$E, G$2,'2016-2021 TRI_Nonzero Unique'!$AQ:$AQ) -> 4.0 | I21: 9.5 | J21: 8.2 | K21: 6.5 | L21: 12.7 | M21: 191.9 | N21: 1.8

Sheet 2016-2021 TRI_Nonzero Unique
A1: 77 TRI CHEMICAL ID | B1: 78 CHEMICAL NAME | C1: COU Determination | D1: 1 FORM TYPE | E1: 2 REPORTING YEAR | F1: 9 TRIFD | G1: 74 FRS FACILITY ID | H1: 51 RCRA NR A | I1: 10 FACILITY NAME | J1: 11 FACILITY STREET | K1: 12 FACILITY CITY | L1: 13 FACILITY COUNTY | M1: 14 FACILITY STATE | N1: 15 FACILITY ZIP CODE | O1: 47 LATITUDE | P1: 48 LONGITUDE | Q1: 75 DOCUMENT CONTROL NUMBER | R1: 106 MAXIMUM AMOUNT ON SITE | S1: Code Expansion | T1: 73 STANDARDIZED PARENT COMPANY NAME | U1: 34 PRIMARY SIC CODE | V1: SIC Desc | W1: 41 PRIMARY NAICS CODE | X1: 2012 NAICS Desc | Y1: 178 TOTAL ON-SITE UGRND INJ TO CL I WELLS – POUNDS | Z1: 182 TOTAL ON-SITE UGRND INJ TO CL II-V WELLS – POUNDS | AA1: 191 TOTAL ON-SITE RCRA SUBTITLE C LANDFILLS | AB1: 195 TOTAL OTHER ON-SITE LANDFILLS | AC1: 199 TOTAL ON-SITE LAND TREATMENT | AD1: 207 TOTAL RCRA C SURFACE IMPOUNDMENTS | AE1: 211 TOTAL OTHER SURFACE IMPOUNDMENTS | AF1: 215 TOTAL OTHER DISPOSAL | AG1: 220 WASTE ROCK QUANTITY | AH1: 230 OFF-SITE – UNDERGROUND INJECTION - CLASS 1 WELLS | AI1: 231 OFF-SITE – UNDERGROUND INJECTION - CLASS II-V WELLS | AJ1: 234 OFF-SITE - RCRA SUBTITLE C SURFACE IMPOUNDMENTS | AK1: 235 OFF-SITE - OTHER SURFACE IMPOUNDMENTS | AL1: 236 OFF-SITE - OTHER LANDFILLS | AM1: 237 OFF-SITE - RCRA SUBTITLE C LANDFILLS | AN1: 238 OFF-SITE - DISPOSAL - LAND TREATMENT | AO1: 239 OFF-SITE - DISPOSAL - OTHER LAND DISPOSAL | AP1: 241 OFF-SITE - DISPOSAL - TRANSFER TO WASTE BROKER | AQ1: 254 OFF-SITE - SOLIDIFICATION/STABILIZATION TREATMENT– NON META | AR1: Land Release
A2: 106990 | B2: 1,3-Butadiene | C2: =VLOOKUP(F2, '2016-2021 BD OES Pull_rev'!F:N, 9, FALSE) -> Plastics and Rubber Compounding | D2: R | E2: 2016 | F2: 36505MTCHMHWY43 | G2: 110025376448 | H2: ALD000827154 | I2: ARKEMA INC | J2: 13755 HWY 43 N | K2: AXIS | L2: MOBILE | M2: AL | N2: 36505 | O2: 30.979167 | P2: -88.028833 | Q2: 1316215467578 | R2: 5 | S2: 100,000 to 999,999 | T2: ARKEMA DELAWARE INC | W2: 325211 | Y2: 0 | Z2: 0 | AA2: 0 | AB2: 0 | AC2: 0 | AD2: 0 | AE2: 0 | AF2: 0 | AH2: 0 | AI2: 0 | AJ2: 0 | AK2: 0 | AL2: 250 | AM2: 0 | AN2: 0 | AO2: 0 | AP2: 0 | AQ2: 0 | AR2: =SUM(Y2:AQ2) -> 250
A3: 106990 | B3: 1,3-Butadiene | C3: =VLOOKUP(F3, '2016-2021 BD OES Pull_rev'!F:N, 9, FALSE) -> Plastics and Rubber Compounding | D3: R | E3: 2017 | F3: 36505MTCHMHWY43 | G3: 110025376448 | H3: ALD000827154 | I3: ARKEMA INC | J3: 13755 HWY 43 N | K3: AXIS | L3: MOBILE | M3: AL | N3: 36505 | O3: 30.979167 | P3: -88.028833 | Q3: 1317216176762 | R3: 5 | S3: 100,000 to 999,999 | T3: ARKEMA DELAWARE INC | W3: 325211 | Y3: 0 | Z3: 0 | AA3: 0 | AB3: 0 | AC3: 0 | AD3: 0 | AE3: 0 | AF3: 0 | AH3: 0 | AI3: 0 | AJ3: 0 | AK3: 0 | AL3: 250 | AM3: 0 | AN3: 0 | AO3: 0 | AP3: 0 | AQ3: 0 | AR3: =SUM(Y3:AQ3) -> 250
A4: 106990 | B4: 1,3-Butadiene | C4: =VLOOKUP(F4, '2016-2021 BD OES Pull_rev'!F:N, 9, FALSE) -> Plastics and Rubber Compounding | D4: R | E4: 2018 | F4: 36505MTCHMHWY43 | G4: 110025376448 | H4: ALD000827154 | I4: ARKEMA INC | J4: 13755 HWY 43 N | K4: AXIS | L4: MOBILE | M4: AL | N4: 36505 | O4: 30.979167 | P4: -88.028833 | Q4: 1318216857336 | R4: 5 | S4: 100,000 to 999,999 | T4: ARKEMA DELAWARE INC | W4: 325211 | Y4: 0 | Z4: 0 | AA4: 0 | AB4: 0 | AC4: 0 | AD4: 0 | AE4: 0 | AF4: 0 | AH4: 0 | AI4: 0 | AJ4: 0 | AK4: 0 | AL4: 250 | AM4: 0 | AN4: 0 | AO4: 0 | AP4: 0 | AQ4: 0 | AR4: 250
A5: 106990 | B5: 1,3-Butadiene | C5: =VLOOKUP(F5, '2016-2021 BD OES Pull_rev'!F:N, 9, FALSE) -> Plastics and Rubber Compounding | D5: R | E5: 2019 | F5: 36505MTCHMHWY43 | G5: 110025376448 | H5: ALD000827154 | I5: ARKEMA INC | J5: 13755 HWY 43 N | K5: AXIS | L5: MOBILE | M5: AL | N5: 36505 | O5: 30.979167 | P5: -88.028833 | Q5: 1319218178628 | R5: 5 | S5: 100,000 to 999,999 | T5: ARKEMA DELAWARE INC | W5: 325211 | Y5: 0 | Z5: 0 | AA5: 0 | AB5: 0 | AC5: 0 | AD5: 0 | AE5: 0 | AF5: 0 | AH5: 0 | AI5: 0 | AJ5: 0 | AK5: 0 | AL5: 250 | AM5: 0 | AN5: 0 | AO5: 0 | AP5: 0 | AQ5: 0 | AR5: 250
A6: 106990 | B6: 1,3-Butadiene | C6: =VLOOKUP(F6, '2016-2021 BD OES Pull_rev'!F:N, 9, FALSE) -> Plastics and Rubber Compounding | D6: R | E6: 2020 | F6: 36505MTCHMHWY43 | G6: 110025376448 | H6: ALD000827154 | I6: ARKEMA INC | J6: 13755 HWY 43 N | K6: AXIS | L6: MOBILE | M6: AL | N6: 36505 | O6: 30.979167 | P6: -88.028833 | Q6: 1320218741700 | R6: 5 | S6: 100,000 to 999,999 | T6: ARKEMA DELAWARE INC | W6: 325211 | Y6: 0 | Z6: 0 | AA6: 0 | AB6: 0 | AC6: 0 | AD6: 0 | AE6: 0 | AF6: 0 | AH6: 0 | AI6: 0 | AJ6: 0 | AK6: 0 | AL6: 250 | AM6: 0 | AN6: 0 | AO6: 0 | AP6: 0 | AQ6: 0 | AR6: 250
A7: 106990 | B7: 1,3-Butadiene | C7: =VLOOKUP(F7, '2016-2021 BD OES Pull_rev'!F:N, 9, FALSE) -> Plastics and Rubber Compounding | D7: R | E7: 2021 | F7: 36505MTCHMHWY43 | G7: 110025376448 | H7: ALD000827154 | I7: ARKEMA INC | J7: 13755 HWY 43 N | K7: AXIS | L7: MOBILE | M7: AL | N7: 36505 | O7: 30.979167 | P7: -88.028833 | Q7: 1321220002582 | R7: 5 | S7: 100,000 to 999,999 | T7: ARKEMA DELAWARE INC | W7: 325211 | Y7: 0 | Z7: 0 | AA7: 0 | AB7: 0 | AC7: 0 | AD7: 0 | AE7: 0 | AF7: 0 | AH7: 0 | AI7: 0 | AJ7: 0 | AK7: 0 | AL7: 250 | AM7: 0 | AN7: 0 | AO7: 0 | AP7: 0 | AQ7: 0 | AR7: 250
A8: 106990 | B8: 1,3-Butadiene | C8: =VLOOKUP(F8, '2016-2021 BD OES Pull_rev'!F:N, 9, FALSE) -> Processing - Incorporation into formulation, mixture, or reaction product | D8: R | E8: 2017 | F8: 98248RCCHR4519G | G8: 110000490157 | H8: WAD069548154 | I8: BP CHERRY POINT REFINERY | J8: 4519 GRANDVIEW RD | K8: BLAINE | L8: WHATCOM | M8: WA | N8: 98230 | O8: 48.884 | P8: -122.735 | Q8: 1317216410581 | R8: 1 | S8: 0 to 99 | W8: 324110 | Y8: 0 | Z8: 0 | AA8: 0 | AB8: 0 | AC8: 0 | AD8: 0 | AE8: 0 | AF8: 0.02 | AH8: 0 | AI8: 0 | AJ8: 0 | AK8: 0 | AL8: 0 | AM8: 0 | AN8: 0 | AO8: 0 | AP8: 0 | AQ8: 0 | AR8: 0.02
A9: 106990 | B9: 1,3-Butadiene | C9: =VLOOKUP(F9, '2016-2021 BD OES Pull_rev'!F:N, 9, FALSE) -> Processing as a reactant | D9: R | E9: 2016 | F9: 41114CTLTTPOBOX | G9: 110008361263 | H9: KYD041376138 | I9: CATLETTSBURG REFINING LLC | J9: 11631 US RT 23 | K9: CATLETTSBURG | L9: BOYD | M9: KY | N9: 41129 | O9: 38.377246 | P9: -82.597162 | Q9: 1316215748144 | R9: 6 | S9: 1,000,000 to 9,999,999 | T9: MARATHON PETROLEUM CORP | W9: 324110 | Y9: 0 | Z9: 0 | AA9: 0 | AB9: 0 | AC9: 0 | AD9: 0 | AE9: 0 | AF9: 3 | AH9: 0 | AI9: 0 | AJ9: 0 | AK9: 0 | AL9: 0 | AM9: 0 | AN9: 0 | AO9: 0 | AP9: 0 | AQ9: 0 | AR9: 3
A10: 106990 | B10: 1,3-Butadiene | C10: =VLOOKUP(F10, '2016-2021 BD OES Pull_rev'!F:N, 9, FALSE) -> Processing as a reactant | D10: R | E10: 2017 | F10: 41114CTLTTPOBOX | G10: 110008361263 | H10: KYD041376138 | I10: CATLETTSBURG REFINING LLC | J10: 11631 US RT 23 | K10: CATLETTSBURG | L10: BOYD | M10: KY | N10: 41129 | O10: 38.377246 | P10: -82.597162 | Q10: 1317216105623 | R10: 6 | S10: 1,000,000 to 9,999,999 | T10: MARATHON PETROLEUM CORP | W10: 324110 | Y10: 0 | Z10: 0 | AA10: 0 | AB10: 0 | AC10: 0 | AD10: 0 | AE10: 0 | AF10: 2 | AH10: 0 | AI10: 0 | AJ10: 0 | AK10: 0 | AL10: 0 | AM10: 0 | AN10: 0 | AO10: 0 | AP10: 0 | AQ10: 0 | AR10: 2
A11: 106990 | B11: 1,3-Butadiene | C11: =VLOOKUP(F11, '2016-2021 BD OES Pull_rev'!F:N, 9, FALSE) -> Processing as a reactant | D11: R | E11: 2018 | F11: 41114CTLTTPOBOX | G11: 110008361263 | H11: KYD041376138 | I11: CATLETTSBURG REFINING LLC | J11: 11631 US RT 23 | K11: CATLETTSBURG | L11: BOYD | M11: KY | N11: 41129 | O11: 38.377246 | P11: -82.597162 | Q11: 1318217291804 | R11: 6 | S11: 1,000,000 to 9,999,999 | T11: MARATHON PETROLEUM CORP | W11: 324110 | Y11: 0 | Z11: 0 | AA11: 0 | AB11: 0 | AC11: 0 | AD11: 0 | AE11: 0 | AF11: 1 | AH11: 0 | AI11: 0 | AJ11: 0 | AK11: 0 | AL11: 0 | AM11: 0 | AN11: 0 | AO11: 0 | AP11: 0 | AQ11: 0 | AR11: 1
A12: 106990 | B12: 1,3-Butadiene | C12: =VLOOKUP(F12, '2016-2021 BD OES Pull_rev'!F:N, 9, FALSE) -> Processing as a reactant | D12: R | E12: 2019 | F12: 41114CTLTTPOBOX | G12: 110008361263 | H12: KYD041376138 | I12: CATLETTSBURG REFINING LLC | J12: 11631 US RT 23 | K12: CATLETTSBURG | L12: BOYD | M12: KY | N12: 41129 | O12: 38.377246 | P12: -82.597162 | Q12: 1319218410328 | R12: 6 | S12: 1,000,000 to 9,999,999 | T12: MARATHON PETROLEUM CORP | W12: 324110 | Y12: 0 | Z12: 0 | AA12: 0 | AB12: 0 | AC12: 0 | AD12: 0 | AE12: 0 | AF12: 42 | AH12: 0 | AI12: 0 | AJ12: 0 | AK12: 0 | AL12: 0 | AM12: 0 | AN12: 0 | AO12: 0 | AP12: 0 | AQ12: 0 | AR12: 42
A13: 106990 | B13: 1,3-Butadiene | C13: =VLOOKUP(F13, '2016-2021 BD OES Pull_rev'!F:N, 9, FALSE) -> Processing as a reactant | D13: R | E13: 2020 | F13: 41114CTLTTPOBOX | G13: 110008361263 | H13: KYD041376138 | I13: CATLETTSBURG REFINING LLC | J13: 11631 US RT 23 | K13: CATLETTSBURG | L13: BOYD | M13: KY | N13: 41129 | O13: 38.377246 | P13: -82.597162 | Q13: 1320219194673 | R13: 6 | S13: 1,000,000 to 9,999,999 | T13: MARATHON PETROLEUM CORP | W13: 324110 | Y13: 0 | Z13: 0 | AA13: 0 | AB13: 0 | AC13: 0 | AD13: 0 | AE13: 0 | AF13: 42 | AH13: 0 | AI13: 0 | AJ13: 0 | AK13: 0 | AL13: 0 | AM13: 0 | AN13: 0 | AO13: 0 | AP13: 0 | AQ13: 0 | AR13: 42
A14: 106990 | B14: 1,3-Butadiene | C14: =VLOOKUP(F14, '2016-2021 BD OES Pull_rev'!F:N, 9, FALSE) -> Manufacturing | D14: R | E14: 2018 | F14: 77640CHVRN2001S | G14: 110020148008 | H14: TXR000004390 | I14: CHEVRON PHILLIPS CHEMICAL CO | J14: 2001 S GULFWAY DR | K14: PORT ARTHUR | L14: JEFFERSON | M14: TX | N14: 77640 | O14: 29.850396 | P14: -93.977222 | Q14: 1318217081254 | R14: 6 | S14: 1,000,000 to 9,999,999 | W14: 325110 | Y14: 0 | Z14: 0 | AA14: 0 | AB14: 0 | AC14: 0 | AD14: 0 | AE14: 0 | AF14: 0 | AH14: 0 | AI14: 0 | AJ14: 0 | AK14: 0 | AL14: 0 | AM14: 0 | AN14: 0 | AO14: 0 | AP14: 0 | AQ14: 15 | AR14: 15
A15: 106990 | B15: 1,3-Butadiene | C15: =VLOOKUP(F15, '2016-2021 BD OES Pull_rev'!F:N, 9, FALSE) -> Processing as a reactant | D15: R | E15: 2018 | F15: 94802CHVRN841ST | G15: 110020506460 | H15: CAT080014376 | I15: CHEVRON PRODUCTS CO RICHMOND REFINERY | J15: 841 CHEVRON WAY | K15: RICHMOND | L15: CONTRA COSTA | M15: CA | N15: 94801 | O15: 37.938779 | P15: -122.396453 | Q15: 1318217440243 | R15: 5 | S15: 100,000 to 999,999 | T15: CHEVRON CORP | W15: 324110 | Y15: 0 | Z15: 0 | AA15: 0 | AB15: 0 | AC15: 0 | AD15: 0 | AE15: 0 | AF15: 0 | AH15: 0 | AI15: 0 | AJ15: 0 | AK15: 0 | AL15: 0 | AM15: 2 | AN15: 0 | AO15: 0 | AP15: 0 | AQ15: 0 | AR15: 2
A16: 106990 | B16: 1,3-Butadiene | C16: =VLOOKUP(F16, '2016-2021 BD OES Pull_rev'!F:N, 9, FALSE) -> Processing as a reactant | D16: R | E16: 2019 | F16: 94802CHVRN841ST | G16: 110020506460 | H16: CAT080014376 | I16: CHEVRON PRODUCTS CO RICHMOND REFINERY | J16: 841 CHEVRON WAY | K16: RICHMOND | L16: CONTRA COSTA | M16: CA | N16: 94801 | O16: 37.938779 | P16: -122.396453 | Q16: 1319218480325 | R16: 5 | S16: 100,000 to 999,999 | T16: CHEVRON CORP | W16: 324110 | Y16: 0 | Z16: 0 | AA16: 0 | AB16: 0 | AC16: 0 | AD16: 0 | AE16: 0 | AF16: 0 | AH16: 0 | AI16: 0 | AJ16: 0 | AK16: 0 | AL16: 1 | AM16: 72 | AN16: 0 | AO16: 0 | AP16: 0 | AQ16: 0 | AR16: 73
A17: 106990 | B17: 1,3-Butadiene | C17: =VLOOKUP(F17, '2016-2021 BD OES Pull_rev'!F:N, 9, FALSE) -> Processing as a reactant | D17: R | E17: 2020 | F17: 94802CHVRN841ST | G17: 110020506460 | H17: CAT080014376 | I17: CHEVRON PRODUCTS CO RICHMOND REFINERY | J17: 841 CHEVRON WAY | K17: RICHMOND | L17: CONTRA COSTA | M17: CA | N17: 94801 | O17: 37.938779 | P17: -122.396453 | Q17: 1320219131618 | R17: 5 | S17: 100,000 to 999,999 | T17: CHEVRON CORP | W17: 324110 | Y17: 0 | Z17: 0 | AA17: 0 | AB17: 0 | AC17: 0 | AD17: 0 | AE17: 0 | AF17: 0 | AH17: 0 | AI17: 0 | AJ17: 0 | AK17: 0 | AL17: 14 | AM17: 23 | AN17: 0 | AO17: 0 | AP17: 0 | AQ17: 0 | AR17: 37
A18: 106990 | B18: 1,3-Butadiene | C18: =VLOOKUP(F18, '2016-2021 BD OES Pull_rev'!F:N, 9, FALSE) -> Processing as a reactant | D18: R | E18: 2021 | F18: 94802CHVRN841ST | G18: 110020506460 | H18: CAT080014376 | I18: CHEVRON PRODUCTS CO RICHMOND REFINERY | J18: 841 CHEVRON WAY | K18: RICHMOND | L18: CONTRA COSTA | M18: CA | N18: 94801 | O18: 37.938779 | P18: -122.396453 | Q18: 1321220220002 | R18: 5 | S18: 100,000 to 999,999 | T18: CHEVRON CORP | W18: 324110 | Y18: 0 | Z18: 0 | AA18: 0 | AB18: 0 | AC18: 0 | AD18: 0 | AE18: 0 | AF18: 0 | AH18: 0 | AI18: 0 | AJ18: 0 | AK18: 0 | AL18: 5 | AM18: 2 | AN18: 0 | AO18: 0 | AP18: 0 | AQ18: 0 | AR18: 7
A19: 106990 | B19: 1,3-Butadiene | C19: =VLOOKUP(F19, '2016-2021 BD OES Pull_rev'!F:N, 9, FALSE) -> Processing as a reactant | D19: R | E19: 2019 | F19: 82007FRNTR2700E | G19: 110000468048 | H19: WYD051843613 | I19: CHEYENNE RENEWABLE DIESEL CO LLC | J19: 2700 E. 5TH STREET | K19: CHEYENNE | L19: LARAMIE | M19: WY | N19: 82007 | O19: 41.1275 | P19: -104.7892 | Q19: 1319217936412 | R19: 5 | S19: 100,000 to 999,999 | W19: 324110 | Y19: 0 | Z19: 0 | AA19: 0 | AB19: 0 | AC19: 0 | AD19: 0 | AE19: 0 | AF19: 0 | AH19: 0 | AI19: 0 | AJ19: 0 | AK19: 0 | AL19: 11 | AM19: 0 | AN19: 0 | AO19: 0 | AP19: 0 | AQ19: 0 | AR19: 11
A20: 106990 | B20: 1,3-Butadiene | C20: =VLOOKUP(F20, '2016-2021 BD OES Pull_rev'!F:N, 9, FALSE) -> Processing as a reactant | D20: R | E20: 2020 | F20: 82007FRNTR2700E | G20: 110000468048 | H20: WYD051843613 | I20: CHEYENNE RENEWABLE DIESEL CO LLC | J20: 2700 E. 5TH STREET | K20: CHEYENNE | L20: LARAMIE | M20: WY | N20: 82007 | O20: 41.1275 | P20: -104.7892 | Q20: 1320218770788 | R20: 4 | S20: 10,000 to 99,999 | W20: 324110 | Y20: 0 | Z20: 0 | AA20: 0 | AB20: 0 | AC20: 0 | AD20: 0 | AE20: 0 | AF20: 0 | AH20: 0 | AI20: 0 | AJ20: 0 | AK20: 0 | AL20: 1 | AM20: 0 | AN20: 0 | AO20: 0 | AP20: 0 | AQ20: 0 | AR20: 1
A21: 106990 | B21: 1,3-Butadiene | C21: =VLOOKUP(F21, '2016-2021 BD OES Pull_rev'!F:N, 9, FALSE) -> Processing - incorporation into formulation, mixture, or reaction product | D21: R | E21: 2016 | F21: 79086DMNDSSTARR | G21: 110000465719 | H21: TXD059685339 | I21: DIAMOND SHAMROCK REFINING CO LP | J21: 6701 FM 119 | K21: SUNRAY | L21: MOORE | M21: TX | N21: 79086 | O21: 35.951944 | P21: -101.873889 | Q21: 1316215704471 | R21: 3 | S21: 1,000 to 9,999 | T21: VALERO ENERGY CORP | W21: 324110 | Y21: 19011 | Z21: 0 | AA21: 0 | AB21: 0 | AC21: 0 | AD21: 0 | AE21: 0 | AF21: 0 | AH21: 0 | AI21: 0 | AJ21: 0 | AK21: 0 | AL21: 0 | AM21: 0 | AN21: 0 | AO21: 0 | AP21: 0 | AQ21: 0 | AR21: 19011
A22: 106990 | B22: 1,3-Butadiene | C22: =VLOOKUP(F22, '2016-2021 BD OES Pull_rev'!F:N, 9, FALSE) -> Processing - incorporation into formulation, mixture, or reaction product | D22: R | E22: 2017 | F22: 79086DMNDSSTARR | G22: 110000465719 | H22: TXD059685339 | I22: DIAMOND SHAMROCK REFINING CO LP | J22: 6701 FM 119 | K22: SUNRAY | L22: MOORE | M22: TX | N22: 79086 | O22: 35.951944 | P22: -101.873889 | Q22: 1317216378618 | R22: 3 | S22: 1,000 to 9,999 | T22: VALERO ENERGY CORP | W22: 324110 | Y22: 22000 | Z22: 0 | AA22: 0 | AB22: 0 | AC22: 0 | AD22: 0 | AE22: 0 | AF22: 0 | AH22: 0 | AI22: 0 | AJ22: 0 | AK22: 0 | AL22: 0 | AM22: 0 | AN22: 0 | AO22: 0 | AP22: 0 | AQ22: 0 | AR22: 22000
A23: 106990 | B23: 1,3-Butadiene | C23: =VLOOKUP(F23, '2016-2021 BD OES Pull_rev'!F:N, 9, FALSE) -> Processing - incorporation into formulation, mixture, or reaction product | D23: R | E23: 2018 | F23: 79086DMNDSSTARR | G23: 110000465719 | H23: TXD059685339 | I23: DIAMOND SHAMROCK REFINING CO LP | J23: 6701 FM 119 | K23: SUNRAY | L23: MOORE | M23: TX | N23: 79086 | O23: 35.951944 | P23: -101.873889 | Q23: 1318217181965 | R23: 3 | S23: 1,000 to 9,999 | T23: VALERO ENERGY CORP | W23: 324110 | Y23: 22320.33 | Z23: 0 | AA23: 0 | AB23: 0 | AC23: 0 | AD23: 0 | AE23: 0 | AF23: 0 | AH23: 0 | AI23: 0 | AJ23: 0 | AK23: 0 | AL23: 0 | AM23: 0 | AN23: 0 | AO23: 0 | AP23: 0 | AQ23: 0 | AR23: 22320.33
A24: 106990 | B24: 1,3-Butadiene | C24: =VLOOKUP(F24, '2016-2021 BD OES Pull_rev'!F:N, 9, FALSE) -> Processing - incorporation into formulation, mixture, or reaction product | D24: R | E24: 2019 | F24: 79086DMNDSSTARR | G24: 110000465719 | H24: TXD059685339 | I24: DIAMOND SHAMROCK REFINING CO LP | J24: 6701 FM 119 | K24: SUNRAY | L24: MOORE | M24: TX | N24: 79086 | O24: 35.951944 | P24: -101.873889 | Q24: 1319218332308 | R24: 3 | S24: 1,000 to 9,999 | T24: VALERO ENERGY CORP | W24: 324110 | Y24: 21000 | Z24: 0 | AA24: 0 | AB24: 0 | AC24: 0 | AD24: 0 | AE24: 0 | AF24: 0 | AH24: 0 | AI24: 0 | AJ24: 0 | AK24: 0 | AL24: 0 | AM24: 0 | AN24: 0 | AO24: 0 | AP24: 0 | AQ24: 0 | AR24: 21000
A25: 106990 | B25: 1,3-Butadiene | C25: =VLOOKUP(F25, '2016-2021 BD OES Pull_rev'!F:N, 9, FALSE) -> Processing - incorporation into formulation, mixture, or reaction product | D25: R | E25: 2020 | F25: 79086DMNDSSTARR | G25: 110000465719 | H25: TXD059685339 | I25: DIAMOND SHAMROCK REFINING CO LP | J25: 6701 FM 119 | K25: SUNRAY | L25: MOORE | M25: TX | N25: 79086 | O25: 35.951944 | P25: -101.873889 | Q25: 1320219170913 | R25: 3 | S25: 1,000 to 9,999 | T25: VALERO ENERGY CORP | W25: 324110 | Y25: 21000 | Z25: 0 | AA25: 0 | AB25: 0 | AC25: 0 | AD25: 0 | AE25: 0 | AF25: 0 | AH25: 0 | AI25: 0 | AJ25: 0 | AK25: 0 | AL25: 0 | AM25: 0 | AN25: 0 | AO25: 0 | AP25: 0 | AQ25: 0 | AR25: 21000
A26: 106990 | B26: 1,3-Butadiene | C26: =VLOOKUP(F26, '2016-2021 BD OES Pull_rev'!F:N, 9, FALSE) -> Processing - incorporation into formulation, mixture, or reaction product | D26: R | E26: 2021 | F26: 79086DMNDSSTARR | G26: 110000465719 | H26: TXD059685339 | I26: DIAMOND SHAMROCK REFINING CO LP | J26: 6701 FM 119 | K26: SUNRAY | L26: MOORE | M26: TX | N26: 79086 | O26: 35.951944 | P26: -101.873889 | Q26: 1321220464059 | R26: 3 | S26: 1,000 to 9,999 | T26: VALERO ENERGY CORP | W26: 324110 | Y26: 1100 | Z26: 0 | AA26: 0 | AB26: 0 | AC26: 0 | AD26: 0 | AE26: 0 | AF26: 0 | AH26: 0 | AI26: 0 | AJ26: 0 | AK26: 0 | AL26: 0 | AM26: 0 | AN26: 0 | AO26: 0 | AP26: 0 | AQ26: 0 | AR26: 1100
A27: 106990 | B27: 1,3-Butadiene | C27: =VLOOKUP(F27, '2016-2021 BD OES Pull_rev'!F:N, 9, FALSE) -> Processing as a reactant | D27: R | E27: 2020 | F27: 77541THDWCBUILD | G27: 110008170237 | H27: TXR000017855 | I27: DOW CHEMICAL CO FREEPORT FACILITY | J27: 2301 N BRAZOSPORT BLVD | K27: FREEPORT | L27: BRAZORIA | M27: TX | N27: 775413257 | O27: 28.9792 | P27: -95.3549 | Q27: 1320219312737 | R27: 9 | S27: 100,000,000 to 99,999,999 | T27: DOW INC | W27: 325199 | Y27: 0 | Z27: 0 | AA27: 0 | AB27: 1 | AC27: 0 | AD27: 0 | AE27: 0 | AF27: 0 | AH27: 0 | AI27: 0 | AJ27: 0 | AK27: 0 | AL27: 0 | AM27: 0 | AN27: 0 | AO27: 0 | AP27: 0 | AQ27: 0 | AR27: 1
A28: 106990 | B28: 1,3-Butadiene | C28: =VLOOKUP(F28, '2016-2021 BD OES Pull_rev'!F:N, 9, FALSE) -> Manufacturing | D28: R | E28: 2017 | F28: 75607TXSSTOFFHI | G28: 110000743704 | H28: TXR000036301 | I28: EASTMAN CHEMICAL CO TEXAS OPERATIONS | J28: 300 KODAK BLVD | K28: LONGVIEW | L28: HARRISON | M28: TX | N28: 75602 | O28: 32.438056 | P28: -94.69 | Q28: 1317217589415 | R28: 6 | S28: 1,000,000 to 9,999,999 | T28: EASTMAN CHEMICAL CO | W28: 325199 | Y28: 0 | Z28: 0 | AA28: 0 | AB28: 0 | AC28: 1 | AD28: 0 | AE28: 0 | AF28: 0 | AH28: 0 | AI28: 0 | AJ28: 0 | AK28: 0 | AL28: 0 | AM28: 0 | AN28: 0 | AO28: 0 | AP28: 0 | AQ28: 0 | AR28: 1
A29: 106990 | B29: 1,3-Butadiene | C29: =VLOOKUP(F29, '2016-2021 BD OES Pull_rev'!F:N, 9, FALSE) -> Manufacturing | D29: R | E29: 2021 | F29: 75607TXSSTOFFHI | G29: 110000743704 | H29: TXR000036301 | I29: EASTMAN CHEMICAL CO TEXAS OPERATIONS | J29: 300 KODAK BLVD | K29: LONGVIEW | L29: HARRISON | M29: TX | N29: 75602 | O29: 32.438056 | P29: -94.69 | Q29: 1321220464895 | R29: 6 | S29: 1,000,000 to 9,999,999 | T29: EASTMAN CHEMICAL CO | W29: 325199 | Y29: 0 | Z29: 0 | AA29: 0 | AB29: 0 | AC29: 1 | AD29: 0 | AE29: 0 | AF29: 0 | AH29: 0 | AI29: 0 | AJ29: 0 | AK29: 0 | AL29: 0 | AM29: 0 | AN29: 0 | AO29: 0 | AP29: 0 | AQ29: 0 | AR29: 1
A30: 106990 | B30: 1,3-Butadiene | C30: =VLOOKUP(F30, '2016-2021 BD OES Pull_rev'!F:N, 9, FALSE) -> Plastics and Rubber Compounding | D30: R | E30: 2018 | F30: 52732QNTMCUSHWY | G30: 110012169517 | H30: IAD045372836 | I30: EQUISTAR CHEMICALS CLINTON PLANT | J30: 3400 ANAMOSA RD HWY 30 W | K30: CLINTON | L30: CLINTON | M30: IA | N30: 52732 | O30: 41.807 | P30: -90.296 | Q30: 1318219908934 | R30: 6 | S30: 1,000,000 to 9,999,999 | T30: LYONDELLBASELL INDUSTRIES | W30: 325211 | Y30: 0 | Z30: 0 | AA30: 0 | AB30: 0 | AC30: 0 | AD30: 0 | AE30: 0 | AF30: 0 | AH30: 0 | AI30: 0 | AJ30: 0 | AK30: 0 | AL30: 0.02 | AM30: 0 | AN30: 0 | AO30: 0 | AP30: 0 | AQ30: 0 | AR30: 0.02
A31: 106990 | B31: 1,3-Butadiene | C31: =VLOOKUP(F31, '2016-2021 BD OES Pull_rev'!F:N, 9, FALSE) -> Plastics and Rubber Compounding | D31: R | E31: 2016 | F31: 52732QNTMCUSHWY | G31: 110012169517 | H31: IAD045372836 | I31: EQUISTAR CHEMICALS CLINTON PLANT | J31: 3400 ANAMOSA RD HWY 30 W | K31: CLINTON | L31: CLINTON | M31: IA | N31: 52732 | O31: 41.807 | P31: -90.296 | Q31: 1316219909013 | R31: 6 | S31: 1,000,000 to 9,999,999 | T31: LYONDELLBASELL INDUSTRIES | W31: 325199 | Y31: 0 | Z31: 0 | AA31: 0 | AB31: 0 | AC31: 0 | AD31: 0 | AE31: 0 | AF31: 0 | AH31: 0 | AI31: 0 | AJ31: 0 | AK31: 0 | AL31: 0 | AM31: 0.01 | AN31: 0 | AO31: 0 | AP31: 0 | AQ31: 0 | AR31: 0.01
A32: 106990 | B32: 1,3-Butadiene | C32: =VLOOKUP(F32, '2016-2021 BD OES Pull_rev'!F:N, 9, FALSE) -> Plastics and Rubber Compounding | D32: R | E32: 2016 | F32: 78410CCPCC1501M | G32: 110000465069 | H32: TXD000836445 | I32: EQUISTAR CHEMICALS LP | J32: 1501 MCKINZIE RD | K32: CORPUS CHRISTI | L32: NUECES | M32: TX | N32: 78410 | O32: 27.81 | P32: -97.593611 | Q32: 1316215317936 | R32: 3 | S32: 1,000 to 9,999 | T32: LYONDELLBASELL INDUSTRIES | W32: 325110 | Y32: 8 | Z32: 0 | AA32: 0 | AB32: 0 | AC32: 0 | AD32: 0 | AE32: 0 | AF32: 0 | AH32: 0 | AI32: 0 | AJ32: 0 | AK32: 0 | AL32: 0 | AM32: 0 | AN32: 0 | AO32: 0 | AP32: 0 | AQ32: 0 | AR32: 8
A33: 106990 | B33: 1,3-Butadiene | C33: =VLOOKUP(F33, '2016-2021 BD OES Pull_rev'!F:N, 9, FALSE) -> Plastics and Rubber Compounding | D33: R | E33: 2017 | F33: 78410CCPCC1501M | G33: 110000465069 | H33: TXD000836445 | I33: EQUISTAR CHEMICALS LP | J33: 1501 MCKINZIE RD | K33: CORPUS CHRISTI | L33: NUECES | M33: TX | N33: 78410 | O33: 27.81 | P33: -97.593611 | Q33: 1317216321909 | R33: 3 | S33: 1,000 to 9,999 | T33: LYONDELLBASELL INDUSTRIES | W33: 325110 | Y33: 8 | Z33: 0 | AA33: 0 | AB33: 0 | AC33: 0 | AD33: 0 | AE33: 0 | AF33: 0 | AH33: 0 | AI33: 0 | AJ33: 0 | AK33: 0 | AL33: 0 | AM33: 0 | AN33: 0 | AO33: 0 | AP33: 0 | AQ33: 0 | AR33: 8
A34: 106990 | B34: 1,3-Butadiene | C34: =VLOOKUP(F34, '2016-2021 BD OES Pull_rev'!F:N, 9, FALSE) -> Plastics and Rubber Compounding | D34: R | E34: 2018 | F34: 78410CCPCC1501M | G34: 110000465069 | H34: TXD000836445 | I34: EQUISTAR CHEMICALS LP | J34: 1501 MCKINZIE RD | K34: CORPUS CHRISTI | L34: NUECES | M34: TX | N34: 78410 | O34: 27.81 | P34: -97.593611 | Q34: 1318217192374 | R34: 3 | S34: 1,000 to 9,999 | T34: LYONDELLBASELL INDUSTRIES | W34: 325110 | Y34: 20 | Z34: 0 | AA34: 0 | AB34: 0 | AC34: 0 | AD34: 0 | AE34: 0 | AF34: 0 | AH34: 0 | AI34: 0 | AJ34: 0 | AK34: 0 | AL34: 0 | AM34: 0 | AN34: 0 | AO34: 0 | AP34: 0 | AQ34: 0 | AR34: =SUM(Y34:AQ34) -> 20
A35: 106990 | B35: 1,3-Butadiene | C35: =VLOOKUP(F35, '2016-2021 BD OES Pull_rev'!F:N, 9, FALSE) -> Plastics and Rubber Compounding | D35: R | E35: 2020 | F35: 78410CCPCC1501M | G35: 110000465069 | H35: TXD000836445 | I35: EQUISTAR CHEMICALS LP | J35: 1501 MCKINZIE RD | K35: CORPUS CHRISTI | L35: NUECES | M35: TX | N35: 78410 | O35: 27.81 | P35: -97.593611 | Q35: 1320219122761 | R35: 3 | S35: 1,000 to 9,999 | T35: LYONDELLBASELL INDUSTRIES | W35: 325110 | Y35: 39.54 | Z35: 0 | AA35: 0 | AB35: 0 | AC35: 0 | AD35: 0 | AE35: 0 | AF35: 0 | AH35: 0 | AI35: 0 | AJ35: 0 | AK35: 0 | AL35: 0 | AM35: 0 | AN35: 0 | AO35: 0 | AP35: 0 | AQ35: 0 | AR35: 39.54
A36: 106990 | B36: 1,3-Butadiene | C36: =VLOOKUP(F36, '2016-2021 BD OES Pull_rev'!F:N, 9, FALSE) -> Plastics and Rubber Compounding | D36: R | E36: 2021 | F36: 78410CCPCC1501M | G36: 110000465069 | H36: TXD000836445 | I36: EQUISTAR CHEMICALS LP | J36: 1501 MCKINZIE RD | K36: CORPUS CHRISTI | L36: NUECES | M36: TX | N36: 78410 | O36: 27.81 | P36: -97.593611 | Q36: 1321219865134 | R36: 3 | S36: 1,000 to 9,999 | T36: LYONDELLBASELL INDUSTRIES | W36: 325110 | Y36: 18.2 | Z36: 0 | AA36: 0 | AB36: 0 | AC36: 0 | AD36: 0 | AE36: 0 | AF36: 0 | AH36: 0 | AI36: 0 | AJ36: 0 | AK36: 0 | AL36: 0 | AM36: 0 | AN36: 0 | AO36: 0 | AP36: 0 | AQ36: 0 | AR36: 18.2
A37: 106990 | B37: 1,3-Butadiene | C37: =VLOOKUP(F37, '2016-2021 BD OES Pull_rev'!F:N, 9, FALSE) -> Processing - incorporation into formulation, mixture, or reaction product | D37: R | E37: 2019 | F37: 26050RGNWSSTATE | G37: 110027982565 | H37: WVR000010058 | I37: ERGON WEST VIRGINIA INC | J37: 9995 OHIO RIVER BLVD | K37: NEWELL | L37: HANCOCK | M37: WV | N37: 26050 | O37: 40.611414 | P37: -80.629099 | Q37: 1319218411421 | R37: 2 | S37: 100 to 999 | T37: ERGON INC | W37: 324110 | Y37: 0 | Z37: 0 | AA37: 0 | AB37: 0 | AC37: 0 | AD37: 0 | AE37: 0 | AF37: 1 | AH37: 0 | AI37: 0 | AJ37: 0 | AK37: 0 | AL37: 0 | AM37: 0 | AN37: 0 | AO37: 0 | AP37: 0.3 | AQ37: 0 | AR37: 1.3
A38: 106990 | B38: 1,3-Butadiene | C38: =VLOOKUP(F38, '2016-2021 BD OES Pull_rev'!F:N, 9, FALSE) -> Processing - incorporation into formulation, mixture, or reaction product | D38: R | E38: 2020 | F38: 26050RGNWSSTATE | G38: 110027982565 | H38: WVR000010058 | I38: ERGON WEST VIRGINIA INC | J38: 9995 OHIO RIVER BLVD | K38: NEWELL | L38: HANCOCK | M38: WV | N38: 26050 | O38: 40.611414 | P38: -80.629099 | Q38: 1320219245659 | R38: 2 | S38: 100 to 999 | T38: ERGON INC | W38: 324110 | Y38: 0 | Z38: 0 | AA38: 0 | AB38: 0 | AC38: 0 | AD38: 0 | AE38: 0 | AF38: 4 | AH38: 0 | AI38: 0 | AJ38: 0 | AK38: 0 | AL38: 0 | AM38: 0 | AN38: 0 | AO38: 0 | AP38: 0 | AQ38: 0 | AR38: 4
A39: 106990 | B39: 1,3-Butadiene | C39: =VLOOKUP(F39, '2016-2021 BD OES Pull_rev'!F:N, 9, FALSE) -> Processing - incorporation into formulation, mixture, or reaction product | D39: R | E39: 2021 | F39: 26050RGNWSSTATE | G39: 110027982565 | H39: WVR000010058 | I39: ERGON WEST VIRGINIA INC | J39: 9995 OHIO RIVER BLVD | K39: NEWELL | L39: HANCOCK | M39: WV | N39: 26050 | O39: 40.611414 | P39: -80.629099 | Q39: 1321220347583 | R39: 2 | S39: 100 to 999 | T39: ERGON INC | W39: 324110 | Y39: 0 | Z39: 0 | AA39: 0 | AB39: 0 | AC39: 0 | AD39: 0 | AE39: 0 | AF39: 2 | AH39: 0 | AI39: 0 | AJ39: 0 | AK39: 0 | AL39: 0 | AM39: 0 | AN39: 0 | AO39: 0 | AP39: 0 | AQ39: 0 | AR39: 2
A40: 106990 | B40: 1,3-Butadiene | C40: =VLOOKUP(F40, '2016-2021 BD OES Pull_rev'!F:N, 9, FALSE) -> Repackaging | D40: R | E40: 2016 | F40: 70767XXNPR2230H | G40: 110064309788 | H40: LAD000778365 | I40: EXXONMOBIL ANCHORAGE TANK FARM | J40: 1420 LAFITON LN | K40: PORT ALLEN | L40: WEST BATON ROUGE PARISH | M40: LA | N40: 70767 | O40: 30.475226 | P40: -91.222063 | Q40: 1316215691852 | R40: 7 | S40: 10,000,000 to 49,999,999 | T40: EXXON MOBIL CORP | W40: 424690 | Y40: 0 | Z40: 0 | AA40: 0 | AB40: 0 | AC40: 0 | AD40: 0 | AE40: 0 | AF40: 0 | AH40: 0 | AI40: 0 | AJ40: 0 | AK40: 0 | AL40: 0 | AM40: 0 | AN40: 0 | AO40: 0 | AP40: 5 | AQ40: 0 | AR40: 5
A41: 106990 | B41: 1,3-Butadiene | C41: =VLOOKUP(F41, '2016-2021 BD OES Pull_rev'!F:N, 9, FALSE) -> Repackaging | D41: R | E41: 2017 | F41: 70767XXNPR2230H | G41: 110064309788 | H41: LAD000778365 | I41: EXXONMOBIL ANCHORAGE TANK FARM | J41: 1420 LAFITON LN | K41: PORT ALLEN | L41: WEST BATON ROUGE PARISH | M41: LA | N41: 70767 | O41: 30.475226 | P41: -91.222063 | Q41: 1317216559803 | R41: 7 | S41: 10,000,000 to 49,999,999 | T41: EXXON MOBIL CORP | W41: 424690 | Y41: 0 | Z41: 0 | AA41: 0 | AB41: 0 | AC41: 0 | AD41: 0 | AE41: 0 | AF41: 0 | AH41: 0 | AI41: 0 | AJ41: 0 | AK41: 0 | AL41: 1 | AM41: 0 | AN41: 0 | AO41: 0 | AP41: 0 | AQ41: 1 | AR41: 2
A42: 106990 | B42: 1,3-Butadiene | C42: =VLOOKUP(F42, '2016-2021 BD OES Pull_rev'!F:N, 9, FALSE) -> Repackaging | D42: R | E42: 2018 | F42: 70767XXNPR2230H | G42: 110064309788 | H42: LAD000778365 | I42: EXXONMOBIL ANCHORAGE TANK FARM | J42: 1420 LAFITON LN | K42: PORT ALLEN | L42: WEST BATON ROUGE PARISH | M42: LA | N42: 70767 | O42: 30.475226 | P42: -91.222063 | Q42: 1318217287162 | R42: 7 | S42: 10,000,000 to 49,999,999 | T42: EXXON MOBIL CORP | W42: 424690 | Y42: 0 | Z42: 0 | AA42: 0 | AB42: 0 | AC42: 0 | AD42: 0 | AE42: 0 | AF42: 0 | AH42: 0 | AI42: 0 | AJ42: 0 | AK42: 0 | AL42: 1 | AM42: 0 | AN42: 0 | AO42: 0 | AP42: 1 | AQ42: 1 | AR42: 3
A43: 106990 | B43: 1,3-Butadiene | C43: =VLOOKUP(F43, '2016-2021 BD OES Pull_rev'!F:N, 9, FALSE) -> Repackaging | D43: R | E43: 2019 | F43: 70767XXNPR2230H | G43: 110064309788 | H43: LAD000778365 | I43: EXXONMOBIL ANCHORAGE TANK FARM | J43: 1420 LAFITON LN | K43: PORT ALLEN | L43: WEST BATON ROUGE PARISH | M43: LA | N43: 70767 | O43: 30.475226 | P43: -91.222063 | Q43: 1319217993587 | R43: 7 | S43: 10,000,000 to 49,999,999 | T43: EXXON MOBIL CORP | W43: 424690 | Y43: 0 | Z43: 0 | AA43: 0 | AB43: 0 | AC43: 0 | AD43: 0 | AE43: 0 | AF43: 0 | AH43: 0 | AI43: 0 | AJ43: 0 | AK43: 0 | AL43: 5 | AM43: 0 | AN43: 0 | AO43: 0 | AP43: 5 | AQ43: 5 | AR43: 15
A44: 106990 | B44: 1,3-Butadiene | C44: =VLOOKUP(F44, '2016-2021 BD OES Pull_rev'!F:N, 9, FALSE) -> Repackaging | D44: R | E44: 2020 | F44: 70767XXNPR2230H | G44: 110064309788 | H44: LAD000778365 | I44: EXXONMOBIL ANCHORAGE TANK FARM | J44: 1420 LAFITON LN | K44: PORT ALLEN | L44: WEST BATON ROUGE PARISH | M44: LA | N44: 70767 | O44: 30.475226 | P44: -91.222063 | Q44: 1320218724286 | R44: 7 | S44: 10,000,000 to 49,999,999 | T44: EXXON MOBIL CORP | W44: 424690 | Y44: 0 | Z44: 0 | AA44: 0 | AB44: 0 | AC44: 0 | AD44: 0 | AE44: 0 | AF44: 0 | AH44: 0 | AI44: 0 | AJ44: 0 | AK44: 0 | AL44: 0 | AM44: 0 | AN44: 0 | AO44: 0 | AP44: 5 | AQ44: 5 | AR44: 10
A45: 106990 | B45: 1,3-Butadiene | C45: =VLOOKUP(F45, '2016-2021 BD OES Pull_rev'!F:N, 9, FALSE) -> Repackaging | D45: R | E45: 2021 | F45: 70767XXNPR2230H | G45: 110064309788 | H45: LAD000778365 | I45: EXXONMOBIL ANCHORAGE TANK FARM | J45: 1420 LAFITON LN | K45: PORT ALLEN | L45: WEST BATON ROUGE PARISH | M45: LA | N45: 70767 | O45: 30.475226 | P45: -91.222063 | Q45: 1321220231714 | R45: 7 | S45: 10,000,000 to 49,999,999 | T45: EXXON MOBIL CORP | W45: 424690 | Y45: 0 | Z45: 0 | AA45: 0 | AB45: 0 | AC45: 0 | AD45: 0 | AE45: 0 | AF45: 5 | AH45: 0 | AI45: 0 | AJ45: 0 | AK45: 0 | AL45: 0 | AM45: 0 | AN45: 0 | AO45: 0 | AP45: 5 | AQ45: 5 | AR45: 15
A46: 106990 | B46: 1,3-Butadiene | C46: =VLOOKUP(F46, '2016-2021 BD OES Pull_rev'!F:N, 9, FALSE) -> Manufacturing | D46: R | E46: 2021 | F46: 70805XXNCH4999S | G46: 110000449970 | H46: LAR000069294 | I46: EXXONMOBIL BATON ROUGE CHEMICAL PLANT (PART) | J46: 4999 SCENIC HWY | K46: BATON ROUGE | L46: EAST BATON ROUGE PARISH | M46: LA | N46: 70805 | O46: 30.495769 | P46: -91.173111 | Q46: 1321220409332 | R46: 6 | S46: 1,000,000 to 9,999,999 | T46: EXXON MOBIL CORP | W46: 325211 | Y46: 0 | Z46: 0 | AA46: 0 | AB46: 0 | AC46: 0 | AD46: 0 | AE46: 0 | AF46: 0 | AH46: 328 | AI46: 0 | AJ46: 0 | AK46: 0 | AL46: 0 | AM46: 0 | AN46: 0 | AO46: 0 | AP46: 0 | AQ46: 0 | AR46: 328
A47: 106990 | B47: 1,3-Butadiene | C47: =VLOOKUP(F47, '2016-2021 BD OES Pull_rev'!F:N, 9, FALSE) -> Manufacturing | D47: R | E47: 2019 | F47: 70805XXNCH4999S | G47: 110000449970 | H47: LAR000069294 | I47: EXXONMOBIL BATON ROUGE CHEMICAL PLANT (PART) | J47: 4999 SCENIC HWY | K47: BATON ROUGE | L47: EAST BATON ROUGE PARISH | M47: LA | N47: 70805 | O47: 30.495769 | P47: -91.173111 | Q47: 1319218444077 | R47: 6 | S47: 1,000,000 to 9,999,999 | T47: EXXON MOBIL CORP | W47: 325110 | Y47: 0 | Z47: 0 | AA47: 0 | AB47: 0 | AC47: 0 | AD47: 0 | AE47: 0 | AF47: 0 | AH47: 0 | AI47: 0 | AJ47: 0 | AK47: 0 | AL47: 0 | AM47: 43 | AN47: 0 | AO47: 0 | AP47: 0 | AQ47: 0 | AR47: 43
A48: 106990 | B48: 1,3-Butadiene | C48: =VLOOKUP(F48, '2016-2021 BD OES Pull_rev'!F:N, 9, FALSE) -> Plastics and Rubber Compounding | D48: R | E48: 2018 | F48: 70602FRSTNLA108 | G48: 110041921935 | H48: LAD008073439 | I48: FIRESTONE POLYMERS LLC | J48: 1801 E LA HWY 108 | K48: SULPHUR | L48: CALCASIEU PARISH | M48: LA | N48: 70665 | O48: 30.186144 | P48: -93.331209 | Q48: 1318219398411 | R48: 9 | S48: 100,000,000 to 99,999,999 | T48: BRIDGESTONE AMERICAS INC | W48: 325212 | Y48: 0 | Z48: 0 | AA48: 0 | AB48: 0 | AC48: 0 | AD48: 0 | AE48: 0 | AF48: 130 | AH48: 0 | AI48: 0 | AJ48: 0 | AK48: 0 | AL48: 0 | AM48: 0 | AN48: 0 | AO48: 0 | AP48: 0 | AQ48: 0 | AR48: 130
A49: 106990 | B49: 1,3-Butadiene | C49: =VLOOKUP(F49, '2016-2021 BD OES Pull_rev'!F:N, 9, FALSE) -> Plastics and Rubber Compounding | D49: R | E49: 2019 | F49: 70602FRSTNLA108 | G49: 110041921935 | H49: LAD008073439 | I49: FIRESTONE POLYMERS LLC | J49: 1801 E LA HWY 108 | K49: SULPHUR | L49: CALCASIEU PARISH | M49: LA | N49: 70665 | O49: 30.186144 | P49: -93.331209 | Q49: 1319218132506 | R49: 9 | S49: 100,000,000 to 99,999,999 | T49: BRIDGESTONE AMERICAS INC | W49: 325212 | Y49: 0 | Z49: 0 | AA49: 0 | AB49: 0 | AC49: 0 | AD49: 0 | AE49: 0 | AF49: 88 | AH49: 0 | AI49: 0 | AJ49: 0 | AK49: 0 | AL49: 0 | AM49: 0 | AN49: 0 | AO49: 0 | AP49: 0 | AQ49: 0 | AR49: 88
A50: 106990 | B50: 1,3-Butadiene | C50: =VLOOKUP(F50, '2016-2021 BD OES Pull_rev'!F:N, 9, FALSE) -> Plastics and Rubber Compounding | D50: R | E50: 2020 | F50: 70602FRSTNLA108 | G50: 110041921935 | H50: LAD008073439 | I50: FIRESTONE POLYMERS LLC | J50: 1801 E LA HWY 108 | K50: SULPHUR | L50: CALCASIEU PARISH | M50: LA | N50: 70665 | O50: 30.186144 | P50: -93.331209 | Q50: 1320219280120 | R50: 9 | S50: 100,000,000 to 99,999,999 | T50: BRIDGESTONE AMERICAS INC | W50: 325212 | Y50: 0 | Z50: 0 | AA50: 0 | AB50: 0 | AC50: 0 | AD50: 0 | AE50: 0 | AF50: 70 | AH50: 0 | AI50: 0 | AJ50: 0 | AK50: 0 | AL50: 0 | AM50: 0 | AN50: 0 | AO50: 0 | AP50: 0 | AQ50: 0 | AR50: 70
A51: 106990 | B51: 1,3-Butadiene | C51: =VLOOKUP(F51, '2016-2021 BD OES Pull_rev'!F:N, 9, FALSE) -> Plastics and Rubber Compounding | D51: R | E51: 2021 | F51: 70602FRSTNLA108 | G51: 110041921935 | H51: LAD008073439 | I51: FIRESTONE POLYMERS LLC | J51: 1801 E LA HWY 108 | K51: SULPHUR | L51: CALCASIEU PARISH | M51: LA | N51: 70665 | O51: 30.186144 | P51: -93.331209 | Q51: 1321219828617 | R51: 6 | S51: 1,000,000 to 9,999,999 | T51: BRIDGESTONE AMERICAS INC | W51: 325212 | Y51: 0 | Z51: 0 | AA51: 0 | AB51: 0 | AC51: 0 | AD51: 0 | AE51: 0 | AF51: 339 | AH51: 0 | AI51: 0 | AJ51: 0 | AK51: 0 | AL51: 0 | AM51: 0 | AN51: 0 | AO51: 0 | AP51: 0 | AQ51: 0 | AR51: 339
A52: 106990 | B52: 1,3-Butadiene | C52: =VLOOKUP(F52, '2016-2021 BD OES Pull_rev'!F:N, 9, FALSE) -> Plastics and Rubber Compounding | D52: R | E52: 2017 | F52: 77720THGDYINTER | G52: 110062118505 | H52: TXD008077190 | I52: GOODYEAR TIRE & RUBBER CO | J52: 11241 INTERSTATE HWY 10 | K52: BEAUMONT | L52: JEFFERSON | M52: TX | N52: 77705 | O52: 29.976348 | P52: -94.218538 | Q52: 1317216401341 | R52: 6 | S52: 1,000,000 to 9,999,999 | T52: THE GOODYEAR TIRE & RUBBER CO | W52: 325212 | Y52: 0 | Z52: 0 | AA52: 0 | AB52: 0 | AC52: 0 | AD52: 0 | AE52: 0 | AF52: 0 | AH52: 0 | AI52: 0 | AJ52: 0 | AK52: 0 | AL52: 0 | AM52: 0 | AN52: 0 | AO52: 0 | AP52: 0 | AQ52: 416 | AR52: 416
A53: 106990 | B53: 1,3-Butadiene | C53: =VLOOKUP(F53, '2016-2021 BD OES Pull_rev'!F:N, 9, FALSE) -> Processing as a reactant | D53: R | E53: 2018 | F53: 77630NVSTS355AF | G53: 110022523982 | H53: TXR000057752 | I53: INV NYLON CHEMICALS AMERICAS ORANGE SITE | J53: 3055A FM 1006 | K53: ORANGE | L53: ORANGE | M53: TX | N53: 77630 | O53: 30.054167 | P53: -93.752208 | Q53: 1318217352881 | R53: 6 | S53: 1,000,000 to 9,999,999 | T53: KOCH INDUSTRIES INC | W53: 325199 | Y53: 0 | Z53: 0 | AA53: 0 | AB53: 0 | AC53: 0 | AD53: 0 | AE53: 0 | AF53: 0 | AH53: 0 | AI53: 0 | AJ53: 0 | AK53: 0 | AL53: 39 | AM53: 0 | AN53: 0 | AO53: 0 | AP53: 0 | AQ53: 0 | AR53: 39
A54: 106990 | B54: 1,3-Butadiene | C54: =VLOOKUP(F54, '2016-2021 BD OES Pull_rev'!F:N, 9, FALSE) -> Processing as a reactant | D54: R | E54: 2016 | F54: 45804SHLCM1150S | G54: 110000395475 | H54: OHR000032151 | I54: LIMA REFINING CO | J54: 1150 S METCALF ST | K54: LIMA | L54: ALLEN | M54: OH | N54: 45804 | O54: 40.720649 | P54: -84.122623 | Q54: 1316215251758 | R54: 1 | S54: 0 to 99 | W54: 324110 | Y54: 0 | Z54: 0 | AA54: 0 | AB54: 0 | AC54: 0 | AD54: 0 | AE54: 0 | AF54: 0.43 | AH54: 0 | AI54: 0 | AJ54: 0 | AK54: 0 | AL54: 0 | AM54: 0 | AN54: 0 | AO54: 0 | AP54: 0 | AQ54: 0 | AR54: 0.43
A55: 106990 | B55: 1,3-Butadiene | C55: =VLOOKUP(F55, '2016-2021 BD OES Pull_rev'!F:N, 9, FALSE) -> Processing as a reactant | D55: R | E55: 2017 | F55: 45804SHLCM1150S | G55: 110000395475 | H55: OHR000032151 | I55: LIMA REFINING CO | J55: 1150 S METCALF ST | K55: LIMA | L55: ALLEN | M55: OH | N55: 45804 | O55: 40.720649 | P55: -84.122623 | Q55: 1317216398471 | R55: 1 | S55: 0 to 99 | W55: 324110 | Y55: 0 | Z55: 0 | AA55: 0 | AB55: 0 | AC55: 0 | AD55: 0 | AE55: 0 | AF55: 1.06 | AH55: 0 | AI55: 0 | AJ55: 0 | AK55: 0 | AL55: 0 | AM55: 0 | AN55: 0 | AO55: 0 | AP55: 0 | AQ55: 0 | AR55: 1.06
A56: 106990 | B56: 1,3-Butadiene | C56: =VLOOKUP(F56, '2016-2021 BD OES Pull_rev'!F:N, 9, FALSE) -> Processing - Incorporation into formulation, mixture, or reaction product | D56: R | E56: 2016 | F56: 44306NTWRK1353E | G56: 110004714195 | H56: OHR000009712 | I56: LYONDELLBASELL ADVANCED POLYMERS INC. | J56: 1353 EXETER RD | K56: AKRON | L56: SUMMIT | M56: OH | N56: 44306 | O56: 41.02928 | P56: -81.47987 | Q56: 1316215380700 | R56: 3 | S56: 1,000 to 9,999 | T56: LYONDELLBASELL INDUSTRIES | W56: 325991 | Y56: 0 | Z56: 0 | AA56: 0 | AB56: 0 | AC56: 0 | AD56: 0 | AE56: 0 | AF56: 250 | AH56: 0 | AI56: 0 | AJ56: 0 | AK56: 0 | AL56: 0 | AM56: 0 | AN56: 0 | AO56: 0 | AP56: 0 | AQ56: 0 | AR56: 250
A57: 106990 | B57: 1,3-Butadiene | C57: =VLOOKUP(F57, '2016-2021 BD OES Pull_rev'!F:N, 9, FALSE) -> Processing - Incorporation into formulation, mixture, or reaction product | D57: R | E57: 2017 | F57: 44306NTWRK1353E | G57: 110004714195 | H57: OHR000009712 | I57: LYONDELLBASELL ADVANCED POLYMERS INC. | J57: 1353 EXETER RD | K57: AKRON | L57: SUMMIT | M57: OH | N57: 44306 | O57: 41.02928 | P57: -81.47987 | Q57: 1317216529230 | R57: 1 | S57: 0 to 99 | T57: LYONDELLBASELL INDUSTRIES | W57: 325991 | Y57: 0 | Z57: 0 | AA57: 0 | AB57: 0 | AC57: 0 | AD57: 0 | AE57: 0 | AF57: 5 | AH57: 0 | AI57: 0 | AJ57: 0 | AK57: 0 | AL57: 0 | AM57: 0 | AN57: 0 | AO57: 0 | AP57: 0 | AQ57: 0 | AR57: 5
A58: 106990 | B58: 1,3-Butadiene | C58: =VLOOKUP(F58, '2016-2021 BD OES Pull_rev'!F:N, 9, FALSE) -> Recycling | D58: R | E58: 2021 | F58: 44711SHLND2408G | G58: 110000493555 | H58: OHD048107049 | I58: MARATHON PETROLEUM CO LP OHIO REFINING DIV | J58: 2408 GAMBRINUS AVE SW | K58: CANTON | L58: STARK | M58: OH | N58: 44706 | O58: 40.7736 | P58: -81.4146 | Q58: 1321220437913 | R58: 3 | S58: 1,000 to 9,999 | T58: MARATHON PETROLEUM CORP | W58: 324110 | Y58: 0 | Z58: 0 | AA58: 0 | AB58: 0 | AC58: 0 | AD58: 0 | AE58: 0 | AF58: 0.000357 | AH58: 0 | AI58: 0 | AJ58: 0 | AK58: 0 | AL58: 0 | AM58: 0 | AN58: 0 | AO58: 0 | AP58: 0 | AQ58: 0 | AR58: 0.000357
A59: 106990 | B59: 1,3-Butadiene | C59: =VLOOKUP(F59, '2016-2021 BD OES Pull_rev'!F:N, 9, FALSE) -> Processing - Incorporation into formulation, mixture, or reaction product | D59: R | E59: 2019 | F59: 78359CCDNTHWY36 | G59: 110000599807 | H59: TXD982286932 | I59: OCCIDENTAL CHEMICAL CORP | J59: 4133 HWY 361 | K59: GREGORY | L59: SAN PATRICIO | M59: TX | N59: 78359 | O59: 27.883611 | P59: -97.241383 | Q59: 1319218514646 | R59: 3 | S59: 1,000 to 9,999 | T59: OCCIDENTAL CHEMICAL HOLDING CORP | W59: 325199 | Y59: 0 | Z59: 0 | AA59: 0 | AB59: 0 | AC59: 0 | AD59: 0 | AE59: 0 | AF59: 0 | AH59: 0 | AI59: 0 | AJ59: 0 | AK59: 0 | AL59: 0 | AM59: 0 | AN59: 0 | AO59: 0 | AP59: 0 | AQ59: 0.375 | AR59: 0.375
A60: 106990 | B60: 1,3-Butadiene | C60: =VLOOKUP(F60, '2016-2021 BD OES Pull_rev'!F:N, 9, FALSE) -> Processing - Incorporation into formulation, mixture, or reaction product | D60: R | E60: 2020 | F60: 78359CCDNTHWY36 | G60: 110000599807 | H60: TXD982286932 | I60: OCCIDENTAL CHEMICAL CORP | J60: 4133 HWY 361 | K60: GREGORY | L60: SAN PATRICIO | M60: TX | N60: 78359 | O60: 27.883611 | P60: -97.241383 | Q60: 1320219310339 | R60: 3 | S60: 1,000 to 9,999 | T60: OCCIDENTAL CHEMICAL HOLDING CORP | W60: 325199 | Y60: 0 | Z60: 0 | AA60: 0 | AB60: 0 | AC60: 0 | AD60: 0 | AE60: 0 | AF60: 0 | AH60: 0 | AI60: 0 | AJ60: 0 | AK60: 0 | AL60: 0 | AM60: 0 | AN60: 0 | AO60: 0 | AP60: 0 | AQ60: 2 | AR60: 2
A61: 106990 | B61: 1,3-Butadiene | C61: =VLOOKUP(F61, '2016-2021 BD OES Pull_rev'!F:N, 9, FALSE) -> Processing as a reactant | D61: R | E61: 2016 | F61: 44260DVRST165SC | G61: 110000388946 | H61: OHD085763555 | I61: OMNOVA SOLUTIONS INC-MOGADORE PLANT | J61: 165 S CLEVELAND AVE | K61: MOGADORE | L61: PORTAGE | M61: OH | N61: 44260 | O61: 41.045663 | P61: -81.391134 | Q61: 1316215651151 | R61: 6 | S61: 1,000,000 to 9,999,999 | W61: 325212 | Y61: 0 | Z61: 0 | AA61: 0 | AB61: 0 | AC61: 0 | AD61: 0 | AE61: 0 | AF61: 0 | AH61: 0 | AI61: 0 | AJ61: 0 | AK61: 0 | AL61: 1 | AM61: 0 | AN61: 0 | AO61: 0 | AP61: 0 | AQ61: 0 | AR61: 1
A62: 106990 | B62: 1,3-Butadiene | C62: =VLOOKUP(F62, '2016-2021 BD OES Pull_rev'!F:N, 9, FALSE) -> Processing as a reactant | D62: R | E62: 2017 | F62: 44260DVRST165SC | G62: 110000388946 | H62: OHD085763555 | I62: OMNOVA SOLUTIONS INC-MOGADORE PLANT | J62: 165 S CLEVELAND AVE | K62: MOGADORE | L62: PORTAGE | M62: OH | N62: 44260 | O62: 41.045663 | P62: -81.391134 | Q62: 1317216576304 | R62: 6 | S62: 1,000,000 to 9,999,999 | W62: 325212 | Y62: 0 | Z62: 0 | AA62: 0 | AB62: 0 | AC62: 0 | AD62: 0 | AE62: 0 | AF62: 0 | AH62: 0 | AI62: 0 | AJ62: 0 | AK62: 0 | AL62: 1 | AM62: 0 | AN62: 0 | AO62: 0 | AP62: 0 | AQ62: 0 | AR62: 1
A63: 106990 | B63: 1,3-Butadiene | C63: =VLOOKUP(F63, '2016-2021 BD OES Pull_rev'!F:N, 9, FALSE) -> Processing as a reactant | D63: R | E63: 2018 | F63: 44260DVRST165SC | G63: 110000388946 | H63: OHD085763555 | I63: OMNOVA SOLUTIONS INC-MOGADORE PLANT | J63: 165 S CLEVELAND AVE | K63: MOGADORE | L63: PORTAGE | M63: OH | N63: 44260 | O63: 41.045663 | P63: -81.391134 | Q63: 1318217265469 | R63: 6 | S63: 1,000,000 to 9,999,999 | W63: 325212 | Y63: 0 | Z63: 0 | AA63: 0 | AB63: 0 | AC63: 0 | AD63: 0 | AE63: 0 | AF63: 0 | AH63: 0 | AI63: 0 | AJ63: 0 | AK63: 0 | AL63: 1 | AM63: 0 | AN63: 0 | AO63: 0 | AP63: 0 | AQ63: 0 | AR63: 1
A64: 106990 | B64: 1,3-Butadiene | C64: =VLOOKUP(F64, '2016-2021 BD OES Pull_rev'!F:N, 9, FALSE) -> Processing as a reactant | D64: R | E64: 2019 | F64: 44260DVRST165SC | G64: 110000388946 | H64: OHD085763555 | I64: OMNOVA SOLUTIONS INC-MOGADORE PLANT | J64: 165 S CLEVELAND AVE | K64: MOGADORE | L64: PORTAGE | M64: OH | N64: 44260 | O64: 41.045663 | P64: -81.391134 | Q64: 1319218163881 | R64: 6 | S64: 1,000,000 to 9,999,999 | W64: 325212 | Y64: 0 | Z64: 0 | AA64: 0 | AB64: 0 | AC64: 0 | AD64: 0 | AE64: 0 | AF64: 0 | AH64: 0 | AI64: 0 | AJ64: 0 | AK64: 0 | AL64: 1 | AM64: 0 | AN64: 0 | AO64: 0 | AP64: 0 | AQ64: 0 | AR64: 1
A65: 106990 | B65: 1,3-Butadiene | C65: =VLOOKUP(F65, '2016-2021 BD OES Pull_rev'!F:N, 9, FALSE) -> Processing as a reactant | D65: R | E65: 2020 | F65: 44260DVRST165SC | G65: 110000388946 | H65: OHD085763555 | I65: OMNOVA SOLUTIONS INC-MOGADORE PLANT | J65: 165 S CLEVELAND AVE | K65: MOGADORE | L65: PORTAGE | M65: OH | N65: 44260 | O65: 41.045663 | P65: -81.391134 | Q65: 1320219044397 | R65: 6 | S65: 1,000,000 to 9,999,999 | W65: 325212 | Y65: 0 | Z65: 0 | AA65: 0 | AB65: 0 | AC65: 0 | AD65: 0 | AE65: 0 | AF65: 0 | AH65: 0 | AI65: 0 | AJ65: 0 | AK65: 0 | AL65: 2 | AM65: 0 | AN65: 0 | AO65: 0 | AP65: 0 | AQ65: 0 | AR65: 2
A66: 106990 | B66: 1,3-Butadiene | C66: =VLOOKUP(F66, '2016-2021 BD OES Pull_rev'!F:N, 9, FALSE) -> Processing as a reactant | D66: R | E66: 2021 | F66: 44260DVRST165SC | G66: 110000388946 | H66: OHD085763555 | I66: OMNOVA SOLUTIONS INC-MOGADORE PLANT | J66: 165 S CLEVELAND AVE | K66: MOGADORE | L66: PORTAGE | M66: OH | N66: 44260 | O66: 41.045663 | P66: -81.391134 | Q66: 1321220009310 | R66: 6 | S66: 1,000,000 to 9,999,999 | W66: 325212 | Y66: 0 | Z66: 0 | AA66: 0 | AB66: 0 | AC66: 0 | AD66: 0 | AE66: 0 | AF66: 0 | AH66: 0 | AI66: 0 | AJ66: 0 | AK66: 0 | AL66: 0 | AM66: 0 | AN66: 0 | AO66: 0 | AP66: 662 | AQ66: 0 | AR66: =SUM(Y66:AQ66) -> 662
A67: 106990 | B67: 1,3-Butadiene | C67: =VLOOKUP(F67, '2016-2021 BD OES Pull_rev'!F:N, 9, FALSE) -> Processing as a reactant | D67: R | E67: 2016 | F67: 54313GNCRP1701C | G67: 110000421712 | H67: WID988621348 | I67: OMNOVA SOLUTIONS PERFORMANCE CHEMICALS GREEN BAY FACILITY | J67: 1701 CORNELL RD | K67: GREEN BAY | L67: BROWN | M67: WI | N67: 54313 | O67: 44.588889 | P67: -88.072778 | Q67: 1316214984597 | R67: 6 | S67: 1,000,000 to 9,999,999 | T67: OMNOVA SOLUTIONS INC | W67: 325212 | Y67: 0 | Z67: 0 | AA67: 0 | AB67: 0 | AC67: 0 | AD67: 0 | AE67: 0 | AF67: 0 | AH67: 0 | AI67: 0 | AJ67: 0 | AK67: 0 | AL67: 0.22 | AM67: 0 | AN67: 0 | AO67: 0 | AP67: 0 | AQ67: 0 | AR67: 0.22
A68: 106990 | B68: 1,3-Butadiene | C68: =VLOOKUP(F68, '2016-2021 BD OES Pull_rev'!F:N, 9, FALSE) -> Plastics and Rubber Converting | D68: R | E68: 2018 | F68: 69001DYCPR400SO | G68: 110024422640 | H68: NED055074892 | I68: PARKER HANNIFIN | J68: 400 S ST | K68: MC COOK | L68: RED WILLOW | M68: NE | N68: 69001 | O68: 40.19244 | P68: -100.622 | Q68: 1318217257714 | R68: 3 | S68: 1,000 to 9,999 | T68: PARKER HANNIFIN CORP | W68: 326220 | Y68: 0 | Z68: 0 | AA68: 0 | AB68: 0 | AC68: 0 | AD68: 0 | AE68: 0 | AF68: 0 | AH68: 0 | AI68: 0 | AJ68: 0 | AK68: 0 | AL68: 250 | AM68: 0 | AN68: 0 | AO68: 0 | AP68: 0 | AQ68: 0 | AR68: 250
A69: 106990 | B69: 1,3-Butadiene | C69: =VLOOKUP(F69, '2016-2021 BD OES Pull_rev'!F:N, 9, FALSE) -> Processing as a reactant | D69: R | E69: 2021 | F69: 77506CRWNC111RE | G69: 110000462703 | H69: TXD008091290 | I69: PASADENA REFINING SYSTEM INC | J69: 111 RED BLUFF RD | K69: PASADENA | L69: HARRIS | M69: TX | N69: 77506 | O69: 29.723889 | P69: -95.208888 | Q69: 1321219890783 | R69: 5 | S69: 100,000 to 999,999 | T69: CHEVRON USA INC (CUSA) | W69: 324110 | Y69: 0 | Z69: 0 | AA69: 0 | AB69: 0 | AC69: 0 | AD69: 0 | AE69: 0 | AF69: 0.24 | AH69: 0 | AI69: 0 | AJ69: 0 | AK69: 0 | AL69: 0 | AM69: 0 | AN69: 0 | AO69: 0 | AP69: 0 | AQ69: 0 | AR69: 0.24
A70: 106990 | B70: 1,3-Butadiene | C70: =VLOOKUP(F70, '2016-2021 BD OES Pull_rev'!F:N, 9, FALSE) -> Processing as a reactant | D70: R | E70: 2016 | F70: 59101CNCBL401SO | G70: 110043806085 | H70: MTD986069599 | I70: PHILLIPS 66 CO BILLINGS REFINERY | J70: 401 S 23RD ST | K70: BILLINGS | L70: YELLOWSTONE | M70: MT | N70: 59101 | O70: 45.776389 | P70: -108.484444 | Q70: 1316215515115 | R70: 3 | S70: 1,000 to 9,999 | T70: PHILLIPS 66 CO | W70: 324110 | Y70: 0 | Z70: 0 | AA70: 0 | AB70: 0 | AC70: 0 | AD70: 0 | AE70: 0 | AF70: 0 | AH70: 0 | AI70: 0 | AJ70: 0 | AK70: 0 | AL70: 4.804 | AM70: 0 | AN70: 0 | AO70: 0 | AP70: 0 | AQ70: 0 | AR70: 4.804
A71: 106990 | B71: 1,3-Butadiene | C71: =VLOOKUP(F71, '2016-2021 BD OES Pull_rev'!F:N, 9, FALSE) -> Plastics and Rubber Compounding | D71: R | E71: 2016 | F71: 61350BRGWRCANAL | G71: 110000437661 | H71: ILD079135133 | I71: SABIC INNOVATIVE PLASTICS US LLC | J71: 2148 N 2753RD RD | K71: OTTAWA | L71: LASALLE | M71: IL | N71: 61350 | O71: 41.334533 | P71: -88.755775 | Q71: 1316215236288 | R71: 6 | S71: 1,000,000 to 9,999,999 | T71: SABIC US HOLDINGS LP | W71: 325211 | Y71: 0 | Z71: 0 | AA71: 0 | AB71: 0 | AC71: 0 | AD71: 0 | AE71: 0 | AF71: 0 | AH71: 0 | AI71: 0 | AJ71: 0 | AK71: 0 | AL71: 55 | AM71: 0 | AN71: 0 | AO71: 0 | AP71: 0 | AQ71: 4 | AR71: 59
A72: 106990 | B72: 1,3-Butadiene | C72: =VLOOKUP(F72, '2016-2021 BD OES Pull_rev'!F:N, 9, FALSE) -> Plastics and Rubber Compounding | D72: R | E72: 2017 | F72: 61350BRGWRCANAL | G72: 110000437661 | H72: ILD079135133 | I72: SABIC INNOVATIVE PLASTICS US LLC | J72: 2148 N 2753RD RD | K72: OTTAWA | L72: LASALLE | M72: IL | N72: 61350 | O72: 41.334533 | P72: -88.755775 | Q72: 1317216231961 | R72: 6 | S72: 1,000,000 to 9,999,999 | T72: SABIC US HOLDINGS LP | W72: 325211 | Y72: 0 | Z72: 0 | AA72: 0 | AB72: 0 | AC72: 0 | AD72: 0 | AE72: 0 | AF72: 0 | AH72: 0 | AI72: 0 | AJ72: 0 | AK72: 0 | AL72: 53 | AM72: 0 | AN72: 0 | AO72: 0 | AP72: 0 | AQ72: 6 | AR72: 59
A73: 106990 | B73: 1,3-Butadiene | C73: =VLOOKUP(F73, '2016-2021 BD OES Pull_rev'!F:N, 9, FALSE) -> Plastics and Rubber Compounding | D73: R | E73: 2018 | F73: 61350BRGWRCANAL | G73: 110000437661 | H73: ILD079135133 | I73: SABIC INNOVATIVE PLASTICS US LLC | J73: 2148 N 2753RD RD | K73: OTTAWA | L73: LASALLE | M73: IL | N73: 61350 | O73: 41.334533 | P73: -88.755775 | Q73: 1318217015876 | R73: 6 | S73: 1,000,000 to 9,999,999 | T73: SABIC US HOLDINGS LP | W73: 325211 | Y73: 0 | Z73: 0 | AA73: 0 | AB73: 0 | AC73: 0 | AD73: 0 | AE73: 0 | AF73: 0 | AH73: 0 | AI73: 0 | AJ73: 0 | AK73: 0 | AL73: 55 | AM73: 0 | AN73: 0 | AO73: 0 | AP73: 0 | AQ73: 12 | AR73: 67
A74: 106990 | B74: 1,3-Butadiene | C74: =VLOOKUP(F74, '2016-2021 BD OES Pull_rev'!F:N, 9, FALSE) -> Plastics and Rubber Compounding | D74: R | E74: 2019 | F74: 61350BRGWRCANAL | G74: 110000437661 | H74: ILD079135133 | I74: SABIC INNOVATIVE PLASTICS US LLC | J74: 2148 N 2753RD RD | K74: OTTAWA | L74: LASALLE | M74: IL | N74: 61350 | O74: 41.334533 | P74: -88.755775 | Q74: 1319217953001 | R74: 6 | S74: 1,000,000 to 9,999,999 | T74: SABIC US HOLDINGS LP | W74: 325211 | Y74: 0 | Z74: 0 | AA74: 0 | AB74: 0 | AC74: 0 | AD74: 0 | AE74: 0 | AF74: 0 | AH74: 0 | AI74: 0 | AJ74: 0 | AK74: 0 | AL74: 56 | AM74: 0 | AN74: 0 | AO74: 0 | AP74: 0 | AQ74: 9 | AR74: 65
A75: 106990 | B75: 1,3-Butadiene | C75: =VLOOKUP(F75, '2016-2021 BD OES Pull_rev'!F:N, 9, FALSE) -> Plastics and Rubber Compounding | D75: R | E75: 2020 | F75: 61350BRGWRCANAL | G75: 110000437661 | H75: ILD079135133 | I75: SABIC INNOVATIVE PLASTICS US LLC | J75: 2148 N 2753RD RD | K75: OTTAWA | L75: LASALLE | M75: IL | N75: 61350 | O75: 41.334533 | P75: -88.755775 | Q75: 1320218788420 | R75: 6 | S75: 1,000,000 to 9,999,999 | T75: SABIC US HOLDINGS LP | W75: 325211 | Y75: 0 | Z75: 0 | AA75: 0 | AB75: 0 | AC75: 0 | AD75: 0 | AE75: 0 | AF75: 0 | AH75: 0 | AI75: 0 | AJ75: 0 | AK75: 0 | AL75: 76 | AM75: 0 | AN75: 0 | AO75: 0 | AP75: 0 | AQ75: 11 | AR75: 87
A76: 106990 | B76: 1,3-Butadiene | C76: =VLOOKUP(F76, '2016-2021 BD OES Pull_rev'!F:N, 9, FALSE) -> Plastics and Rubber Compounding | D76: R | E76: 2021 | F76: 61350BRGWRCANAL | G76: 110000437661 | H76: ILD079135133 | I76: SABIC INNOVATIVE PLASTICS US LLC | J76: 2148 N 2753RD RD | K76: OTTAWA | L76: LASALLE | M76: IL | N76: 61350 | O76: 41.334533 | P76: -88.755775 | Q76: 1321219758238 | R76: 6 | S76: 1,000,000 to 9,999,999 | T76: SABIC US HOLDINGS LP | W76: 325211 | Y76: 0 | Z76: 0 | AA76: 0 | AB76: 0 | AC76: 0 | AD76: 0 | AE76: 0 | AF76: 0 | AH76: 0 | AI76: 0 | AJ76: 0 | AK76: 0 | AL76: 59 | AM76: 0 | AN76: 0 | AO76: 0 | AP76: 0 | AQ76: 14 | AR76: 73
A77: 106990 | B77: 1,3-Butadiene | C77: =VLOOKUP(F77, '2016-2021 BD OES Pull_rev'!F:N, 9, FALSE) -> Repackaging | D77: R | E77: 2021 | F77: 98134QLNST25551 | G77: 110069441492 | H77: WAD001684588 | I77: SHELL SEATTLE DISTRIBUTION TERMINAL | J77: 2555 13TH AVE SW | K77: SEATTLE | L77: KING | M77: WA | N77: 98134 | O77: 47.581259 | P77: -122.353342 | Q77: 1321219855234 | R77: 4 | S77: 10,000 to 99,999 | T77: SHELL PETROLEUM INC | W77: 424710 | Y77: 0 | Z77: 0 | AA77: 0 | AB77: 0 | AC77: 0 | AD77: 0 | AE77: 0 | AF77: 0 | AH77: 0 | AI77: 0 | AJ77: 0 | AK77: 0 | AL77: 0 | AM77: 0 | AN77: 0 | AO77: 0 | AP77: 0 | AQ77: 2 | AR77: 2
A78: 106990 | B78: 1,3-Butadiene | C78: =VLOOKUP(F78, '2016-2021 BD OES Pull_rev'!F:N, 9, FALSE) -> Manufacturing | D78: R | E78: 2018 | F78: 70057NNCRBHWY31 | G78: 110000597104 | H78: LAD041581422 | I78: ST CHARLES OPERATIONS (TAFT/STAR) UNION CARBIDE CORP | J78: 355 LA HWY 3142 (GATE 1) | K78: HAHNVILLE | L78: ST. CHARLES PARISH | M78: LA | N78: 70057 | O78: 29.9829 | P78: -90.4437 | Q78: 1318218533863 | R78: 6 | S78: 1,000,000 to 9,999,999 | T78: DOW INC | W78: 325199 | Y78: 0 | Z78: 0 | AA78: 0 | AB78: 0 | AC78: 0 | AD78: 0 | AE78: 0 | AF78: 0 | AH78: 0 | AI78: 0 | AJ78: 0 | AK78: 0 | AL78: 0.29 | AM78: 0 | AN78: 0 | AO78: 0 | AP78: 0 | AQ78: 0 | AR78: 0.29
A79: 106990 | B79: 1,3-Butadiene | C79: =VLOOKUP(F79, '2016-2021 BD OES Pull_rev'!F:N, 9, FALSE) -> Manufacturing | D79: R | E79: 2019 | F79: 84103MCLCM474WE | G79: 110000469243 | H79: UTD000826362 | I79: TESORO REFINING & MARKETING COMPANY LLC - SLC | J79: 474 W 900 N | K79: SALT LAKE CITY | L79: SALT LAKE | M79: UT | N79: 84103 | O79: 40.791667 | P79: -111.902778 | Q79: 1319218389031 | R79: 3 | S79: 1,000 to 9,999 | T79: MARATHON PETROLEUM CORP | W79: 324110 | Y79: 0 | Z79: 0 | AA79: 0 | AB79: 0 | AC79: 0 | AD79: 0 | AE79: 0 | AF79: 0.1 | AH79: 0 | AI79: 0 | AJ79: 0 | AK79: 0 | AL79: 0 | AM79: 0 | AN79: 0 | AO79: 0 | AP79: 0 | AQ79: 0 | AR79: 0.1
A80: 106990 | B80: 1,3-Butadiene | C80: =VLOOKUP(F80, '2016-2021 BD OES Pull_rev'!F:N, 9, FALSE) -> Waste Handling, Disposal, Treatment, and Recycling | D80: R | E80: 2019 | F80: 77536DSPSL2525B | G80: 110017743281 | H80: TXD987986734 | I80: TM DEER PARK SERVICES LP | J80: 2525 BATTLEGROUND RD | K80: DEER PARK | L80: HARRIS | M80: TX | N80: 77536 | O80: 29.73427 | P80: -95.08986 | Q80: 1319218511032 | R80: 3 | S80: 1,000 to 9,999 | T80: TEXAS MOLECULAR LP | W80: 325199 | Y80: 11654 | Z80: 0 | AA80: 0 | AB80: 0 | AC80: 0 | AD80: 0 | AE80: 0 | AF80: 0 | AH80: 0 | AI80: 0 | AJ80: 0 | AK80: 0 | AL80: 0 | AM80: 0 | AN80: 0 | AO80: 0 | AP80: 0 | AQ80: 0 | AR80: 11654
A81: 106990 | B81: 1,3-Butadiene | C81: =VLOOKUP(F81, '2016-2021 BD OES Pull_rev'!F:N, 9, FALSE) -> Waste Handling, Disposal, Treatment, and Recycling | D81: R | E81: 2017 | F81: 89003SCLGYHWY95 | G81: 110000600920 | H81: NVT330010000 | I81: US ECOLOGY NEVADA INC. | J81: 12 MILES S OF BEATTY ON HWY 95 | K81: BEATTY | L81: NYE | M81: NV | N81: 89003 | O81: 36.767649 | P81: -116.69368 | Q81: 1317216106815 | R81: 4 | S81: 10,000 to 99,999 | T81: US ECOLOGY INC | W81: 562211 | Y81: 0 | Z81: 0 | AA81: 13836 | AB81: 0 | AC81: 0 | AD81: 0 | AE81: 0 | AF81: 0 | AH81: 0 | AI81: 0 | AJ81: 0 | AK81: 0 | AL81: 0 | AM81: 0 | AN81: 0 | AO81: 0 | AP81: 0 | AQ81: 0 | AR81: 13836
A82: 106990 | B82: 1,3-Butadiene | C82: =VLOOKUP(F82, '2016-2021 BD OES Pull_rev'!F:N, 9, FALSE) -> Processing - incorporation into formulation, mixture, or reaction product | D82: R | E82: 2018 | F82: 70047TRNSM14902 | G82: 110000448659 | H82: LAR000085498 | I82: VALERO REFINING - NEW ORLEANS LLC | J82: 14902 RIVER RD | K82: NORCO | L82: ST. CHARLES PARISH | M82: LA | N82: 70079 | O82: 29.985278 | P82: -90.392778 | Q82: 1318218554032 | R82: 5 | S82: 100,000 to 999,999 | T82: VALERO ENERGY CORP | W82: 324110 | Y82: 0 | Z82: 0 | AA82: 0 | AB82: 0 | AC82: 0 | AD82: 0 | AE82: 0 | AF82: 0 | AH82: 0 | AI82: 0 | AJ82: 0 | AK82: 0 | AL82: 39 | AM82: 0 | AN82: 0 | AO82: 0 | AP82: 0 | AQ82: 0 | AR82: 39
A83: 106990 | B83: 1,3-Butadiene | C83: =VLOOKUP(F83, '2016-2021 BD OES Pull_rev'!F:N, 9, FALSE) -> Processing - incorporation into formulation, mixture, or reaction product | D83: R | E83: 2019 | F83: 70047TRNSM14902 | G83: 110000448659 | H83: LAR000085498 | I83: VALERO REFINING - NEW ORLEANS LLC | J83: 14902 RIVER RD | K83: NORCO | L83: ST. CHARLES PARISH | M83: LA | N83: 70079 | O83: 29.985278 | P83: -90.392778 | Q83: 1319218303927 | R83: 5 | S83: 100,000 to 999,999 | T83: VALERO ENERGY CORP | W83: 324110 | Y83: 0 | Z83: 0 | AA83: 0 | AB83: 0 | AC83: 0 | AD83: 0 | AE83: 0 | AF83: 0 | AH83: 0 | AI83: 0 | AJ83: 0 | AK83: 0 | AL83: 67 | AM83: 0 | AN83: 0 | AO83: 0 | AP83: 0 | AQ83: 0 | AR83: 67
A84: 106990 | B84: 1,3-Butadiene | C84: =VLOOKUP(F84, '2016-2021 BD OES Pull_rev'!F:N, 9, FALSE) -> Processing - incorporation into formulation, mixture, or reaction product | D84: R | E84: 2020 | F84: 70047TRNSM14902 | G84: 110000448659 | H84: LAR000085498 | I84: VALERO REFINING - NEW ORLEANS LLC | J84: 14902 RIVER RD | K84: NORCO | L84: ST. CHARLES PARISH | M84: LA | N84: 70079 | O84: 29.985278 | P84: -90.392778 | Q84: 1320219073867 | R84: 5 | S84: 100,000 to 999,999 | T84: VALERO ENERGY CORP | W84: 324110 | Y84: 0 | Z84: 0 | AA84: 0 | AB84: 0 | AC84: 0 | AD84: 0 | AE84: 0 | AF84: 0 | AH84: 0 | AI84: 0 | AJ84: 0 | AK84: 0 | AL84: 67 | AM84: 0 | AN84: 0 | AO84: 0 | AP84: 0 | AQ84: 0 | AR84: 67
A85: 106990 | B85: 1,3-Butadiene | C85: =VLOOKUP(F85, '2016-2021 BD OES Pull_rev'!F:N, 9, FALSE) -> Processing - incorporation into formulation, mixture, or reaction product | D85: R | E85: 2021 | F85: 70047TRNSM14902 | G85: 110000448659 | H85: LAR000085498 | I85: VALERO REFINING - NEW ORLEANS LLC | J85: 14902 RIVER RD | K85: NORCO | L85: ST. CHARLES PARISH | M85: LA | N85: 70079 | O85: 29.985278 | P85: -90.392778 | Q85: 1321220424992 | R85: 6 | S85: 1,000,000 to 9,999,999 | T85: VALERO ENERGY CORP | W85: 324110 | Y85: 0 | Z85: 0 | AA85: 0 | AB85: 0 | AC85: 0 | AD85: 0 | AE85: 0 | AF85: 0 | AH85: 0 | AI85: 0 | AJ85: 0 | AK85: 0 | AL85: 51 | AM85: 0 | AN85: 0 | AO85: 0 | AP85: 0 | AQ85: 0 | AR85: 51
A86: 106990 | B86: 1,3-Butadiene | C86: =VLOOKUP(F86, '2016-2021 BD OES Pull_rev'!F:N, 9, FALSE) -> Manufacturing | D86: R | E86: 2017 | F86: 77592TXSCTLOOP1 | G86: 110032911669 | H86: TXD000792937 | I86: VALERO REFINING-TEXAS LP | J86: 1301 LOOP 197 S | K86: TEXAS CITY | L86: GALVESTON | M86: TX | N86: 77590 | O86: 29.369167 | P86: -94.911111 | Q86: 1317216394712 | R86: 4 | S86: 10,000 to 99,999 | T86: VALERO ENERGY CORP | W86: 324110 | Y86: 0 | Z86: 0 | AA86: 0 | AB86: 0 | AC86: 0 | AD86: 0 | AE86: 0 | AF86: 0 | AH86: 0 | AI86: 0 | AJ86: 0 | AK86: 0 | AL86: 250 | AM86: 0 | AN86: 0 | AO86: 0 | AP86: 0 | AQ86: 0 | AR86: 250
A87: 106990 | B87: 1,3-Butadiene | C87: =VLOOKUP(F87, '2016-2021 BD OES Pull_rev'!F:N, 9, FALSE) -> Manufacturing | D87: R | E87: 2019 | F87: 77592TXSCTLOOP1 | G87: 110032911669 | H87: TXD000792937 | I87: VALERO REFINING-TEXAS LP | J87: 1301 LOOP 197 S | K87: TEXAS CITY | L87: GALVESTON | M87: TX | N87: 77590 | O87: 29.369167 | P87: -94.911111 | Q87: 1319218030878 | R87: 4 | S87: 10,000 to 99,999 | T87: VALERO ENERGY CORP | W87: 324110 | Y87: 0 | Z87: 0 | AA87: 0 | AB87: 0 | AC87: 0 | AD87: 0 | AE87: 0 | AF87: 0 | AH87: 0 | AI87: 0 | AJ87: 0 | AK87: 0 | AL87: 20 | AM87: 0 | AN87: 0 | AO87: 0 | AP87: 0 | AQ87: 0 | AR87: 20
A88: 106990 | B88: 1,3-Butadiene | C88: =VLOOKUP(F88, '2016-2021 BD OES Pull_rev'!F:N, 9, FALSE) -> Manufacturing | D88: R | E88: 2020 | F88: 77592TXSCTLOOP1 | G88: 110032911669 | H88: TXD000792937 | I88: VALERO REFINING-TEXAS LP | J88: 1301 LOOP 197 S | K88: TEXAS CITY | L88: GALVESTON | M88: TX | N88: 77590 | O88: 29.369167 | P88: -94.911111 | Q88: 1320218823983 | R88: 4 | S88: 10,000 to 99,999 | T88: VALERO ENERGY CORP | W88: 324110 | Y88: 0 | Z88: 0 | AA88: 0 | AB88: 0 | AC88: 0 | AD88: 0 | AE88: 0 | AF88: 0 | AH88: 0 | AI88: 0 | AJ88: 0 | AK88: 0 | AL88: 1 | AM88: 0 | AN88: 0 | AO88: 0 | AP88: 0 | AQ88: 0 | AR88: 1
A89: 106990 | B89: 1,3-Butadiene | C89: =VLOOKUP(F89, '2016-2021 BD OES Pull_rev'!F:N, 9, FALSE) -> Manufacturing | D89: R | E89: 2021 | F89: 77592TXSCTLOOP1 | G89: 110032911669 | H89: TXD000792937 | I89: VALERO REFINING-TEXAS LP | J89: 1301 LOOP 197 S | K89: TEXAS CITY | L89: GALVESTON | M89: TX | N89: 77590 | O89: 29.369167 | P89: -94.911111 | Q89: 1321220097404 | R89: 4 | S89: 10,000 to 99,999 | T89: VALERO ENERGY CORP | W89: 324110 | Y89: 0 | Z89: 0 | AA89: 0 | AB89: 0 | AC89: 0 | AD89: 0 | AE89: 0 | AF89: 18 | AH89: 0 | AI89: 0 | AJ89: 0 | AK89: 0 | AL89: 1 | AM89: 0 | AN89: 0 | AO89: 0 | AP89: 0 | AQ89: 0 | AR89: 19
A90: 106990 | B90: 1,3-Butadiene | C90: =VLOOKUP(F90, '2016-2021 BD OES Pull_rev'!F:N, 9, FALSE) -> Processing as a reactant | D90: R | E90: 2020 | F90: 78071DMNDS301LE | G90: 110000464462 | H90: TXD990709966 | I90: VALERO THREE RIVERS REFINERY | J90: 301 LEROY ST | K90: THREE RIVERS | L90: LIVE OAK | M90: TX | N90: 78071 | O90: 28.456667 | P90: -98.190277 | Q90: 1320219300252 | R90: 1 | S90: 0 to 99 | T90: VALERO ENERGY CORP | W90: 324110 | Y90: 0 | Z90: 0 | AA90: 0 | AB90: 0 | AC90: 0 | AD90: 0 | AE90: 0 | AF90: 0 | AH90: 0 | AI90: 0 | AJ90: 0 | AK90: 0 | AL90: 0 | AM90: 0.027 | AN90: 0 | AO90: 0 | AP90: 0 | AQ90: 0 | AR90: 0.027
A91: 106990 | B91: 1,3-Butadiene | C91: =VLOOKUP(F91, '2016-2021 BD OES Pull_rev'!F:N, 9, FALSE) -> Processing as a reactant | D91: R | E91: 2021 | F91: 78071DMNDS301LE | G91: 110000464462 | H91: TXD990709966 | I91: VALERO THREE RIVERS REFINERY | J91: 301 LEROY ST | K91: THREE RIVERS | L91: LIVE OAK | M91: TX | N91: 78071 | O91: 28.456667 | P91: -98.190277 | Q91: 1321220506772 | R91: 1 | S91: 0 to 99 | T91: VALERO ENERGY CORP | W91: 324110 | Y91: 0 | Z91: 0 | AA91: 0 | AB91: 0 | AC91: 0 | AD91: 0 | AE91: 0 | AF91: 0 | AH91: 0 | AI91: 0 | AJ91: 0 | AK91: 0 | AL91: 0 | AM91: 0.004 | AN91: 0 | AO91: 0 | AP91: 0 | AQ91: 0 | AR91: 0.004
A92: 106990 | B92: 1,3-Butadiene | C92: =VLOOKUP(F92, '2016-2021 BD OES Pull_rev'!F:N, 9, FALSE) -> Processing as a reactant | D92: R | E92: 2020 | F92: 79905LPSRF6500T | G92: 110042061238 | H92: TXR000083723 | I92: WESTERN EL PASO REFINERY | J92: 6500 TROWBRIDGE DR | K92: EL PASO | L92: EL PASO | M92: TX | N92: 79905 | O92: 31.768889 | P92: -106.401667 | Q92: 1320218792758 | R92: 4 | S92: 10,000 to 99,999 | T92: MARATHON PETROLEUM CORP | W92: 324110 | Y92: 0 | Z92: 0 | AA92: 0 | AB92: 0 | AC92: 0 | AD92: 0 | AE92: 0 | AF92: 0.0045 | AH92: 0 | AI92: 0 | AJ92: 0 | AK92: 0 | AL92: 0 | AM92: 0 | AN92: 0 | AO92: 0 | AP92: 0 | AQ92: 0 | AR92: 0.0045
A93: 106990 | B93: 1,3-Butadiene | C93: =VLOOKUP(F93, '2016-2021 BD OES Pull_rev'!F:N, 9, FALSE) -> Manufacturing | D93: R | E93: 2016 | F93: 87301GNTRFROUTE | G93: 110011031052 | H93: NMD000333211 | I93: WESTERN REFINING SOUTHWEST INC-GALLUP REFINERY | J93: 92 GIANT CROSSING ROAD | K93: GALLUP | L93: MCKINLEY | M93: NM | N93: 87301 | O93: 35.490278 | P93: -108.425 | Q93: 1316215713292 | R93: 2 | S93: 100 to 999 | T93: MARATHON PETROLEUM CORP | W93: 324110 | Y93: 0 | Z93: 0 | AA93: 0 | AB93: 0 | AC93: 0 | AD93: 0 | AE93: 0 | AF93: 0 | AH93: 0 | AI93: 0 | AJ93: 0 | AK93: 0 | AL93: 0 | AM93: 0.2 | AN93: 0 | AO93: 0 | AP93: 0 | AQ93: 0 | AR93: 0.2
A94: 106990 | B94: 1,3-Butadiene | C94: =VLOOKUP(F94, '2016-2021 BD OES Pull_rev'!F:N, 9, FALSE) -> Manufacturing | D94: R | E94: 2017 | F94: 87301GNTRFROUTE | G94: 110011031052 | H94: NMD000333211 | I94: WESTERN REFINING SOUTHWEST INC-GALLUP REFINERY | J94: 92 GIANT CROSSING ROAD | K94: GALLUP | L94: MCKINLEY | M94: NM | N94: 87301 | O94: 35.490278 | P94: -108.425 | Q94: 1317216300398 | R94: 2 | S94: 100 to 999 | T94: MARATHON PETROLEUM CORP | W94: 324110 | Y94: 0 | Z94: 0 | AA94: 0 | AB94: 0 | AC94: 0 | AD94: 0 | AE94: 0 | AF94: 0 | AH94: 0 | AI94: 0 | AJ94: 0 | AK94: 0 | AL94: 0.03 | AM94: 0.042 | AN94: 0 | AO94: 0 | AP94: 0.001 | AQ94: 0 | AR94: 0.073
A95: 106990 | B95: 1,3-Butadiene | C95: =VLOOKUP(F95, '2016-2021 BD OES Pull_rev'!F:N, 9, FALSE) -> Manufacturing | D95: R | E95: 2017 | F95: 87301GNTRFROUTE | G95: 110011031052 | H95: NMD000333211 | I95: WESTERN REFINING SOUTHWEST INC-GALLUP REFINERY | J95: 92 GIANT CROSSING ROAD | K95: GALLUP | L95: MCKINLEY | M95: NM | N95: 87301 | O95: 35.490278 | P95: -108.425 | Q95: 1317216300398 | R95: 2 | S95: 100 to 999 | T95: MARATHON PETROLEUM CORP | W95: 324110 | Y95: 0 | Z95: 0 | AA95: 0 | AB95: 0 | AC95: 0 | AD95: 0 | AE95: 0 | AF95: 0 | AH95: 0 | AI95: 0 | AJ95: 0 | AK95: 0 | AL95: 0.03 | AM95: 0.042 | AN95: 0 | AO95: 0 | AP95: 0.001 | AQ95: 0 | AR95: 0.073
A96: 106990 | B96: 1,3-Butadiene | C96: =VLOOKUP(F96, '2016-2021 BD OES Pull_rev'!F:N, 9, FALSE) -> Manufacturing | D96: R | E96: 2018 | F96: 87301GNTRFROUTE | G96: 110011031052 | H96: NMD000333211 | I96: WESTERN REFINING SOUTHWEST INC-GALLUP REFINERY | J96: 92 GIANT CROSSING ROAD | K96: GALLUP | L96: MCKINLEY | M96: NM | N96: 87301 | O96: 35.490278 | P96: -108.425 | Q96: 1318217024761 | R96: 2 | S96: 100 to 999 | T96: MARATHON PETROLEUM CORP | W96: 324110 | Y96: 0 | Z96: 0 | AA96: 0 | AB96: 0 | AC96: 0 | AD96: 0 | AE96: 0 | AF96: 0 | AH96: 0 | AI96: 0 | AJ96: 0 | AK96: 0 | AL96: 0.017 | AM96: 0.006 | AN96: 0 | AO96: 0 | AP96: 0.005 | AQ96: 0 | AR96: 0.028
A97: 106990 | B97: 1,3-Butadiene | C97: =VLOOKUP(F97, '2016-2021 BD OES Pull_rev'!F:N, 9, FALSE) -> Manufacturing | D97: R | E97: 2019 | F97: 87301GNTRFROUTE | G97: 110011031052 | H97: NMD000333211 | I97: WESTERN REFINING SOUTHWEST INC-GALLUP REFINERY | J97: 92 GIANT CROSSING ROAD | K97: GALLUP | L97: MCKINLEY | M97: NM | N97: 87301 | O97: 35.490278 | P97: -108.425 | Q97: 1319218151862 | R97: 2 | S97: 100 to 999 | T97: MARATHON PETROLEUM CORP | W97: 324110 | Y97: 0 | Z97: 0 | AA97: 0 | AB97: 0 | AC97: 0 | AD97: 0 | AE97: 0 | AF97: 0 | AH97: 0 | AI97: 0 | AJ97: 0 | AK97: 0 | AL97: 0 | AM97: 0.0002 | AN97: 0 | AO97: 0 | AP97: 0.004 | AQ97: 0 | AR97: 0.0042
A98: 106990 | B98: 1,3-Butadiene | C98: =VLOOKUP(F98, '2016-2021 BD OES Pull_rev'!F:N, 9, FALSE) -> Manufacturing | D98: R | E98: 2020 | F98: 87301GNTRFROUTE | G98: 110011031052 | H98: NMD000333211 | I98: WESTERN REFINING SOUTHWEST INC-GALLUP REFINERY | J98: 92 GIANT CROSSING ROAD | K98: GALLUP | L98: MCKINLEY | M98: NM | N98: 87301 | O98: 35.490278 | P98: -108.425 | Q98: 1320218736700 | R98: 2 | S98: 100 to 999 | T98: MARATHON PETROLEUM CORP | W98: 324110 | Y98: 0 | Z98: 0 | AA98: 0 | AB98: 0 | AC98: 0 | AD98: 0 | AE98: 0 | AF98: 0 | AH98: 0 | AI98: 0 | AJ98: 0 | AK98: 0 | AL98: 0.00194 | AM98: 0 | AN98: 0 | AO98: 0 | AP98: 0.003 | AQ98: 0 | AR98: =SUM(Y98:AQ98) -> 0.00494
A99: 106990 | B99: 1,3-Butadiene | C99: =VLOOKUP(F99, '2016-2021 BD OES Pull_rev'!F:N, 9, FALSE) -> Processing as a reactant | D99: R | E99: 2021 | F99: 73126XRXCR100NM | G99: 110000453973 | H99: OKD079986568 | I99: XEROX CORP OKLAHOMA CITY | J99: 100 N MUSTANG RD | K99: YUKON | L99: CANADIAN | M99: OK | N99: 73099 | O99: 35.469214 | P99: -97.719642 | Q99: 1321219599329 | R99: 3 | S99: 1,000 to 9,999 | T99: XEROX CORP | W99: 325992 | Y99: 0 | Z99: 0 | AA99: 0 | AB99: 0 | AC99: 0 | AD99: 0 | AE99: 0 | AF99: 0 | AH99: 0 | AI99: 0 | AJ99: 0 | AK99: 0 | AL99: 0 | AM99: 0 | AN99: 0 | AO99: 0 | AP99: 3472 | AQ99: 0 | AR99: 3472
A100: 106990 | B100: 1,3-Butadiene | C100: =VLOOKUP(F100, '2016-2021 BD OES Pull_rev'!F:N, 9, FALSE) -> Plastics and Rubber Compounding | D100: R | E100: 2016 | F100: 40211ZNCHM4100B | G100: 110041978857 | H100: KYD985087014 | I100: ZEON CHEMICALS LP | J100: 4100 BELLS LN | K100: LOUISVILLE | L100: JEFFERSON | M100: KY | N100: 40211 | O100: 38.221946 | P100: -85.827115 | Q100: 1316215022789 | R100: 7 | S100: 10,000,000 to 49,999,999 | T100: ZEON CHEMICALS LP | W100: 325212 | Y100: 0 | Z100: 0 | AA100: 0 | AB100: 0 | AC100: 0 | AD100: 0 | AE100: 0 | AF100: 0 | AH100: 0 | AI100: 0 | AJ100: 0 | AK100: 0 | AL100: 571 | AM100: 0 | AN100: 0 | AO100: 0 | AP100: 0 | AQ100: 0 | AR100: 571
A101: 106990 | B101: 1,3-Butadiene | C101: =VLOOKUP(F101, '2016-2021 BD OES Pull_rev'!F:N, 9, FALSE) -> Plastics and Rubber Compounding | D101: R | E101: 2017 | F101: 40211ZNCHM4100B | G101: 110041978857 | H101: KYD985087014 | I101: ZEON CHEMICALS LP | J101: 4100 BELLS LN | K101: LOUISVILLE | L101: JEFFERSON | M101: KY | N101: 40211 | O101: 38.221946 | P101: -85.827115 | Q101: 1317215829122 | R101: 7 | S101: 10,000,000 to 49,999,999 | T101: ZEON CHEMICALS LP | W101: 325212 | Y101: 0 | Z101: 0 | AA101: 0 | AB101: 0 | AC101: 0 | AD101: 0 | AE101: 0 | AF101: 0 | AH101: 0 | AI101: 0 | AJ101: 0 | AK101: 0 | AL101: 756 | AM101: 0 | AN101: 0 | AO101: 0 | AP101: 0 | AQ101: 0 | AR101: 756
A102: 106990 | B102: 1,3-Butadiene | C102: =VLOOKUP(F102, '2016-2021 BD OES Pull_rev'!F:N, 9, FALSE) -> Plastics and Rubber Compounding | D102: R | E102: 2018 | F102: 40211ZNCHM4100B | G102: 110041978857 | H102: KYD985087014 | I102: ZEON CHEMICALS LP | J102: 4100 BELLS LN | K102: LOUISVILLE | L102: JEFFERSON | M102: KY | N102: 40211 | O102: 38.221946 | P102: -85.827115 | Q102: 1318218516312 | R102: 7 | S102: 10,000,000 to 49,999,999 | T102: ZEON CHEMICALS LP | W102: 325212 | Y102: 0 | Z102: 0 | AA102: 0 | AB102: 0 | AC102: 0 | AD102: 0 | AE102: 0 | AF102: 0 | AH102: 0 | AI102: 0 | AJ102: 0 | AK102: 0 | AL102: 932 | AM102: 0 | AN102: 0 | AO102: 0 | AP102: 0 | AQ102: 0 | AR102: 932
A103: 106990 | B103: 1,3-Butadiene | C103: =VLOOKUP(F103, '2016-2021 BD OES Pull_rev'!F:N, 9, FALSE) -> Plastics and Rubber Compounding | D103: R | E103: 2019 | F103: 40211ZNCHM4100B | G103: 110041978857 | H103: KYD985087014 | I103: ZEON CHEMICALS LP | J103: 4100 BELLS LN | K103: LOUISVILLE | L103: JEFFERSON | M103: KY | N103: 40211 | O103: 38.221946 | P103: -85.827115 | Q103: 1319218469512 | R103: 7 | S103: 10,000,000 to 49,999,999 | T103: ZEON CHEMICALS LP | W103: 325212 | Y103: 0 | Z103: 0 | AA103: 0 | AB103: 0 | AC103: 0 | AD103: 0 | AE103: 0 | AF103: 0 | AH103: 0 | AI103: 0 | AJ103: 0 | AK103: 0 | AL103: 796 | AM103: 0 | AN103: 0 | AO103: 0 | AP103: 0 | AQ103: 0 | AR103: 796
A104: 106990 | B104: 1,3-Butadiene | C104: =VLOOKUP(F104, '2016-2021 BD OES Pull_rev'!F:N, 9, FALSE) -> Plastics and Rubber Compounding | D104: R | E104: 2020 | F104: 40211ZNCHM4100B | G104: 110041978857 | H104: KYD985087014 | I104: ZEON CHEMICALS LP | J104: 4100 BELLS LN | K104: LOUISVILLE | L104: JEFFERSON | M104: KY | N104: 40211 | O104: 38.221946 | P104: -85.827115 | Q104: 1320219239062 | R104: 7 | S104: 10,000,000 to 49,999,999 | T104: ZEON CHEMICALS LP | W104: 325212 | Y104: 0 | Z104: 0 | AA104: 0 | AB104: 0 | AC104: 0 | AD104: 0 | AE104: 0 | AF104: 0 | AH104: 0 | AI104: 0 | AJ104: 0 | AK104: 0 | AL104: 801 | AM104: 0 | AN104: 0 | AO104: 0 | AP104: 0 | AQ104: 0 | AR104: 801
A105: 106990 | B105: 1,3-Butadiene | C105: =VLOOKUP(F105, '2016-2021 BD OES Pull_rev'!F:N, 9, FALSE) -> Plastics and Rubber Compounding | D105: R | E105: 2021 | F105: 40211ZNCHM4100B | G105: 110041978857 | H105: KYD985087014 | I105: ZEON CHEMICALS LP | J105: 4100 BELLS LN | K105: LOUISVILLE | L105: JEFFERSON | M105: KY | N105: 40211 | O105: 38.221946 | P105: -85.827115 | Q105: 1321220178545 | R105: 7 | S105: 10,000,000 to 49,999,999 | T105: ZEON CHEMICALS LP | W105: 325212 | Y105: 0 | Z105: 0 | AA105: 0 | AB105: 0 | AC105: 0 | AD105: 0 | AE105: 0 | AF105: 0 | AH105: 0 | AI105: 0 | AJ105: 0 | AK105: 0 | AL105: 811 | AM105: 0 | AN105: 0 | AO105: 0 | AP105: 0 | AQ105: 0 | AR105: 811

Sheet Facility Summary
A1: COU Determination | B1: 9 TRIFD | C1: 74 FRS FACILITY ID | D1: 51 RCRA NR A | E1: 10 FACILITY NAME | F1: 11 FACILITY STREET | G1: 12 FACILITY CITY | H1: 13 FACILITY COUNTY | I1: 14 FACILITY STATE | J1: 15 FACILITY ZIP CODE | K1: 47 LATITUDE | L1: 48 LONGITUDE | M1: Median Release (lb/yr) | N1: Maximum Release (lb/yr) | O1: Median Release (kg/yr) | P1: Maximum Release (kg/yr) | Q1: Land Release Category
A2: =VLOOKUP(B2, '2016-2021 BD OES Pull_rev'!F:N, 9, FALSE) -> Plastics and Rubber Compounding | B2: 36505MTCHMHWY43 | C2: 110025376448 | D2: ALD000827154 | E2: ARKEMA INC | F2: 13755 HWY 43 N | G2: AXIS | H2: MOBILE | I2: AL | J2: 36505 | K2: 30.979167 | L2: -88.028833 | M2: =MEDIAN(IF('2016-2021 TRI_Nonzero Unique'!$F:$F='Facility Summary'!$B2,'2016-2021 TRI_Nonzero Unique'!$AL:$AL)) -> 250.00 | N2: =MAX(IF('2016-2021 TRI_Nonzero Unique'!$F:$F='Facility Summary'!$B2,'2016-2021 TRI_Nonzero Unique'!$AL:$AL)) -> 250.00 | O2: =M2*0.453592 -> 113.40 | P2: =N2*0.453592 -> 113.40 | Q2: 236 OFF-SITE - OTHER LANDFILLS
A3: =VLOOKUP(B3, '2016-2021 BD OES Pull_rev'!F:N, 9, FALSE) -> Processing - Incorporation into formulation, mixture, or reaction product | B3: 98248RCCHR4519G | C3: 110000490157 | D3: WAD069548154 | E3: BP CHERRY POINT REFINERY | F3: 4519 GRANDVIEW RD | G3: BLAINE | H3: WHATCOM | I3: WA | J3: 98230 | K3: 48.884 | L3: -122.735 | M3: =MEDIAN(IF('2016-2021 TRI_Nonzero Unique'!$F:$F='Facility Summary'!$B3,'2016-2021 TRI_Nonzero Unique'!$AF:$AF)) -> 0.02 | N3: =MAX(IF('2016-2021 TRI_Nonzero Unique'!$F:$F='Facility Summary'!$B3,'2016-2021 TRI_Nonzero Unique'!$AF:$AF)) -> 0.02 | O3: 0.01 | P3: 0.01 | Q3: 215 TOTAL OTHER DISPOSAL
A4: =VLOOKUP(B4, '2016-2021 BD OES Pull_rev'!F:N, 9, FALSE) -> Processing as a reactant | B4: 41114CTLTTPOBOX | C4: 110008361263 | D4: KYD041376138 | E4: CATLETTSBURG REFINING LLC | F4: 11631 US RT 23 | G4: CATLETTSBURG | H4: BOYD | I4: KY | J4: 41129 | K4: 38.377246 | L4: -82.597162 | M4: =MEDIAN(IF('2016-2021 TRI_Nonzero Unique'!$F:$F='Facility Summary'!$B4,'2016-2021 TRI_Nonzero Unique'!$AF:$AF)) -> 3.00 | N4: =MAX(IF('2016-2021 TRI_Nonzero Unique'!$F:$F='Facility Summary'!$B4,'2016-2021 TRI_Nonzero Unique'!$AB:$AF)) -> 42.00 | O4: 1.36 | P4: 19.05 | Q4: 215 TOTAL OTHER DISPOSAL
A5: =VLOOKUP(B5, '2016-2021 BD OES Pull_rev'!F:N, 9, FALSE) -> Manufacturing | B5: 77640CHVRN2001S | C5: 110020148008 | D5: TXR000004390 | E5: CHEVRON PHILLIPS CHEMICAL CO | F5: 2001 S GULFWAY DR | G5: PORT ARTHUR | H5: JEFFERSON | I5: TX | J5: 77640 | K5: 29.850396 | L5: -93.977222 | M5: =MEDIAN(IF('2016-2021 TRI_Nonzero Unique'!$F:$F='Facility Summary'!$B5,'2016-2021 TRI_Nonzero Unique'!$AQ:$AQ)) -> 15.00 | N5: =MAX(IF('2016-2021 TRI_Nonzero Unique'!$F:$F='Facility Summary'!$B5,'2016-2021 TRI_Nonzero Unique'!$AQ:$AQ)) -> 15.00 | O5: 6.80 | P5: 6.80 | Q5: 254 OFF-SITE - SOLIDIFICATION/STABILIZATION TREATMENT– NON META
A6: =VLOOKUP(B6, '2016-2021 BD OES Pull_rev'!F:N, 9, FALSE) -> Processing as a reactant | B6: 94802CHVRN841ST | C6: 110020506460 | D6: CAT080014376 | E6: CHEVRON PRODUCTS CO RICHMOND REFINERY | F6: 841 CHEVRON WAY | G6: RICHMOND | H6: CONTRA COSTA | I6: CA | J6: 94801 | K6: 37.938779 | L6: -122.396453 | M6: =MEDIAN(IF('2016-2021 TRI_Nonzero Unique'!$F:$F='Facility Summary'!$B6,'2016-2021 TRI_Nonzero Unique'!$AL:$AL)) -> 3.00 | N6: =MAX(IF('2016-2021 TRI_Nonzero Unique'!$F:$F='Facility Summary'!$B6,'2016-2021 TRI_Nonzero Unique'!$AL:$AL)) -> 14.00 | O6: 1.36 | P6: 6.35 | Q6: 236 OFF-SITE - OTHER LANDFILLS
A7: =VLOOKUP(B7, '2016-2021 BD OES Pull_rev'!F:N, 9, FALSE) -> Processing as a reactant | B7: 94802CHVRN841ST | C7: 110020506460 | D7: CAT080014376 | E7: CHEVRON PRODUCTS CO RICHMOND REFINERY | F7: 841 CHEVRON WAY | G7: RICHMOND | H7: CONTRA COSTA | I7: CA | J7: 94801 | K7: 37.938779 | L7: -122.396453 | M7: =MEDIAN(IF('2016-2021 TRI_Nonzero Unique'!$F:$F='Facility Summary'!$B7,'2016-2021 TRI_Nonzero Unique'!$AM:$AM)) -> 12.50 | N7: =MAX(IF('2016-2021 TRI_Nonzero Unique'!$F:$F='Facility Summary'!$B7,'2016-2021 TRI_Nonzero Unique'!$AM:$AM)) -> 72.00 | O7: 5.67 | P7: 32.66 | Q7: 237 OFF-SITE - RCRA SUBTITLE C LANDFILLS
A8: =VLOOKUP(B8, '2016-2021 BD OES Pull_rev'!F:N, 9, FALSE) -> Processing as a reactant | B8: 82007FRNTR2700E | C8: 110000468048 | D8: WYD051843613 | E8: CHEYENNE RENEWABLE DIESEL CO LLC | F8: 2700 E. 5TH STREET | G8: CHEYENNE | H8: LARAMIE | I8: WY | J8: 82007 | K8: 41.1275 | L8: -104.7892 | M8: =MEDIAN(IF('2016-2021 TRI_Nonzero Unique'!$F:$F='Facility Summary'!$B8,'2016-2021 TRI_Nonzero Unique'!$AL:$AL)) -> 6.00 | N8: =MAX(IF('2016-2021 TRI_Nonzero Unique'!$F:$F='Facility Summary'!$B8,'2016-2021 TRI_Nonzero Unique'!$AL:$AL)) -> 11.00 | O8: 2.72 | P8: 4.99 | Q8: 236 OFF-SITE - OTHER LANDFILLS
A9: =VLOOKUP(B9, '2016-2021 BD OES Pull_rev'!F:N, 9, FALSE) -> Processing - incorporation into formulation, mixture, or reaction product | B9: 79086DMNDSSTARR | C9: 110000465719 | D9: TXD059685339 | E9: DIAMOND SHAMROCK REFINING CO LP | F9: 6701 FM 119 | G9: SUNRAY | H9: MOORE | I9: TX | J9: 79086 | K9: 35.951944 | L9: -101.873889 | M9: =MEDIAN(IF('2016-2021 TRI_Nonzero Unique'!$F:$F='Facility Summary'!$B9,'2016-2021 TRI_Nonzero Unique'!$Y:$Y)) -> 21,000.00 | N9: =MAX(IF('2016-2021 TRI_Nonzero Unique'!$F:$F='Facility Summary'!$B9,'2016-2021 TRI_Nonzero Unique'!$Y:$Y)) -> 22,320.33 | O9: 9,525.43 | P9: 10,124.32 | Q9: 178 TOTAL ON-SITE UGRND INJ TO CL I WELLS
A10: =VLOOKUP(B10, '2016-2021 BD OES Pull_rev'!F:N, 9, FALSE) -> Processing as a reactant | B10: 77541THDWCBUILD | C10: 110008170237 | D10: TXR000017855 | E10: DOW CHEMICAL CO FREEPORT FACILITY | F10: 2301 N BRAZOSPORT BLVD | G10: FREEPORT | H10: BRAZORIA | I10: TX | J10: 775413257 | K10: 28.9792 | L10: -95.3549 | M10: =MEDIAN(IF('2016-2021 TRI_Nonzero Unique'!$F:$F='Facility Summary'!$B10,'2016-2021 TRI_Nonzero Unique'!$AB:$AB)) -> 1 | N10: =MAX(IF('2016-2021 TRI_Nonzero Unique'!$F:$F='Facility Summary'!$B10,'2016-2021 TRI_Nonzero Unique'!$AB:$AB)) -> 1 | O10: 0.45 | P10: 0.45 | Q10: 195 TOTAL OTHER ON-SITE LANDFILLS
A11: =VLOOKUP(B11, '2016-2021 BD OES Pull_rev'!F:N, 9, FALSE) -> Manufacturing | B11: 75607TXSSTOFFHI | C11: 110000743704 | D11: TXR000036301 | E11: EASTMAN CHEMICAL CO TEXAS OPERATIONS | F11: 300 KODAK BLVD | G11: LONGVIEW | H11: HARRISON | I11: TX | J11: 75602 | K11: 32.438056 | L11: -94.69 | M11: =MEDIAN(IF('2016-2021 TRI_Nonzero Unique'!$F:$F='Facility Summary'!$B11,'2016-2021 TRI_Nonzero Unique'!$AC:$AC)) -> 1 | N11: =MAX(IF('2016-2021 TRI_Nonzero Unique'!$F:$F='Facility Summary'!$B11,'2016-2021 TRI_Nonzero Unique'!$AC:$AC)) -> 1 | O11: 0.45 | P11: 0.45 | Q11: 199 TOTAL ON-SITE LAND TREATMENT
A12: =VLOOKUP(B12, '2016-2021 BD OES Pull_rev'!F:N, 9, FALSE) -> Plastics and Rubber Compounding | B12: 52732QNTMCUSHWY | C12: 110012169517 | D12: IAD045372836 | E12: EQUISTAR CHEMICALS CLINTON PLANT | F12: 3400 ANAMOSA RD HWY 30 W | G12: CLINTON | H12: CLINTON | I12: IA | J12: 52732 | K12: 41.807 | L12: -90.296 | M12: =MEDIAN(IF('2016-2021 TRI_Nonzero Unique'!$F:$F='Facility Summary'!$B12,'2016-2021 TRI_Nonzero Unique'!$AL:$AL)) -> 0.01 | N12: =MAX(IF('2016-2021 TRI_Nonzero Unique'!$F:$F='Facility Summary'!$B12,'2016-2021 TRI_Nonzero Unique'!$AL:$AL)) -> 0.02 | O12: 0.005 | P12: 0.01 | Q12: 236 OFF-SITE - OTHER LANDFILLS
A13: =VLOOKUP(B13, '2016-2021 BD OES Pull_rev'!F:N, 9, FALSE) -> Plastics and Rubber Compounding | B13: 52732QNTMCUSHWY | C13: 110012169517 | D13: IAD045372836 | E13: EQUISTAR CHEMICALS CLINTON PLANT | F13: 3400 ANAMOSA RD HWY 30 W | G13: CLINTON | H13: CLINTON | I13: IA | J13: 52732 | K13: 41.807 | L13: -90.296 | M13: =MEDIAN(IF('2016-2021 TRI_Nonzero Unique'!$F:$F='Facility Summary'!$B13,'2016-2021 TRI_Nonzero Unique'!$AM:$AM)) -> 0.01 | N13: =MAX(IF('2016-2021 TRI_Nonzero Unique'!$F:$F='Facility Summary'!$B13,'2016-2021 TRI_Nonzero Unique'!$AM:$AM)) -> 0.01 | O13: 0.002 | P13: 0.005 | Q13: 237 OFF-SITE - RCRA SUBTITLE C LANDFILLS
A14: =VLOOKUP(B14, '2016-2021 BD OES Pull_rev'!F:N, 9, FALSE) -> Plastics and Rubber Compounding | B14: 78410CCPCC1501M | C14: 110000465069 | D14: TXD000836445 | E14: EQUISTAR CHEMICALS LP | F14: 1501 MCKINZIE RD | G14: CORPUS CHRISTI | H14: NUECES | I14: TX | J14: 78410 | K14: 27.81 | L14: -97.593611 | M14: =MEDIAN(IF('2016-2021 TRI_Nonzero Unique'!$F:$F='Facility Summary'!$B14,'2016-2021 TRI_Nonzero Unique'!$Y:$Y)) -> 18.20 | N14: =MAX(IF('2016-2021 TRI_Nonzero Unique'!$F:$F='Facility Summary'!$B14,'2016-2021 TRI_Nonzero Unique'!$Y:$Y)) -> 39.54 | O14: 8.26 | P14: 17.94 | Q14: 178 TOTAL ON-SITE UGRND INJ TO CL I WELLS
A15: =VLOOKUP(B15, '2016-2021 BD OES Pull_rev'!F:N, 9, FALSE) -> Processing - incorporation into formulation, mixture, or reaction product | B15: 26050RGNWSSTATE | C15: 110027982565 | D15: WVR000010058 | E15: ERGON WEST VIRGINIA INC | F15: 9995 OHIO RIVER BLVD | G15: NEWELL | H15: HANCOCK | I15: WV | J15: 26050 | K15: 40.611414 | L15: -80.629099 | M15: =MEDIAN(IF('2016-2021 TRI_Nonzero Unique'!$F:$F='Facility Summary'!$B15,'2016-2021 TRI_Nonzero Unique'!$AF:$AF)) -> 2.00 | N15: =MAX(IF('2016-2021 TRI_Nonzero Unique'!$F:$F='Facility Summary'!$B15,'2016-2021 TRI_Nonzero Unique'!$AF:$AF)) -> 4.00 | O15: 0.91 | P15: 1.81 | Q15: 215 TOTAL OTHER DISPOSAL
A16: =VLOOKUP(B16, '2016-2021 BD OES Pull_rev'!F:N, 9, FALSE) -> Processing - incorporation into formulation, mixture, or reaction product | B16: 26050RGNWSSTATE | C16: 110027982565 | D16: WVR000010058 | E16: ERGON WEST VIRGINIA INC | F16: 9995 OHIO RIVER BLVD | G16: NEWELL | H16: HANCOCK | I16: WV | J16: 26050 | K16: 40.611414 | L16: -80.629099 | M16: =MEDIAN(IF('2016-2021 TRI_Nonzero Unique'!$F:$F='Facility Summary'!$B16,'2016-2021 TRI_Nonzero Unique'!$AP:$AP)) -> 0 | N16: =MAX(IF('2016-2021 TRI_Nonzero Unique'!$F:$F='Facility Summary'!$B16,'2016-2021 TRI_Nonzero Unique'!$AP:$AP)) -> 0.30 | O16: 0 | P16: 0.14 | Q16: 241 OFF-SITE - DISPOSAL - TRANSFER TO WASTE BROKER
A17: =VLOOKUP(B17, '2016-2021 BD OES Pull_rev'!F:N, 9, FALSE) -> Repackaging | B17: 70767XXNPR2230H | C17: 110064309788 | D17: LAD000778365 | E17: EXXONMOBIL ANCHORAGE TANK FARM | F17: 1420 LAFITON LN | G17: PORT ALLEN | H17: WEST BATON ROUGE PARISH | I17: LA | J17: 70767 | K17: 30.475226 | L17: -91.222063 | M17: =MEDIAN(IF('2016-2021 TRI_Nonzero Unique'!$F:$F='Facility Summary'!$B17,'2016-2021 TRI_Nonzero Unique'!$AP:$AP)) -> 5.00 | N17: =MAX(IF('2016-2021 TRI_Nonzero Unique'!$F:$F='Facility Summary'!$B17,'2016-2021 TRI_Nonzero Unique'!$AP:$AP)) -> 5.00 | O17: 2.27 | P17: 2.27 | Q17: 241 OFF-SITE - DISPOSAL - TRANSFER TO WASTE BROKER
A18: =VLOOKUP(B18, '2016-2021 BD OES Pull_rev'!F:N, 9, FALSE) -> Repackaging | B18: 70767XXNPR2230H | C18: 110064309788 | D18: LAD000778365 | E18: EXXONMOBIL ANCHORAGE TANK FARM | F18: 1420 LAFITON LN | G18: PORT ALLEN | H18: WEST BATON ROUGE PARISH | I18: LA | J18: 70767 | K18: 30.475226 | L18: -91.222063 | M18: =MEDIAN(IF('2016-2021 TRI_Nonzero Unique'!$F:$F='Facility Summary'!$B18,'2016-2021 TRI_Nonzero Unique'!$AQ:$AQ)) -> 3.00 | N18: =MAX(IF('2016-2021 TRI_Nonzero Unique'!$F:$F='Facility Summary'!$B18,'2016-2021 TRI_Nonzero Unique'!$AQ:$AQ)) -> 5.00 | O18: 1.36 | P18: 2.27 | Q18: 254 OFF-SITE - SOLIDIFICATION/STABILIZATION TREATMENT– NON META
A19: =VLOOKUP(B19, '2016-2021 BD OES Pull_rev'!F:N, 9, FALSE) -> Manufacturing | B19: 70805XXNCH4999S | C19: 110000449970 | D19: LAR000069294 | E19: EXXONMOBIL BATON ROUGE CHEMICAL PLANT (PART) | F19: 4999 SCENIC HWY | G19: BATON ROUGE | H19: EAST BATON ROUGE PARISH | I19: LA | J19: 70805 | K19: 30.495769 | L19: -91.173111 | M19: =MEDIAN(IF('2016-2021 TRI_Nonzero Unique'!$F:$F='Facility Summary'!$B19,'2016-2021 TRI_Nonzero Unique'!$AH:$AH)) -> 164.00 | N19: =MAX(IF('2016-2021 TRI_Nonzero Unique'!$F:$F='Facility Summary'!$B19,'2016-2021 TRI_Nonzero Unique'!$AH:$AH)) -> 328.00 | O19: 74.39 | P19: 148.78 | Q19: 230 OFF-SITE – UNDERGROUND INJECTION - CLASS 1 WELLS
A20: =VLOOKUP(B20, '2016-2021 BD OES Pull_rev'!F:N, 9, FALSE) -> Manufacturing | B20: 70805XXNCH4999S | C20: 110000449970 | D20: LAR000069294 | E20: EXXONMOBIL BATON ROUGE CHEMICAL PLANT (PART) | F20: 4999 SCENIC HWY | G20: BATON ROUGE | H20: EAST BATON ROUGE PARISH | I20: LA | J20: 70805 | K20: 30.495769 | L20: -91.173111 | M20: =MEDIAN(IF('2016-2021 TRI_Nonzero Unique'!$F:$F='Facility Summary'!$B20,'2016-2021 TRI_Nonzero Unique'!$AM:$AM)) -> 21.50 | N20: =MAX(IF('2016-2021 TRI_Nonzero Unique'!$F:$F='Facility Summary'!$B20,'2016-2021 TRI_Nonzero Unique'!$AM:$AM)) -> 43.00 | O20: 9.75 | P20: 19.50 | Q20: 237 OFF-SITE - RCRA SUBTITLE C LANDFILLS
A21: =VLOOKUP(B21, '2016-2021 BD OES Pull_rev'!F:N, 9, FALSE) -> Plastics and Rubber Compounding | B21: 70602FRSTNLA108 | C21: 110041921935 | D21: LAD008073439 | E21: FIRESTONE POLYMERS LLC | F21: 1801 E LA HWY 108 | G21: SULPHUR | H21: CALCASIEU PARISH | I21: LA | J21: 70665 | K21: 30.186144 | L21: -93.331209 | M21: =MEDIAN(IF('2016-2021 TRI_Nonzero Unique'!$F:$F='Facility Summary'!$B21,'2016-2021 TRI_Nonzero Unique'!$AF:$AF)) -> 109.00 | N21: =MAX(IF('2016-2021 TRI_Nonzero Unique'!$F:$F='Facility Summary'!$B21,'2016-2021 TRI_Nonzero Unique'!$AF:$AF)) -> 339.00 | O21: 49.44 | P21: 153.77 | Q21: 215 TOTAL OTHER DISPOSAL
A22: =VLOOKUP(B22, '2016-2021 BD OES Pull_rev'!F:N, 9, FALSE) -> Plastics and Rubber Compounding | B22: 77720THGDYINTER | C22: 110062118505 | D22: TXD008077190 | E22: GOODYEAR TIRE & RUBBER CO | F22: 11241 INTERSTATE HWY 10 | G22: BEAUMONT | H22: JEFFERSON | I22: TX | J22: 77705 | K22: 29.976348 | L22: -94.218538 | M22: =MEDIAN(IF('2016-2021 TRI_Nonzero Unique'!$F:$F='Facility Summary'!$B22,'2016-2021 TRI_Nonzero Unique'!$AQ:$AQ)) -> 416.00 | N22: =MAX(IF('2016-2021 TRI_Nonzero Unique'!$F:$F='Facility Summary'!$B22,'2016-2021 TRI_Nonzero Unique'!$AQ:$AQ)) -> 416.00 | O22: 188.69 | P22: 188.69 | Q22: 254 OFF-SITE - SOLIDIFICATION/STABILIZATION TREATMENT– NON META
A23: =VLOOKUP(B23, '2016-2021 BD OES Pull_rev'!F:N, 9, FALSE) -> Processing as a reactant | B23: 77630NVSTS355AF | C23: 110022523982 | D23: TXR000057752 | E23: INV NYLON CHEMICALS AMERICAS ORANGE SITE | F23: 3055A FM 1006 | G23: ORANGE | H23: ORANGE | I23: TX | J23: 77630 | K23: 30.054167 | L23: -93.752208 | M23: =MEDIAN(IF('2016-2021 TRI_Nonzero Unique'!$F:$F='Facility Summary'!$B23,'2016-2021 TRI_Nonzero Unique'!$AL:$AL)) -> 39.00 | N23: =MAX(IF('2016-2021 TRI_Nonzero Unique'!$F:$F='Facility Summary'!$B23,'2016-2021 TRI_Nonzero Unique'!$AL:$AL)) -> 39.00 | O23: 17.69 | P23: 17.69 | Q23: 236 OFF-SITE - OTHER LANDFILLS
A24: =VLOOKUP(B24, '2016-2021 BD OES Pull_rev'!F:N, 9, FALSE) -> Processing as a reactant | B24: 45804SHLCM1150S | C24: 110000395475 | D24: OHR000032151 | E24: LIMA REFINING CO | F24: 1150 S METCALF ST | G24: LIMA | H24: ALLEN | I24: OH | J24: 45804 | K24: 40.720649 | L24: -84.122623 | M24: =MEDIAN(IF('2016-2021 TRI_Nonzero Unique'!$F:$F='Facility Summary'!$B24,'2016-2021 TRI_Nonzero Unique'!$AF:$AF)) -> 0.75 | N24: =MAX(IF('2016-2021 TRI_Nonzero Unique'!$F:$F='Facility Summary'!$B24,'2016-2021 TRI_Nonzero Unique'!$AF:$AF)) -> 1.06 | O24: 0.34 | P24: 0.48 | Q24: 215 TOTAL OTHER DISPOSAL
A25: =VLOOKUP(B25, '2016-2021 BD OES Pull_rev'!F:N, 9, FALSE) -> Processing - Incorporation into formulation, mixture, or reaction product | B25: 44306NTWRK1353E | C25: 110004714195 | D25: OHR000009712 | E25: LYONDELLBASELL ADVANCED POLYMERS INC. | F25: 1353 EXETER RD | G25: AKRON | H25: SUMMIT | I25: OH | J25: 44306 | K25: 41.02928 | L25: -81.47987 | M25: =MEDIAN(IF('2016-2021 TRI_Nonzero Unique'!$F:$F='Facility Summary'!$B25,'2016-2021 TRI_Nonzero Unique'!$AF:$AF)) -> 127.50 | N25: =MAX(IF('2016-2021 TRI_Nonzero Unique'!$F:$F='Facility Summary'!$B25,'2016-2021 TRI_Nonzero Unique'!$AF:$AF)) -> 250.00 | O25: 57.83 | P25: 113.40 | Q25: 215 TOTAL OTHER DISPOSAL
A26: =VLOOKUP(B26, '2016-2021 BD OES Pull_rev'!F:N, 9, FALSE) -> Recycling | B26: 44711SHLND2408G | C26: 110000493555 | D26: OHD048107049 | E26: MARATHON PETROLEUM CO LP OHIO REFINING DIV | F26: 2408 GAMBRINUS AVE SW | G26: CANTON | H26: STARK | I26: OH | J26: 44706 | K26: 40.7736 | L26: -81.4146 | M26: =MEDIAN(IF('2016-2021 TRI_Nonzero Unique'!$F:$F='Facility Summary'!$B26,'2016-2021 TRI_Nonzero Unique'!$AF:$AF)) -> 0.0004 | N26: =MAX(IF('2016-2021 TRI_Nonzero Unique'!$F:$F='Facility Summary'!$B26,'2016-2021 TRI_Nonzero Unique'!$AF:$AF)) -> 0.0004 | O26: 0.0002 | P26: 0.0002 | Q26: 215 TOTAL OTHER DISPOSAL
A27: =VLOOKUP(B27, '2016-2021 BD OES Pull_rev'!F:N, 9, FALSE) -> Processing - Incorporation into formulation, mixture, or reaction product | B27: 78359CCDNTHWY36 | C27: 110000599807 | D27: TXD982286932 | E27: OCCIDENTAL CHEMICAL CORP | F27: 4133 HWY 361 | G27: GREGORY | H27: SAN PATRICIO | I27: TX | J27: 78359 | K27: 27.883611 | L27: -97.241383 | M27: =MEDIAN(IF('2016-2021 TRI_Nonzero Unique'!$F:$F='Facility Summary'!$B27,'2016-2021 TRI_Nonzero Unique'!$AQ:$AQ)) -> 1.19 | N27: =MAX(IF('2016-2021 TRI_Nonzero Unique'!$F:$F='Facility Summary'!$B27,'2016-2021 TRI_Nonzero Unique'!$AQ:$AQ)) -> 2.00 | O27: 0.54 | P27: 0.91 | Q27: 254 OFF-SITE - SOLIDIFICATION/STABILIZATION TREATMENT– NON META
A28: =VLOOKUP(B28, '2016-2021 BD OES Pull_rev'!F:N, 9, FALSE) -> Processing as a reactant | B28: 44260DVRST165SC | C28: 110000388946 | D28: OHD085763555 | E28: OMNOVA SOLUTIONS INC-MOGADORE PLANT | F28: 165 S CLEVELAND AVE | G28: MOGADORE | H28: PORTAGE | I28: OH | J28: 44260 | K28: 41.045663 | L28: -81.391134 | M28: =MEDIAN(IF('2016-2021 TRI_Nonzero Unique'!$F:$F='Facility Summary'!$B28,'2016-2021 TRI_Nonzero Unique'!$AL:$AL)) -> 1.00 | N28: =MAX(IF('2016-2021 TRI_Nonzero Unique'!$F:$F='Facility Summary'!$B28,'2016-2021 TRI_Nonzero Unique'!$AL:$AL)) -> 2.00 | O28: 0.45 | P28: 0.91 | Q28: 236 OFF-SITE - OTHER LANDFILLS
A29: =VLOOKUP(B29, '2016-2021 BD OES Pull_rev'!F:N, 9, FALSE) -> Processing as a reactant | B29: 44260DVRST165SC | C29: 110000388946 | D29: OHD085763555 | E29: OMNOVA SOLUTIONS INC-MOGADORE PLANT | F29: 165 S CLEVELAND AVE | G29: MOGADORE | H29: PORTAGE | I29: OH | J29: 44260 | K29: 41.045663 | L29: -81.391134 | M29: =MEDIAN(IF('2016-2021 TRI_Nonzero Unique'!$F:$F='Facility Summary'!$B29,'2016-2021 TRI_Nonzero Unique'!$AP:$AP)) -> 0 | N29: =MAX(IF('2016-2021 TRI_Nonzero Unique'!$F:$F='Facility Summary'!$B29,'2016-2021 TRI_Nonzero Unique'!$AP:$AP)) -> 662.00 | O29: 0 | P29: 300.28 | Q29: 241 OFF-SITE - DISPOSAL - TRANSFER TO WASTE BROKER
A30: =VLOOKUP(B30, '2016-2021 BD OES Pull_rev'!F:N, 9, FALSE) -> Processing as a reactant | B30: 54313GNCRP1701C | C30: 110000421712 | D30: WID988621348 | E30: OMNOVA SOLUTIONS PERFORMANCE CHEMICALS GREEN BAY FACILITY | F30: 1701 CORNELL RD | G30: GREEN BAY | H30: BROWN | I30: WI | J30: 54313 | K30: 44.588889 | L30: -88.072778 | M30: =MEDIAN(IF('2016-2021 TRI_Nonzero Unique'!$F:$F='Facility Summary'!$B30,'2016-2021 TRI_Nonzero Unique'!$AL:$AL)) -> 0.22 | N30: =MAX(IF('2016-2021 TRI_Nonzero Unique'!$F:$F='Facility Summary'!$B30,'2016-2021 TRI_Nonzero Unique'!$AL:$AL)) -> 0.22 | O30: 0.10 | P30: 0.10 | Q30: 236 OFF-SITE - OTHER LANDFILLS
A31: =VLOOKUP(B31, '2016-2021 BD OES Pull_rev'!F:N, 9, FALSE) -> Plastics and Rubber Converting | B31: 69001DYCPR400SO | C31: 110024422640 | D31: NED055074892 | E31: PARKER HANNIFIN | F31: 400 S ST | G31: MC COOK | H31: RED WILLOW | I31: NE | J31: 69001 | K31: 40.19244 | L31: -100.622 | M31: =MEDIAN(IF('2016-2021 TRI_Nonzero Unique'!$F:$F='Facility Summary'!$B31,'2016-2021 TRI_Nonzero Unique'!$AL:$AL)) -> 250.00 | N31: =MAX(IF('2016-2021 TRI_Nonzero Unique'!$F:$F='Facility Summary'!$B31,'2016-2021 TRI_Nonzero Unique'!$AL:$AL)) -> 250.00 | O31: 113.40 | P31: 113.40 | Q31: 236 OFF-SITE - OTHER LANDFILLS
A32: =VLOOKUP(B32, '2016-2021 BD OES Pull_rev'!F:N, 9, FALSE) -> Processing as a reactant | B32: 77506CRWNC111RE | C32: 110000462703 | D32: TXD008091290 | E32: PASADENA REFINING SYSTEM INC | F32: 111 RED BLUFF RD | G32: PASADENA | H32: HARRIS | I32: TX | J32: 77506 | K32: 29.723889 | L32: -95.208888 | M32: =MEDIAN(IF('2016-2021 TRI_Nonzero Unique'!$F:$F='Facility Summary'!$B32,'2016-2021 TRI_Nonzero Unique'!$AF:$AF)) -> 0.24 | N32: =MAX(IF('2016-2021 TRI_Nonzero Unique'!$F:$F='Facility Summary'!$B32,'2016-2021 TRI_Nonzero Unique'!$AF:$AF)) -> 0.24 | O32: 0.11 | P32: 0.11 | Q32: 215 TOTAL OTHER DISPOSAL
A33: =VLOOKUP(B33, '2016-2021 BD OES Pull_rev'!F:N, 9, FALSE) -> Processing as a reactant | B33: 59101CNCBL401SO | C33: 110043806085 | D33: MTD986069599 | E33: PHILLIPS 66 CO BILLINGS REFINERY | F33: 401 S 23RD ST | G33: BILLINGS | H33: YELLOWSTONE | I33: MT | J33: 59101 | K33: 45.776389 | L33: -108.484444 | M33: =MEDIAN(IF('2016-2021 TRI_Nonzero Unique'!$F:$F='Facility Summary'!$B33,'2016-2021 TRI_Nonzero Unique'!$AL:$AL)) -> 4.80 | N33: =MAX(IF('2016-2021 TRI_Nonzero Unique'!$F:$F='Facility Summary'!$B33,'2016-2021 TRI_Nonzero Unique'!$AL:$AL)) -> 4.80 | O33: 2.18 | P33: 2.18 | Q33: 236 OFF-SITE - OTHER LANDFILLS
A34: =VLOOKUP(B34, '2016-2021 BD OES Pull_rev'!F:N, 9, FALSE) -> Plastics and Rubber Compounding | B34: 61350BRGWRCANAL | C34: 110000437661 | D34: ILD079135133 | E34: SABIC INNOVATIVE PLASTICS US LLC | F34: 2148 N 2753RD RD | G34: OTTAWA | H34: LASALLE | I34: IL | J34: 61350 | K34: 41.334533 | L34: -88.755775 | M34: =MEDIAN(IF('2016-2021 TRI_Nonzero Unique'!$F:$F='Facility Summary'!$B34,'2016-2021 TRI_Nonzero Unique'!$AL:$AL)) -> 55.50 | N34: =MAX(IF('2016-2021 TRI_Nonzero Unique'!$F:$F='Facility Summary'!$B34,'2016-2021 TRI_Nonzero Unique'!$AL:$AL)) -> 76.00 | O34: 25.17 | P34: 34.47 | Q34: 236 OFF-SITE - OTHER LANDFILLS
A35: =VLOOKUP(B35, '2016-2021 BD OES Pull_rev'!F:N, 9, FALSE) -> Plastics and Rubber Compounding | B35: 61350BRGWRCANAL | C35: 110000437661 | D35: ILD079135133 | E35: SABIC INNOVATIVE PLASTICS US LLC | F35: 2148 N 2753RD RD | G35: OTTAWA | H35: LASALLE | I35: IL | J35: 61350 | K35: 41.334533 | L35: -88.755775 | M35: =MEDIAN(IF('2016-2021 TRI_Nonzero Unique'!$F:$F='Facility Summary'!$B35,'2016-2021 TRI_Nonzero Unique'!$AQ:$AQ)) -> 10.00 | N35: =MAX(IF('2016-2021 TRI_Nonzero Unique'!$F:$F='Facility Summary'!$B35,'2016-2021 TRI_Nonzero Unique'!$AQ:$AQ)) -> 14.00 | O35: 4.54 | P35: 6.35 | Q35: 254 OFF-SITE - SOLIDIFICATION/STABILIZATION TREATMENT– NON META
A36: =VLOOKUP(B36, '2016-2021 BD OES Pull_rev'!F:N, 9, FALSE) -> Repackaging | B36: 98134QLNST25551 | C36: 110069441492 | D36: WAD001684588 | E36: SHELL SEATTLE DISTRIBUTION TERMINAL | F36: 2555 13TH AVE SW | G36: SEATTLE | H36: KING | I36: WA | J36: 98134 | K36: 47.581259 | L36: -122.353342 | M36: =MEDIAN(IF('2016-2021 TRI_Nonzero Unique'!$F:$F='Facility Summary'!$B36,'2016-2021 TRI_Nonzero Unique'!$AQ:$AQ)) -> 2.00 | N36: =MAX(IF('2016-2021 TRI_Nonzero Unique'!$F:$F='Facility Summary'!$B36,'2016-2021 TRI_Nonzero Unique'!$AQ:$AQ)) -> 2.00 | O36: 0.91 | P36: 0.91 | Q36: 254 OFF-SITE - SOLIDIFICATION/STABILIZATION TREATMENT– NON META
A37: =VLOOKUP(B37, '2016-2021 BD OES Pull_rev'!F:N, 9, FALSE) -> Manufacturing | B37: 70057NNCRBHWY31 | C37: 110000597104 | D37: LAD041581422 | E37: ST CHARLES OPERATIONS (TAFT/STAR) UNION CARBIDE CORP | F37: 355 LA HWY 3142 (GATE 1) | G37: HAHNVILLE | H37: ST. CHARLES PARISH | I37: LA | J37: 70057 | K37: 29.9829 | L37: -90.4437 | M37: =MEDIAN(IF('2016-2021 TRI_Nonzero Unique'!$F:$F='Facility Summary'!$B37,'2016-2021 TRI_Nonzero Unique'!$AL:$AL)) -> 0.3 | N37: =MAX(IF('2016-2021 TRI_Nonzero Unique'!$F:$F='Facility Summary'!$B37,'2016-2021 TRI_Nonzero Unique'!$AL:$AL)) -> 0.3 | O37: 0.1 | P37: 0.13 | Q37: 236 OFF-SITE - OTHER LANDFILLS
A38: =VLOOKUP(B38, '2016-2021 BD OES Pull_rev'!F:N, 9, FALSE) -> Manufacturing | B38: 84103MCLCM474WE | C38: 110000469243 | D38: UTD000826362 | E38: TESORO REFINING & MARKETING COMPANY LLC - SLC | F38: 474 W 900 N | G38: SALT LAKE CITY | H38: SALT LAKE | I38: UT | J38: 84103 | K38: 40.791667 | L38: -111.902778 | M38: =MEDIAN(IF('2016-2021 TRI_Nonzero Unique'!$F:$F='Facility Summary'!$B38,'2016-2021 TRI_Nonzero Unique'!$AF:$AF)) -> 0.10 | N38: =MAX(IF('2016-2021 TRI_Nonzero Unique'!$F:$F='Facility Summary'!$B38,'2016-2021 TRI_Nonzero Unique'!$AF:$AF)) -> 0.10 | O38: 0.05 | P38: 0.05 | Q38: 215 TOTAL OTHER DISPOSAL
A39: =VLOOKUP(B39, '2016-2021 BD OES Pull_rev'!F:N, 9, FALSE) -> Waste Handling, Disposal, Treatment, and Recycling | B39: 77536DSPSL2525B | C39: 110017743281 | D39: TXD987986734 | E39: TM DEER PARK SERVICES LP | F39: 2525 BATTLEGROUND RD | G39: DEER PARK | H39: HARRIS | I39: TX | J39: 77536 | K39: 29.73427 | L39: -95.08986 | M39: =MEDIAN(IF('2016-2021 TRI_Nonzero Unique'!$F:$F='Facility Summary'!$B39,'2016-2021 TRI_Nonzero Unique'!$Y:$Y)) -> 11,654 | N39: =MAX(IF('2016-2021 TRI_Nonzero Unique'!$F:$F='Facility Summary'!$B39,'2016-2021 TRI_Nonzero Unique'!$Y:$Y)) -> 11,654 | O39: 5,286 | P39: 5,286.16 | Q39: 178 TOTAL ON-SITE UGRND INJ TO CL I WELLS
A40: =VLOOKUP(B40, '2016-2021 BD OES Pull_rev'!F:N, 9, FALSE) -> Waste Handling, Disposal, Treatment, and Recycling | B40: 89003SCLGYHWY95 | C40: 110000600920 | D40: NVT330010000 | E40: US ECOLOGY NEVADA INC. | F40: 12 MILES S OF BEATTY ON HWY 95 | G40: BEATTY | H40: NYE | I40: NV | J40: 89003 | K40: 36.767649 | L40: -116.69368 | M40: =MEDIAN(IF('2016-2021 TRI_Nonzero Unique'!$F:$F='Facility Summary'!$B40,'2016-2021 TRI_Nonzero Unique'!$AA:$AA)) -> 13,836 | N40: =MAX(IF('2016-2021 TRI_Nonzero Unique'!$F:$F='Facility Summary'!$B40,'2016-2021 TRI_Nonzero Unique'!$AA:$AA)) -> 13,836 | O40: 6,276 | P40: 6,275.90 | Q40: 191 TOTAL ON-SITE RCRA SUBTITLE C LANDFILLS
A41: =VLOOKUP(B41, '2016-2021 BD OES Pull_rev'!F:N, 9, FALSE) -> Processing - incorporation into formulation, mixture, or reaction product | B41: 70047TRNSM14902 | C41: 110000448659 | D41: LAR000085498 | E41: VALERO REFINING - NEW ORLEANS LLC | F41: 14902 RIVER RD | G41: NORCO | H41: ST. CHARLES PARISH | I41: LA | J41: 70079 | K41: 29.985278 | L41: -90.392778 | M41: =MEDIAN(IF('2016-2021 TRI_Nonzero Unique'!$F:$F='Facility Summary'!$B41,'2016-2021 TRI_Nonzero Unique'!$AL:$AL)) -> 59 | N41: =MAX(IF('2016-2021 TRI_Nonzero Unique'!$F:$F='Facility Summary'!$B41,'2016-2021 TRI_Nonzero Unique'!$AL:$AL)) -> 67 | O41: 27 | P41: 30.39 | Q41: 236 OFF-SITE - OTHER LANDFILLS
A42: =VLOOKUP(B42, '2016-2021 BD OES Pull_rev'!F:N, 9, FALSE) -> Manufacturing | B42: 77592TXSCTLOOP1 | C42: 110032911669 | D42: TXD000792937 | E42: VALERO REFINING-TEXAS LP | F42: 1301 LOOP 197 S | G42: TEXAS CITY | H42: GALVESTON | I42: TX | J42: 77590 | K42: 29.369167 | L42: -94.911111 | M42: =MEDIAN(IF('2016-2021 TRI_Nonzero Unique'!$F:$F='Facility Summary'!$B42,'2016-2021 TRI_Nonzero Unique'!$AL:$AL)) -> 10.5 | N42: =MAX(IF('2016-2021 TRI_Nonzero Unique'!$F:$F='Facility Summary'!$B42,'2016-2021 TRI_Nonzero Unique'!$AL:$AL)) -> 250 | O42: 5 | P42: 113.40 | Q42: 236 OFF-SITE - OTHER LANDFILLS
A43: =VLOOKUP(B43, '2016-2021 BD OES Pull_rev'!F:N, 9, FALSE) -> Processing as a reactant | B43: 78071DMNDS301LE | C43: 110000464462 | D43: TXD990709966 | E43: VALERO THREE RIVERS REFINERY | F43: 301 LEROY ST | G43: THREE RIVERS | H43: LIVE OAK | I43: TX | J43: 78071 | K43: 28.456667 | L43: -98.190277 | M43: =MEDIAN(IF('2016-2021 TRI_Nonzero Unique'!$F:$F='Facility Summary'!$B43,'2016-2021 TRI_Nonzero Unique'!$AM:$AM)) -> 0.02 | N43: =MAX(IF('2016-2021 TRI_Nonzero Unique'!$F:$F='Facility Summary'!$B43,'2016-2021 TRI_Nonzero Unique'!$AM:$AM)) -> 0.03 | O43: 0.01 | P43: 0.01 | Q43: 237 OFF-SITE - RCRA SUBTITLE C LANDFILLS
A44: =VLOOKUP(B44, '2016-2021 BD OES Pull_rev'!F:N, 9, FALSE) -> Processing as a reactant | B44: 79905LPSRF6500T | C44: 110042061238 | D44: TXR000083723 | E44: WESTERN EL PASO REFINERY | F44: 6500 TROWBRIDGE DR | G44: EL PASO | H44: EL PASO | I44: TX | J44: 79905 | K44: 31.768889 | L44: -106.401667 | M44: =MEDIAN(IF('2016-2021 TRI_Nonzero Unique'!$F:$F='Facility Summary'!$B44,'2016-2021 TRI_Nonzero Unique'!$AF:$AF)) -> 0.005 | N44: =MAX(IF('2016-2021 TRI_Nonzero Unique'!$F:$F='Facility Summary'!$B44,'2016-2021 TRI_Nonzero Unique'!$AF:$AF)) -> 0.005 | O44: 0.002 | P44: 0.00 | Q44: 215 TOTAL OTHER DISPOSAL
A45: =VLOOKUP(B45, '2016-2021 BD OES Pull_rev'!F:N, 9, FALSE) -> Manufacturing | B45: 87301GNTRFROUTE | C45: 110011031052 | D45: NMD000333211 | E45: WESTERN REFINING SOUTHWEST INC-GALLUP REFINERY | F45: 92 GIANT CROSSING ROAD | G45: GALLUP | H45: MCKINLEY | I45: NM | J45: 87301 | K45: 35.490278 | L45: -108.425 | M45: =MEDIAN(IF('2016-2021 TRI_Nonzero Unique'!$F:$F='Facility Summary'!$B45,'2016-2021 TRI_Nonzero Unique'!$AL:$AL)) -> 0.01 | N45: =MAX(IF('2016-2021 TRI_Nonzero Unique'!$F:$F='Facility Summary'!$B45,'2016-2021 TRI_Nonzero Unique'!$AL:$AL)) -> 0.03 | O45: 0.004 | P45: 0.01 | Q45: 236 OFF-SITE - OTHER LANDFILLS
A46: =VLOOKUP(B46, '2016-2021 BD OES Pull_rev'!F:N, 9, FALSE) -> Manufacturing | B46: 87301GNTRFROUTE | C46: 110011031052 | D46: NMD000333211 | E46: WESTERN REFINING SOUTHWEST INC-GALLUP REFINERY | F46: 92 GIANT CROSSING ROAD | G46: GALLUP | H46: MCKINLEY | I46: NM | J46: 87301 | K46: 35.490278 | L46: -108.425 | M46: =MEDIAN(IF('2016-2021 TRI_Nonzero Unique'!$F:$F='Facility Summary'!$B46,'2016-2021 TRI_Nonzero Unique'!$AM:$AM)) -> 0.02 | N46: =MAX(IF('2016-2021 TRI_Nonzero Unique'!$F:$F='Facility Summary'!$B46,'2016-2021 TRI_Nonzero Unique'!$AM:$AM)) -> 0.20 | O46: 0.01 | P46: 0.09 | Q46: 237 OFF-SITE - RCRA SUBTITLE C LANDFILLS
A47: =VLOOKUP(B47, '2016-2021 BD OES Pull_rev'!F:N, 9, FALSE) -> Manufacturing | B47: 87301GNTRFROUTE | C47: 110011031052 | D47: NMD000333211 | E47: WESTERN REFINING SOUTHWEST INC-GALLUP REFINERY | F47: 92 GIANT CROSSING ROAD | G47: GALLUP | H47: MCKINLEY | I47: NM | J47: 87301 | K47: 35.490278 | L47: -108.425 | M47: =MEDIAN(IF('2016-2021 TRI_Nonzero Unique'!$F:$F='Facility Summary'!$B47,'2016-2021 TRI_Nonzero Unique'!$AP:$AP)) -> 0.002 | N47: =MAX(IF('2016-2021 TRI_Nonzero Unique'!$F:$F='Facility Summary'!$B47,'2016-2021 TRI_Nonzero Unique'!$AP:$AP)) -> 0.01 | O47: 0.001 | P47: 0.00 | Q47: 241 OFF-SITE - DISPOSAL - TRANSFER TO WASTE BROKER
A48: =VLOOKUP(B48, '2016-2021 BD OES Pull_rev'!F:N, 9, FALSE) -> Processing as a reactant | B48: 73126XRXCR100NM | C48: 110000453973 | D48: OKD079986568 | E48: XEROX CORP OKLAHOMA CITY | F48: 100 N MUSTANG RD | G48: YUKON | H48: CANADIAN | I48: OK | J48: 73099 | K48: 35.469214 | L48: -97.719642 | M48: =MEDIAN(IF('2016-2021 TRI_Nonzero Unique'!$F:$F='Facility Summary'!$B48,'2016-2021 TRI_Nonzero Unique'!$AP:$AP)) -> 3,472 | N48: =MAX(IF('2016-2021 TRI_Nonzero Unique'!$F:$F='Facility Summary'!$B48,'2016-2021 TRI_Nonzero Unique'!$AP:$AP)) -> 3,472 | O48: 1,575 | P48: 1,574.87 | Q48: 241 OFF-SITE - DISPOSAL - TRANSFER TO WASTE BROKER
A49: =VLOOKUP(B49, '2016-2021 BD OES Pull_rev'!F:N, 9, FALSE) -> Plastics and Rubber Compounding | B49: 40211ZNCHM4100B | C49: 110041978857 | D49: KYD985087014 | E49: ZEON CHEMICALS LP | F49: 4100 BELLS LN | G49: LOUISVILLE | H49: JEFFERSON | I49: KY | J49: 40211 | K49: 38.221946 | L49: -85.827115 | M49: =MEDIAN(IF('2016-2021 TRI_Nonzero Unique'!$F:$F='Facility Summary'!$B49,'2016-2021 TRI_Nonzero Unique'!$AL:$AL)) -> 799 | N49: =MAX(IF('2016-2021 TRI_Nonzero Unique'!$F:$F='Facility Summary'!$B49,'2016-2021 TRI_Nonzero Unique'!$AL:$AL)) -> 932 | O49: 362 | P49: 422.75 | Q49: 236 OFF-SITE - OTHER LANDFILLS

Sheet 2015-2020 TRI Land_Disposal_old (hidden)
B1: Facility Identification | T1: On-Site Disposal | V1: Off-Site Disposal | AD1: Industry
A2: Helper | B2: Form | C2: Reporting Year | D2: TRI Facility Id | E2: Facility Name | F2: Street Address | G2: City Name | H2: County Name | I2: State Abbreviation | J2: Zip Code | K2: Region | L2: Facility Registry System ID | M2: Latitude | N2: Longitude | O2: Document Control Number | P2: CAS Registry Number | Q2: CAS Chem Name | R2: Maximum Amount Of Chemical | S2: Code Expansion for Maximum Amount Of Chemical | T2: On-Site Disposal (lbs) | U2: On-Site Disposal Type | V2: Off-Site Disposal (lbs) | W2: Off-Site Disposal Type | X2: Receiving Facility | Y2: Receiving Facility Address | Z2: Receiving Facility City | AA2: Receiving Facility State | AB2: Receiving RCRA ID | AC2: Receiving Facility FRS | AD2: Primary NAICS Code | AE2: Primary NAICS Description | AF2: Industry Code | AG2: Industry Description | AH2: COU Determination
B3: R | C3: 2015 | D3: 77541THDWCBUILD | E3: DOW CHEMICAL CO FREEPORT FACILITY | F3: 2301 N BRAZOSPORT BLVD | G3: FREEPORT | H3: BRAZORIA | I3: TX | J3: 775413257 | L3: 110008170237 | M3: 28.9792 | N3: -95.3549 | O3: 1315214369757 | P3: 75343 | Q3: Ethylidene dichloride | R3: 5 | S3: =VLOOKUP(R3, Lookups!$A$1:$B$12, 2, FALSE) -> 100,000 to 999,999 | T3: 1 | U3: OTHER ON-SITE LANDFILLS | V3: 0 | W3: N/A | X3: N/A | Y3: N/A | Z3: N/A | AA3: N/A | AB3: N/A | AC3: N/A | AD3: 325199 | AE3: All Other Basic Organic Chemical Manufacturing | AF3: 325 | AG3: Chemical Manufacturing | AH3: =INDEX(#REF!,MATCH('2015-2020 TRI Land_Disposal_old'!D3,#REF!,0)) -> 
B4: R | C4: 2015 | D4: 70669PPGNDCOLUM | E4: EAGLE US 2 LLC | F4: 1300 PPG DR | G4: WESTLAKE | H4: CALCASIEU PARISH | I4: LA | J4: 70669 | L4: 110000494894 | M4: 30.2235 | N4: -93.2869 | O4: 1315213858816 | P4: 75343 | Q4: Ethylidene dichloride | R4: 6 | S4: =VLOOKUP(R4, Lookups!$A$1:$B$12, 2, FALSE) -> 1,000,000 to 9,999,999 | T4: 0 | U4: N/A | V4: 5 | W4: OFF-SITE - RCRA SUBTITLE C LANDFILLS | X4: CHEMICAL WASTE MANAGEMENT - LA KE CHARLES FACILITY | Y4: 7170 JOHN BRANNON ROAD | Z4: SULPHUR | AA4: LA | AB4: LAD000777201 | AC4: 110000449612 | AD4: 325180 | AE4: Other Basic Inorganic Chemical Manufacturing | AF4: 325 | AG4: Chemical Manufacturing | AH4: =INDEX(#REF!,MATCH('2015-2020 TRI Land_Disposal_old'!D4,#REF!,0)) -> 
B5: R | C5: 2016 | D5: 70669PPGNDCOLUM | E5: EAGLE US 2 LLC | F5: 1300 PPG DR | G5: WESTLAKE | H5: CALCASIEU PARISH | I5: LA | J5: 70669 | L5: 110000000000 | M5: 30.2235 | N5: -93.2869 | O5: 1316220000000 | P5: 75343 | Q5: Ethylidene dichloride | R5: 6 | S5: =VLOOKUP(R5, Lookups!$A$1:$B$12, 2, FALSE) -> 1,000,000 to 9,999,999 | T5: 0 | U5: N/A | V5: 3.3 | W5: OFF-SITE - RCRA SUBTITLE C LANDFILLS | X5: CHEMICAL WASTE MANAGEMENT - LA KE CHARLES FACILITY | Y5: 7170 JOHN BRANNON ROAD | Z5: SULPHUR | AA5: LA | AB5: LAD000777201 | AC5: 110000449612 | AD5: 325180 | AE5: Other Basic Inorganic Chemical Manufacturing | AF5: 325 | AG5: Chemical Manufacturing | AH5: =INDEX(#REF!,MATCH('2015-2020 TRI Land_Disposal_old'!D5,#REF!,0)) -> 
B6: R | C6: 2017 | D6: 70669PPGNDCOLUM | E6: EAGLE US 2 LLC | F6: 1300 PPG DR | G6: WESTLAKE | H6: CALCASIEU PARISH | I6: LA | J6: 70669 | L6: 110000494894 | M6: 30.2235 | N6: -93.2869 | O6: 1317216223610 | P6: 75343 | Q6: Ethylidene dichloride | R6: 6 | S6: =VLOOKUP(R6, Lookups!$A$1:$B$12, 2, FALSE) -> 1,000,000 to 9,999,999 | T6: 0 | U6: N/A | V6: 3 | W6: OFF-SITE - RCRA SUBTITLE C LANDFILLS | X6: CHEMICAL WASTE MANAGEMENT - LA KE CHARLES FACILITY | Y6: 7170 JOHN BRANNON ROAD | Z6: SULPHUR | AA6: LA | AB6: LAD000777201 | AC6: 110000449612 | AD6: 325180 | AE6: Other Basic Inorganic Chemical Manufacturing | AF6: 325 | AG6: Chemical Manufacturing | AH6: =INDEX(#REF!,MATCH('2015-2020 TRI Land_Disposal_old'!D6,#REF!,0)) -> 
B7: R | C7: 2019 | D7: 70669PPGNDCOLUM | E7: EAGLE US 2 LLC | F7: 1300 PPG DR | G7: WESTLAKE | H7: CALCASIEU PARISH | I7: LA | J7: 70669 | L7: 110000494894 | M7: 30.2235 | N7: -93.2869 | O7: 1319218179063 | P7: 75343 | Q7: Ethylidene dichloride | R7: 6 | S7: =VLOOKUP(R7, Lookups!$A$1:$B$12, 2, FALSE) -> 1,000,000 to 9,999,999 | T7: 0 | U7: N/A | V7: 0.82 | W7: OFF-SITE - RCRA SUBTITLE C LANDFILLS | X7: CHEMICAL WASTE MANAGEMENT - LA KE CHARLES FACILITY | Y7: 7170 JOHN BRANNON ROAD | Z7: SULPHUR | AA7: LA | AB7: LAD000777201 | AC7: 110000449612 | AD7: 325180 | AE7: Other Basic Inorganic Chemical Manufacturing | AF7: 325 | AG7: Chemical Manufacturing | AH7: =INDEX(#REF!,MATCH('2015-2020 TRI Land_Disposal_old'!D7,#REF!,0)) -> 
B8: R | C8: 2020 | D8: 70669PPGNDCOLUM | E8: EAGLE US 2 LLC | F8: 1300 PPG DR | G8: WESTLAKE | H8: CALCASIEU PARISH | I8: LA | J8: 70669 | L8: 110000494894 | M8: 30.2235 | N8: -93.2869 | O8: 1319218179063 | P8: 75343 | Q8: Ethylidene dichloride | R8: 6 | S8: =VLOOKUP(R8, Lookups!$A$1:$B$12, 2, FALSE) -> 1,000,000 to 9,999,999 | T8: 0 | U8: N/A | V8: 0.47 | W8: OFF-SITE - RCRA SUBTITLE C LANDFILLS | X8: CHEMICAL WASTE MANAGEMENT - LA KE CHARLES FACILITY | Y8: 7170 JOHN BRANNON ROAD | Z8: SULPHUR | AA8: LA | AB8: LAD000777201 | AC8: 110000449612 | AD8: 325180 | AE8: Other Basic Inorganic Chemical Manufacturing | AF8: 325 | AG8: Chemical Manufacturing | AH8: =INDEX(#REF!,MATCH('2015-2020 TRI Land_Disposal_old'!D8,#REF!,0)) -> 
E11: EAGLE US 2 Statistics | F11: Off-Site Disposal (lb/yr)
E12: Median | F12: =MEDIAN(V4:V8) -> 3
E13: Max | F13: =MAX(V4:V8) -> 5

Sheet 2016-2021_TRI Data All
A1: 1. FORM TYPE | B1: 2. REPORTING YEAR | C1: 9. TRIFD | D1: 10. FACILITY NAME | E1: 11. FACILITY STREET | F1: 12. FACILITY CITY | G1: 14. FACILITY STATE | H1: 15. FACILITY ZIP CODE | I1: 41. PRIMARY NAICS CODE | J1: OES | K1: 61. NPDES NR A | L1: 62. NPDES NR B | M1: 63. NPDES NR C | N1: 64. NPDES NR D | O1: 65. NPDES NR E | P1: 218. TOTAL ON-SITE RELEASES | Q1: 116. DISCHARGES TO STREAM A - STREAM NAME | R1: 119. TOTAL DISCHARGES TO STREAM A | S1: 120. DISCHARGES TO STREAM A – BASIS OF ESTIMATE | T1: 122. DISCHARGES TO STREAM B – STREAM NAME | U1: 125. TOTAL DISCHARGES TO STREAM B | V1: 126. DISCHARGES TO STREAM B – BASIS OF ESTIMATE | W1: 170. TOTAL NUMBER OF RECEIVING STREAMS | X1: 171. TOTAL SURFACE WATER DISCHARGE | Y1: 263. TOTAL POTW TRANSFER | Z1: 257. OFF-SITE - WASTEWATER TREATMENT (EXCLUDING POTWs) – NON-METALS ONLY | AA1: Total Water Releases | AB1: 77. TRI CHEMICAL ID | AC1: 78. CHEMICAL NAME | AD1: 3. TRADE SECRET IND | AE1: 4. SANITIZED IND | AF1: 5. TITLE OF CERTIFYING OFFICIAL | AG1: 6. NAME OF CERTIFYING OFFICIAL | AH1: 8. DATE SIGNED | AI1: 13. FACILITY COUNTY | AJ1: 16. BIA CODE | AK1: 17. TRIBE NAME | AL1: 18. MAILING NAME | AM1: 19. MAILING STREET | AN1: 20. MAILING CITY | AO1: 21. MAILING STATE | AP1: 22. MAILING PROVINCE | AQ1: 23. MAILING ZIP CODE | AR1: 24. ENTIRE FACILITY IND | AS1: 25. PARTIAL FACILITY IND | AT1: 26. FEDERAL FACILITY IND | AU1: 27. GOCO FACILITY IND | AV1: 28. ASSIGNED FED FACILITY FLAG | AW1: 29. ASSIGNED PARTIAL FACILITY FLAG | AX1: 30. PUBLIC CONTACT NAME | AY1: 31. PUBLIC CONTACT PHONE | AZ1: 32. PUBLIC CONTACT PHONE EXT | BA1: 33. PUBLIC CONTACT EMAIL | BB1: 34. PRIMARY SIC CODE | BC1: 35. SIC CODE 2 | BD1: 36. SIC CODE 3 | BE1: 37. SIC CODE 4 | BF1: 38. SIC CODE 5 | BG1: 39. SIC CODE 6 | BH1: 40. NAICS ORIGIN | BI1: 42. NAICS CODE 2 | BJ1: 43. NAICS CODE 3 | BK1: 44. NAICS CODE 4 | BL1: 45. NAICS CODE 5 | BM1: 46. NAICS CODE 6 | BN1: 47. LATITUDE | BO1: 48. LONGITUDE | BP1: 49. D and B NR A | BQ1: 50. D and B NR B | BR1: 51. RCRA NR A | BS1: 52. RCRA NR B | BT1: 53. RCRA NR C | BU1: 54. RCRA NR D | BV1: 55. RCRA NR E | BW1: 56. RCRA NR F | BX1: 57. RCRA NR G | BY1: 58. RCRA NR H | BZ1: 59. RCRA NR I | CA1: 60. RCRA NR J | CB1: 66. NPDES NR F | CC1: 67. NPDES NR G | CD1: 68. NPDES NR H | CE1: 69. NPDES NR I | CF1: 70. NPDES NR J | CG1: 71. PARENT COMPANY NAME | CH1: 72. PARENT COMPANY D and B NR | CI1: 73. STANDARDIZED PARENT COMPANY NAME | CJ1: 74. FRS FACILITY ID | CK1: 75. DOCUMENT CONTROL NUMBER | CL1: 76. CAS NUMBER | CM1: 79. MIXTURE NAME | CN1: 80. ELEMENTAL METAL INCLUDED | CO1: 81. CLASSIFICATION | CP1: 82. UNIT OF MEASURE | CQ1: 83. CLEAN AIR ACT IND | CR1: 84. CARCINOGEN IND | CS1: 85. PFAS IND | CT1: 86. METAL IND | CU1: 87. REVISION CODE 1 | CV1: 88. REVISION CODE 2 | CW1: 89. DIOXIN DISTRIBUTION 1 | CX1: 90. DIOXIN DISTRIBUTION 2 | CY1: 91. DIOXIN DISTRIBUTION 3 | CZ1: 92. DIOXIN DISTRIBUTION 4 | DA1: 93. DIOXIN DISTRIBUTION 5 | DB1: 94. DIOXIN DISTRIBUTION 6 | DC1: 95. DIOXIN DISTRIBUTION 7 | DD1: 96. DIOXIN DISTRIBUTION 8 | DE1: 97. DIOXIN DISTRIBUTION 9 | DF1: 98. DIOXIN DISTRIBUTION 10 | DG1: 99. DIOXIN DISTRIBUTION 11 | DH1: 100. DIOXIN DISTRIBUTION 12 | DI1: 101. DIOXIN DISTRIBUTION 13 | DJ1: 102. DIOXIN DISTRIBUTION 14 | DK1: 103. DIOXIN DISTRIBUTION 15 | DL1: 104. DIOXIN DISTRIBUTION 16 | DM1: 105. DIOXIN DISTRIBUTION 17 | DN1: 106. MAXIMUM AMOUNT ON SITE | DO1: 107. FUGITIVE AIR EMISSIONS – TOTAL RELEASE POUNDS | DP1: 108. FUGITIVE AIR EMISSIONS – TOTAL RELEASE RANGE CODE | DQ1: 109. TOTAL FUGITIVE AIR EMISSIONS | DR1: 110. FUGITIVE AIR EMISSIONS - BASIS OF ESTIMATE | DS1: 111. STACK AIR EMISSIONS – RELEASE POUNDS | DT1: 112. STACK AIR EMISSIONS – RELEASE RANGE CODE | DU1: 113. TOTAL STACK AIR EMISSIONS | DV1: 114. STACK AIR EMISSIONS - BASIS OF ESTIMATE | DW1: 115. TOTAL AIR EMISSIONS | DX1: 117. DISCHARGES TO STREAM A - RELEASE POUNDS | DY1: 118. DISCHARGES TO STREAM A - RELEASE RANGE CODE | DZ1: 121. DISCHARGES TO STREAM A - % FROM STORMWATER | EA1: 123. DISCHARGES TO STREAM B – RELEASE POUNDS | EB1: 124. DISCHARGES TO STREAM B - RELEASE RANGE CODE | EC1: 127. DISCHARGES TO STREAM B – % FROM STORMWATER | ED1: 128. DISCHARGES TO STREAM C – STREAM NAME | EE1: 129. DISCHARGES TO STREAM C – RELEASE POUNDS | EF1: 130. DISCHARGES TO STREAM C – RELEASE RANGE CODE | EG1: 131. TOTAL DISCHARGES TO STREAM C | EH1: 132. DISCHARGES TO STREAM C – BASIS OF ESTIMATE | EI1: 133. DISCHARGES TO STREAM C - % FROM STORMWATER | EJ1: 134. DISCHARGES TO STREAM D – STREAM NAME | EK1: 135. DISCHARGES TO STREAM D – RELEASE POUNDS | EL1: 136. DISCHARGES TO STREAM D – RELEASE RANGE CODE | EM1: 137. TOTAL DISCHARGES TO STREAM D | EN1: 138. DISCHARGES TO STREAM D – BASIS OF ESTIMATE | EO1: 139. DISCHARGES TO STREAM D - % FROM STORMWATER | EP1: 140. DISCHARGES TO STREAM E – STREAM NAME | EQ1: 141. DISCHARGES TO STREAM E – RELEASE POUNDS | ER1: 142. DISCHARGES TO STREAM E – RELEASE RANGE CODE | ES1: 143. TOTAL DISCHARGES TO STREAM E | ET1: 144. DISCHARGES TO STREAM E – BASIS OF ESTIMATE | EU1: 145. DISCHARGES TO STREAM E - % FROM STORMWATER | EV1: 146. DISCHARGES TO STREAM F – STREAM NAME | EW1: 147. DISCHARGES TO STREAM F – RELEASE POUNDS | EX1: 148. DISCHARGES TO STREAM F – RELEASE RANGE CODE | EY1: 149 TOTAL DISCHARGES TO STREAM F | EZ1: 150 DISCHARGES TO STREAM F – BASIS FOR ESTIMATE | FA1: 151. DISCHARGES TO STREAM F - % FROM STORMWATER | FB1: 152. DISCHARGES TO STREAM G – STREAM NAME | FC1: 153. DISCHARGES TO STREAM G – RELEASE POUNDS | FD1: 154. DISCHARGES TO STREAM G – RELEASE RANGE CODE | FE1: 155. TOTAL DISCHARGES TO STREAM G | FF1: 156. DISCHARGES TO STREAM G – BASIS FOR ESTIMATE | FG1: 157. DISCHARGES TO STREAM G - % FROM STORMWATER | FH1: 158. DISCHARGES TO STREAM H – STREAM NAME | FI1: 159. DISCHARGES TO STREAM H – RELEASE POUNDS | FJ1: 160. DISCHARGES TO STREAM H – RELEASE RANGE CODE | FK1: 161. TOTAL DISCHARGES TO STREAM H | FL1: 162. DISCHARGES TO STREAM H – BASIS FOR ESTIMATE | FM1: 163. DISCHARGES TO STREAM H - % FROM STORMWATER | FN1: 164. DISCHARGES TO STREAM I – STREAM NAME | FO1: 165. DISCHARGES TO STREAM I – RELEASE POUNDS | FP1: 166. DISCHARGES TO STREAM I – RELEASE RANGE CODE | FQ1: 167. TOTAL DISCHARGES TO STREAM I | FR1: 168. DISCHARGES TO STREAM I – BASIS FOR ESTIMATE | FS1: 169. DISCHARGES TO STREAM I - % FROM STORMWATER | FT1: 172. ON-SITE UNDERGROUND INJ – RELEASE POUNDS | FU1: 173. ON-SITE UNDERGROUND INJ – RELEASE RANGE CODE | FV1: 174. TOTAL ON-SITE UNDERGROUND INJ – POUNDS | FW1: 175. ON-SITE UNDERGROUND INJ – BASIS FOR ESTIMATE | FX1: 176. ON-SITE UGRND INJ TO CL I WELLS – RELEASE POUNDS | FY1: 177. ON-SITE UGRND INJ TO CL I WELLS - RELEASE RANGE CODE | FZ1: 178. TOTAL ON-SITE UGRND INJ TO CL I WELLS – POUNDS | GA1: 179. ON-SITE UGRND INJ TO CL I WELLS - BASIS OF ESTIMATE | GB1: 180. ON-SITE UGRND INJ TO CL II-V WELLS - RELEASE POUNDS | GC1: 181. ON-SITE UGRND INJ TO CL II-V WELLS - RELEASE RANGE CODE | GD1: 182. TOTAL ON-SITE UGRND INJ TO CL II-V WELLS – POUNDS | GE1: 183. ON-SITE UNGRND INJ TO CL II-V WELLS - BASIS OF ESTIMATE | GF1: 184. TOTAL ON-SITE UNDERGROUND INJECTION | GG1: 185. ON-SITE LANDFILLS – RELEASE POUNDS | GH1: 186. ON-SITE LANDFILLS – RELEASE RANGE CODE | GI1: 187. TOTAL ON-SITE LANDFILLS | GJ1: 188. ON-SITE LANDFILLS - BASIS OF ESTIMATE | GK1: 189. ON-SITE RCRA SUBTITLE C LANDFILLS - RELEASE POUNDS | GL1: 190. ON-SITE RCRA SUBTITLE C LANDFILLS - RELEASE RANGE CODE | GM1: 191. TOTAL ON-SITE RCRA SUBTITLE C LANDFILLS | GN1: 192. ON-SITE RCRA SUBTITLE C LANDFILLS - BASIS OF ESTIMATE | GO1: 193. OTHER LANDFILLS - RELEASE POUNDS | GP1: 194. OTHER LANDFILLS - RELEASE RANGE CODE | GQ1: 195. TOTAL OTHER ON-SITE LANDFILLS | GR1: 196. OTHER LANDFILLS - BASIS OF ESTIMATE | GS1: 197. LAND TRTMT/APPL FARMING - RELEASE POUNDS | GT1: 198. LAND TRTMT/APPL FARMING - RELEASE RANGE CODE | GU1: 199. TOTAL ON-SITE LAND TREATMENT | GV1: 200. LAND TRTMT/APPL FARMING - BASIS OF ESTIMATE | GW1: 201. SURFACE IMPOUNDMENT - RELEASE POUNDS | GX1: 202. SURFACE IMPOUNDMENT - RANGE CODE | GY1: 203. TOTAL SURFACE IMPOUNDMENTS | GZ1: 204. SURFACE IMPOUNDMENT – BASIS OF ESTIMATE | HA1: 205. RCRA C SURFACE IMPOUNDMENT - RELEASE POUNDS | HB1: 206. RCRA C SURFACE IMPOUNDMENT - RANGE CODE | HC1: 207. TOTAL RCRA C SURFACE IMPOUNDMENTS | HD1: 208. RCRA C SURFACE IMPOUNDMENT - BASIS OF ESTIMATE | HE1: 209. OTHER SURFACE IMPOUNDMENT - RELEASE POUNDS | HF1: 210. OTHER SURFACE IMPOUNDMENT - RANGE CODE | HG1: 211. TOTAL OTHER SURFACE IMPOUNDMENTS | HH1: 212. OTHER SURFACE IMPOUNDMENT - BASIS OF ESTIMATE | HI1: 213. OTHER DISPOSAL – RELEASE POUNDS | HJ1: 214. OTHER DISPOSAL – RANGE CODE | HK1: 215. TOTAL OTHER DISPOSAL | HL1: 216. OTHER DISPOSAL – BASIS OF ESTIMATE | HM1: 217. TOTAL ON-SITE LAND RELEASES | HO1: 219. WASTE ROCK PILE MANAGED IND | HP1: 220. WASTE ROCK QUANTITY | HQ1: 221. OFF SITE - POTW RELEASES 81C | HR1: 222. OFF SITE - POTW RELEASES 81D | HS1: 223. OFF SITE - POTW RELEASES | HT1: 224. OFF-SITE - STORAGE ONLY | HU1: 225. OFF-SITE - SOLIDIFICATION/STABILIZATION - METALS AND METAL COMPOUNDS ONLY | HV1: 226. OFF-SITE - WASTEWATER TREATMENT RELEASE (EXCLUDING POTWs) – METALS AND METAL COMPOUNDS ONLY | HW1: 227. OFF-SITE – SOLIDIFICATION/STABLIZATION – RELEASE - METALS AND METAL COMPOUNDS ONLY | HX1: 228. OFF-SITE – WASTEWATER TREATMENT (EXCLUDING POTWS) METALS AND METAL COMPOUNDS ONLY | HY1: 229. OFF-SITE - UNDERGROUND INJECTION | HZ1: 230. OFF-SITE – UNDERGROUND INJECTION - CLASS 1 WELLS | IA1: 231. OFF-SITE – UNDERGROUND INJECTION - CLASS II-V WELLS | IB1: 232. OFF-SITE - LANDFILLS/DISPOSAL SURFACE IMPOUNDMENTS | IC1: 233. OFF-SITE - SURFACE IMPOUNDMENT | ID1: 234. OFF-SITE - RCRA SUBTITLE C SURFACE IMPOUNDMENTS | IE1: 235. OFF-SITE - OTHER SURFACE IMPOUNDMENTS | IF1: 236. OFF-SITE - OTHER LANDFILLS | IG1: 237. OFF-SITE - RCRA SUBTITLE C LANDFILLS | IH1: 238. OFF-SITE - DISPOSAL - LAND TREATMENT | II1: 239. OFF-SITE - DISPOSAL - OTHER LAND DISPOSAL | IJ1: 240. OFF-SITE - DISPOSAL - OTHER OFF-SITE MANAGEMENT | IK1: 241. OFF-SITE - DISPOSAL - TRANSFER TO WASTE BROKER | IL1: 242. OFF-SITE - DISPOSAL - UNKNOWN | IM1: 243. TOTAL TRANSFERRED OFF SITE FOR DISPOSAL | IN1: 244. OFF-SITE - RECYCLING – SOLVENTS/ORGANICS RECOVERY | IO1: 245. OFF-SITE - RECYCLING -METALS RECOVERY | IP1: 246. OFF-SITE - RECYCLING – OTHER REUSE OR RECOVERY | IQ1: 247. OFF-SITE - RECYCLING – ACID REGENERATION | IR1: 248. OFF-SITE - RECYCLING – TRANSFER TO WASTE BROKER | IS1: 249. TOTAL TRANSFERRED OFF SITE FOR RECYCLING | IT1: 250. OFF-SITE - ENERGY RECOVERY | IU1: 251. OFF-SITE - TRANSFER TO WASTE BROKER FOR ENERGY RECOVERY | IV1: 252. TOTAL TRANSFERRED OFF SITE FOR ENERGY RECOVERY | IW1: 253. OFF-SITE – POTW TREATMENT | IX1: 254. OFF-SITE - SOLIDIFICATION/STABILIZATION TREATMENT– NON METALS | IY1: 255. OFF-SITE -INCINERATION/THERMAL TREATMENT | IZ1: 256. OFF-SITE - INCINERATION/INSIGNIFICANT HEAT VALUE | JA1: 258. OFF-SITE - OTHER WASTE TREATMENT | JB1: 259. OFF-SITE - TRANSFER TO WASTE BROKER – WASTE TREATMENT | JC1: 260. TOTAL TRANSFERRED OFF SITE FOR TREATMENT | JD1: 261. OFF-SITE - TRANSFER TO WASTE BROKER | JE1: 262. TOTAL TRANSFERRED OFF SITE FOR FURTHER WASTE MANAGEMENT | JF1: 264. ENERGY RECOVERY ON SITE CURRENT YEAR | JG1: 265. RECYCLED ON SITE CURRENT YEAR | JH1: 266. TREATED ON SITE CURRENT YEAR | JI1: 267. TOTAL ON-SITE WASTE MANAGEMENT | JJ1: 268. ON-SITE ENERGY RECOVERY METHOD 1 | JK1: 269. ON-SITE ENERGY RECOVERY METHOD 2 | JL1: 270. ON-SITE ENERGY RECOVERY METHOD 3 | JM1: 271. ON-SITE ENERGY RECOVERY METHOD 4 | JN1: 272. ON-SITE RECYCLING PROCESSES METHOD 1 | JO1: 273. ON-SITE RECYCLING PROCESSES METHOD 2 | JP1: 274. ON-SITE RECYCLING PROCESSES METHOD 3 | JQ1: 275. ON-SITE RECYCLING PROCESSES METHOD 4 | JR1: 276. ON-SITE RECYCLING PROCESSES METHOD 5 | JS1: 277. ON-SITE RECYCLING PROCESSES METHOD 6 | JT1: 278. ON-SITE RECYCLING PROCESSES METHOD 7 | JU1: 20220921 | JV1: 78. POTW NAME | JW1: 79. POTW ADDRESS | JX1: 80. POTW CITY | JY1: 81. POTW STATE | JZ1: 82. POTW COUNTY | KA1: 83. POTW ZIP | KB1: 84. POTW REGISTRY ID | KC1: 93. SLUDGE TO DISPOSAL | KD1: 97. SLUDGE TO AGRICULTURAL APPLICATIONS | KF1: 97. OFFSITE NAME | KG1: 98. OFFSITE STREET ADDRESS | KH1: 99. OFFSITE CITY | KI1: 100. OFFSITE COUNTY | KJ1: 101. OFFSITE STATE | KK1: 102. OFFSITE PROVINCE | KL1: 103. OFFSITE ZIPCODE | KM1: 95. OFFSITE RCRA ID NR | KN1: 106. FRS ID – TRANSFER LOCATION
A2: A | B2: 2021 | C2: 98203KHKKS14078 | D2: ACHILLES USA INC | E2: 1407 80TH ST SW | F2: EVERETT | G2: WA | H2: 98203 | I2: 326113 | J2: =VLOOKUP(C2,'2016-2021 BD OES Pull_rev'!F:N, 9, FALSE) -> Plastics and Rubber Converting | K2: WAR000136 | W2: 0 | X2: 0 | Y2: 0 | Z2: 0 | AA2: =SUM(X2:Z2) -> 0 | AB2: 106990 | AC2: 1,3-Butadiene | AD2: NO | AE2: NO | AF2: PLANT SERVICES MANAGER | AG2: ZACHARY OBORN | AH2: 44743 | AI2: SNOHOMISH | AL2: ACHILLES USA INC | AM2: 1407 80TH ST SW | AN2: EVERETT | AO2: WA | AQ2: 98203 | AR2: YES | AS2: NO | AT2: NO | AU2: NO | AV2: NO | AW2: NO | AX2: ZACHARY C OBORN | AY2: 4253537000 | BA2: ZOBORN@ACHILLESUSA.COM | BN2: 47.926694 | BO2: -122.253842 | CI2: NA | CJ2: 110000489891 | CK2: 1321220490522 | CL2: 106-99-0 | CM2: NA | CN2: NO | CO2: TRI | CP2: Pounds | CQ2: YES | CR2: YES | CS2: NO | CT2: NO | DQ2: 0 | DU2: 0 | HO2: 0 | HQ2: 0 | HR2: 0 | HS2: 0 | HT2: 0 | HU2: 0 | HV2: 0 | HW2: 0 | HX2: 0 | HY2: 0 | HZ2: 0 | IA2: 0 | IB2: 0 | IC2: 0 | ID2: 0 | IE2: 0 | IF2: 0 | IG2: 0 | IH2: 0 | II2: 0 | IJ2: 0 | IK2: 0 | IL2: 0 | IM2: 0 | IN2: 0 | IO2: 0 | IP2: 0 | IQ2: 0 | IR2: 0 | IS2: 0 | IT2: 0 | IU2: 0 | IV2: 0 | IW2: 0 | IX2: 0 | IY2: 0 | IZ2: 0 | JA2: 0 | JB2: 0 | JC2: 0 | JD2: 0 | JE2: 0 | JF2: 0 | JG2: 0 | JH2: 0 | JI2: 0
A3: R | B3: 2016 | C3: 7101WDCRBN21RED | D3: ADA CARBON SOLUTIONS (RED RIVER) LLC | E3: 201 RED RIVER MINE RD | F3: COUSHATTA | G3: LA | H3: 71019 | I3: 325998 | J3: =VLOOKUP(C3,'2016-2021 BD OES Pull_rev'!F:N, 9, FALSE) -> Processing - Incorporation into formulation, mixture, or reaction product | K3: LAR05P285 | L3: LA0124567 | P3: 86 | Q3: NA | R3: 0 | W3: 0 | X3: 0 | Y3: 0 | Z3: 0 | AA3: 0 | AB3: 106990 | AC3: 1,3-Butadiene | AD3: NO | AE3: NO | AF3: SVP OF ENVIRONMENTAL AND EXTERNAL AFFAIRS | AG3: SHEILA GLESMANN | AH3: 2017-06-30 | AI3: RED RIVER PARISH | AL3: ADA CARBON SOLUTIONS (RED RIVER) LLC | AM3: 201 RED RIVER MINE RD | AN3: COUSHATTA | AO3: LA | AQ3: 71019 | AR3: YES | AS3: NO | AT3: NO | AU3: NO | AV3: NO | AW3: NO | AX3: SHEILA GLESMANN | AY3: 4105445292 | BA3: SHEILA.GLESMANN@ADA-CS.COM | BN3: 32.005411 | BO3: -93.387823 | BR3: LAR000075374 | CG3: ADA CARBON SOLUTIONS LLC | CH3: 833125011 | CI3: ADA CARBON SOLUTIONS LLC | CJ3: 110040089604 | CK3: 1316215639372 | CL3: 106-99-0 | CM3: NA | CO3: TRI | CP3: Pounds | CQ3: YES | CR3: YES | CS3: NO | CT3: NO | DN3: 1 | DO3: 0 | DQ3: 0 | DR3: O | DS3: 86 | DU3: 86 | DV3: O | DW3: 86 | FX3: NA | FZ3: 0 | GB3: NA | GD3: 0 | GF3: 0 | GK3: NA | GM3: 0 | GO3: NA | GQ3: 0 | GS3: NA | GU3: 0 | HA3: NA | HC3: 0 | HE3: NA | HG3: 0 | HI3: NA | HK3: 0 | HM3: 0 | HQ3: 0 | HR3: 0 | HS3: 0 | HT3: 0 | HU3: 0 | HV3: 0 | HW3: 0 | HX3: 0 | HY3: 0 | HZ3: 0 | IA3: 0 | IB3: 0 | IC3: 0 | ID3: 0 | IE3: 0 | IF3: 0 | IG3: 0 | IH3: 0 | II3: 0 | IJ3: 0 | IK3: 0 | IL3: 0 | IM3: 0 | IN3: 0 | IO3: 0 | IP3: 0 | IQ3: 0 | IR3: 0 | IS3: 0 | IT3: 0 | IU3: 0 | IV3: 0 | IW3: 0 | IX3: 0 | IY3: 0 | IZ3: 0 | JA3: 0 | JB3: 0 | JC3: 0 | JD3: 0 | JE3: 0 | JF3: 0 | JG3: 0 | JH3: 0 | JI3: 0 | JJ3: NA | JN3: NA
A4: R | B4: 2017 | C4: 7101WDCRBN21RED | D4: ADA CARBON SOLUTIONS (RED RIVER) LLC | E4: 201 RED RIVER MINE RD | F4: COUSHATTA | G4: LA | H4: 71019 | I4: 325998 | J4: =VLOOKUP(C4,'2016-2021 BD OES Pull_rev'!F:N, 9, FALSE) -> Processing - Incorporation into formulation, mixture, or reaction product | K4: LAR05P285 | L4: LA0124567 | P4: 4 | Q4: NA | R4: 0 | W4: 0 | X4: 0 | Y4: 0 | Z4: 0 | AA4: 0 | AB4: 106990 | AC4: 1,3-Butadiene | AD4: NO | AE4: NO | AF4: SENIOR VICE PRESIDENT | AG4: ERIC ROBINSON | AH4: 43278 | AI4: RED RIVER PARISH | AL4: ADA CARBON SOLUTIONS (RED RIVER) LLC | AM4: 201 RED RIVER MINE RD | AN4: COUSHATTA | AO4: LA | AQ4: 71019 | AR4: YES | AS4: NO | AT4: NO | AU4: NO | AV4: NO | AW4: NO | AX4: ANDREW MCDOWELL | AY4: 3187590166 | BA4: ANDY.MCDOWELL@ADA-CS.COM | BN4: 32.005411 | BO4: -93.387823 | BR4: LAR000075374 | CG4: ADA CARBON SOLUTIONS LLC | CH4: 833125011 | CI4: ADA CARBON SOLUTIONS LLC | CJ4: 110040089604 | CK4: 1317216299317 | CL4: 106-99-0 | CM4: NA | CO4: TRI | CP4: Pounds | CQ4: YES | CR4: YES | CS4: NO | CT4: NO | DN4: 1 | DO4: 0 | DQ4: 0 | DR4: O | DS4: 4 | DU4: 4 | DV4: O | DW4: 4 | FX4: NA | FZ4: 0 | GB4: NA | GD4: 0 | GF4: 0 | GK4: NA | GM4: 0 | GO4: NA | GQ4: 0 | GS4: NA | GU4: 0 | HA4: NA | HC4: 0 | HE4: NA | HG4: 0 | HI4: NA | HK4: 0 | HM4: 0 | HQ4: 0 | HR4: 0 | HS4: 0 | HT4: 0 | HU4: 0 | HV4: 0 | HW4: 0 | HX4: 0 | HY4: 0 | HZ4: 0 | IA4: 0 | IB4: 0 | IC4: 0 | ID4: 0 | IE4: 0 | IF4: 0 | IG4: 0 | IH4: 0 | II4: 0 | IJ4: 0 | IK4: 0 | IL4: 0 | IM4: 0 | IN4: 0 | IO4: 0 | IP4: 0 | IQ4: 0 | IR4: 0 | IS4: 0 | IT4: 0 | IU4: 0 | IV4: 0 | IW4: 0 | IX4: 0 | IY4: 0 | IZ4: 0 | JA4: 0 | JB4: 0 | JC4: 0 | JD4: 0 | JE4: 0 | JF4: 0 | JG4: 0 | JH4: 0 | JI4: 0 | JJ4: NA | JN4: NA
A5: R | B5: 2018 | C5: 7101WDCRBN21RED | D5: ADA CARBON SOLUTIONS (RED RIVER) LLC | E5: 201 RED RIVER MINE RD | F5: COUSHATTA | G5: LA | H5: 71019 | I5: 325998 | J5: =VLOOKUP(C5,'2016-2021 BD OES Pull_rev'!F:N, 9, FALSE) -> Processing - Incorporation into formulation, mixture, or reaction product | K5: LAR05P285 | L5: LA0124567 | P5: 5 | Q5: NA | R5: 0 | W5: 0 | X5: 0 | Y5: 0 | Z5: 0 | AA5: 0 | AB5: 106990 | AC5: 1,3-Butadiene | AD5: NO | AE5: NO | AF5: VICE PRESIDENT OF MANUFACTURING | AG5: DENNIS SEWELL | AH5: 43643 | AI5: RED RIVER PARISH | AL5: ADA CARBON SOLUTIONS (RED RIVER) LLC | AM5: 201 RED RIVER MINE RD | AN5: COUSHATTA | AO5: LA | AQ5: 71019 | AR5: YES | AS5: NO | AT5: NO | AU5: NO | AV5: NO | AW5: NO | AX5: ANDREW MCDOWELL | AY5: 3187590166 | BA5: ANDY.MCDOWELL@ADA-CS.COM | BN5: 32.005411 | BO5: -93.387823 | BR5: LAR000075374 | CG5: ADA CARBON SOLUTIONS LLC | CH5: 833125011 | CI5: ADA CARBON SOLUTIONS LLC | CJ5: 110040089604 | CK5: 1318217244906 | CL5: 106-99-0 | CM5: NA | CN5: NO | CO5: TRI | CP5: Pounds | CQ5: YES | CR5: YES | CS5: NO | CT5: NO | DN5: 1 | DO5: 0 | DQ5: 0 | DR5: O | DS5: 5 | DU5: 5 | DV5: O | DW5: 5 | FX5: NA | FZ5: 0 | GB5: NA | GD5: 0 | GF5: 0 | GK5: NA | GM5: 0 | GO5: NA | GQ5: 0 | GS5: NA | GU5: 0 | HA5: NA | HC5: 0 | HE5: NA | HG5: 0 | HI5: NA | HK5: 0 | HM5: 0 | HO5: 0 | HQ5: 0 | HR5: 0 | HS5: 0 | HT5: 0 | HU5: 0 | HV5: 0 | HW5: 0 | HX5: 0 | HY5: 0 | HZ5: 0 | IA5: 0 | IB5: 0 | IC5: 0 | ID5: 0 | IE5: 0 | IF5: 0 | IG5: 0 | IH5: 0 | II5: 0 | IJ5: 0 | IK5: 0 | IL5: 0 | IM5: 0 | IN5: 0 | IO5: 0 | IP5: 0 | IQ5: 0 | IR5: 0 | IS5: 0 | IT5: 0 | IU5: 0 | IV5: 0 | IW5: 0 | IX5: 0 | IY5: 0 | IZ5: 0 | JA5: 0 | JB5: 0 | JC5: 0 | JD5: 0 | JE5: 0 | JF5: 0 | JG5: 0 | JH5: 0 | JI5: 0 | JJ5: NA | JN5: NA
A6: R | B6: 2019 | C6: 7101WDCRBN21RED | D6: ADA CARBON SOLUTIONS (RED RIVER) LLC | E6: 201 RED RIVER MINE RD | F6: COUSHATTA | G6: LA | H6: 71019 | I6: 325998 | J6: =VLOOKUP(C6,'2016-2021 BD OES Pull_rev'!F:N, 9, FALSE) -> Processing - Incorporation into formulation, mixture, or reaction product | K6: LAR05P285 | L6: LA0124567 | P6: 5 | Q6: NA | R6: 0 | W6: 0 | X6: 0 | Y6: 0 | Z6: 0 | AA6: 0 | AB6: 106990 | AC6: 1,3-Butadiene | AD6: NO | AE6: NO | AF6: VICE PRESIDENT OF MANUFACTURING | AG6: DENNIS SEWELL | AH6: 44005 | AI6: RED RIVER PARISH | AL6: ADA CARBON SOLUTIONS (RED RIVER) LLC | AM6: 201 RED RIVER MINE RD | AN6: COUSHATTA | AO6: LA | AQ6: 71019 | AR6: YES | AS6: NO | AT6: NO | AU6: NO | AV6: NO | AW6: NO | AX6: ANDREW MCDOWELL | AY6: 3187590166 | BA6: ANDY.MCDOWELL@ADA-CS.COM | BN6: 32.005411 | BO6: -93.387823 | BR6: LAR000075374 | CG6: ADA CARBON SOLUTIONS LLC | CH6: 833125011 | CI6: ADA CARBON SOLUTIONS LLC | CJ6: 110040089604 | CK6: 1319218025789 | CL6: 106-99-0 | CM6: NA | CN6: NO | CO6: TRI | CP6: Pounds | CQ6: YES | CR6: YES | CS6: NO | CT6: NO | DN6: 1 | DO6: 0 | DQ6: 0 | DR6: O | DS6: 5 | DU6: 5 | DV6: O | DW6: 5 | FX6: NA | FZ6: 0 | GB6: NA | GD6: 0 | GF6: 0 | GK6: NA | GM6: 0 | GO6: NA | GQ6: 0 | GS6: NA | GU6: 0 | HA6: NA | HC6: 0 | HE6: NA | HG6: 0 | HI6: NA | HK6: 0 | HM6: 0 | HO6: 0 | HQ6: 0 | HR6: 0 | HS6: 0 | HT6: 0 | HU6: 0 | HV6: 0 | HW6: 0 | HX6: 0 | HY6: 0 | HZ6: 0 | IA6: 0 | IB6: 0 | IC6: 0 | ID6: 0 | IE6: 0 | IF6: 0 | IG6: 0 | IH6: 0 | II6: 0 | IJ6: 0 | IK6: 0 | IL6: 0 | IM6: 0 | IN6: 0 | IO6: 0 | IP6: 0 | IQ6: 0 | IR6: 0 | IS6: 0 | IT6: 0 | IU6: 0 | IV6: 0 | IW6: 0 | IX6: 0 | IY6: 0 | IZ6: 0 | JA6: 0 | JB6: 0 | JC6: 0 | JD6: 0 | JE6: 0 | JF6: 0 | JG6: 0 | JH6: 0 | JI6: 0 | JJ6: NA | JN6: NA
A7: R | B7: 2020 | C7: 7101WDCRBN21RED | D7: ADA CARBON SOLUTIONS (RED RIVER) LLC | E7: 201 RED RIVER MINE RD | F7: COUSHATTA | G7: LA | H7: 71019 | I7: 325998 | J7: =VLOOKUP(C7,'2016-2021 BD OES Pull_rev'!F:N, 9, FALSE) -> Processing - Incorporation into formulation, mixture, or reaction product | K7: LAR05P285 | L7: LA0124567 | P7: 6 | Q7: NA | R7: 0 | W7: 0 | X7: 0 | Y7: 0 | Z7: 0 | AA7: 0 | AB7: 106990 | AC7: 1,3-Butadiene | AD7: NO | AE7: NO | AF7: VICE PRESIDENT OF MANUFACTURING | AG7: DENNIS SEWELL | AH7: 44375 | AI7: RED RIVER PARISH | AL7: ADA CARBON SOLUTIONS (RED RIVER) LLC | AM7: 201 RED RIVER MINE RD | AN7: COUSHATTA | AO7: LA | AQ7: 71019 | AR7: YES | AS7: NO | AT7: NO | AU7: NO | AV7: NO | AW7: NO | AX7: ANDREW MCDOWELL | AY7: 3187590166 | BA7: ANDY.MCDOWELL@ADA-CS.COM | BN7: 32.005411 | BO7: -93.387823 | BR7: LAR000075374 | CG7: ADA CARBON SOLUTIONS LLC | CH7: 833125011 | CI7: ADA CARBON SOLUTIONS LLC | CJ7: 110040089604 | CK7: 1320219086547 | CL7: 106-99-0 | CM7: NA | CN7: NO | CO7: TRI | CP7: Pounds | CQ7: YES | CR7: YES | CS7: NO | CT7: NO | DN7: 1 | DO7: 0 | DQ7: 0 | DR7: O | DS7: 6 | DU7: 6 | DV7: O | DW7: 6 | FX7: NA | FZ7: 0 | GB7: NA | GD7: 0 | GF7: 0 | GK7: NA | GM7: 0 | GO7: NA | GQ7: 0 | GS7: NA | GU7: 0 | HA7: NA | HC7: 0 | HE7: NA | HG7: 0 | HI7: NA | HK7: 0 | HM7: 0 | HO7: 0 | HQ7: 0 | HR7: 0 | HS7: 0 | HT7: 0 | HU7: 0 | HV7: 0 | HW7: 0 | HX7: 0 | HY7: 0 | HZ7: 0 | IA7: 0 | IB7: 0 | IC7: 0 | ID7: 0 | IE7: 0 | IF7: 0 | IG7: 0 | IH7: 0 | II7: 0 | IJ7: 0 | IK7: 0 | IL7: 0 | IM7: 0 | IN7: 0 | IO7: 0 | IP7: 0 | IQ7: 0 | IR7: 0 | IS7: 0 | IT7: 0 | IU7: 0 | IV7: 0 | IW7: 0 | IX7: 0 | IY7: 0 | IZ7: 0 | JA7: 0 | JB7: 0 | JC7: 0 | JD7: 0 | JE7: 0 | JF7: 0 | JG7: 0 | JH7: 0 | JI7: 0 | JJ7: NA | JN7: NA
A8: R | B8: 2021 | C8: 7101WDCRBN21RED | D8: ADA CARBON SOLUTIONS (RED RIVER) LLC | E8: 201 RED RIVER MINE RD | F8: COUSHATTA | G8: LA | H8: 71019 | I8: 325998 | J8: =VLOOKUP(C8,'2016-2021 BD OES Pull_rev'!F:N, 9, FALSE) -> Processing - Incorporation into formulation, mixture, or reaction product | K8: LAR05P285 | L8: LA0124567 | P8: 14 | Q8: NA | R8: 0 | W8: 0 | X8: 0 | Y8: 0 | Z8: 0 | AA8: 0 | AB8: 106990 | AC8: 1,3-Butadiene | AD8: NO | AE8: NO | AF8: VICE PRESIDENT OF MANUFACTURING | AG8: DENNIS SEWELL | AH8: 44743 | AI8: RED RIVER PARISH | AL8: ADA CARBON SOLUTIONS (RED RIVER) LLC | AM8: 201 RED RIVER MINE RD | AN8: COUSHATTA | AO8: LA | AQ8: 71019 | AR8: YES | AS8: NO | AT8: NO | AU8: NO | AV8: NO | AW8: NO | AX8: ANDREW MCDOWELL | AY8: 3187590166 | BA8: ANDY.MCDOWELL@ADA-CS.COM | BN8: 32.005411 | BO8: -93.387823 | BR8: LAR000075374 | CG8: ADA CARBON SOLUTIONS LLC | CH8: 833125011 | CI8: ADA CARBON SOLUTIONS LLC | CJ8: 110040089604 | CK8: 1321220473223 | CL8: 106-99-0 | CM8: NA | CN8: NO | CO8: TRI | CP8: Pounds | CQ8: YES | CR8: YES | CS8: NO | CT8: NO | DN8: 1 | DO8: 0 | DQ8: 0 | DR8: O | DS8: 14 | DU8: 14 | DV8: O | DW8: 14 | FX8: NA | FZ8: 0 | GB8: NA | GD8: 0 | GF8: 0 | GK8: NA | GM8: 0 | GO8: NA | GQ8: 0 | GS8: NA | GU8: 0 | HA8: NA | HC8: 0 | HE8: NA | HG8: 0 | HI8: NA | HK8: 0 | HM8: 0 | HO8: 0 | HQ8: 0 | HR8: 0 | HS8: 0 | HT8: 0 | HU8: 0 | HV8: 0 | HW8: 0 | HX8: 0 | HY8: 0 | HZ8: 0 | IA8: 0 | IB8: 0 | IC8: 0 | ID8: 0 | IE8: 0 | IF8: 0 | IG8: 0 | IH8: 0 | II8: 0 | IJ8: 0 | IK8: 0 | IL8: 0 | IM8: 0 | IN8: 0 | IO8: 0 | IP8: 0 | IQ8: 0 | IR8: 0 | IS8: 0 | IT8: 0 | IU8: 0 | IV8: 0 | IW8: 0 | IX8: 0 | IY8: 0 | IZ8: 0 | JA8: 0 | JB8: 0 | JC8: 0 | JD8: 0 | JE8: 0 | JF8: 0 | JG8: 0 | JH8: 0 | JI8: 0 | JJ8: NA | JN8: NA
A9: R | B9: 2016 | C9: 79721FNLNDIS20E | D9: ALON USA-BIG SPRING REFINERY | E9: IH 20 AT REFINERY RD | F9: BIG SPRING | G9: TX | H9: 79720 | I9: 324110 | J9: =VLOOKUP(C9,'2016-2021 BD OES Pull_rev'!F:N, 9, FALSE) -> Processing - Incorporation into formulation, mixture, or reaction product | K9: TX0104515 | P9: 10 | Q9: NA | R9: 0 | W9: 0 | X9: 0 | Y9: 0 | Z9: 0 | AA9: 0 | AB9: 106990 | AC9: 1,3-Butadiene | AD9: NO | AE9: NO | AF9: SENIOR ENVIRONMENTAL ENGINEERING ADVISOR | AG9: DON MCGLOTHLIN | AH9: 2017-06-13 | AI9: HOWARD | AL9: ALON USA-BIG SPRING REFINERY | AM9: PO BOX 1311 | AN9: BIG SPRING | AO9: TX | AQ9: 79721 | AR9: YES | AS9: NO | AT9: NO | AU9: NO | AV9: NO | AW9: NO | AX9: DON MCGLOTHLIN | AY9: 4322639214 | BA9: DON.MCGLOTHLIN@ALONUSA.COM | BN9: 32.269104 | BO9: -101.417673 | BP9: 806625757 | BR9: TXD008013468 | CG9: ALON USA LP | CJ9: 110013314323 | CK9: 1316215088295 | CL9: 106-99-0 | CM9: NA | CO9: TRI | CP9: Pounds | CQ9: YES | CR9: YES | CS9: NO | CT9: NO | DN9: 1 | DP9: A | DQ9: 5 | DR9: M2 | DT9: A | DU9: 5 | DV9: M2 | DW9: 10 | FX9: NA | FZ9: 0 | GB9: NA | GD9: 0 | GF9: 0 | GK9: NA | GM9: 0 | GO9: NA | GQ9: 0 | GS9: NA | GU9: 0 | HA9: NA | HC9: 0 | HE9: NA | HG9: 0 | HI9: NA | HK9: 0 | HM9: 0 | HQ9: 0 | HR9: 0 | HS9: 0 | HT9: 0 | HU9: 0 | HV9: 0 | HW9: 0 | HX9: 0 | HY9: 0 | HZ9: 0 | IA9: 0 | IB9: 0 | IC9: 0 | ID9: 0 | IE9: 0 | IF9: 0 | IG9: 0 | IH9: 0 | II9: 0 | IJ9: 0 | IK9: 0 | IL9: 0 | IM9: 0 | IN9: 0 | IO9: 0 | IP9: 0 | IQ9: 0 | IR9: 0 | IS9: 0 | IT9: 0 | IU9: 0 | IV9: 0 | IW9: 0 | IX9: 0 | IY9: 0 | IZ9: 0 | JA9: 0 | JB9: 0 | JC9: 0 | JD9: 0 | JE9: 0 | JF9: 0 | JG9: 0 | JH9: 0 | JI9: 0 | JJ9: NA | JN9: NA
A10: R | B10: 2017 | C10: 79721FNLNDIS20E | D10: ALON USA-BIG SPRING REFINERY | E10: IH 20 AT REFINERY RD | F10: BIG SPRING | G10: TX | H10: 79720 | I10: 324110 | J10: =VLOOKUP(C10,'2016-2021 BD OES Pull_rev'!F:N, 9, FALSE) -> Processing - Incorporation into formulation, mixture, or reaction product | K10: TX0104515 | P10: 2.6 | Q10: NA | R10: 0 | W10: 0 | X10: 0 | Y10: 0 | Z10: 0 | AA10: 0 | AB10: 106990 | AC10: 1,3-Butadiene | AD10: NO | AE10: NO | AF10: SR HSE ENGINEER | AG10: CHAD STEWART | AH10: 43280 | AI10: HOWARD | AL10: ALON USA-BIG SPRING REFINERY | AM10: PO BOX 1311 | AN10: BIG SPRING | AO10: TX | AQ10: 79721 | AR10: YES | AS10: NO | AT10: NO | AU10: NO | AV10: NO | AW10: NO | AX10: CHAD STEWART | AY10: 4322639276 | BA10: CHAD.STEWART@DELEKUS.COM | BN10: 32.269104 | BO10: -101.417673 | BP10: 806625757 | BR10: TXD008013468 | CG10: ALON USA LP | CJ10: 110013314323 | CK10: 1317216462337 | CL10: 106-99-0 | CM10: NA | CO10: TRI | CP10: Pounds | CQ10: YES | CR10: YES | CS10: NO | CT10: NO | DN10: 5 | DO10: 0 | DQ10: 0 | DR10: M2 | DS10: 2.6 | DU10: 2.6 | DV10: M2 | DW10: 2.6 | FX10: NA | FZ10: 0 | GB10: NA | GD10: 0 | GF10: 0 | GK10: NA | GM10: 0 | GO10: NA | GQ10: 0 | GS10: NA | GU10: 0 | HA10: NA | HC10: 0 | HE10: NA | HG10: 0 | HI10: NA | HK10: 0 | HM10: 0 | HQ10: 0 | HR10: 0 | HS10: 0 | HT10: 0 | HU10: 0 | HV10: 0 | HW10: 0 | HX10: 0 | HY10: 0 | HZ10: 0 | IA10: 0 | IB10: 0 | IC10: 0 | ID10: 0 | IE10: 0 | IF10: 0 | IG10: 0 | IH10: 0 | II10: 0 | IJ10: 0 | IK10: 0 | IL10: 0 | IM10: 0 | IN10: 0 | IO10: 0 | IP10: 0 | IQ10: 0 | IR10: 0 | IS10: 0 | IT10: 0 | IU10: 0 | IV10: 0 | IW10: 0 | IX10: 0 | IY10: 0 | IZ10: 0 | JA10: 0 | JB10: 0 | JC10: 0 | JD10: 0 | JE10: 0 | JF10: 0 | JG10: 0 | JH10: 0 | JI10: 0 | JJ10: NA | JN10: NA
A11: R | B11: 2018 | C11: 79721FNLNDIS20E | D11: ALON USA-BIG SPRING REFINERY | E11: IH 20 AT REFINERY RD | F11: BIG SPRING | G11: TX | H11: 79720 | I11: 324110 | J11: =VLOOKUP(C11,'2016-2021 BD OES Pull_rev'!F:N, 9, FALSE) -> Processing - Incorporation into formulation, mixture, or reaction product | K11: TX0104515 | P11: 0.2 | Q11: NA | R11: 0 | W11: 0 | X11: 0 | Y11: 0 | Z11: 0 | AA11: 0 | AB11: 106990 | AC11: 1,3-Butadiene | AD11: NO | AE11: NO | AF11: SR. ENVIRONMENTAL ENGINEER | AG11: JIM MILLER | AH11: 43636 | AI11: HOWARD | AL11: ALON USA-BIG SPRING REFINERY | AM11: PO BOX 1311 | AN11: BIG SPRING | AO11: TX | AQ11: 79721 | AR11: YES | AS11: NO | AT11: NO | AU11: NO | AV11: NO | AW11: NO | AX11: CHAD STEWART | AY11: 4322639276 | BA11: CHAD.STEWART@DELEKUS.COM | BN11: 32.269104 | BO11: -101.417673 | BP11: 806625757 | BR11: TXD008013468 | CG11: ALON USA LP | CJ11: 110013314323 | CK11: 1318216984308 | CL11: 106-99-0 | CM11: NA | CN11: NO | CO11: TRI | CP11: Pounds | CQ11: YES | CR11: YES | CS11: NO | CT11: NO | DN11: 4 | DO11: 0 | DQ11: 0 | DR11: O | DS11: 0.2 | DU11: 0.2 | DV11: E1 | DW11: 0.2 | FX11: NA | FZ11: 0 | GB11: NA | GD11: 0 | GF11: 0 | GK11: NA | GM11: 0 | GO11: 0 | GQ11: 0 | GR11: M2 | GS11: NA | GU11: 0 | HA11: NA | HC11: 0 | HE11: 0 | HG11: 0 | HH11: O | HI11: 0 | HK11: 0 | HL11: O | HM11: 0 | HO11: 0 | HQ11: 0 | HR11: 0 | HS11: 0 | HT11: 0 | HU11: 0 | HV11: 0 | HW11: 0 | HX11: 0 | HY11: 0 | HZ11: 0 | IA11: 0 | IB11: 0 | IC11: 0 | ID11: 0 | IE11: 0 | IF11: 0 | IG11: 0 | IH11: 0 | II11: 0 | IJ11: 0 | IK11: 0 | IL11: 0 | IM11: 0 | IN11: 0 | IO11: 0 | IP11: 0 | IQ11: 0 | IR11: 0 | IS11: 0 | IT11: 0 | IU11: 0 | IV11: 0 | IW11: 0 | IX11: 0 | IY11: 0 | IZ11: 0 | JA11: 0 | JB11: 0 | JC11: 0 | JD11: 0 | JE11: 0 | JF11: 0 | JG11: 0 | JH11: 0 | JI11: 0 | JJ11: U02 | JK11: U03 | JN11: H20 | JO11: H39 | KF11: LAMBTON (SARNIA) LANDFILL FACILITY) | KG11: 4090 TELFER ROAD, RURAL ROUTE #1 | KH11: CORUNNA | KK11: ON | KL11: NON 1 | KM11: NA | KN11: 110070692157
A12: R | B12: 2019 | C12: 79721FNLNDIS20E | D12: ALON USA-BIG SPRING REFINERY | E12: IH 20 AT REFINERY RD | F12: BIG SPRING | G12: TX | H12: 79720 | I12: 324110 | J12: =VLOOKUP(C12,'2016-2021 BD OES Pull_rev'!F:N, 9, FALSE) -> Processing - Incorporation into formulation, mixture, or reaction product | K12: TX0104515 | P12: 65 | Q12: NA | R12: 0 | W12: 0 | X12: 0 | Y12: 0 | Z12: 0 | AA12: 0 | AB12: 106990 | AC12: 1,3-Butadiene | AD12: NO | AE12: NO | AF12: SR. ENVIRONMENTAL ENGINEER | AG12: JIM MILLER | AH12: 44012 | AI12: HOWARD | AL12: ALON USA-BIG SPRING REFINERY | AM12: PO BOX 1311 | AN12: BIG SPRING | AO12: TX | AQ12: 79721 | AR12: YES | AS12: NO | AT12: NO | AU12: NO | AV12: NO | AW12: NO | AX12: CHAD STEWART | AY12: 4322639276 | BA12: CHAD.STEWART@DELEKUS.COM | BN12: 32.269104 | BO12: -101.417673 | BP12: 806625757 | BR12: TXD008013468 | CG12: ALON USA LP | CJ12: 110013314323 | CK12: 1319218334074 | CL12: 106-99-0 | CM12: NA | CN12: NO | CO12: TRI | CP12: Pounds | CQ12: YES | CR12: YES | CS12: NO | CT12: NO | DN12: 4 | DO12: 0 | DQ12: 0 | DR12: O | DS12: 65 | DU12: 65 | DV12: E1 | DW12: 65 | FX12: NA | FZ12: 0 | GB12: NA | GD12: 0 | GF12: 0 | GK12: NA | GM12: 0 | GO12: 0 | GQ12: 0 | GR12: M2 | GS12: NA | GU12: 0 | HA12: NA | HC12: 0 | HE12: 0 | HG12: 0 | HH12: O | HI12: 0 | HK12: 0 | HL12: O | HM12: 0 | HO12: 0 | HQ12: 0 | HR12: 0 | HS12: 0 | HT12: 0 | HU12: 0 | HV12: 0 | HW12: 0 | HX12: 0 | HY12: 0 | HZ12: 0 | IA12: 0 | IB12: 0 | IC12: 0 | ID12: 0 | IE12: 0 | IF12: 0 | IG12: 0 | IH12: 0 | II12: 0 | IJ12: 0 | IK12: 0 | IL12: 0 | IM12: 0 | IN12: 0 | IO12: 0 | IP12: 0 | IQ12: 0 | IR12: 0 | IS12: 0 | IT12: 0 | IU12: 0 | IV12: 0 | IW12: 0 | IX12: 0 | IY12: 0 | IZ12: 0 | JA12: 0 | JB12: 0 | JC12: 0 | JD12: 0 | JE12: 0 | JF12: 0 | JG12: 0 | JH12: 0 | JI12: 0 | JJ12: U02 | JK12: U03 | JN12: H20 | JO12: H39
A13: R | B13: 2020 | C13: 79721FNLNDIS20E | D13: ALON USA-BIG SPRING REFINERY | E13: IH 20 AT REFINERY RD | F13: BIG SPRING | G13: TX | H13: 79720 | I13: 324110 | J13: =VLOOKUP(C13,'2016-2021 BD OES Pull_rev'!F:N, 9, FALSE) -> Processing - Incorporation into formulation, mixture, or reaction product | K13: TX0104515 | P13: 0.2 | Q13: NA | R13: 0 | W13: 0 | X13: 0 | Y13: 0 | Z13: 0 | AA13: 0 | AB13: 106990 | AC13: 1,3-Butadiene | AD13: NO | AE13: NO | AF13: SR. ENVIRONMENTAL ENGINEER | AG13: JIM MILLER | AH13: 44375 | AI13: HOWARD | AL13: ALON USA-BIG SPRING REFINERY | AM13: PO BOX 1311 | AN13: BIG SPRING | AO13: TX | AQ13: 79721 | AR13: YES | AS13: NO | AT13: NO | AU13: NO | AV13: NO | AW13: NO | AX13: CHAD STEWART | AY13: 4322639276 | BA13: CHAD.STEWART@DELEKUS.COM | BN13: 32.269104 | BO13: -101.417673 | BP13: 806625757 | BR13: TXD008013468 | CG13: ALON USA LP | CJ13: 110013314323 | CK13: 1320219016286 | CL13: 106-99-0 | CM13: NA | CN13: NO | CO13: TRI | CP13: Pounds | CQ13: YES | CR13: YES | CS13: NO | CT13: NO | DN13: 4 | DO13: 0 | DQ13: 0 | DR13: O | DS13: 0.2 | DU13: 0.2 | DV13: E1 | DW13: 0.2 | FX13: NA | FZ13: 0 | GB13: NA | GD13: 0 | GF13: 0 | GK13: NA | GM13: 0 | GO13: 0 | GQ13: 0 | GR13: M2 | GS13: NA | GU13: 0 | HA13: NA | HC13: 0 | HE13: 0 | HG13: 0 | HH13: O | HI13: 0 | HK13: 0 | HL13: O | HM13: 0 | HO13: 0 | HQ13: 0 | HR13: 0 | HS13: 0 | HT13: 0 | HU13: 0 | HV13: 0 | HW13: 0 | HX13: 0 | HY13: 0 | HZ13: 0 | IA13: 0 | IB13: 0 | IC13: 0 | ID13: 0 | IE13: 0 | IF13: 0 | IG13: 0 | IH13: 0 | II13: 0 | IJ13: 0 | IK13: 0 | IL13: 0 | IM13: 0 | IN13: 0 | IO13: 0 | IP13: 0 | IQ13: 0 | IR13: 0 | IS13: 0 | IT13: 0 | IU13: 0 | IV13: 0 | IW13: 0 | IX13: 0 | IY13: 0 | IZ13: 0 | JA13: 0 | JB13: 0 | JC13: 0 | JD13: 0 | JE13: 0 | JF13: 0 | JG13: 0 | JH13: 0 | JI13: 0 | JJ13: U02 | JK13: U03 | JN13: H20 | JO13: H39
A14: R | B14: 2021 | C14: 79721FNLNDIS20E | D14: ALON USA-BIG SPRING REFINERY | E14: IH 20 AT REFINERY RD | F14: BIG SPRING | G14: TX | H14: 79720 | I14: 324110 | J14: =VLOOKUP(C14,'2016-2021 BD OES Pull_rev'!F:N, 9, FALSE) -> Processing - Incorporation into formulation, mixture, or reaction product | K14: TX0104515 | P14: 0.2 | Q14: NA | R14: 0 | W14: 0 | X14: 0 | Y14: 0 | Z14: 0 | AA14: 0 | AB14: 106990 | AC14: 1,3-Butadiene | AD14: NO | AE14: NO | AF14: SR. MANAGER, ENVIRONMENTAL | AG14: FRANK BURGARD | AH14: 44741 | AI14: HOWARD | AL14: ALON USA-BIG SPRING REFINERY | AM14: PO BOX 1311 | AN14: BIG SPRING | AO14: TX | AQ14: 79721 | AR14: YES | AS14: NO | AT14: NO | AU14: NO | AV14: NO | AW14: NO | AX14: DON DURIVAGE | AY14: 7068360390 | BA14: DON.DURIVAGE@DELEKUS.COM | BN14: 32.269104 | BO14: -101.417673 | BP14: 806625757 | BR14: TXD008013468 | CG14: ALON USA LP | CJ14: 110013314323 | CK14: 1321220104032 | CL14: 106-99-0 | CM14: NA | CN14: NO | CO14: TRI | CP14: Pounds | CQ14: YES | CR14: YES | CS14: NO | CT14: NO | DN14: 4 | DO14: 0 | DQ14: 0 | DR14: O | DS14: 0.2 | DU14: 0.2 | DV14: E1 | DW14: 0.2 | FX14: NA | FZ14: 0 | GB14: NA | GD14: 0 | GF14: 0 | GK14: NA | GM14: 0 | GO14: 0 | GQ14: 0 | GR14: M2 | GS14: NA | GU14: 0 | HA14: NA | HC14: 0 | HE14: 0 | HG14: 0 | HH14: O | HI14: 0 | HK14: 0 | HL14: O | HM14: 0 | HO14: 0 | HQ14: 0 | HR14: 0 | HS14: 0 | HT14: 0 | HU14: 0 | HV14: 0 | HW14: 0 | HX14: 0 | HY14: 0 | HZ14: 0 | IA14: 0 | IB14: 0 | IC14: 0 | ID14: 0 | IE14: 0 | IF14: 0 | IG14: 0 | IH14: 0 | II14: 0 | IJ14: 0 | IK14: 0 | IL14: 0 | IM14: 0 | IN14: 0 | IO14: 0 | IP14: 0 | IQ14: 0 | IR14: 0 | IS14: 0 | IT14: 0 | IU14: 0 | IV14: 0 | IW14: 0 | IX14: 0 | IY14: 0 | IZ14: 0 | JA14: 0 | JB14: 0 | JC14: 0 | JD14: 0 | JE14: 0 | JF14: 0 | JG14: 0 | JH14: 0 | JI14: 0 | JJ14: U02 | JK14: U03 | JN14: H20 | JO14: H39
A15: R | B15: 2016 | C15: 40216MRCNS4500C | D15: AMERICAN SYNTHETIC RUBBER CO | E15: 4500 CAMPGROUND RD | F15: LOUISVILLE | G15: KY | H15: 40216 | I15: 325212 | J15: =VLOOKUP(C15,'2016-2021 BD OES Pull_rev'!F:N, 9, FALSE) -> Plastics and Rubber Compounding | K15: KY0001589 | P15: 6996.3 | Q15: NA | R15: 0 | W15: 0 | X15: 0 | Y15: 0 | Z15: 0 | AA15: 0 | AB15: 106990 | AC15: 1,3-Butadiene | AD15: NO | AE15: NO | AF15: CHIEF OPERATING OFFICER | AG15: GUILLAUME COIRATON | AH15: ` | AI15: JEFFERSON | AL15: AMERICAN SYNTHETIC RUBBER CO | AM15: PO BOX 32960 | AN15: LOUISVILLE | AO15: KY | AQ15: 40232 | AR15: YES | AS15: NO | AT15: NO | AU15: NO | AV15: NO | AW15: NO | AX15: BEN BROWN | AY15: 5024498306 | BA15: BEN.BROWN@MICHELIN.COM | BN15: 38.209317 | BO15: -85.847511 | BP15: 6382857 | BR15: KYD006382857 | CG15: MICHELIN N.A. INC | CH15: 44691848 | CJ15: 110000378546 | CK15: 1316215654106 | CL15: 106-99-0 | CM15: NA | CO15: TRI | CP15: Pounds | CQ15: YES | CR15: YES | CS15: NO | CT15: NO | DN15: 6 | DO15: 3723.2 | DQ15: 3723.2 | DR15: M2 | DS15: 3273.1 | DU15: 3273.1 | DV15: M2 | DW15: 6996.3 | FX15: NA | FZ15: 0 | GB15: NA | GD15: 0 | GF15: 0 | GK15: NA | GM15: 0 | GO15: NA | GQ15: 0 | GS15: NA | GU15: 0 | HA15: NA | HC15: 0 | HE15: NA | HG15: 0 | HI15: NA | HK15: 0 | HM15: 0 | HQ15: 0 | HR15: 0 | HS15: 0 | HT15: 0 | HU15: 0 | HV15: 0 | HW15: 0 | HX15: 0 | HY15: 0 | HZ15: 0 | IA15: 0 | IB15: 0 | IC15: 0 | ID15: 0 | IE15: 0 | IF15: 0 | IG15: 0 | IH15: 0 | II15: 0 | IJ15: 0 | IK15: 0 | IL15: 0 | IM15: 0 | IN15: 0 | IO15: 0 | IP15: 0 | IQ15: 0 | IR15: 0 | IS15: 0 | IT15: 0 | IU15: 0 | IV15: 0 | IW15: 0 | IX15: 0 | IY15: 0 | IZ15: 0 | JA15: 0 | JB15: 0 | JC15: 0 | JD15: 0 | JE15: 0 | JF15: 0 | JG15: 0 | JH15: 1726301 | JI15: 1726301 | JJ15: NA | JN15: NA
A16: R | B16: 2017 | C16: 40216MRCNS4500C | D16: AMERICAN SYNTHETIC RUBBER CO | E16: 4500 CAMPGROUND RD | F16: LOUISVILLE | G16: KY | H16: 40216 | I16: 325212 | J16: =VLOOKUP(C16,'2016-2021 BD OES Pull_rev'!F:N, 9, FALSE) -> Plastics and Rubber Compounding | K16: KY0001589 | P16: 5751 | Q16: NA | R16: 0 | W16: 0 | X16: 0 | Y16: 0 | Z16: 0 | AA16: 0 | AB16: 106990 | AC16: 1,3-Butadiene | AD16: NO | AE16: NO | AF16: CHIEF OPERATING OFFICER | AG16: GUILLAUME COIRATON | AH16: 43279 | AI16: JEFFERSON | AL16: AMERICAN SYNTHETIC RUBBER CO | AM16: PO BOX 32960 | AN16: LOUISVILLE | AO16: KY | AQ16: 40232 | AR16: YES | AS16: NO | AT16: NO | AU16: NO | AV16: NO | AW16: NO | AX16: BEN BROWN | AY16: 5024498306 | BA16: BEN.BROWN@MICHELIN.COM | BN16: 38.209317 | BO16: -85.847511 | BP16: 6382857 | BR16: KYD006382857 | CG16: MICHELIN N.A. INC | CH16: 44691848 | CJ16: 110000378546 | CK16: 1317216390637 | CL16: 106-99-0 | CM16: NA | CO16: TRI | CP16: Pounds | CQ16: YES | CR16: YES | CS16: NO | CT16: NO | DN16: 6 | DO16: 2124 | DQ16: 2124 | DR16: M2 | DS16: 3627 | DU16: 3627 | DV16: M2 | DW16: 5751 | FX16: NA | FZ16: 0 | GB16: NA | GD16: 0 | GF16: 0 | GK16: NA | GM16: 0 | GO16: NA | GQ16: 0 | GS16: NA | GU16: 0 | HA16: NA | HC16: 0 | HE16: NA | HG16: 0 | HI16: NA | HK16: 0 | HM16: 0 | HQ16: 0 | HR16: 0 | HS16: 0 | HT16: 0 | HU16: 0 | HV16: 0 | HW16: 0 | HX16: 0 | HY16: 0 | HZ16: 0 | IA16: 0 | IB16: 0 | IC16: 0 | ID16: 0 | IE16: 0 | IF16: 0 | IG16: 0 | IH16: 0 | II16: 0 | IJ16: 0 | IK16: 0 | IL16: 0 | IM16: 0 | IN16: 0 | IO16: 0 | IP16: 0 | IQ16: 0 | IR16: 0 | IS16: 0 | IT16: 0 | IU16: 0 | IV16: 0 | IW16: 0 | IX16: 0 | IY16: 0 | IZ16: 0 | JA16: 0 | JB16: 0 | JC16: 0 | JD16: 0 | JE16: 0 | JF16: 0 | JG16: 0 | JH16: 1138236 | JI16: 1138236 | JJ16: NA | JN16: NA
A17: R | B17: 2018 | C17: 40216MRCNS4500C | D17: AMERICAN SYNTHETIC RUBBER CO | E17: 4500 CAMPGROUND RD | F17: LOUISVILLE | G17: KY | H17: 40216 | I17: 325212 | J17: =VLOOKUP(C17,'2016-2021 BD OES Pull_rev'!F:N, 9, FALSE) -> Plastics and Rubber Compounding | K17: KY0001589 | P17: 3629.3 | Q17: NA | R17: 0 | W17: 0 | X17: 0 | Y17: 0 | Z17: 0 | AA17: 0 | AB17: 106990 | AC17: 1,3-Butadiene | AD17: NO | AE17: NO | AF17: CHIEF OPERATING OFFICER | AG17: GUILLAUME COIRATON | AH17: 43643 | AI17: JEFFERSON | AL17: AMERICAN SYNTHETIC RUBBER CO | AM17: PO BOX 32960 | AN17: LOUISVILLE | AO17: KY | AQ17: 40232 | AR17: YES | AS17: NO | AT17: NO | AU17: NO | AV17: NO | AW17: NO | AX17: BEN BROWN | AY17: 5024498306 | BA17: BEN.BROWN@MICHELIN.COM | BN17: 38.209317 | BO17: -85.847511 | BP17: 6382857 | BR17: KYD006382857 | CG17: MICHELIN N.A. INC | CH17: 44691848 | CJ17: 110000378546 | CK17: 1318217283441 | CL17: 106-99-0 | CM17: NA | CN17: NO | CO17: TRI | CP17: Pounds | CQ17: YES | CR17: YES | CS17: NO | CT17: NO | DN17: 6 | DO17: 1814 | DQ17: 1814 | DR17: M2 | DS17: 1815.3 | DU17: 1815.3 | DV17: M2 | DW17: 3629.3 | FX17: NA | FZ17: 0 | GB17: NA | GD17: 0 | GF17: 0 | GK17: NA | GM17: 0 | GO17: NA | GQ17: 0 | GS17: NA | GU17: 0 | HA17: NA | HC17: 0 | HE17: NA | HG17: 0 | HI17: NA | HK17: 0 | HM17: 0 | HO17: 0 | HQ17: 0 | HR17: 0 | HS17: 0 | HT17: 0 | HU17: 0 | HV17: 0 | HW17: 0 | HX17: 0 | HY17: 0 | HZ17: 0 | IA17: 0 | IB17: 0 | IC17: 0 | ID17: 0 | IE17: 0 | IF17: 0 | IG17: 0 | IH17: 0 | II17: 0 | IJ17: 0 | IK17: 0 | IL17: 0 | IM17: 0 | IN17: 0 | IO17: 0 | IP17: 0 | IQ17: 0 | IR17: 0 | IS17: 0 | IT17: 0 | IU17: 0 | IV17: 0 | IW17: 0 | IX17: 0 | IY17: 0 | IZ17: 0 | JA17: 0 | JB17: 0 | JC17: 0 | JD17: 0 | JE17: 0 | JF17: 0 | JG17: 0 | JH17: 1973338 | JI17: 1973338 | JJ17: NA | JN17: NA
A18: R | B18: 2019 | C18: 40216MRCNS4500C | D18: AMERICAN SYNTHETIC RUBBER CO | E18: 4500 CAMPGROUND RD | F18: LOUISVILLE | G18: KY | H18: 40216 | I18: 325212 | J18: =VLOOKUP(C18,'2016-2021 BD OES Pull_rev'!F:N, 9, FALSE) -> Plastics and Rubber Compounding | K18: KY0001589 | P18: 3230.5 | Q18: OHIO RIVER | R18: 0 | S18: O | W18: 1 | X18: 0 | Y18: 0 | Z18: 0 | AA18: 0 | AB18: 106990 | AC18: 1,3-Butadiene | AD18: NO | AE18: NO | AF18: PLANT MANAGER | AG18: MICHEL CRISTANTE | AH18: 44011 | AI18: JEFFERSON | AL18: AMERICAN SYNTHETIC RUBBER CO | AM18: PO BOX 32960 | AN18: LOUISVILLE | AO18: KY | AQ18: 40232 | AR18: YES | AS18: NO | AT18: NO | AU18: NO | AV18: NO | AW18: NO | AX18: BEN BROWN | AY18: 5024498306 | BA18: BEN.BROWN@MICHELIN.COM | BN18: 38.209317 | BO18: -85.847511 | BP18: 6382857 | BR18: KYD006382857 | CG18: MICHELIN N.A. INC | CH18: 44691848 | CJ18: 110000378546 | CK18: 1319218272387 | CL18: 106-99-0 | CM18: NA | CN18: NO | CO18: TRI | CP18: Pounds | CQ18: YES | CR18: YES | CS18: NO | CT18: NO | DN18: 7 | DO18: 2405 | DQ18: 2405 | DR18: M2 | DS18: 825.5 | DU18: 825.5 | DV18: M2 | DW18: 3230.5 | DX18: 0 | DZ18: 0 | FX18: NA | FZ18: 0 | GB18: NA | GD18: 0 | GF18: 0 | GK18: NA | GM18: 0 | GO18: NA | GQ18: 0 | GS18: NA | GU18: 0 | HA18: NA | HC18: 0 | HE18: NA | HG18: 0 | HI18: NA | HK18: 0 | HM18: 0 | HO18: 0 | HQ18: 0 | HR18: 0 | HS18: 0 | HT18: 0 | HU18: 0 | HV18: 0 | HW18: 0 | HX18: 0 | HY18: 0 | HZ18: 0 | IA18: 0 | IB18: 0 | IC18: 0 | ID18: 0 | IE18: 0 | IF18: 0 | IG18: 0 | IH18: 0 | II18: 0 | IJ18: 0 | IK18: 0 | IL18: 0 | IM18: 0 | IN18: 0 | IO18: 0 | IP18: 0 | IQ18: 0 | IR18: 0 | IS18: 0 | IT18: 0 | IU18: 0 | IV18: 0 | IW18: 0 | IX18: 0 | IY18: 0 | IZ18: 0 | JA18: 0 | JB18: 0 | JC18: 0 | JD18: 0 | JE18: 0 | JF18: 0 | JG18: 0 | JH18: 1421124 | JI18: 1421124 | JJ18: NA | JN18: NA
A19: R | B19: 2020 | C19: 40216MRCNS4500C | D19: AMERICAN SYNTHETIC RUBBER CO | E19: 4500 CAMPGROUND RD | F19: LOUISVILLE | G19: KY | H19: 40216 | I19: 325212 | J19: =VLOOKUP(C19,'2016-2021 BD OES Pull_rev'!F:N, 9, FALSE) -> Plastics and Rubber Compounding | K19: KY0001589 | P19: 1880 | Q19: NA | R19: 0 | W19: 0 | X19: 0 | Y19: 0 | Z19: 0 | AA19: 0 | AB19: 106990 | AC19: 1,3-Butadiene | AD19: NO | AE19: NO | AF19: PLANT MANAGER | AG19: MICHEL CRISTANTE | AH19: 44376 | AI19: JEFFERSON | AL19: AMERICAN SYNTHETIC RUBBER CO | AM19: PO BOX 32960 | AN19: LOUISVILLE | AO19: KY | AQ19: 40232 | AR19: YES | AS19: NO | AT19: NO | AU19: NO | AV19: NO | AW19: NO | AX19: MONICA JOHNSON | AY19: 5024497255 | BA19: MONICA.JOHNSON@MICHELIN.COM | BN19: 38.209317 | BO19: -85.847511 | BP19: 6382857 | BR19: KYD006382857 | CG19: MICHELIN N.A. INC | CH19: 44691848 | CJ19: 110000378546 | CK19: 1320219135009 | CL19: 106-99-0 | CM19: NA | CN19: NO | CO19: TRI | CP19: Pounds | CQ19: YES | CR19: YES | CS19: NO | CT19: NO | DN19: 7 | DO19: 1618 | DQ19: 1618 | DR19: M2 | DS19: 262 | DU19: 262 | DV19: M2 | DW19: 1880 | FX19: NA | FZ19: 0 | GB19: NA | GD19: 0 | GF19: 0 | GK19: NA | GM19: 0 | GO19: NA | GQ19: 0 | GS19: NA | GU19: 0 | HA19: NA | HC19: 0 | HE19: NA | HG19: 0 | HI19: NA | HK19: 0 | HM19: 0 | HO19: 0 | HQ19: 0 | HR19: 0 | HS19: 0 | HT19: 0 | HU19: 0 | HV19: 0 | HW19: 0 | HX19: 0 | HY19: 0 | HZ19: 0 | IA19: 0 | IB19: 0 | IC19: 0 | ID19: 0 | IE19: 0 | IF19: 0 | IG19: 0 | IH19: 0 | II19: 0 | IJ19: 0 | IK19: 0 | IL19: 0 | IM19: 0 | IN19: 0 | IO19: 0 | IP19: 0 | IQ19: 0 | IR19: 0 | IS19: 0 | IT19: 0 | IU19: 0 | IV19: 0 | IW19: 0 | IX19: 0 | IY19: 0 | IZ19: 0 | JA19: 0 | JB19: 0 | JC19: 0 | JD19: 0 | JE19: 0 | JF19: 0 | JG19: 0 | JH19: 1181262 | JI19: 1181262 | JJ19: NA | JN19: NA
A20: R | B20: 2021 | C20: 40216MRCNS4500C | D20: AMERICAN SYNTHETIC RUBBER CO | E20: 4500 CAMPGROUND RD | F20: LOUISVILLE | G20: KY | H20: 40216 | I20: 325212 | J20: =VLOOKUP(C20,'2016-2021 BD OES Pull_rev'!F:N, 9, FALSE) -> Plastics and Rubber Compounding | K20: KY0001589 | P20: 4786 | Q20: NA | R20: 0 | W20: 0 | X20: 0 | Y20: 0 | Z20: 0 | AA20: 0 | AB20: 106990 | AC20: 1,3-Butadiene | AD20: NO | AE20: NO | AF20: PLANT MANAGER | AG20: MICHEL CRISTANTE | AH20: 44742 | AI20: JEFFERSON | AL20: AMERICAN SYNTHETIC RUBBER CO | AM20: PO BOX 32960 | AN20: LOUISVILLE | AO20: KY | AQ20: 40232 | AR20: YES | AS20: NO | AT20: NO | AU20: NO | AV20: NO | AW20: NO | AX20: TREVOR ROHLF | AY20: 5024497283 | BA20: TREVOR.ROHLF@MICHELIN.COM | BN20: 38.209317 | BO20: -85.847511 | BP20: 6382857 | BR20: KYD006382857 | CG20: MICHELIN N.A. INC | CH20: 44691848 | CJ20: 110000378546 | CK20: 1321220337620 | CL20: 106-99-0 | CM20: NA | CN20: NO | CO20: TRI | CP20: Pounds | CQ20: YES | CR20: YES | CS20: NO | CT20: NO | DN20: 7 | DO20: 3596 | DQ20: 3596 | DR20: M2 | DS20: 1190 | DU20: 1190 | DV20: M2 | DW20: 4786 | FX20: NA | FZ20: 0 | GB20: NA | GD20: 0 | GF20: 0 | GK20: NA | GM20: 0 | GO20: NA | GQ20: 0 | GS20: NA | GU20: 0 | HA20: NA | HC20: 0 | HE20: NA | HG20: 0 | HI20: NA | HK20: 0 | HM20: 0 | HO20: 0 | HQ20: 0 | HR20: 0 | HS20: 0 | HT20: 0 | HU20: 0 | HV20: 0 | HW20: 0 | HX20: 0 | HY20: 0 | HZ20: 0 | IA20: 0 | IB20: 0 | IC20: 0 | ID20: 0 | IE20: 0 | IF20: 0 | IG20: 0 | IH20: 0 | II20: 0 | IJ20: 0 | IK20: 0 | IL20: 0 | IM20: 0 | IN20: 0 | IO20: 0 | IP20: 0 | IQ20: 0 | IR20: 0 | IS20: 0 | IT20: 0 | IU20: 0 | IV20: 0 | IW20: 0 | IX20: 0 | IY20: 0 | IZ20: 0 | JA20: 0 | JB20: 0 | JC20: 0 | JD20: 0 | JE20: 0 | JF20: 0 | JG20: 0 | JH20: 1708727 | JI20: 1708727 | JJ20: NA | JN20: NA
A21: R | B21: 2016 | C21: 36505MTCHMHWY43 | D21: ARKEMA INC | E21: 13755 HWY 43 N | F21: AXIS | G21: AL | H21: 36505 | I21: 325211 | J21: =VLOOKUP(C21,'2016-2021 BD OES Pull_rev'!F:N, 9, FALSE) -> Plastics and Rubber Compounding | K21: AL0042447 | P21: 1750 | Q21: NA | R21: 0 | W21: 0 | X21: 0 | Y21: 0 | Z21: 0 | AA21: 0 | AB21: 106990 | AC21: 1,3-Butadiene | AD21: NO | AE21: NO | AF21: PLANT MANAGER | AG21: JOHN LAKENAN | AH21: 2017-06-28 | AI21: MOBILE | AL21: ARKEMA INC | AM21: 13755 HWY 43 N | AN21: AXIS | AO21: AL | AQ21: 36505 | AR21: YES | AS21: NO | AT21: NO | AU21: NO | AV21: NO | AW21: NO | AX21: JOHN LAKENAN | AY21: 2518294212 | BA21: JOHN.LAKENAN@ARKEMA.COM | BI21: 325199 | BN21: 30.979167 | BO21: -88.028833 | BP21: 2290773 | BR21: ALD000827154 | CG21: ARKEMA DELAWARE INC | CH21: 622121697 | CI21: ARKEMA DELAWARE INC | CJ21: 110025376448 | CK21: 1316215467578 | CL21: 106-99-0 | CM21: NA | CO21: TRI | CP21: Pounds | CQ21: YES | CR21: YES | CS21: NO | CT21: NO | DN21: 5 | DO21: 1500 | DQ21: 1500 | DR21: E2 | DT21: B | DU21: 250 | DV21: O | DW21: 1750 | FX21: NA | FZ21: 0 | GB21: NA | GD21: 0 | GF21: 0 | GK21: NA | GM21: 0 | GO21: NA | GQ21: 0 | GS21: NA | GU21: 0 | HA21: NA | HC21: 0 | HE21: NA | HG21: 0 | HI21: NA | HK21: 0 | HM21: 0 | HQ21: 0 | HR21: 0 | HS21: 0 | HT21: 0 | HU21: 0 | HV21: 0 | HW21: 0 | HX21: 0 | HY21: 0 | HZ21: 0 | IA21: 0 | IB21: 0 | IC21: 0 | ID21: 0 | IE21: 0 | IF21: 250 | IG21: 0 | IH21: 0 | II21: 0 | IJ21: 0 | IK21: 0 | IL21: 0 | IM21: 250 | IN21: 0 | IO21: 0 | IP21: 0 | IQ21: 0 | IR21: 0 | IS21: 0 | IT21: 0 | IU21: 0 | IV21: 0 | IW21: 0 | IX21: 0 | IY21: 0 | IZ21: 0 | JA21: 0 | JB21: 0 | JC21: 0 | JD21: 0 | JE21: 250 | JF21: 0 | JG21: 0 | JH21: 12000 | JI21: 12000 | JJ21: NA | JN21: NA
A22: R | B22: 2017 | C22: 36505MTCHMHWY43 | D22: ARKEMA INC | E22: 13755 HWY 43 N | F22: AXIS | G22: AL | H22: 36505 | I22: 325211 | J22: =VLOOKUP(C22,'2016-2021 BD OES Pull_rev'!F:N, 9, FALSE) -> Plastics and Rubber Compounding | K22: AL0042447 | P22: 1550 | Q22: NA | R22: 0 | W22: 0 | X22: 0 | Y22: 0 | Z22: 0 | AA22: 0 | AB22: 106990 | AC22: 1,3-Butadiene | AD22: NO | AE22: NO | AF22: PLANT MANAGER | AG22: DAVID PRICE | AH22: 43276 | AI22: MOBILE | AL22: ARKEMA INC | AM22: 13755 HWY 43 N | AN22: AXIS | AO22: AL | AQ22: 36505 | AR22: YES | AS22: NO | AT22: NO | AU22: NO | AV22: NO | AW22: NO | AX22: DAVID PRICE | AY22: 2518294212 | BA22: DAVID.PRICE@ARKEMA.COM | BI22: 325199 | BN22: 30.979167 | BO22: -88.028833 | BP22: 2290773 | BR22: ALD000827154 | CG22: ARKEMA DELAWARE INC | CH22: 622121697 | CI22: ARKEMA DELAWARE INC | CJ22: 110025376448 | CK22: 1317216176762 | CL22: 106-99-0 | CM22: NA | CO22: TRI | CP22: Pounds | CQ22: YES | CR22: YES | CS22: NO | CT22: NO | DN22: 5 | DO22: 1300 | DQ22: 1300 | DR22: E2 | DT22: B | DU22: 250 | DV22: O | DW22: 1550 | FX22: NA | FZ22: 0 | GB22: NA | GD22: 0 | GF22: 0 | GK22: NA | GM22: 0 | GO22: NA | GQ22: 0 | GS22: NA | GU22: 0 | HA22: NA | HC22: 0 | HE22: NA | HG22: 0 | HI22: NA | HK22: 0 | HM22: 0 | HQ22: 0 | HR22: 0 | HS22: 0 | HT22: 0 | HU22: 0 | HV22: 0 | HW22: 0 | HX22: 0 | HY22: 0 | HZ22: 0 | IA22: 0 | IB22: 0 | IC22: 0 | ID22: 0 | IE22: 0 | IF22: 250 | IG22: 0 | IH22: 0 | II22: 0 | IJ22: 0 | IK22: 0 | IL22: 0 | IM22: 250 | IN22: 0 | IO22: 0 | IP22: 0 | IQ22: 0 | IR22: 0 | IS22: 0 | IT22: 0 | IU22: 0 | IV22: 0 | IW22: 0 | IX22: 0 | IY22: 0 | IZ22: 0 | JA22: 0 | JB22: 0 | JC22: 0 | JD22: 0 | JE22: 250 | JF22: 0 | JG22: 0 | JH22: 13000 | JI22: 13000 | JJ22: NA | JN22: NA
A23: R | B23: 2018 | C23: 36505MTCHMHWY43 | D23: ARKEMA INC | E23: 13755 HWY 43 N | F23: AXIS | G23: AL | H23: 36505 | I23: 325211 | J23: =VLOOKUP(C23,'2016-2021 BD OES Pull_rev'!F:N, 9, FALSE) -> Plastics and Rubber Compounding | K23: AL0042447 | P23: 1550 | Q23: NA | R23: 0 | W23: 0 | X23: 0 | Y23: 0 | Z23: 0 | AA23: 0 | AB23: 106990 | AC23: 1,3-Butadiene | AD23: NO | AE23: NO | AF23: PLANT MANAGER | AG23: DAVID PRICE | AH23: 43628 | AI23: MOBILE | AL23: ARKEMA INC | AM23: 13755 HWY 43 N | AN23: AXIS | AO23: AL | AQ23: 36505 | AR23: YES | AS23: NO | AT23: NO | AU23: NO | AV23: NO | AW23: NO | AX23: MICHELLE HANEY | AY23: 2518294314 | BA23: MICHELLE.HANEY@ARKEMA.COM | BI23: 325199 | BN23: 30.979167 | BO23: -88.028833 | BP23: 2290773 | BR23: ALD000827154 | CG23: ARKEMA DELAWARE INC | CH23: 622121697 | CI23: ARKEMA DELAWARE INC | CJ23: 110025376448 | CK23: 1318216857336 | CL23: 106-99-0 | CM23: NA | CN23: NO | CO23: TRI | CP23: Pounds | CQ23: YES | CR23: YES | CS23: NO | CT23: NO | DN23: 5 | DO23: 1300 | DQ23: 1300 | DR23: E2 | DT23: B | DU23: 250 | DV23: O | DW23: 1550 | FX23: NA | FZ23: 0 | GB23: NA | GD23: 0 | GF23: 0 | GK23: NA | GM23: 0 | GO23: NA | GQ23: 0 | GS23: NA | GU23: 0 | HA23: NA | HC23: 0 | HE23: NA | HG23: 0 | HI23: NA | HK23: 0 | HM23: 0 | HO23: 0 | HQ23: 0 | HR23: 0 | HS23: 0 | HT23: 0 | HU23: 0 | HV23: 0 | HW23: 0 | HX23: 0 | HY23: 0 | HZ23: 0 | IA23: 0 | IB23: 0 | IC23: 0 | ID23: 0 | IE23: 0 | IF23: 250 | IG23: 0 | IH23: 0 | II23: 0 | IJ23: 0 | IK23: 0 | IL23: 0 | IM23: 250 | IN23: 0 | IO23: 0 | IP23: 0 | IQ23: 0 | IR23: 0 | IS23: 0 | IT23: 0 | IU23: 0 | IV23: 0 | IW23: 0 | IX23: 0 | IY23: 0 | IZ23: 0 | JA23: 0 | JB23: 0 | JC23: 0 | JD23: 0 | JE23: 250 | JF23: 0 | JG23: 0 | JH23: 12500 | JI23: 12500 | JJ23: NA | JN23: NA
A24: R | B24: 2019 | C24: 36505MTCHMHWY43 | D24: ARKEMA INC | E24: 13755 HWY 43 N | F24: AXIS | G24: AL | H24: 36505 | I24: 325211 | J24: =VLOOKUP(C24,'2016-2021 BD OES Pull_rev'!F:N, 9, FALSE) -> Plastics and Rubber Compounding | K24: AL0042447 | P24: 1350 | Q24: NA | R24: 0 | W24: 0 | X24: 0 | Y24: 0 | Z24: 0 | AA24: 0 | AB24: 106990 | AC24: 1,3-Butadiene | AD24: NO | AE24: NO | AF24: PLANT MANAGER | AG24: RENE NERON | AH24: 44008 | AI24: MOBILE | AL24: ARKEMA INC | AM24: 13755 HWY 43 N | AN24: AXIS | AO24: AL | AQ24: 36505 | AR24: YES | AS24: NO | AT24: NO | AU24: NO | AV24: NO | AW24: NO | AX24: RENE NERON | AY24: 2518294212 | BA24: RENE.NERON@ARKEMA.COM | BI24: 325199 | BN24: 30.979167 | BO24: -88.028833 | BP24: 2290773 | BR24: ALD000827154 | CG24: ARKEMA DELAWARE INC | CH24: 622121697 | CI24: ARKEMA DELAWARE INC | CJ24: 110025376448 | CK24: 1319218178628 | CL24: 106-99-0 | CM24: NA | CN24: NO | CO24: TRI | CP24: Pounds | CQ24: YES | CR24: YES | CS24: NO | CT24: NO | DN24: 5 | DO24: 1100 | DQ24: 1100 | DR24: E2 | DT24: B | DU24: 250 | DV24: O | DW24: 1350 | FX24: NA | FZ24: 0 | GB24: NA | GD24: 0 | GF24: 0 | GK24: NA | GM24: 0 | GO24: NA | GQ24: 0 | GS24: NA | GU24: 0 | HA24: NA | HC24: 0 | HE24: NA | HG24: 0 | HI24: NA | HK24: 0 | HM24: 0 | HO24: 0 | HQ24: 0 | HR24: 0 | HS24: 0 | HT24: 0 | HU24: 0 | HV24: 0 | HW24: 0 | HX24: 0 | HY24: 0 | HZ24: 0 | IA24: 0 | IB24: 0 | IC24: 0 | ID24: 0 | IE24: 0 | IF24: 250 | IG24: 0 | IH24: 0 | II24: 0 | IJ24: 0 | IK24: 0 | IL24: 0 | IM24: 250 | IN24: 0 | IO24: 0 | IP24: 0 | IQ24: 0 | IR24: 0 | IS24: 0 | IT24: 0 | IU24: 0 | IV24: 0 | IW24: 0 | IX24: 0 | IY24: 0 | IZ24: 0 | JA24: 0 | JB24: 0 | JC24: 0 | JD24: 0 | JE24: 250 | JF24: 0 | JG24: 0 | JH24: 12550 | JI24: 12550 | JJ24: NA | JN24: NA | KF24: QUALA TANKWASH RAIL & SPECIALTY FACILITY | KG24: 5100 UNDERWOOD RD | KH24: PASADENA | KI24: HARRIS | KJ24: TX | KL24: 775071079 | KM24: TXR000047035 | KN24: 110012182431
A25: R | B25: 2020 | C25: 36505MTCHMHWY43 | D25: ARKEMA INC | E25: 13755 HWY 43 N | F25: AXIS | G25: AL | H25: 36505 | I25: 325211 | J25: =VLOOKUP(C25,'2016-2021 BD OES Pull_rev'!F:N, 9, FALSE) -> Plastics and Rubber Compounding | K25: AL0042447 | P25: 1350 | Q25: NA | R25: 0 | W25: 0 | X25: 0 | Y25: 0 | Z25: 0 | AA25: 0 | AB25: 106990 | AC25: 1,3-Butadiene | AD25: NO | AE25: NO | AF25: PLANT MANAGER | AG25: RENE NERON | AH25: 44357 | AI25: MOBILE | AL25: ARKEMA INC | AM25: 13755 HWY 43 N | AN25: AXIS | AO25: AL | AQ25: 36505 | AR25: YES | AS25: NO | AT25: NO | AU25: NO | AV25: NO | AW25: NO | AX25: RENE NERON | AY25: 2518294212 | BA25: RENE.NERON@ARKEMA.COM | BI25: 325199 | BN25: 30.979167 | BO25: -88.028833 | BP25: 2290773 | BR25: ALD000827154 | CG25: ARKEMA DELAWARE INC | CH25: 622121697 | CI25: ARKEMA DELAWARE INC | CJ25: 110025376448 | CK25: 1320218741700 | CL25: 106-99-0 | CM25: NA | CN25: NO | CO25: TRI | CP25: Pounds | CQ25: YES | CR25: YES | CS25: NO | CT25: NO | DN25: 5 | DO25: 1100 | DQ25: 1100 | DR25: E2 | DT25: B | DU25: 250 | DV25: O | DW25: 1350 | FX25: NA | FZ25: 0 | GB25: NA | GD25: 0 | GF25: 0 | GK25: NA | GM25: 0 | GO25: NA | GQ25: 0 | GS25: NA | GU25: 0 | HA25: NA | HC25: 0 | HE25: NA | HG25: 0 | HI25: NA | HK25: 0 | HM25: 0 | HO25: 0 | HQ25: 0 | HR25: 0 | HS25: 0 | HT25: 0 | HU25: 0 | HV25: 0 | HW25: 0 | HX25: 0 | HY25: 0 | HZ25: 0 | IA25: 0 | IB25: 0 | IC25: 0 | ID25: 0 | IE25: 0 | IF25: 250 | IG25: 0 | IH25: 0 | II25: 0 | IJ25: 0 | IK25: 0 | IL25: 0 | IM25: 250 | IN25: 0 | IO25: 0 | IP25: 0 | IQ25: 0 | IR25: 0 | IS25: 0 | IT25: 0 | IU25: 0 | IV25: 0 | IW25: 0 | IX25: 0 | IY25: 0 | IZ25: 0 | JA25: 0 | JB25: 0 | JC25: 0 | JD25: 0 | JE25: 250 | JF25: 0 | JG25: 0 | JH25: 12020 | JI25: 12020 | JJ25: NA | JN25: NA
A26: R | B26: 2021 | C26: 36505MTCHMHWY43 | D26: ARKEMA INC | E26: 13755 HWY 43 N | F26: AXIS | G26: AL | H26: 36505 | I26: 325211 | J26: =VLOOKUP(C26,'2016-2021 BD OES Pull_rev'!F:N, 9, FALSE) -> Plastics and Rubber Compounding | K26: AL0042447 | P26: 1368 | Q26: NA | R26: 0 | W26: 0 | X26: 0 | Y26: 0 | Z26: 0 | AA26: 0 | AB26: 106990 | AC26: 1,3-Butadiene | AD26: NO | AE26: NO | AF26: PLANT MANAGER | AG26: RENE NERON | AH26: 44739 | AI26: MOBILE | AL26: ARKEMA INC | AM26: 13755 HWY 43 N | AN26: AXIS | AO26: AL | AQ26: 36505 | AR26: YES | AS26: NO | AT26: NO | AU26: NO | AV26: NO | AW26: NO | AX26: RENE NERON | AY26: 2518294212 | BA26: RENE.NERON@ARKEMA.COM | BI26: 325199 | BN26: 30.979167 | BO26: -88.028833 | BP26: 2290773 | BR26: ALD000827154 | CG26: ARKEMA DELAWARE INC | CH26: 622121697 | CI26: ARKEMA DELAWARE INC | CJ26: 110025376448 | CK26: 1321220002582 | CL26: 106-99-0 | CM26: NA | CN26: NO | CO26: TRI | CP26: Pounds | CQ26: YES | CR26: YES | CS26: NO | CT26: NO | DN26: 5 | DO26: 1118 | DQ26: 1118 | DR26: E2 | DT26: B | DU26: 250 | DV26: O | DW26: 1368 | FX26: NA | FZ26: 0 | GB26: NA | GD26: 0 | GF26: 0 | GK26: NA | GM26: 0 | GO26: NA | GQ26: 0 | GS26: NA | GU26: 0 | HA26: NA | HC26: 0 | HE26: NA | HG26: 0 | HI26: NA | HK26: 0 | HM26: 0 | HO26: 0 | HQ26: 0 | HR26: 0 | HS26: 0 | HT26: 0 | HU26: 0 | HV26: 0 | HW26: 0 | HX26: 0 | HY26: 0 | HZ26: 0 | IA26: 0 | IB26: 0 | IC26: 0 | ID26: 0 | IE26: 0 | IF26: 250 | IG26: 0 | IH26: 0 | II26: 0 | IJ26: 0 | IK26: 0 | IL26: 0 | IM26: 250 | IN26: 0 | IO26: 0 | IP26: 0 | IQ26: 0 | IR26: 0 | IS26: 0 | IT26: 0 | IU26: 0 | IV26: 0 | IW26: 0 | IX26: 0 | IY26: 0 | IZ26: 0 | JA26: 0 | JB26: 0 | JC26: 0 | JD26: 0 | JE26: 250 | JF26: 0 | JG26: 0 | JH26: 15368 | JI26: 15368 | JJ26: NA | JN26: NA
A27: R | B27: 2016 | C27: 77631PLYSRFM100 | D27: ARLANXEO | E27: 4647 FM 1006 | F27: ORANGE | G27: TX | H27: 77630 | I27: 325212 | J27: =VLOOKUP(C27,'2016-2021 BD OES Pull_rev'!F:N, 9, FALSE) -> Plastics and Rubber Compounding | K27: TX0003654 | P27: 56781.16 | Q27: COW BAYOU | R27: 48.16 | S27: M2 | W27: 1 | X27: 48.16 | Y27: 0 | Z27: 0 | AA27: 48.16 | AB27: 106990 | AC27: 1,3-Butadiene | AD27: NO | AE27: NO | AF27: ENVIRONMENTAL SUPERINTENDENT | AG27: PAULA SISSON | AH27: 2017-06-30 | AI27: ORANGE | AL27: ARLANXEO | AM27: PO BOX 2000 | AN27: ORANGE | AO27: TX | AQ27: 77630 | AR27: YES | AS27: NO | AT27: NO | AU27: NO | AV27: NO | AW27: NO | AX27: JOHN SCHMIDT | AY27: 4098822447 | BA27: JOHN.SCHMIDT@ARLANXEO.COM | BN27: 30.047146 | BO27: -93.769768 | BP27: 80132206 | BR27: TXD061283479 | CG27: ARLANXEO USA LLC | CH27: 80132206 | CI27: ARLANXEO USA LLC | CJ27: 110000463971 | CK27: 1316215697982 | CL27: 106-99-0 | CM27: NA | CO27: TRI | CP27: Pounds | CQ27: YES | CR27: YES | CS27: NO | CT27: NO | DN27: 6 | DO27: 20944 | DQ27: 20944 | DR27: E1 | DS27: 35789 | DU27: 35789 | DV27: C | DW27: 56733 | DX27: 48.16 | FX27: NA | FZ27: 0 | GB27: NA | GD27: 0 | GF27: 0 | GK27: NA | GM27: 0 | GO27: NA | GQ27: 0 | GS27: NA | GU27: 0 | HA27: NA | HC27: 0 | HE27: NA | HG27: 0 | HI27: NA | HK27: 0 | HM27: 0 | HQ27: 0 | HR27: 0 | HS27: 0 | HT27: 0 | HU27: 0 | HV27: 0 | HW27: 0 | HX27: 0 | HY27: 0 | HZ27: 0 | IA27: 0 | IB27: 0 | IC27: 0 | ID27: 0 | IE27: 0 | IF27: 0 | IG27: 0 | IH27: 0 | II27: 0 | IJ27: 0 | IK27: 0 | IL27: 0 | IM27: 0 | IN27: 0 | IO27: 0 | IP27: 0 | IQ27: 0 | IR27: 0 | IS27: 0 | IT27: 0 | IU27: 0 | IV27: 0 | IW27: 0 | IX27: 0 | IY27: 372 | IZ27: 0 | JA27: 0 | JB27: 0 | JC27: 372 | JD27: 0 | JE27: 372 | JF27: 0 | JG27: 0 | JH27: 1758144.81 | JI27: 1758144.81 | JJ27: NA | JN27: NA
A28: R | B28: 2017 | C28: 77631PLYSRFM100 | D28: ARLANXEO | E28: 4647 FM 1006 | F28: ORANGE | G28: TX | H28: 77630 | I28: 325212 | J28: =VLOOKUP(C28,'2016-2021 BD OES Pull_rev'!F:N, 9, FALSE) -> Plastics and Rubber Compounding | K28: TX0003654 | P28: 52254.67 | Q28: COW BAYOU | R28: 46.07 | S28: M2 | W28: 1 | X28: 46.07 | Y28: 0 | Z28: 0 | AA28: 46.07 | AB28: 106990 | AC28: 1,3-Butadiene | AD28: NO | AE28: NO | AF28: ENVIRONMENTAL SUPERINTENDENT | AG28: PAULA SISSON | AH28: 43280 | AI28: ORANGE | AL28: ARLANXEO | AM28: PO BOX 2000 | AN28: ORANGE | AO28: TX | AQ28: 77630 | AR28: YES | AS28: NO | AT28: NO | AU28: NO | AV28: NO | AW28: NO | AX28: JOHN SCHMIDT | AY28: 4098822447 | BA28: JOHN.SCHMIDT@ARLANXEO.COM | BN28: 30.047146 | BO28: -93.769768 | BP28: 80132206 | BR28: TXD061283479 | CG28: ARLANXEO USA LLC | CH28: 80132206 | CI28: ARLANXEO USA LLC | CJ28: 110000463971 | CK28: 1317216432272 | CL28: 106-99-0 | CM28: NA | CO28: TRI | CP28: Pounds | CQ28: YES | CR28: YES | CS28: NO | CT28: NO | DN28: 6 | DO28: 23535.8 | DQ28: 23535.8 | DR28: E1 | DS28: 28672.8 | DU28: 28672.8 | DV28: C | DW28: 52208.6 | DX28: 46.07 | FX28: NA | FZ28: 0 | GB28: NA | GD28: 0 | GF28: 0 | GK28: NA | GM28: 0 | GO28: NA | GQ28: 0 | GS28: NA | GU28: 0 | HA28: NA | HC28: 0 | HE28: NA | HG28: 0 | HI28: NA | HK28: 0 | HM28: 0 | HQ28: 0 | HR28: 0 | HS28: 0 | HT28: 0 | HU28: 0 | HV28: 0 | HW28: 0 | HX28: 0 | HY28: 0 | HZ28: 0 | IA28: 0 | IB28: 0 | IC28: 0 | ID28: 0 | IE28: 0 | IF28: 0 | IG28: 0 | IH28: 0 | II28: 0 | IJ28: 0 | IK28: 0 | IL28: 0 | IM28: 0 | IN28: 0 | IO28: 0 | IP28: 0 | IQ28: 0 | IR28: 0 | IS28: 0 | IT28: 0 | IU28: 0 | IV28: 0 | IW28: 0 | IX28: 0 | IY28: 193 | IZ28: 0 | JA28: 0 | JB28: 0 | JC28: 193 | JD28: 0 | JE28: 193 | JF28: 0 | JG28: 0 | JH28: 1413012.47 | JI28: 1413012.47 | JJ28: NA | JN28: NA
A29: R | B29: 2018 | C29: 77631PLYSRFM100 | D29: ARLANXEO | E29: 4647 FM 1006 | F29: ORANGE | G29: TX | H29: 77630 | I29: 325212 | J29: =VLOOKUP(C29,'2016-2021 BD OES Pull_rev'!F:N, 9, FALSE) -> Plastics and Rubber Compounding | K29: TX0003654 | P29: 45291 | Q29: COW BAYOU | R29: 43 | S29: M2 | W29: 1 | X29: 43 | Y29: 0 | Z29: 0 | AA29: 43 | AB29: 106990 | AC29: 1,3-Butadiene | AD29: NO | AE29: NO | AF29: QUALITY AND ENVIRONMENTAL LEAD | AG29: WARD MORPHIS | AH29: 43622 | AI29: ORANGE | AL29: ARLANXEO | AM29: PO BOX 2000 | AN29: ORANGE | AO29: TX | AQ29: 77630 | AR29: YES | AS29: NO | AT29: NO | AU29: NO | AV29: NO | AW29: NO | AX29: JOHN SCHMIDT | AY29: 4098822447 | BA29: JOHN.SCHMIDT@ARLANXEO.COM | BN29: 30.047146 | BO29: -93.769768 | BP29: 80132206 | BR29: TXD061283479 | CG29: ARLANXEO USA LLC | CH29: 80132206 | CI29: ARLANXEO USA LLC | CJ29: 110000463971 | CK29: 1318216819553 | CL29: 106-99-0 | CM29: NA | CN29: NO | CO29: TRI | CP29: Pounds | CQ29: YES | CR29: YES | CS29: NO | CT29: NO | DN29: 6 | DO29: 26572 | DQ29: 26572 | DR29: E1 | DS29: 18676 | DU29: 18676 | DV29: C | DW29: 45248 | DX29: 43 | FX29: NA | FZ29: 0 | GB29: NA | GD29: 0 | GF29: 0 | GK29: NA | GM29: 0 | GO29: NA | GQ29: 0 | GS29: NA | GU29: 0 | HA29: NA | HC29: 0 | HE29: NA | HG29: 0 | HI29: NA | HK29: 0 | HM29: 0 | HO29: 0 | HQ29: 0 | HR29: 0 | HS29: 0 | HT29: 0 | HU29: 0 | HV29: 0 | HW29: 0 | HX29: 0 | HY29: 0 | HZ29: 0 | IA29: 0 | IB29: 0 | IC29: 0 | ID29: 0 | IE29: 0 | IF29: 0 | IG29: 0 | IH29: 0 | II29: 0 | IJ29: 0 | IK29: 0 | IL29: 0 | IM29: 0 | IN29: 0 | IO29: 0 | IP29: 0 | IQ29: 0 | IR29: 0 | IS29: 0 | IT29: 0 | IU29: 0 | IV29: 0 | IW29: 0 | IX29: 0 | IY29: 479 | IZ29: 0 | JA29: 0 | JB29: 0 | JC29: 479 | JD29: 0 | JE29: 479 | JF29: 0 | JG29: 0 | JH29: 932268.32 | JI29: 932268.32 | JJ29: NA | JN29: NA
A30: R | B30: 2019 | C30: 77631PLYSRFM100 | D30: ARLANXEO | E30: 4647 FM 1006 | F30: ORANGE | G30: TX | H30: 77630 | I30: 325212 | J30: =VLOOKUP(C30,'2016-2021 BD OES Pull_rev'!F:N, 9, FALSE) -> Plastics and Rubber Compounding | K30: TX0003654 | P30: 34377.46 | Q30: COW BAYOU | R30: 24.46 | S30: M2 | W30: 1 | X30: 24.46 | Y30: 0 | Z30: 0 | AA30: 24.46 | AB30: 106990 | AC30: 1,3-Butadiene | AD30: NO | AE30: NO | AF30: QUALITY AND ENVIRONMENTAL LEAD | AG30: WARD MORPHIS | AH30: 44005 | AI30: ORANGE | AL30: ARLANXEO | AM30: PO BOX 2000 | AN30: ORANGE | AO30: TX | AQ30: 77630 | AR30: YES | AS30: NO | AT30: NO | AU30: NO | AV30: NO | AW30: NO | AX30: JOHN SCHMIDT | AY30: 4098822447 | BA30: JOHN.SCHMIDT@ARLANXEO.COM | BN30: 30.047146 | BO30: -93.769768 | BP30: 80132206 | BR30: TXD061283479 | CG30: ARLANXEO USA LLC | CH30: 80132206 | CI30: ARLANXEO USA LLC | CJ30: 110000463971 | CK30: 1319218034926 | CL30: 106-99-0 | CM30: NA | CN30: NO | CO30: TRI | CP30: Pounds | CQ30: YES | CR30: YES | CS30: NO | CT30: NO | DN30: 6 | DO30: 15883 | DQ30: 15883 | DR30: E1 | DS30: 18470 | DU30: 18470 | DV30: C | DW30: 34353 | DX30: 24.46 | FX30: NA | FZ30: 0 | GB30: NA | GD30: 0 | GF30: 0 | GK30: NA | GM30: 0 | GO30: NA | GQ30: 0 | GS30: NA | GU30: 0 | HA30: NA | HC30: 0 | HE30: NA | HG30: 0 | HI30: NA | HK30: 0 | HM30: 0 | HO30: 0 | HQ30: 0 | HR30: 0 | HS30: 0 | HT30: 0 | HU30: 0 | HV30: 0 | HW30: 0 | HX30: 0 | HY30: 0 | HZ30: 0 | IA30: 0 | IB30: 0 | IC30: 0 | ID30: 0 | IE30: 0 | IF30: 0 | IG30: 0 | IH30: 0 | II30: 0 | IJ30: 0 | IK30: 0 | IL30: 0 | IM30: 0 | IN30: 0 | IO30: 0 | IP30: 0 | IQ30: 0 | IR30: 0 | IS30: 0 | IT30: 0 | IU30: 0 | IV30: 0 | IW30: 0 | IX30: 0 | IY30: 2642 | IZ30: 0 | JA30: 0 | JB30: 0 | JC30: 2642 | JD30: 0 | JE30: 2642 | JF30: 0 | JG30: 0 | JH30: 911687.01 | JI30: 911687.01 | JJ30: NA | JN30: NA | KF30: CLEAN HARBORS EL DORADO, LLC | KG30: 309 AMERICAN CIRCLE | KH30: EL DORADO | KI30: UNION | KJ30: AR | KL30: 71730 | KM30: ARD069748192 | KN30: 110000521221
A31: R | B31: 2020 | C31: 77631PLYSRFM100 | D31: ARLANXEO | E31: 4647 FM 1006 | F31: ORANGE | G31: TX | H31: 77630 | I31: 325212 | J31: =VLOOKUP(C31,'2016-2021 BD OES Pull_rev'!F:N, 9, FALSE) -> Plastics and Rubber Compounding | K31: TX0003654 | P31: 68923.69 | Q31: COW BAYOU | R31: 51 | S31: M2 | W31: 1 | X31: 51 | Y31: 0 | Z31: 0 | AA31: 51 | AB31: 106990 | AC31: 1,3-Butadiene | AD31: NO | AE31: NO | AF31: QUALITY AND ENVIRONMENTAL LEAD | AG31: WARD MORPHIS | AH31: 44377 | AI31: ORANGE | AL31: ARLANXEO | AM31: PO BOX 2000 | AN31: ORANGE | AO31: TX | AQ31: 77630 | AR31: YES | AS31: NO | AT31: NO | AU31: NO | AV31: NO | AW31: NO | AX31: JOHN SCHMIDT | AY31: 4098822447 | BA31: JOHN.SCHMIDT@ARLANXEO.COM | BN31: 30.047146 | BO31: -93.769768 | BP31: 80132206 | BR31: TXD061283479 | CG31: ARLANXEO USA LLC | CH31: 80132206 | CI31: ARLANXEO USA LLC | CJ31: 110000463971 | CK31: 1320219264140 | CL31: 106-99-0 | CM31: NA | CN31: NO | CO31: TRI | CP31: Pounds | CQ31: YES | CR31: YES | CS31: NO | CT31: NO | DN31: 6 | DO31: 30409.09 | DQ31: 30409.09 | DR31: E1 | DS31: 38463.6 | DU31: 38463.6 | DV31: C | DW31: 68872.69 | DX31: 51 | FX31: NA | FZ31: 0 | GB31: NA | GD31: 0 | GF31: 0 | GK31: NA | GM31: 0 | GO31: NA | GQ31: 0 | GS31: NA | GU31: 0 | HA31: NA | HC31: 0 | HE31: NA | HG31: 0 | HI31: NA | HK31: 0 | HM31: 0 | HO31: 0 | HQ31: 0 | HR31: 0 | HS31: 0 | HT31: 0 | HU31: 0 | HV31: 0 | HW31: 0 | HX31: 0 | HY31: 0 | HZ31: 0 | IA31: 0 | IB31: 0 | IC31: 0 | ID31: 0 | IE31: 0 | IF31: 0 | IG31: 0 | IH31: 0 | II31: 0 | IJ31: 0 | IK31: 0 | IL31: 0 | IM31: 0 | IN31: 0 | IO31: 0 | IP31: 0 | IQ31: 0 | IR31: 0 | IS31: 0 | IT31: 0 | IU31: 0 | IV31: 0 | IW31: 0 | IX31: 0 | IY31: 2093 | IZ31: 0 | JA31: 0 | JB31: 0 | JC31: 2093 | JD31: 0 | JE31: 2093 | JF31: 0 | JG31: 0 | JH31: 1905155 | JI31: 1905155 | JJ31: NA | JN31: NA
A32: R | B32: 2021 | C32: 77631PLYSRFM100 | D32: ARLANXEO | E32: 4647 FM 1006 | F32: ORANGE | G32: TX | H32: 77630 | I32: 325212 | J32: =VLOOKUP(C32,'2016-2021 BD OES Pull_rev'!F:N, 9, FALSE) -> Plastics and Rubber Compounding | K32: TX0003654 | P32: 53020.04 | Q32: COW BAYOU | R32: 23.84 | S32: M2 | W32: 1 | X32: 23.84 | Y32: 0 | Z32: 0 | AA32: 23.84 | AB32: 106990 | AC32: 1,3-Butadiene
A33: R | B33: 2021 | C33: 77631PLYSRFM100 | D33: ARLANXEO | E33: 4647 FM 1006 | F33: ORANGE | G33: TX | H33: 77630 | I33: 325212 | J33: =VLOOKUP(C33,'2016-2021 BD OES Pull_rev'!F:N, 9, FALSE) -> Plastics and Rubber Compounding | K33: TX0003654 | P33: 53020.04 | Q33: COW BAYOU | R33: 23.84 | S33: M2 | W33: 1 | X33: 23.84 | Y33: 0 | Z33: 0 | AA33: =SUM(X33:Z33) -> 23.84 | AB33: 106990 | AC33: 1,3-Butadiene | AD33: NO | AE33: NO | AF33: SITE OPERATIONS MANAGER | AG33: NEIL AMEDEE | AH33: 44727 | AI33: ORANGE | AL33: ARLANXEO | AM33: PO BOX 2000 | AN33: ORANGE | AO33: TX | AQ33: 77630 | AR33: YES | AS33: NO | AT33: NO | AU33: NO | AV33: NO | AW33: NO | AX33: JOHN SCHMIDT | AY33: 4098822447 | BA33: JOHN.SCHMIDT@ARLANXEO.COM | BN33: 30.047146 | BO33: -93.769768 | BP33: 80132206 | BR33: TXD061283479 | CG33: ARLANXEO USA LLC | CH33: 80132206 | CI33: ARLANXEO USA LLC | CJ33: 110000463971 | CK33: 1321219735180 | CL33: 106-99-0 | CM33: NA | CN33: NO | CO33: TRI | CP33: Pounds | CQ33: YES | CR33: YES | CS33: NO | CT33: NO | DN33: 6 | DO33: 17944 | DQ33: 17944 | DR33: E1 | DS33: 35052.2 | DU33: 35052.2 | DV33: C | DW33: 52996.2 | DX33: 23.84 | FX33: NA | FZ33: 0 | GB33: NA | GD33: 0 | GF33: 0 | GK33: NA | GM33: 0 | GO33: NA | GQ33: 0 | GS33: NA | GU33: 0 | HA33: NA | HC33: 0 | HE33: NA | HG33: 0 | HI33: NA | HK33: 0 | HM33: 0 | HO33: 0 | HQ33: 0 | HR33: 0 | HS33: 0 | HT33: 0 | HU33: 0 | HV33: 0 | HW33: 0 | HX33: 0 | HY33: 0 | HZ33: 0 | IA33: 0 | IB33: 0 | IC33: 0 | ID33: 0 | IE33: 0 | IF33: 0 | IG33: 0 | IH33: 0 | II33: 0 | IJ33: 0 | IK33: 0 | IL33: 0 | IM33: 0 | IN33: 0 | IO33: 0 | IP33: 0 | IQ33: 0 | IR33: 0 | IS33: 0 | IT33: 0 | IU33: 0 | IV33: 0 | IW33: 0 | IX33: 0 | IY33: 1495 | IZ33: 0 | JA33: 0 | JB33: 0 | JC33: 1495 | JD33: 0 | JE33: 1495 | JF33: 0 | JG33: 0 | JH33: 1727880.89 | JI33: 1727880.89 | JJ33: NA | JN33: NA
A34: R | B34: 2016 | C34: 37406PLYSR3805A | D34: BASF CORP | E34: 32 LOST MOUND DRIVE | F34: CHATTANOOGA | G34: TN | H34: 37406 | I34: 325212 | J34: =VLOOKUP(C34,'2016-2021 BD OES Pull_rev'!F:N, 9, FALSE) -> Processing as a Reactant | K34: TN0002861 | P34: 381 | Q34: NA | R34: 0 | W34: 0 | X34: 0 | Y34: 0 | Z34: 0 | AA34: 0 | AB34: 106990 | AC34: 1,3-Butadiene | AD34: NO | AE34: NO | AF34: SITE DIRECTOR | AG34: ROBERT GAGLIANO | AH34: 2017-06-07 | AI34: HAMILTON | AL34: BASF CORP | AM34: 32 LOST MOUND DRIVE | AN34: CHATTANOOGA | AO34: TN | AQ34: 37406 | AR34: YES | AS34: NO | AT34: NO | AU34: NO | AV34: NO | AW34: NO | AX34: ROBERT GAGLIANO | AY34: 4234932776 | BA34: ROBERT.GAGLIANO@BASF.COM | BN34: 35.093058 | BO34: -85.258925 | BP34: 844531439 | BR34: TND990655441 | CG34: BASF CORP | CH34: 1307032 | CI34: BASF CORP | CJ34: 110000371865 | CK34: 1316215044569 | CL34: 106-99-0 | CM34: NA | CO34: TRI | CP34: Pounds | CQ34: YES | CR34: YES | CS34: NO | CT34: NO | DN34: 6 | DO34: 362 | DQ34: 362 | DR34: M2 | DS34: 19 | DU34: 19 | DV34: C | DW34: 381 | FX34: NA | FZ34: 0 | GB34: NA | GD34: 0 | GF34: 0 | GK34: NA | GM34: 0 | GO34: NA | GQ34: 0 | GS34: NA | GU34: 0 | HA34: NA | HC34: 0 | HE34: NA | HG34: 0 | HI34: NA | HK34: 0 | HM34: 0 | HQ34: 0 | HR34: 0 | HS34: 0 | HT34: 0 | HU34: 0 | HV34: 0 | HW34: 0 | HX34: 0 | HY34: 0 | HZ34: 0 | IA34: 0 | IB34: 0 | IC34: 0 | ID34: 0 | IE34: 0 | IF34: 0 | IG34: 0 | IH34: 0 | II34: 0 | IJ34: 0 | IK34: 0 | IL34: 0 | IM34: 0 | IN34: 0 | IO34: 0 | IP34: 0 | IQ34: 0 | IR34: 0 | IS34: 0 | IT34: 0 | IU34: 0 | IV34: 0 | IW34: 0 | IX34: 0 | IY34: 28500 | IZ34: 0 | JA34: 0 | JB34: 0 | JC34: 28500 | JD34: 0 | JE34: 28500 | JF34: 0 | JG34: 0 | JH34: 127000 | JI34: 127000 | JJ34: NA | JN34: NA
A35: R | B35: 2016 | C35: 37421PLYSR2200P | D35: BASF CORP | E35: 2120 POLYMER DR | F35: CHATTANOOGA | G35: TN | H35: 37421 | I35: 325211 | J35: =VLOOKUP(C35,'2016-2021 BD OES Pull_rev'!F:N, 9, FALSE) -> Processing as a Reactant | K35: TNR051055 | P35: 246.6 | Q35: NA | R35: 0 | W35: 0 | X35: 0 | Y35: 0 | Z35: 0 | AA35: 0 | AB35: 106990 | AC35: 1,3-Butadiene | AD35: NO | AE35: NO | AF35: SITE DIRECTOR | AG35: ROBERT GAGLIANO | AH35: 2017-06-07 | AI35: HAMILTON | AL35: BASF CORP | AM35: 2120 POLYMER DR | AN35: CHATTANOOGA | AO35: TN | AQ35: 37421 | AR35: YES | AS35: NO | AT35: NO | AU35: NO | AV35: NO | AW35: NO | AX35: ROBERT GAGLIANO | AY35: 4234932776 | BA35: ROBERT.GAGLIANO@BASF.COM | BN35: 35.045668 | BO35: -85.192299 | BR35: TND982118093 | CG35: BASF CORP | CH35: 1307032 | CI35: BASF CORP | CJ35: 110000752766 | CK35: 1316215044557 | CL35: 106-99-0 | CM35: NA | CO35: TRI | CP35: Pounds | CQ35: YES | CR35: YES | CS35: NO | CT35: NO | DN35: 6 | DO35: 159 | DQ35: 159 | DR35: M2 | DS35: 87.6 | DU35: 87.6 | DV35: O | DW35: 246.6 | FX35: NA | FZ35: 0 | GB35: NA | GD35: 0 | GF35: 0 | GK35: NA | GM35: 0 | GO35: NA | GQ35: 0 | GS35: NA | GU35: 0 | HA35: NA | HC35: 0 | HE35: NA | HG35: 0 | HI35: NA | HK35: 0 | HM35: 0 | HQ35: 0 | HR35: 0 | HS35: 0 | HT35: 0 | HU35: 0 | HV35: 0 | HW35: 0 | HX35: 0 | HY35: 0 | HZ35: 0 | IA35: 0 | IB35: 0 | IC35: 0 | ID35: 0 | IE35: 0 | IF35: 0 | IG35: 0 | IH35: 0 | II35: 0 | IJ35: 0 | IK35: 0 | IL35: 0 | IM35: 0 | IN35: 0 | IO35: 0 | IP35: 0 | IQ35: 0 | IR35: 0 | IS35: 0 | IT35: 0 | IU35: 0 | IV35: 0 | IW35: 0 | IX35: 0 | IY35: 0 | IZ35: 0 | JA35: 0 | JB35: 0 | JC35: 0 | JD35: 0 | JE35: 0 | JF35: 0 | JG35: 0 | JH35: 292000 | JI35: 292000 | JJ35: NA | JN35: NA
A36: R | B36: 2017 | C36: 37421PLYSR2200P | D36: BASF CORP | E36: 2120 POLYMER DR | F36: CHATTANOOGA | G36: TN | H36: 37421 | I36: 325211 | J36: =VLOOKUP(C36,'2016-2021 BD OES Pull_rev'!F:N, 9, FALSE) -> Processing as a Reactant | K36: TNR051055 | P36: 297.3 | Q36: NA | R36: 0 | W36: 0 | X36: 0 | Y36: 0 | Z36: 0 | AA36: 0 | AB36: 106990 | AC36: 1,3-Butadiene | AD36: NO | AE36: NO | AF36: SITE DIRECTOR | AG36: ROBERT GAGLIANO | AH36: 43278 | AI36: HAMILTON | AL36: BASF CORP | AM36: 2120 POLYMER DR | AN36: CHATTANOOGA | AO36: TN | AQ36: 37421 | AR36: YES | AS36: NO | AT36: NO | AU36: NO | AV36: NO | AW36: NO | AX36: ROBERT GAGLIANO | AY36: 4234932776 | BA36: ROBERT.GAGLIANO@BASF.COM | BN36: 35.045668 | BO36: -85.192299 | BR36: TND982118093 | CG36: BASF CORP | CH36: 1307032 | CI36: BASF CORP | CJ36: 110000752766 | CK36: 1317216252080 | CL36: 106-99-0 | CM36: NA | CO36: TRI | CP36: Pounds | CQ36: YES | CR36: YES | CS36: NO | CT36: NO | DN36: 6 | DO36: 238 | DQ36: 238 | DR36: M2 | DS36: 59.3 | DU36: 59.3 | DV36: C | DW36: 297.3 | FX36: NA | FZ36: 0 | GB36: NA | GD36: 0 | GF36: 0 | GK36: NA | GM36: 0 | GO36: NA | GQ36: 0 | GS36: NA | GU36: 0 | HA36: NA | HC36: 0 | HE36: NA | HG36: 0 | HI36: NA | HK36: 0 | HM36: 0 | HQ36: 0 | HR36: 0 | HS36: 0 | HT36: 0 | HU36: 0 | HV36: 0 | HW36: 0 | HX36: 0 | HY36: 0 | HZ36: 0 | IA36: 0 | IB36: 0 | IC36: 0 | ID36: 0 | IE36: 0 | IF36: 0 | IG36: 0 | IH36: 0 | II36: 0 | IJ36: 0 | IK36: 0 | IL36: 0 | IM36: 0 | IN36: 0 | IO36: 0 | IP36: 0 | IQ36: 0 | IR36: 0 | IS36: 0 | IT36: 0 | IU36: 0 | IV36: 0 | IW36: 0 | IX36: 0 | IY36: 0 | IZ36: 0 | JA36: 0 | JB36: 0 | JC36: 0 | JD36: 0 | JE36: 0 | JF36: 0 | JG36: 0 | JH36: 182000 | JI36: 182000 | JJ36: NA | JN36: NA
A37: R | B37: 2017 | C37: 37406PLYSR3805A | D37: BASF CORP | E37: 32 LOST MOUND DRIVE | F37: CHATTANOOGA | G37: TN | H37: 37406 | I37: 325212 | J37: =VLOOKUP(C37,'2016-2021 BD OES Pull_rev'!F:N, 9, FALSE) -> Processing as a Reactant | K37: TN0002861 | P37: 465 | Q37: NA | R37: 0 | W37: 0 | X37: 0 | Y37: 0 | Z37: 0 | AA37: 0 | AB37: 106990 | AC37: 1,3-Butadiene | AD37: NO | AE37: NO | AF37: SITE DIRECTOR | AG37: ROBERT GAGLIANO | AH37: 43278 | AI37: HAMILTON | AL37: BASF CORP | AM37: 32 LOST MOUND DRIVE | AN37: CHATTANOOGA | AO37: TN | AQ37: 37406 | AR37: YES | AS37: NO | AT37: NO | AU37: NO | AV37: NO | AW37: NO | AX37: ROBERT GAGLIANO | AY37: 4234932776 | BA37: ROBERT.GAGLIANO@BASF.COM | BN37: 35.093058 | BO37: -85.258925 | BP37: 844531439 | BR37: TND990655441 | CG37: BASF CORP | CH37: 1307032 | CI37: BASF CORP | CJ37: 110000371865 | CK37: 1317216266938 | CL37: 106-99-0 | CM37: NA | CO37: TRI | CP37: Pounds | CQ37: YES | CR37: YES | CS37: NO | CT37: NO | DN37: 6 | DO37: 441 | DQ37: 441 | DR37: M2 | DS37: 24 | DU37: 24 | DV37: C | DW37: 465 | FX37: NA | FZ37: 0 | GB37: NA | GD37: 0 | GF37: 0 | GK37: NA | GM37: 0 | GO37: NA | GQ37: 0 | GS37: NA | GU37: 0 | HA37: NA | HC37: 0 | HE37: NA | HG37: 0 | HI37: NA | HK37: 0 | HM37: 0 | HQ37: 0 | HR37: 0 | HS37: 0 | HT37: 0 | HU37: 0 | HV37: 0 | HW37: 0 | HX37: 0 | HY37: 0 | HZ37: 0 | IA37: 0 | IB37: 0 | IC37: 0 | ID37: 0 | IE37: 0 | IF37: 0 | IG37: 0 | IH37: 0 | II37: 0 | IJ37: 0 | IK37: 0 | IL37: 0 | IM37: 0 | IN37: 0 | IO37: 0 | IP37: 0 | IQ37: 0 | IR37: 0 | IS37: 0 | IT37: 0 | IU37: 0 | IV37: 0 | IW37: 0 | IX37: 0 | IY37: 0 | IZ37: 0 | JA37: 0 | JB37: 0 | JC37: 0 | JD37: 0 | JE37: 0 | JF37: 0 | JG37: 0 | JH37: 145000 | JI37: 145000 | JJ37: NA | JN37: NA
A38: R | B38: 2018 | C38: 37406PLYSR3805A | D38: BASF CORP | E38: 32 LOST MOUND DRIVE | F38: CHATTANOOGA | G38: TN | H38: 37406 | I38: 325212 | J38: =VLOOKUP(C38,'2016-2021 BD OES Pull_rev'!F:N, 9, FALSE) -> Processing as a Reactant | K38: TN0002861 | P38: 198 | Q38: NA | R38: 0 | W38: 0 | X38: 0 | Y38: 0 | Z38: 0 | AA38: 0 | AB38: 106990 | AC38: 1,3-Butadiene | AD38: NO | AE38: NO | AF38: SITE DIRECTOR | AG38: ROBERT GAGLIANO | AH38: 43619 | AI38: HAMILTON | AL38: BASF CORP | AM38: 32 LOST MOUND DRIVE | AN38: CHATTANOOGA | AO38: TN | AQ38: 37406 | AR38: YES | AS38: NO | AT38: NO | AU38: NO | AV38: NO | AW38: NO | AX38: ROBERT GAGLIANO | AY38: 4234932776 | BA38: ROBERT.GAGLIANO@BASF.COM | BN38: 35.093058 | BO38: -85.258925 | BP38: 844531439 | BR38: TND990655441 | CG38: BASF CORP | CH38: 1307032 | CI38: BASF CORP | CJ38: 110000371865 | CK38: 1318216796185 | CL38: 106-99-0 | CM38: NA | CN38: NO | CO38: TRI | CP38: Pounds | CQ38: YES | CR38: YES | CS38: NO | CT38: NO | DN38: 6 | DO38: 169 | DQ38: 169 | DR38: M2 | DS38: 29 | DU38: 29 | DV38: C | DW38: 198 | FX38: NA | FZ38: 0 | GB38: NA | GD38: 0 | GF38: 0 | GK38: NA | GM38: 0 | GO38: NA | GQ38: 0 | GS38: NA | GU38: 0 | HA38: NA | HC38: 0 | HE38: NA | HG38: 0 | HI38: NA | HK38: 0 | HM38: 0 | HO38: 0 | HQ38: 0 | HR38: 0 | HS38: 0 | HT38: 0 | HU38: 0 | HV38: 0 | HW38: 0 | HX38: 0 | HY38: 0 | HZ38: 0 | IA38: 0 | IB38: 0 | IC38: 0 | ID38: 0 | IE38: 0 | IF38: 0 | IG38: 0 | IH38: 0 | II38: 0 | IJ38: 0 | IK38: 0 | IL38: 0 | IM38: 0 | IN38: 0 | IO38: 0 | IP38: 0 | IQ38: 0 | IR38: 0 | IS38: 0 | IT38: 0 | IU38: 0 | IV38: 0 | IW38: 0 | IX38: 0 | IY38: 0 | IZ38: 0 | JA38: 0 | JB38: 0 | JC38: 0 | JD38: 0 | JE38: 0 | JF38: 0 | JG38: 0 | JH38: 134000 | JI38: 134000 | JJ38: NA | JN38: NA
A39: R | B39: 2018 | C39: 37421PLYSR2200P | D39: BASF CORP | E39: 2120 POLYMER DR | F39: CHATTANOOGA | G39: TN | H39: 37421 | I39: 325211 | J39: =VLOOKUP(C39,'2016-2021 BD OES Pull_rev'!F:N, 9, FALSE) -> Processing as a Reactant | K39: TNR051055 | P39: 505 | Q39: NA | R39: 0 | W39: 0 | X39: 0 | Y39: 0 | Z39: 0 | AA39: 0 | AB39: 106990 | AC39: 1,3-Butadiene | AD39: NO | AE39: NO | AF39: SITE DIRECTOR | AG39: ROBERT GAGLIANO | AH39: 43619 | AI39: HAMILTON | AL39: BASF CORP | AM39: 2120 POLYMER DR | AN39: CHATTANOOGA | AO39: TN | AQ39: 37421 | AR39: YES | AS39: NO | AT39: NO | AU39: NO | AV39: NO | AW39: NO | AX39: ROBERT GAGLIANO | AY39: 4234932776 | BA39: ROBERT.GAGLIANO@BASF.COM | BN39: 35.045668 | BO39: -85.192299 | BR39: TND982118093 | CG39: BASF CORP | CH39: 1307032 | CI39: BASF CORP | CJ39: 110000752766 | CK39: 1318216796274 | CL39: 106-99-0 | CM39: NA | CN39: NO | CO39: TRI | CP39: Pounds | CQ39: YES | CR39: YES | CS39: NO | CT39: NO | DN39: 6 | DO39: 214 | DQ39: 214 | DR39: M2 | DS39: 291 | DU39: 291 | DV39: C | DW39: 505 | FX39: NA | FZ39: 0 | GB39: NA | GD39: 0 | GF39: 0 | GK39: NA | GM39: 0 | GO39: NA | GQ39: 0 | GS39: NA | GU39: 0 | HA39: NA | HC39: 0 | HE39: NA | HG39: 0 | HI39: NA | HK39: 0 | HM39: 0 | HO39: 0 | HQ39: 0 | HR39: 0 | HS39: 0 | HT39: 0 | HU39: 0 | HV39: 0 | HW39: 0 | HX39: 0 | HY39: 0 | HZ39: 0 | IA39: 0 | IB39: 0 | IC39: 0 | ID39: 0 | IE39: 0 | IF39: 0 | IG39: 0 | IH39: 0 | II39: 0 | IJ39: 0 | IK39: 0 | IL39: 0 | IM39: 0 | IN39: 0 | IO39: 0 | IP39: 0 | IQ39: 0 | IR39: 0 | IS39: 0 | IT39: 0 | IU39: 0 | IV39: 0 | IW39: 0 | IX39: 0 | IY39: 0 | IZ39: 0 | JA39: 0 | JB39: 0 | JC39: 0 | JD39: 0 | JE39: 0 | JF39: 0 | JG39: 0 | JH39: 830000 | JI39: 830000 | JJ39: NA | JN39: NA
A40: R | B40: 2019 | C40: 37406PLYSR3805A | D40: BASF CORP | E40: 32 LOST MOUND DRIVE | F40: CHATTANOOGA | G40: TN | H40: 37406 | I40: 325212 | J40: =VLOOKUP(C40,'2016-2021 BD OES Pull_rev'!F:N, 9, FALSE) -> Processing as a Reactant | K40: TN0002861 | P40: 235 | Q40: NA | R40: 0 | W40: 0 | X40: 0 | Y40: 0 | Z40: 0 | AA40: 0 | AB40: 106990 | AC40: 1,3-Butadiene | AD40: NO | AE40: NO | AF40: SITE DIRECTOR | AG40: ROBERT GAGLIANO | AH40: 43994 | AI40: HAMILTON | AL40: BASF CORP | AM40: 32 LOST MOUND DRIVE | AN40: CHATTANOOGA | AO40: TN | AQ40: 37406 | AR40: YES | AS40: NO | AT40: NO | AU40: NO | AV40: NO | AW40: NO | AX40: ROBERT GAGLIANO | AY40: 4234932776 | BA40: ROBERT.GAGLIANO@BASF.COM | BN40: 35.093058 | BO40: -85.258925 | BP40: 844531439 | BR40: TND990655441 | CG40: BASF CORP | CH40: 1307032 | CI40: BASF CORP | CJ40: 110000371865 | CK40: 1319217876806 | CL40: 106-99-0 | CM40: NA | CN40: NO | CO40: TRI | CP40: Pounds | CQ40: YES | CR40: YES | CS40: NO | CT40: NO | DN40: 6 | DO40: 213 | DQ40: 213 | DR40: M2 | DS40: 22 | DU40: 22 | DV40: C | DW40: 235 | FX40: NA | FZ40: 0 | GB40: NA | GD40: 0 | GF40: 0 | GK40: NA | GM40: 0 | GO40: NA | GQ40: 0 | GS40: NA | GU40: 0 | HA40: NA | HC40: 0 | HE40: NA | HG40: 0 | HI40: NA | HK40: 0 | HM40: 0 | HO40: 0 | HQ40: 0 | HR40: 0 | HS40: 0 | HT40: 0 | HU40: 0 | HV40: 0 | HW40: 0 | HX40: 0 | HY40: 0 | HZ40: 0 | IA40: 0 | IB40: 0 | IC40: 0 | ID40: 0 | IE40: 0 | IF40: 0 | IG40: 0 | IH40: 0 | II40: 0 | IJ40: 0 | IK40: 0 | IL40: 0 | IM40: 0 | IN40: 0 | IO40: 0 | IP40: 0 | IQ40: 0 | IR40: 0 | IS40: 0 | IT40: 0 | IU40: 0 | IV40: 0 | IW40: 0 | IX40: 0 | IY40: 0 | IZ40: 0 | JA40: 0 | JB40: 0 | JC40: 0 | JD40: 0 | JE40: 0 | JF40: 0 | JG40: 0 | JH40: 95200 | JI40: 95200 | JJ40: NA | JN40: NA | KF40: CLEAN HARBORS DEER PARK | KG40: 2027 INDEPENDENCE PKWY S | KH40: DEER PARK | KI40: HARRIS | KJ40: TX | KL40: 77536 | KM40: TXD055141378 | KN40: 110000463365
A41: R | B41: 2019 | C41: 37421PLYSR2200P | D41: BASF CORP | E41: 2120 POLYMER DR | F41: CHATTANOOGA | G41: TN | H41: 37421 | I41: 325211 | J41: =VLOOKUP(C41,'2016-2021 BD OES Pull_rev'!F:N, 9, FALSE) -> Processing as a Reactant | K41: TNR051055 | P41: 342 | Q41: NA | R41: 0 | W41: 0 | X41: 0 | Y41: 0 | Z41: 0 | AA41: 0 | AB41: 106990 | AC41: 1,3-Butadiene | AD41: NO | AE41: NO | AF41: SITE DIRECTOR | AG41: ROBERT GAGLIANO | AH41: 44000 | AI41: HAMILTON | AL41: BASF CORP | AM41: 2120 POLYMER DR | AN41: CHATTANOOGA | AO41: TN | AQ41: 37421 | AR41: YES | AS41: NO | AT41: NO | AU41: NO | AV41: NO | AW41: NO | AX41: ROBERT GAGLIANO | AY41: 4234932776 | BA41: ROBERT.GAGLIANO@BASF.COM | BN41: 35.045668 | BO41: -85.192299 | BR41: TND982118093 | CG41: BASF CORP | CH41: 1307032 | CI41: BASF CORP | CJ41: 110000752766 | CK41: 1319217947480 | CL41: 106-99-0 | CM41: NA | CN41: NO | CO41: TRI | CP41: Pounds | CQ41: YES | CR41: YES | CS41: NO | CT41: NO | DN41: 6 | DO41: 241 | DQ41: 241 | DR41: M2 | DS41: 101 | DU41: 101 | DV41: C | DW41: 342 | FX41: NA | FZ41: 0 | GB41: NA | GD41: 0 | GF41: 0 | GK41: NA | GM41: 0 | GO41: NA | GQ41: 0 | GS41: NA | GU41: 0 | HA41: NA | HC41: 0 | HE41: NA | HG41: 0 | HI41: NA | HK41: 0 | HM41: 0 | HO41: 0 | HQ41: 0 | HR41: 0 | HS41: 0 | HT41: 0 | HU41: 0 | HV41: 0 | HW41: 0 | HX41: 0 | HY41: 0 | HZ41: 0 | IA41: 0 | IB41: 0 | IC41: 0 | ID41: 0 | IE41: 0 | IF41: 0 | IG41: 0 | IH41: 0 | II41: 0 | IJ41: 0 | IK41: 0 | IL41: 0 | IM41: 0 | IN41: 0 | IO41: 0 | IP41: 0 | IQ41: 0 | IR41: 0 | IS41: 0 | IT41: 0 | IU41: 0 | IV41: 0 | IW41: 0 | IX41: 0 | IY41: 0 | IZ41: 0 | JA41: 0 | JB41: 0 | JC41: 0 | JD41: 0 | JE41: 0 | JF41: 0 | JG41: 0 | JH41: 155000 | JI41: 155000 | JJ41: NA | JN41: NA
A42: R | B42: 2020 | C42: 37421PLYSR2200P | D42: BASF CORP | E42: 2120 POLYMER DR | F42: CHATTANOOGA | G42: TN | H42: 37421 | I42: 325211 | J42: =VLOOKUP(C42,'2016-2021 BD OES Pull_rev'!F:N, 9, FALSE) -> Processing as a Reactant | K42: TNR051055 | P42: 500 | Q42: NA | R42: 0 | W42: 0 | X42: 0 | Y42: 0 | Z42: 0 | AA42: 0 | AB42: 106990 | AC42: 1,3-Butadiene | AD42: NO | AE42: NO | AF42: SITE DIRECTOR | AG42: ROBERT GAGLIANO | AH42: 44348 | AI42: HAMILTON | AL42: BASF CORP | AM42: 2120 POLYMER DR | AN42: CHATTANOOGA | AO42: TN | AQ42: 37421 | AR42: YES | AS42: NO | AT42: NO | AU42: NO | AV42: NO | AW42: NO | AX42: ROBERT GAGLIANO | AY42: 4234932776 | BA42: ROBERT.GAGLIANO@BASF.COM | BN42: 35.045668 | BO42: -85.192299 | BR42: TND982118093 | CG42: BASF CORP | CH42: 1307032 | CI42: BASF CORP | CJ42: 110000752766 | CK42: 1320218687123 | CL42: 106-99-0 | CM42: NA | CN42: NO | CO42: TRI | CP42: Pounds | CQ42: YES | CR42: YES | CS42: NO | CT42: NO | DN42: 6 | DP42: B | DQ42: 250 | DR42: O | DT42: B | DU42: 250 | DV42: O | DW42: 500 | FX42: NA | FZ42: 0 | GB42: NA | GD42: 0 | GF42: 0 | GK42: NA | GM42: 0 | GO42: NA | GQ42: 0 | GS42: NA | GU42: 0 | HA42: NA | HC42: 0 | HE42: NA | HG42: 0 | HI42: NA | HK42: 0 | HM42: 0 | HO42: 0 | HQ42: 0 | HR42: 0 | HS42: 0 | HT42: 0 | HU42: 0 | HV42: 0 | HW42: 0 | HX42: 0 | HY42: 0 | HZ42: 0 | IA42: 0 | IB42: 0 | IC42: 0 | ID42: 0 | IE42: 0 | IF42: 0 | IG42: 0 | IH42: 0 | II42: 0 | IJ42: 0 | IK42: 0 | IL42: 0 | IM42: 0 | IN42: 0 | IO42: 0 | IP42: 0 | IQ42: 0 | IR42: 0 | IS42: 0 | IT42: 0 | IU42: 0 | IV42: 0 | IW42: 0 | IX42: 0 | IY42: 0 | IZ42: 0 | JA42: 0 | JB42: 0 | JC42: 0 | JD42: 0 | JE42: 0 | JF42: 0 | JG42: 0 | JH42: 148800 | JI42: 148800 | JJ42: NA | JN42: NA | JV42: SANIATRY DISTRICT OF HAMMOND | JW42: 5143 COLUMBIA AVENUE | JX42: HAMMOND | JY42: IN | JZ42: LAKE | KA42: 46320 | KB42: 110020660578 | KC42: 0 | KD42: 0
A43: R | B43: 2020 | C43: 37406PLYSR3805A | D43: BASF CORP | E43: 32 LOST MOUND DRIVE | F43: CHATTANOOGA | G43: TN | H43: 37406 | I43: 325212 | J43: =VLOOKUP(C43,'2016-2021 BD OES Pull_rev'!F:N, 9, FALSE) -> Processing as a Reactant | K43: TN0002861 | P43: 500 | Q43: NA | R43: 0 | W43: 0 | X43: 0 | Y43: 0 | Z43: 0 | AA43: 0 | AB43: 106990 | AC43: 1,3-Butadiene | AD43: NO | AE43: NO | AF43: SITE DIRECTOR | AG43: ROBERT GAGLIANO | AH43: 44348 | AI43: HAMILTON | AL43: BASF CORP | AM43: 32 LOST MOUND DRIVE | AN43: CHATTANOOGA | AO43: TN | AQ43: 37406 | AR43: YES | AS43: NO | AT43: NO | AU43: NO | AV43: NO | AW43: NO | AX43: ROBERT GAGLIANO | AY43: 4234932776 | BA43: ROBERT.GAGLIANO@BASF.COM | BN43: 35.093058 | BO43: -85.258925 | BP43: 844531439 | BR43: TND990655441 | CG43: BASF CORP | CH43: 1307032 | CI43: BASF CORP | CJ43: 110000371865 | CK43: 1320218687198 | CL43: 106-99-0 | CM43: NA | CN43: NO | CO43: TRI | CP43: Pounds | CQ43: YES | CR43: YES | CS43: NO | CT43: NO | DN43: 6 | DP43: B | DQ43: 250 | DR43: O | DT43: B | DU43: 250 | DV43: O | DW43: 500 | FX43: NA | FZ43: 0 | GB43: NA | GD43: 0 | GF43: 0 | GK43: NA | GM43: 0 | GO43: NA | GQ43: 0 | GS43: NA | GU43: 0 | HA43: NA | HC43: 0 | HE43: NA | HG43: 0 | HI43: NA | HK43: 0 | HM43: 0 | HO43: 0 | HQ43: 0 | HR43: 0 | HS43: 0 | HT43: 0 | HU43: 0 | HV43: 0 | HW43: 0 | HX43: 0 | HY43: 0 | HZ43: 0 | IA43: 0 | IB43: 0 | IC43: 0 | ID43: 0 | IE43: 0 | IF43: 0 | IG43: 0 | IH43: 0 | II43: 0 | IJ43: 0 | IK43: 0 | IL43: 0 | IM43: 0 | IN43: 0 | IO43: 0 | IP43: 0 | IQ43: 0 | IR43: 0 | IS43: 0 | IT43: 0 | IU43: 0 | IV43: 0 | IW43: 0 | IX43: 0 | IY43: 0 | IZ43: 0 | JA43: 0 | JB43: 0 | JC43: 0 | JD43: 0 | JE43: 0 | JF43: 0 | JG43: 0 | JH43: 102800 | JI43: 102800 | JJ43: NA | JN43: NA
A44: R | B44: 2021 | C44: 37421PLYSR2200P | D44: BASF CORP | E44: 2120 POLYMER DR | F44: CHATTANOOGA | G44: TN | H44: 37421 | I44: 325211 | J44: =VLOOKUP(C44,'2016-2021 BD OES Pull_rev'!F:N, 9, FALSE) -> Processing as a Reactant | K44: TNR051055 | P44: 293 | Q44: NA | R44: 0 | W44: 0 | X44: 0 | Y44: 0 | Z44: 0 | AA44: 0 | AB44: 106990 | AC44: 1,3-Butadiene | AD44: NO | AE44: NO | AF44: SITE DIRECTOR | AG44: ROBERT GAGLIANO | AH44: 44727 | AI44: HAMILTON | AL44: BASF CORP | AM44: 2120 POLYMER DR | AN44: CHATTANOOGA | AO44: TN | AQ44: 37421 | AR44: YES | AS44: NO | AT44: NO | AU44: NO | AV44: NO | AW44: NO | AX44: ROBERT GAGLIANO | AY44: 4234932776 | BA44: ROBERT.GAGLIANO@BASF.COM | BN44: 35.045668 | BO44: -85.192299 | BR44: TND982118093 | CG44: BASF CORP | CH44: 1307032 | CI44: BASF CORP | CJ44: 110000752766 | CK44: 1321219722206 | CL44: 106-99-0 | CM44: NA | CN44: NO | CO44: TRI | CP44: Pounds | CQ44: YES | CR44: YES | CS44: NO | CT44: NO | DN44: 6 | DP44: A | DQ44: 5 | DR44: O | DS44: 288 | DU44: 288 | DV44: O | DW44: 293 | FX44: NA | FZ44: 0 | GB44: NA | GD44: 0 | GF44: 0 | GK44: NA | GM44: 0 | GO44: NA | GQ44: 0 | GS44: NA | GU44: 0 | HA44: NA | HC44: 0 | HE44: NA | HG44: 0 | HI44: NA | HK44: 0 | HM44: 0 | HO44: 0 | HQ44: 0 | HR44: 0 | HS44: 0 | HT44: 0 | HU44: 0 | HV44: 0 | HW44: 0 | HX44: 0 | HY44: 0 | HZ44: 0 | IA44: 0 | IB44: 0 | IC44: 0 | ID44: 0 | IE44: 0 | IF44: 0 | IG44: 0 | IH44: 0 | II44: 0 | IJ44: 0 | IK44: 0 | IL44: 0 | IM44: 0 | IN44: 0 | IO44: 0 | IP44: 0 | IQ44: 0 | IR44: 0 | IS44: 0 | IT44: 0 | IU44: 0 | IV44: 0 | IW44: 0 | IX44: 0 | IY44: 0 | IZ44: 0 | JA44: 0 | JB44: 0 | JC44: 0 | JD44: 0 | JE44: 0 | JF44: 0 | JG44: 0 | JH44: 171000 | JI44: 171000 | JJ44: NA | JN44: NA
A45: R | B45: 2021 | C45: 37406PLYSR3805A | D45: BASF CORP | E45: 32 LOST MOUND DRIVE | F45: CHATTANOOGA | G45: TN | H45: 37406 | I45: 325212 | J45: =VLOOKUP(C45,'2016-2021 BD OES Pull_rev'!F:N, 9, FALSE) -> Processing as a Reactant | K45: TN0002861 | P45: 500 | Q45: NA | R45: 0 | W45: 0 | X45: 0 | Y45: 0 | Z45: 0 | AA45: 0 | AB45: 106990 | AC45: 1,3-Butadiene | AD45: NO | AE45: NO | AF45: SITE DIRECTOR | AG45: ROBERT GAGLIANO | AH45: 44727 | AI45: HAMILTON | AL45: BASF CORP | AM45: 32 LOST MOUND DRIVE | AN45: CHATTANOOGA | AO45: TN | AQ45: 37406 | AR45: YES | AS45: NO | AT45: NO | AU45: NO | AV45: NO | AW45: NO | AX45: ROBERT GAGLIANO | AY45: 4234932776 | BA45: ROBERT.GAGLIANO@BASF.COM | BN45: 35.093058 | BO45: -85.258925 | BP45: 844531439 | BR45: TND990655441 | CG45: BASF CORP | CH45: 1307032 | CI45: BASF CORP | CJ45: 110000371865 | CK45: 1321219723828 | CL45: 106-99-0 | CM45: NA | CN45: NO | CO45: TRI | CP45: Pounds | CQ45: YES | CR45: YES | CS45: NO | CT45: NO | DN45: 6 | DP45: B | DQ45: 250 | DR45: O | DT45: B | DU45: 250 | DV45: O | DW45: 500 | FX45: NA | FZ45: 0 | GB45: NA | GD45: 0 | GF45: 0 | GK45: NA | GM45: 0 | GO45: NA | GQ45: 0 | GS45: NA | GU45: 0 | HA45: NA | HC45: 0 | HE45: NA | HG45: 0 | HI45: NA | HK45: 0 | HM45: 0 | HO45: 0 | HQ45: 0 | HR45: 0 | HS45: 0 | HT45: 0 | HU45: 0 | HV45: 0 | HW45: 0 | HX45: 0 | HY45: 0 | HZ45: 0 | IA45: 0 | IB45: 0 | IC45: 0 | ID45: 0 | IE45: 0 | IF45: 0 | IG45: 0 | IH45: 0 | II45: 0 | IJ45: 0 | IK45: 0 | IL45: 0 | IM45: 0 | IN45: 0 | IO45: 0 | IP45: 0 | IQ45: 0 | IR45: 0 | IS45: 0 | IT45: 0 | IU45: 0 | IV45: 0 | IW45: 0 | IX45: 0 | IY45: 0 | IZ45: 0 | JA45: 0 | JB45: 0 | JC45: 0 | JD45: 0 | JE45: 0 | JF45: 0 | JG45: 0 | JH45: 109480 | JI45: 109480 | JJ45: NA | JN45: NA
A46: R | B46: 2016 | C46: 15061PLYSR370FR | D46: BASF CORP | E46: 370 FRANKFORT RD | F46: MONACA | G46: PA | H46: 15061 | I46: 325211 | J46: =VLOOKUP(C46,'2016-2021 BD OES Pull_rev'!F:N, 9, FALSE) -> Processing as a Reactant | K46: PA0092223 | P46: 4089 | Q46: RACCOON CREEK | R46: 0 | S46: C | W46: 1 | X46: 0 | Y46: 0 | Z46: 0 | AA46: 0 | AB46: 106990 | AC46: 1,3-Butadiene | AD46: NO | AE46: NO | AF46: SITE DIRECTOR | AG46: ELKE BLEUEL | AH46: 2017-06-28 | AI46: BEAVER | AL46: BASF CORP | AM46: 370 FRANKFORT RD | AN46: MONACA | AO46: PA | AQ46: 15061 | AR46: YES | AS46: NO | AT46: NO | AU46: NO | AV46: NO | AW46: NO | AX46: BOB NELSON | AY46: 9732455230 | BA46: ROBERTO.NELSON@BASF.COM | BI46: 325212 | BN46: 40.660554 | BO46: -80.347521 | BP46: 37247319 | BR46: PAD037247319 | CG46: BASF CORP | CH46: 71014385 | CI46: BASF CORP | CJ46: 110000329056 | CK46: 1316215505280 | CL46: 106-99-0 | CM46: NA | CO46: TRI | CP46: Pounds | CQ46: YES | CR46: YES | CS46: NO | CT46: NO | DN46: 5 | DO46: 3920 | DQ46: 3920 | DR46: E1 | DS46: 169 | DU46: 169 | DV46: O | DW46: 4089 | DX46: 0 | DZ46: 0 | FX46: NA | FZ46: 0 | GB46: NA | GD46: 0 | GF46: 0 | GK46: NA | GM46: 0 | GO46: NA | GQ46: 0 | GS46: NA | GU46: 0 | HA46: NA | HC46: 0 | HE46: NA | HG46: 0 | HI46: NA | HK46: 0 | HM46: 0 | HQ46: 0 | HR46: 0 | HS46: 0 | HT46: 0 | HU46: 0 | HV46: 0 | HW46: 0 | HX46: 0 | HY46: 0 | HZ46: 0 | IA46: 0 | IB46: 0 | IC46: 0 | ID46: 0 | IE46: 0 | IF46: 0 | IG46: 0 | IH46: 0 | II46: 0 | IJ46: 0 | IK46: 0 | IL46: 0 | IM46: 0 | IN46: 0 | IO46: 0 | IP46: 0 | IQ46: 0 | IR46: 0 | IS46: 0 | IT46: 0 | IU46: 0 | IV46: 0 | IW46: 0 | IX46: 0 | IY46: 0 | IZ46: 0 | JA46: 0 | JB46: 0 | JC46: 0 | JD46: 0 | JE46: 0 | JF46: 0 | JG46: 0 | JH46: 84000 | JI46: 84000 | JJ46: NA | JN46: NA
A47: R | B47: 2017 | C47: 15061PLYSR370FR | D47: BASF CORP | E47: 370 FRANKFORT RD | F47: MONACA | G47: PA | H47: 15061 | I47: 325211 | J47: =VLOOKUP(C47,'2016-2021 BD OES Pull_rev'!F:N, 9, FALSE) -> Processing as a Reactant | K47: PA0092223 | P47: 4103 | Q47: RACCOON CREEK | R47: 0 | S47: C | W47: 1 | X47: 0 | Y47: 0 | Z47: 0 | AA47: 0 | AB47: 106990 | AC47: 1,3-Butadiene | AD47: NO | AE47: NO | AF47: SITE DIRECTOR | AG47: ELKE BLEUEL | AH47: 43275 | AI47: BEAVER | AL47: BASF CORP | AM47: 370 FRANKFORT RD | AN47: MONACA | AO47: PA | AQ47: 15061 | AR47: YES | AS47: NO | AT47: NO | AU47: NO | AV47: NO | AW47: NO | AX47: BOB NELSON | AY47: 9732455230 | BA47: ROBERTO.NELSON@BASF.COM | BI47: 325212 | BN47: 40.660554 | BO47: -80.347521 | BP47: 37247319 | BR47: PAD037247319 | CG47: BASF CORP | CH47: 71014385 | CI47: BASF CORP | CJ47: 110000329056 | CK47: 1317216127656 | CL47: 106-99-0 | CM47: NA | CO47: TRI | CP47: Pounds | CQ47: YES | CR47: YES | CS47: NO | CT47: NO | DN47: 5 | DO47: 3920 | DQ47: 3920 | DR47: E1 | DS47: 183 | DU47: 183 | DV47: O | DW47: 4103 | DX47: 0 | DZ47: 0 | FX47: NA | FZ47: 0 | GB47: NA | GD47: 0 | GF47: 0 | GK47: NA | GM47: 0 | GO47: NA | GQ47: 0 | GS47: NA | GU47: 0 | HA47: NA | HC47: 0 | HE47: NA | HG47: 0 | HI47: NA | HK47: 0 | HM47: 0 | HQ47: 0 | HR47: 0 | HS47: 0 | HT47: 0 | HU47: 0 | HV47: 0 | HW47: 0 | HX47: 0 | HY47: 0 | HZ47: 0 | IA47: 0 | IB47: 0 | IC47: 0 | ID47: 0 | IE47: 0 | IF47: 0 | IG47: 0 | IH47: 0 | II47: 0 | IJ47: 0 | IK47: 0 | IL47: 0 | IM47: 0 | IN47: 0 | IO47: 0 | IP47: 0 | IQ47: 0 | IR47: 0 | IS47: 0 | IT47: 0 | IU47: 0 | IV47: 0 | IW47: 0 | IX47: 0 | IY47: 0 | IZ47: 0 | JA47: 0 | JB47: 0 | JC47: 0 | JD47: 0 | JE47: 0 | JF47: 0 | JG47: 0 | JH47: 91300 | JI47: 91300 | JJ47: NA | JN47: NA
A48: R | B48: 2018 | C48: 15061PLYSR370FR | D48: BASF CORP | E48: 370 FRANKFORT RD | F48: MONACA | G48: PA | H48: 15061 | I48: 325211 | J48: =VLOOKUP(C48,'2016-2021 BD OES Pull_rev'!F:N, 9, FALSE) -> Processing as a Reactant | K48: PA0092223 | P48: 4108 | Q48: RACCOON CREEK | R48: 0 | S48: C | W48: 1 | X48: 0 | Y48: 0 | Z48: 0 | AA48: 0 | AB48: 106990 | AC48: 1,3-Butadiene | AD48: NO | AE48: NO | AF48: SITE DIRECTOR | AG48: ROBERT HULL | AH48: 43643 | AI48: BEAVER | AL48: BASF CORP | AM48: 370 FRANKFORT RD | AN48: MONACA | AO48: PA | AQ48: 15061 | AR48: YES | AS48: NO | AT48: NO | AU48: NO | AV48: NO | AW48: NO | AX48: BOB NELSON | AY48: 9732455230 | BA48: ROBERTO.NELSON@BASF.COM | BI48: 325212 | BN48: 40.660554 | BO48: -80.347521 | BP48: 37247319 | BR48: PAD037247319 | CG48: BASF CORP | CH48: 71014385 | CI48: BASF CORP | CJ48: 110000329056 | CK48: 1318217246711 | CL48: 106-99-0 | CM48: NA | CN48: NO | CO48: TRI | CP48: Pounds | CQ48: YES | CR48: YES | CS48: NO | CT48: NO | DN48: 6 | DO48: 3920 | DQ48: 3920 | DR48: E1 | DS48: 188 | DU48: 188 | DV48: O | DW48: 4108 | DX48: 0 | DZ48: 0 | FX48: NA | FZ48: 0 | GB48: NA | GD48: 0 | GF48: 0 | GK48: NA | GM48: 0 | GO48: NA | GQ48: 0 | GS48: NA | GU48: 0 | HA48: NA | HC48: 0 | HE48: NA | HG48: 0 | HI48: NA | HK48: 0 | HM48: 0 | HO48: 0 | HQ48: 0 | HR48: 0 | HS48: 0 | HT48: 0 | HU48: 0 | HV48: 0 | HW48: 0 | HX48: 0 | HY48: 0 | HZ48: 0 | IA48: 0 | IB48: 0 | IC48: 0 | ID48: 0 | IE48: 0 | IF48: 0 | IG48: 0 | IH48: 0 | II48: 0 | IJ48: 0 | IK48: 0 | IL48: 0 | IM48: 0 | IN48: 0 | IO48: 0 | IP48: 0 | IQ48: 0 | IR48: 0 | IS48: 0 | IT48: 0 | IU48: 0 | IV48: 0 | IW48: 0 | IX48: 0 | IY48: 0 | IZ48: 0 | JA48: 0 | JB48: 0 | JC48: 0 | JD48: 0 | JE48: 0 | JF48: 0 | JG48: 0 | JH48: 91500 | JI48: 91500 | JJ48: NA | JN48: NA
A49: R | B49: 2019 | C49: 15061PLYSR370FR | D49: BASF CORP | E49: 370 FRANKFORT RD | F49: MONACA | G49: PA | H49: 15061 | I49: 325211 | J49: =VLOOKUP(C49,'2016-2021 BD OES Pull_rev'!F:N, 9, FALSE) -> Processing as a Reactant | K49: PA0092223 | P49: 4154 | Q49: RACCOON CREEK | R49: 0 | S49: C | W49: 1 | X49: 0 | Y49: 0 | Z49: 0 | AA49: 0 | AB49: 106990 | AC49: 1,3-Butadiene | AD49: NO | AE49: NO | AF49: SITE DIRECTOR | AG49: ROBERT HULL | AH49: 44407 | AI49: BEAVER | AL49: BASF CORP | AM49: 370 FRANKFORT RD | AN49: MONACA | AO49: PA | AQ49: 15061 | AR49: YES | AS49: NO | AT49: NO | AU49: NO | AV49: NO | AW49: NO | AX49: BOB NELSON | AY49: 9732455230 | BA49: ROBERTO.NELSON@BASF.COM | BI49: 325212 | BN49: 40.660554 | BO49: -80.347521 | BP49: 37247319 | BR49: PAD037247319 | CG49: BASF CORP | CH49: 71014385 | CI49: BASF CORP | CJ49: 110000329056 | CK49: 1319219406269 | CL49: 106-99-0 | CM49: NA | CN49: NO | CO49: TRI | CP49: Pounds | CQ49: YES | CR49: YES | CS49: NO | CT49: NO | CU49: RR5 | DN49: 6 | DO49: 3955 | DQ49: 3955 | DR49: E2 | DS49: 199 | DU49: 199 | DV49: O | DW49: 4154 | DX49: 0 | DZ49: 0 | FX49: NA | FZ49: 0 | GB49: NA | GD49: 0 | GF49: 0 | GK49: NA | GM49: 0 | GO49: NA | GQ49: 0 | GS49: NA | GU49: 0 | HA49: NA | HC49: 0 | HE49: NA | HG49: 0 | HI49: NA | HK49: 0 | HM49: 0 | HO49: 0 | HQ49: 0 | HR49: 0 | HS49: 0 | HT49: 0 | HU49: 0 | HV49: 0 | HW49: 0 | HX49: 0 | HY49: 0 | HZ49: 0 | IA49: 0 | IB49: 0 | IC49: 0 | ID49: 0 | IE49: 0 | IF49: 0 | IG49: 0 | IH49: 0 | II49: 0 | IJ49: 0 | IK49: 0 | IL49: 0 | IM49: 0 | IN49: 0 | IO49: 0 | IP49: 0 | IQ49: 0 | IR49: 0 | IS49: 0 | IT49: 0 | IU49: 0 | IV49: 0 | IW49: 0 | IX49: 0 | IY49: 0 | IZ49: 0 | JA49: 0 | JB49: 0 | JC49: 0 | JD49: 0 | JE49: 0 | JF49: 0 | JG49: 0 | JH49: 99000 | JI49: 99000 | JJ49: NA | JN49: NA | KF49: CLEAN HARBORS LAPORTE | KG49: 500 500 INDEPENDENCE PKWY S | KH49: LA PORTE | KI49: HARRIS | KJ49: TX | KL49: 775719768 | KM49: TXD982290140 | KN49: 110000748772
A50: R | B50: 2020 | C50: 15061PLYSR370FR | D50: BASF CORP | E50: 370 FRANKFORT RD | F50: MONACA | G50: PA | H50: 15061 | I50: 325211 | J50: =VLOOKUP(C50,'2016-2021 BD OES Pull_rev'!F:N, 9, FALSE) -> Processing as a Reactant | K50: PA0092223 | P50: 4091 | Q50: RACCOON CREEK | R50: 0 | S50: C | W50: 1 | X50: 0 | Y50: 0 | Z50: 0 | AA50: 0 | AB50: 106990 | AC50: 1,3-Butadiene | AD50: NO | AE50: NO | AF50: SITE DIRECTOR | AG50: ROBERT HULL | AH50: 44375 | AI50: BEAVER | AL50: BASF CORP | AM50: 370 FRANKFORT RD | AN50: MONACA | AO50: PA | AQ50: 15061 | AR50: YES | AS50: NO | AT50: NO | AU50: NO | AV50: NO | AW50: NO | AX50: BOB NELSON | AY50: 9732455230 | BA50: ROBERTO.NELSON@BASF.COM | BI50: 325212 | BN50: 40.660554 | BO50: -80.347521 | BP50: 37247319 | BR50: PAD037247319 | CG50: BASF CORP | CH50: 71014385 | CI50: BASF CORP | CJ50: 110000329056 | CK50: 1320219047368 | CL50: 106-99-0 | CM50: NA | CN50: NO | CO50: TRI | CP50: Pounds | CQ50: YES | CR50: YES | CS50: NO | CT50: NO | DN50: 6 | DO50: 3920 | DQ50: 3920 | DR50: C | DS50: 171 | DU50: 171 | DV50: C | DW50: 4091 | DX50: 0 | DZ50: 0 | FX50: NA | FZ50: 0 | GB50: NA | GD50: 0 | GF50: 0 | GK50: NA | GM50: 0 | GO50: NA | GQ50: 0 | GS50: NA | GU50: 0 | HA50: NA | HC50: 0 | HE50: NA | HG50: 0 | HI50: NA | HK50: 0 | HM50: 0 | HO50: 0 | HQ50: 0 | HR50: 0 | HS50: 0 | HT50: 0 | HU50: 0 | HV50: 0 | HW50: 0 | HX50: 0 | HY50: 0 | HZ50: 0 | IA50: 0 | IB50: 0 | IC50: 0 | ID50: 0 | IE50: 0 | IF50: 0 | IG50: 0 | IH50: 0 | II50: 0 | IJ50: 0 | IK50: 0 | IL50: 0 | IM50: 0 | IN50: 0 | IO50: 0 | IP50: 0 | IQ50: 0 | IR50: 0 | IS50: 0 | IT50: 0 | IU50: 0 | IV50: 0 | IW50: 0 | IX50: 0 | IY50: 0 | IZ50: 0 | JA50: 0 | JB50: 0 | JC50: 0 | JD50: 0 | JE50: 0 | JF50: 0 | JG50: 0 | JH50: 85236 | JI50: 85236 | JJ50: NA | JN50: NA
A51: R | B51: 2021 | C51: 15061PLYSR370FR | D51: BASF CORP | E51: 370 FRANKFORT RD | F51: MONACA | G51: PA | H51: 15061 | I51: 325211 | J51: =VLOOKUP(C51,'2016-2021 BD OES Pull_rev'!F:N, 9, FALSE) -> Processing as a Reactant | K51: PA0092223 | P51: 4043 | Q51: RACCOON CREEK | R51: 0 | S51: C | W51: 1 | X51: 0 | Y51: 0 | Z51: 0 | AA51: 0 | AB51: 106990 | AC51: 1,3-Butadiene | AD51: NO | AE51: NO | AF51: SITE DIRECTOR | AG51: ROBERT HULL | AH51: 44741 | AI51: BEAVER | AL51: BASF CORP | AM51: 370 FRANKFORT RD | AN51: MONACA | AO51: PA | AQ51: 15061 | AR51: YES | AS51: NO | AT51: NO | AU51: NO | AV51: NO | AW51: NO | AX51: BOB NELSON | AY51: 9732455230 | BA51: ROBERTO.NELSON@BASF.COM | BI51: 325212 | BN51: 40.660554 | BO51: -80.347521 | BP51: 37247319 | BR51: PAD037247319 | CG51: BASF CORP | CH51: 71014385 | CI51: BASF CORP | CJ51: 110000329056 | CK51: 1321220251464 | CL51: 106-99-0 | CM51: NA | CN51: NO | CO51: TRI | CP51: Pounds | CQ51: YES | CR51: YES | CS51: NO | CT51: NO | DN51: 6 | DO51: 3920 | DQ51: 3920 | DR51: C | DS51: 123 | DU51: 123 | DV51: C | DW51: 4043 | DX51: 0 | DZ51: 0 | FX51: NA | FZ51: 0 | GB51: NA | GD51: 0 | GF51: 0 | GK51: NA | GM51: 0 | GO51: NA | GQ51: 0 | GS51: NA | GU51: 0 | HA51: NA | HC51: 0 | HE51: NA | HG51: 0 | HI51: NA | HK51: 0 | HM51: 0 | HO51: 0 | HQ51: 0 | HR51: 0 | HS51: 0 | HT51: 0 | HU51: 0 | HV51: 0 | HW51: 0 | HX51: 0 | HY51: 0 | HZ51: 0 | IA51: 0 | IB51: 0 | IC51: 0 | ID51: 0 | IE51: 0 | IF51: 0 | IG51: 0 | IH51: 0 | II51: 0 | IJ51: 0 | IK51: 0 | IL51: 0 | IM51: 0 | IN51: 0 | IO51: 0 | IP51: 0 | IQ51: 0 | IR51: 0 | IS51: 0 | IT51: 0 | IU51: 0 | IV51: 0 | IW51: 0 | IX51: 0 | IY51: 0 | IZ51: 0 | JA51: 0 | JB51: 0 | JC51: 0 | JD51: 0 | JE51: 0 | JF51: 0 | JG51: 0 | JH51: 61560 | JI51: 61560 | JJ51: NA | JN51: NA
A52: R | B52: 2016 | C52: 77643BSFFNNEOFI | D52: BASF TOTAL PETROCHEMICALS LLC | E52: NE OF INTERSECTION OF HWY 73 & HWY 366 | F52: PORT ARTHUR | G52: TX | H52: 77642 | I52: 325110 | J52: =VLOOKUP(C52,'2016-2021 BD OES Pull_rev'!F:N, 9, FALSE) -> Manufacturing | K52: TX0119369 | P52: 36000 | Q52: NA | R52: 0 | W52: 0 | X52: 0 | Y52: 0 | Z52: 0 | AA52: 0 | AB52: 106990 | AC52: 1,3-Butadiene | AD52: NO | AE52: NO | AF52: VP SITE MANAGER, PORT ARTHUR | AG52: GREGORY MASICA | AH52: 2017-06-26 | AI52: JEFFERSON | AL52: BASF TOTAL PETROCHEMICALS LLC | AM52: PO BOX 2506 | AN52: PORT ARTHUR | AO52: TX | AQ52: 77643 | AR52: YES | AS52: NO | AT52: NO | AU52: NO | AV52: NO | AW52: NO | AX52: GREGORY MASICA | AY52: 4099605000 | BA52: GREGORY.MASICA@BASF.COM | BN52: 29.951649 | BO52: -93.887272 | BP52: 78499192 | BR52: TXR000039909 | CG52: BASF CORP | CH52: 71014385 | CI52: BASF CORP | CJ52: 110006134691 | CK52: 1316215307784 | CL52: 106-99-0 | CM52: NA | CO52: TRI | CP52: Pounds | CQ52: YES | CR52: YES | CS52: NO | CT52: NO | DN52: 7 | DO52: 12000 | DQ52: 12000 | DR52: M2 | DS52: 24000 | DU52: 24000 | DV52: C | DW52: 36000 | FX52: NA | FZ52: 0 | GB52: NA | GD52: 0 | GF52: 0 | GK52: NA | GM52: 0 | GO52: NA | GQ52: 0 | GS52: NA | GU52: 0 | HA52: NA | HC52: 0 | HE52: NA | HG52: 0 | HI52: NA | HK52: 0 | HM52: 0 | HQ52: 0 | HR52: 0 | HS52: 0 | HT52: 0 | HU52: 0 | HV52: 0 | HW52: 0 | HX52: 0 | HY52: 0 | HZ52: 0 | IA52: 0 | IB52: 0 | IC52: 0 | ID52: 0 | IE52: 0 | IF52: 0 | IG52: 0 | IH52: 0 | II52: 0 | IJ52: 0 | IK52: 0 | IL52: 0 | IM52: 0 | IN52: 0 | IO52: 0 | IP52: 0 | IQ52: 0 | IR52: 0 | IS52: 0 | IT52: 0 | IU52: 0 | IV52: 0 | IW52: 0 | IX52: 0 | IY52: 520 | IZ52: 15000 | JA52: 0 | JB52: 0 | JC52: 15520 | JD52: 0 | JE52: 15520 | JF52: 0 | JG52: 0 | JH52: 1200000 | JI52: 1200000 | JJ52: NA | JN52: NA
A53: R | B53: 2017 | C53: 77643BSFFNNEOFI | D53: BASF TOTAL PETROCHEMICALS LLC | E53: NE OF INTERSECTION OF HWY 73 & HWY 366 | F53: PORT ARTHUR | G53: TX | H53: 77642 | I53: 325110 | J53: =VLOOKUP(C53,'2016-2021 BD OES Pull_rev'!F:N, 9, FALSE) -> Manufacturing | K53: TX0119369 | P53: 24700 | Q53: NA | R53: 0 | W53: 0 | X53: 0 | Y53: 0 | Z53: 0 | AA53: 0 | AB53: 106990 | AC53: 1,3-Butadiene | AD53: NO | AE53: NO | AF53: VP SITE MANAGER, PORT ARTHUR | AG53: GREGORY MASICA | AH53: 43279 | AI53: JEFFERSON | AL53: BASF TOTAL PETROCHEMICALS LLC | AM53: PO BOX 2506 | AN53: PORT ARTHUR | AO53: TX | AQ53: 77643 | AR53: YES | AS53: NO | AT53: NO | AU53: NO | AV53: NO | AW53: NO | AX53: GREGORY MASICA | AY53: 4099605000 | BA53: GREGORY.MASICA@BASF.COM | BN53: 29.951649 | BO53: -93.887272 | BP53: 78499192 | BR53: TXR000039909 | CG53: BASF CORP | CH53: 71014385 | CI53: BASF CORP | CJ53: 110006134691 | CK53: 1317216361358 | CL53: 106-99-0 | CM53: NA | CO53: TRI | CP53: Pounds | CQ53: YES | CR53: YES | CS53: NO | CT53: NO | DN53: 7 | DO53: 4700 | DQ53: 4700 | DR53: M2 | DS53: 20000 | DU53: 20000 | DV53: C | DW53: 24700 | FX53: NA | FZ53: 0 | GB53: NA | GD53: 0 | GF53: 0 | GK53: NA | GM53: 0 | GO53: NA | GQ53: 0 | GS53: NA | GU53: 0 | HA53: NA | HC53: 0 | HE53: NA | HG53: 0 | HI53: NA | HK53: 0 | HM53: 0 | HQ53: 0 | HR53: 0 | HS53: 0 | HT53: 0 | HU53: 0 | HV53: 0 | HW53: 0 | HX53: 0 | HY53: 0 | HZ53: 0 | IA53: 0 | IB53: 0 | IC53: 0 | ID53: 0 | IE53: 0 | IF53: 0 | IG53: 0 | IH53: 0 | II53: 0 | IJ53: 0 | IK53: 0 | IL53: 0 | IM53: 0 | IN53: 0 | IO53: 0 | IP53: 0 | IQ53: 0 | IR53: 0 | IS53: 0 | IT53: 0 | IU53: 0 | IV53: 0 | IW53: 0 | IX53: 0 | IY53: 790 | IZ53: 2500 | JA53: 0 | JB53: 0 | JC53: 3290 | JD53: 0 | JE53: 3290 | JF53: 0 | JG53: 0 | JH53: 1000000 | JI53: 1000000 | JJ53: NA | JN53: NA
A54: R | B54: 2018 | C54: 77643BSFFNNEOFI | D54: BASF TOTAL PETROCHEMICALS LLC | E54: NE OF INTERSECTION OF HWY 73 & HWY 366 | F54: PORT ARTHUR | G54: TX | H54: 77642 | I54: 325110 | J54: =VLOOKUP(C54,'2016-2021 BD OES Pull_rev'!F:N, 9, FALSE) -> Manufacturing | K54: TX0119369 | P54: 42594.21 | Q54: NA | R54: 0 | W54: 0 | X54: 0 | Y54: 0 | Z54: 0 | AA54: 0 | AB54: 106990 | AC54: 1,3-Butadiene | AD54: NO | AE54: NO | AF54: VP SITE MANAGER, PORT ARTHUR | AG54: GREGORY MASICA | AH54: 43636 | AI54: JEFFERSON | AL54: BASF TOTAL PETROCHEMICALS LLC | AM54: PO BOX 2506 | AN54: PORT ARTHUR | AO54: TX | AQ54: 77643 | AR54: YES | AS54: NO | AT54: NO | AU54: NO | AV54: NO | AW54: NO | AX54: GREGORY MASCIA | AY54: 4099605000 | BA54: GREGORY.MASICA@BASF.COM | BN54: 29.951649 | BO54: -93.887272 | BP54: 78499192 | BR54: TXR000039909 | CG54: BASF CORP | CH54: 71014385 | CI54: BASF CORP | CJ54: 110006134691 | CK54: 1318216991087 | CL54: 106-99-0 | CM54: NA | CN54: NO | CO54: TRI | CP54: Pounds | CQ54: YES | CR54: YES | CS54: NO | CT54: NO | DN54: 6 | DO54: 5037.11 | DQ54: 5037.11 | DR54: M2 | DS54: 37557.1 | DU54: 37557.1 | DV54: C | DW54: 42594.21 | FX54: NA | FZ54: 0 | GB54: NA | GD54: 0 | GF54: 0 | GK54: NA | GM54: 0 | GO54: NA | GQ54: 0 | GS54: NA | GU54: 0 | HA54: NA | HC54: 0 | HE54: NA | HG54: 0 | HI54: NA | HK54: 0 | HM54: 0 | HO54: 0 | HQ54: 0 | HR54: 0 | HS54: 0 | HT54: 0 | HU54: 0 | HV54: 0 | HW54: 0 | HX54: 0 | HY54: 0 | HZ54: 0 | IA54: 0 | IB54: 0 | IC54: 0 | ID54: 0 | IE54: 0 | IF54: 0 | IG54: 0 | IH54: 0 | II54: 0 | IJ54: 0 | IK54: 0 | IL54: 0 | IM54: 0 | IN54: 0 | IO54: 0 | IP54: 0 | IQ54: 0 | IR54: 0 | IS54: 0 | IT54: 0 | IU54: 0 | IV54: 0 | IW54: 0 | IX54: 0 | IY54: 0 | IZ54: 0 | JA54: 0 | JB54: 0 | JC54: 0 | JD54: 0 | JE54: 0 | JF54: 0 | JG54: 0 | JH54: 1864574.8 | JI54: 1864574.8 | JJ54: NA | JN54: NA
A55: R | B55: 2019 | C55: 77643BSFFNNEOFI | D55: BASF TOTAL PETROCHEMICALS LLC | E55: NE OF INTERSECTION OF HWY 73 & HWY 366 | F55: PORT ARTHUR | G55: TX | H55: 77642 | I55: 325110 | J55: =VLOOKUP(C55,'2016-2021 BD OES Pull_rev'!F:N, 9, FALSE) -> Manufacturing | K55: TX0119369 | P55: 32398.2 | Q55: NA | R55: 0 | W55: 0 | X55: 0 | Y55: 0 | Z55: 0 | AA55: 0 | AB55: 106990 | AC55: 1,3-Butadiene | AD55: NO | AE55: NO | AF55: VP SITE MANAGER, PORT ARTHUR | AG55: GREGORY MASICA | AH55: 44043 | AI55: JEFFERSON | AL55: BASF TOTAL PETROCHEMICALS LLC | AM55: PO BOX 2506 | AN55: PORT ARTHUR | AO55: TX | AQ55: 77643 | AR55: YES | AS55: NO | AT55: NO | AU55: NO | AV55: NO | AW55: NO | AX55: GREGORY MASCIA | AY55: 4099605000 | BA55: GREGORY.MASICA@BASF.COM | BN55: 29.951649 | BO55: -93.887272 | BP55: 78499192 | BR55: TXR000039909 | CG55: BASF CORP | CH55: 71014385 | CI55: BASF CORP | CJ55: 110006134691 | CK55: 1319218534814 | CL55: 106-99-0 | CM55: NA | CN55: NO | CO55: TRI | CP55: Pounds | CQ55: YES | CR55: YES | CS55: NO | CT55: NO | CU55: RR1 | DN55: 6 | DO55: 6823.93 | DQ55: 6823.93 | DR55: M2 | DS55: 25574.27 | DU55: 25574.27 | DV55: C | DW55: 32398.2 | FX55: NA | FZ55: 0 | GB55: NA | GD55: 0 | GF55: 0 | GK55: NA | GM55: 0 | GO55: NA | GQ55: 0 | GS55: NA | GU55: 0 | HA55: NA | HC55: 0 | HE55: NA | HG55: 0 | HI55: NA | HK55: 0 | HM55: 0 | HO55: 0 | HQ55: 0 | HR55: 0 | HS55: 0 | HT55: 0 | HU55: 0 | HV55: 0 | HW55: 0 | HX55: 0 | HY55: 0 | HZ55: 0 | IA55: 0 | IB55: 0 | IC55: 0 | ID55: 0 | IE55: 0 | IF55: 0 | IG55: 0 | IH55: 0 | II55: 0 | IJ55: 0 | IK55: 0 | IL55: 0 | IM55: 0 | IN55: 0 | IO55: 0 | IP55: 0 | IQ55: 0 | IR55: 0 | IS55: 0 | IT55: 0 | IU55: 0 | IV55: 0 | IW55: 0 | IX55: 0 | IY55: 0 | IZ55: 0 | JA55: 0 | JB55: 0 | JC55: 0 | JD55: 0 | JE55: 0 | JF55: 0 | JG55: 0 | JH55: 675043 | JI55: 675043 | JJ55: NA | JN55: NA
A56: R | B56: 2020 | C56: 77643BSFFNNEOFI | D56: BASF TOTAL PETROCHEMICALS LLC | E56: NE OF INTERSECTION OF HWY 73 & HWY 366 | F56: PORT ARTHUR | G56: TX | H56: 77642 | I56: 325110 | J56: =VLOOKUP(C56,'2016-2021 BD OES Pull_rev'!F:N, 9, FALSE) -> Manufacturing | K56: TX0119369 | P56: 17280.08 | Q56: NA | R56: 0 | W56: 0 | X56: 0 | Y56: 0 | Z56: 0 | AA56: 0 | AB56: 106990 | AC56: 1,3-Butadiene | AD56: NO | AE56: NO | AF56: VICE PRESIDENT AND SITE MANAGER | AG56: JOHN LYCAN | AH56: 44356 | AI56: JEFFERSON | AL56: BASF TOTAL PETROCHEMICALS LLC | AM56: PO BOX 2506 | AN56: PORT ARTHUR | AO56: TX | AQ56: 77643 | AR56: YES | AS56: NO | AT56: NO | AU56: NO | AV56: NO | AW56: NO | AX56: JOHN LYCAN | AY56: 4099605224 | BA56: JOHN.LYCAN@BASF.COM | BN56: 29.951649 | BO56: -93.887272 | BP56: 78499192 | BR56: TXR000039909 | CG56: BASF CORP | CH56: 71014385 | CI56: BASF CORP | CJ56: 110006134691 | CK56: 1320218731646 | CL56: 106-99-0 | CM56: NA | CN56: NO | CO56: TRI | CP56: Pounds | CQ56: YES | CR56: YES | CS56: NO | CT56: NO | DN56: 6 | DO56: 6035.7 | DQ56: 6035.7 | DR56: M2 | DS56: 11244.38 | DU56: 11244.38 | DV56: C | DW56: 17280.08 | FX56: NA | FZ56: 0 | GB56: NA | GD56: 0 | GF56: 0 | GK56: NA | GM56: 0 | GO56: NA | GQ56: 0 | GS56: NA | GU56: 0 | HA56: NA | HC56: 0 | HE56: NA | HG56: 0 | HI56: NA | HK56: 0 | HM56: 0 | HO56: 0 | HQ56: 0 | HR56: 0 | HS56: 0 | HT56: 0 | HU56: 0 | HV56: 0 | HW56: 0 | HX56: 0 | HY56: 0 | HZ56: 0 | IA56: 0 | IB56: 0 | IC56: 0 | ID56: 0 | IE56: 0 | IF56: 0 | IG56: 0 | IH56: 0 | II56: 0 | IJ56: 0 | IK56: 0 | IL56: 0 | IM56: 0 | IN56: 0 | IO56: 0 | IP56: 0 | IQ56: 0 | IR56: 0 | IS56: 0 | IT56: 0 | IU56: 0 | IV56: 0 | IW56: 0 | IX56: 0 | IY56: 0 | IZ56: 0 | JA56: 0 | JB56: 0 | JC56: 0 | JD56: 0 | JE56: 0 | JF56: 0 | JG56: 0 | JH56: 550000 | JI56: 550000 | JJ56: NA | JN56: NA
A57: R | B57: 2021 | C57: 77643BSFFNNEOFI | D57: BASF TOTAL PETROCHEMICALS LLC | E57: NE OF INTERSECTION OF HWY 73 & HWY 366 | F57: PORT ARTHUR | G57: TX | H57: 77642 | I57: 325110 | J57: =VLOOKUP(C57,'2016-2021 BD OES Pull_rev'!F:N, 9, FALSE) -> Manufacturing | K57: TX0119369 | P57: 14739 | Q57: NA | R57: 0 | W57: 0 | X57: 0 | Y57: 0 | Z57: 0 | AA57: 0 | AB57: 106990 | AC57: 1,3-Butadiene | AD57: NO | AE57: NO | AF57: VICE PRESIDENT AND SITE MANAGER | AG57: JOHN LYCAN | AH57: 44733 | AI57: JEFFERSON | AL57: BASF TOTAL PETROCHEMICALS LLC | AM57: PO BOX 2506 | AN57: PORT ARTHUR | AO57: TX | AQ57: 77643 | AR57: YES | AS57: NO | AT57: NO | AU57: NO | AV57: NO | AW57: NO | AX57: JOHN LYCAN | AY57: 4099605224 | BA57: JOHN.LYCAN@BASF.COM | BN57: 29.951649 | BO57: -93.887272 | BP57: 78499192 | BR57: TXR000039909 | CG57: BASF CORP | CH57: 71014385 | CI57: BASF CORP | CJ57: 110006134691 | CK57: 1321219817475 | CL57: 106-99-0 | CM57: NA | CN57: NO | CO57: TRI | CP57: Pounds | CQ57: YES | CR57: YES | CS57: NO | CT57: NO | DN57: 6 | DO57: 4351 | DQ57: 4351 | DR57: M2 | DS57: 10388 | DU57: 10388 | DV57: C | DW57: 14739 | FX57: NA | FZ57: 0 | GB57: NA | GD57: 0 | GF57: 0 | GK57: NA | GM57: 0 | GO57: NA | GQ57: 0 | GS57: NA | GU57: 0 | HA57: NA | HC57: 0 | HE57: NA | HG57: 0 | HI57: NA | HK57: 0 | HM57: 0 | HO57: 0 | HQ57: 0 | HR57: 0 | HS57: 0 | HT57: 0 | HU57: 0 | HV57: 0 | HW57: 0 | HX57: 0 | HY57: 0 | HZ57: 0 | IA57: 0 | IB57: 0 | IC57: 0 | ID57: 0 | IE57: 0 | IF57: 0 | IG57: 0 | IH57: 0 | II57: 0 | IJ57: 0 | IK57: 0 | IL57: 0 | IM57: 0 | IN57: 0 | IO57: 0 | IP57: 0 | IQ57: 0 | IR57: 0 | IS57: 0 | IT57: 0 | IU57: 0 | IV57: 0 | IW57: 0 | IX57: 0 | IY57: 0 | IZ57: 0 | JA57: 0 | JB57: 0 | JC57: 0 | JD57: 0 | JE57: 0 | JF57: 0 | JG57: 0 | JH57: 673333 | JI57: 673333 | JJ57: NA | JN57: NA
A58: R | B58: 2021 | C58: 7764WBYPRT7632N | D58: BAYPORT POLYMERS LLC | E58: 7600 32ND ST | F58: PORT ARTHUR | G58: TX | H58: 77642 | I58: 325110 | J58: =VLOOKUP(C58,'2016-2021 BD OES Pull_rev'!F:N, 9, FALSE) -> Plastics and Rubber Compounding | P58: 6.45 | Q58: NA | R58: 0 | W58: 0 | X58: 0 | Y58: 0 | Z58: 0 | AA58: 0 | AB58: 106990 | AC58: 1,3-Butadiene | AD58: NO | AE58: NO | AF58: GENERAL MANAGER | AG58: TOMMY CHAVEZ | AH58: 44740 | AI58: JEFFERSON | AL58: BAYPORT POLYMERS LLC | AM58: 7600 32ND ST | AN58: PORT ARTHUR | AO58: TX | AQ58: 77642 | AR58: YES | AS58: NO | AT58: NO | AU58: NO | AV58: NO | AW58: NO | AX58: HUGH CAMPBELL | AY58: 4099850030 | BA58: HUGH.CAMPBELL@TOTALENERGIES.COM | BN58: 29.96197 | BO58: -93.893329 | CG58: BAYPORT POLYMERS LLC | CK58: 1321220021479 | CL58: 106-99-0 | CM58: NA | CN58: NO | CO58: TRI | CP58: Pounds | CQ58: YES | CR58: YES | CS58: NO | CT58: NO | DN58: 4 | DO58: 0 | DQ58: 0 | DR58: O | DS58: 6.45 | DU58: 6.45 | DV58: M1 | DW58: 6.45 | FX58: NA | FZ58: 0 | GB58: NA | GD58: 0 | GF58: 0 | GK58: NA | GM58: 0 | GO58: NA | GQ58: 0 | GS58: NA | GU58: 0 | HA58: NA | HC58: 0 | HE58: NA | HG58: 0 | HI58: NA | HK58: 0 | HM58: 0 | HO58: 0 | HQ58: 0 | HR58: 0 | HS58: 0 | HT58: 0 | HU58: 0 | HV58: 0 | HW58: 0 | HX58: 0 | HY58: 0 | HZ58: 0 | IA58: 0 | IB58: 0 | IC58: 0 | ID58: 0 | IE58: 0 | IF58: 0 | IG58: 0 | IH58: 0 | II58: 0 | IJ58: 0 | IK58: 0 | IL58: 0 | IM58: 0 | IN58: 0 | IO58: 0 | IP58: 0 | IQ58: 0 | IR58: 0 | IS58: 0 | IT58: 0 | IU58: 0 | IV58: 0 | IW58: 0 | IX58: 0 | IY58: 0 | IZ58: 0 | JA58: 0 | JB58: 0 | JC58: 0 | JD58: 0 | JE58: 0 | JF58: 0 | JG58: 0 | JH58: 639.01 | JI58: 639.01 | JJ58: NA | JN58: NA
A59: R | B59: 2016 | C59: 7759WBLNCH2415T | D59: BLANCHARD REFINING CO LLC | E59: 2401 5TH AVE S | F59: TEXAS CITY | G59: TX | H59: 77590 | I59: 324110 | J59: =VLOOKUP(C59,'2016-2021 BD OES Pull_rev'!F:N, 9, FALSE) -> Manufacturing | K59: TX0003522 | P59: 1660 | Q59: NA | R59: 0 | W59: 0 | X59: 0 | Y59: 0 | Z59: 0 | AA59: 0 | AB59: 106990 | AC59: 1,3-Butadiene | AD59: NO | AE59: NO | AF59: GENERAL MANAGER, BLANCHARD REFINING CO LLC | AG59: RICHARD HERNANDEZ | AH59: 2017-06-22 | AI59: GALVESTON | AL59: BLANCHARD REFINING CO LLC | AR59: NO | AS59: YES | AT59: NO | AU59: NO | AV59: NO | AW59: YES | AX59: RUTH RENDON | AY59: 4099493122 | BA59: RMRENDON@MARATHONPETROLEUM.COM | BN59: 29.374444 | BO59: -94.925 | BP59: 25243391 | BQ59: 78697862 | BR59: TXD008080533 | CG59: MARATHON PETROLEUM CORP | CH59: 968393996 | CI59: MARATHON PETROLEUM CORP | CJ59: 110028042188 | CK59: 1316215242102 | CL59: 106-99-0 | CM59: NA | CO59: TRI | CP59: Pounds | CQ59: YES | CR59: YES | CS59: NO | CT59: NO | DN59: 4 | DO59: 60 | DQ59: 60 | DR59: O | DS59: 1600 | DU59: 1600 | DV59: O | DW59: 1660 | FX59: NA | FZ59: 0 | GB59: NA | GD59: 0 | GF59: 0 | GK59: NA | GM59: 0 | GO59: NA | GQ59: 0 | GS59: NA | GU59: 0 | HA59: NA | HC59: 0 | HE59: NA | HG59: 0 | HI59: NA | HK59: 0 | HM59: 0 | HQ59: 0 | HR59: 0 | HS59: 0 | HT59: 0 | HU59: 0 | HV59: 0 | HW59: 0 | HX59: 0 | HY59: 0 | HZ59: 0 | IA59: 0 | IB59: 0 | IC59: 0 | ID59: 0 | IE59: 0 | IF59: 0 | IG59: 0 | IH59: 0 | II59: 0 | IJ59: 0 | IK59: 0 | IL59: 0 | IM59: 0 | IN59: 0 | IO59: 0 | IP59: 0 | IQ59: 0 | IR59: 0 | IS59: 0 | IT59: 0 | IU59: 0 | IV59: 0 | IW59: 0 | IX59: 0 | IY59: 0 | IZ59: 0 | JA59: 0 | JB59: 0 | JC59: 0 | JD59: 0 | JE59: 0 | JF59: 0 | JG59: 0 | JH59: 1900 | JI59: 1900 | JJ59: NA | JN59: NA
A60: R | B60: 2016 | C60: 7759WBLNCH2415T | D60: BLANCHARD REFINING CO LLC | E60: 2401 5TH AVE S | F60: TEXAS CITY | G60: TX | H60: 77590 | I60: 221112 | J60: =VLOOKUP(C60,'2016-2021 BD OES Pull_rev'!F:N, 9, FALSE) -> Manufacturing | K60: TX0003522 | P60: 1 | Q60: NA | R60: 0 | W60: 0 | X60: 0 | Y60: 0 | Z60: 0 | AA60: 0 | AB60: 106990 | AC60: 1,3-Butadiene | AD60: NO | AE60: NO | AF60: GENERAL MANAGER, BLANCHARD REFINING CO LLC | AG60: RICHARD HERNANDEZ | AH60: 2017-06-22 | AI60: GALVESTON | AL60: BLANCHARD REFINING CO LLC | AR60: NO | AS60: YES | AT60: NO | AU60: NO | AV60: NO | AW60: YES | AX60: BRIAN FUNKE | AY60: 4099423387 | BA60: BJFUNKE@MARATHONPETROLEUM.COM | BN60: 29.374444 | BO60: -94.925 | BP60: 25243391 | BQ60: 78697862 | BR60: TXD008080533 | CG60: MARATHON PETROLEUM CORP | CH60: 968393996 | CI60: MARATHON PETROLEUM CORP | CJ60: 110028042188 | CK60: 1316215242621 | CL60: 106-99-0 | CM60: NA | CO60: TRI | CP60: Pounds | CQ60: YES | CR60: YES | CS60: NO | CT60: NO | DN60: 1 | DO60: 0 | DQ60: 0 | DR60: O | DS60: 1 | DU60: 1 | DV60: E1 | DW60: 1 | FX60: NA | FZ60: 0 | GB60: NA | GD60: 0 | GF60: 0 | GK60: NA | GM60: 0 | GO60: NA | GQ60: 0 | GS60: NA | GU60: 0 | HA60: NA | HC60: 0 | HE60: NA | HG60: 0 | HI60: NA | HK60: 0 | HM60: 0 | HQ60: 0 | HR60: 0 | HS60: 0 | HT60: 0 | HU60: 0 | HV60: 0 | HW60: 0 | HX60: 0 | HY60: 0 | HZ60: 0 | IA60: 0 | IB60: 0 | IC60: 0 | ID60: 0 | IE60: 0 | IF60: 0 | IG60: 0 | IH60: 0 | II60: 0 | IJ60: 0 | IK60: 0 | IL60: 0 | IM60: 0 | IN60: 0 | IO60: 0 | IP60: 0 | IQ60: 0 | IR60: 0 | IS60: 0 | IT60: 0 | IU60: 0 | IV60: 0 | IW60: 0 | IX60: 0 | IY60: 0 | IZ60: 0 | JA60: 0 | JB60: 0 | JC60: 0 | JD60: 0 | JE60: 0 | JF60: 0 | JG60: 0 | JH60: 0 | JI60: 0 | JJ60: NA | JN60: NA
A61: R | B61: 2017 | C61: 7759WBLNCH2415T | D61: BLANCHARD REFINING CO LLC | E61: 2401 5TH AVE S | F61: TEXAS CITY | G61: TX | H61: 77590 | I61: 324110 | J61: =VLOOKUP(C61,'2016-2021 BD OES Pull_rev'!F:N, 9, FALSE) -> Manufacturing | K61: TX0003522 | P61: 1400 | Q61: NA | R61: 0 | W61: 0 | X61: 0 | Y61: 0 | Z61: 0 | AA61: 0 | AB61: 106990 | AC61: 1,3-Butadiene | AD61: NO | AE61: NO | AF61: GENERAL MANAGER, BLANCHARD REFINING CO LLC | AG61: RICHARD HERNANDEZ | AH61: 43278 | AI61: GALVESTON | AL61: BLANCHARD REFINING CO LLC | AR61: NO | AS61: YES | AT61: NO | AU61: NO | AV61: NO | AW61: YES | AX61: LAVELLE EDMONDSON | AY61: 4099437304 | BA61: LEDMONDSON@MARATHONPETROLEUM.COM | BN61: 29.374444 | BO61: -94.925 | BP61: 25243391 | BQ61: 78697862 | BR61: TXD008080533 | CG61: MARATHON PETROLEUM CORP | CH61: 968393996 | CI61: MARATHON PETROLEUM CORP | CJ61: 110028042188 | CK61: 1317216264869 | CL61: 106-99-0 | CM61: NA | CO61: TRI | CP61: Pounds | CQ61: YES | CR61: YES | CS61: NO | CT61: NO | DN61: 4 | DO61: 100 | DQ61: 100 | DR61: O | DS61: 1300 | DU61: 1300 | DV61: O | DW61: 1400 | FX61: NA | FZ61: 0 | GB61: NA | GD61: 0 | GF61: 0 | GK61: NA | GM61: 0 | GO61: NA | GQ61: 0 | GS61: NA | GU61: 0 | HA61: NA | HC61: 0 | HE61: NA | HG61: 0 | HI61: NA | HK61: 0 | HM61: 0 | HQ61: 0 | HR61: 0 | HS61: 0 | HT61: 0 | HU61: 0 | HV61: 0 | HW61: 0 | HX61: 0 | HY61: 0 | HZ61: 0 | IA61: 0 | IB61: 0 | IC61: 0 | ID61: 0 | IE61: 0 | IF61: 0 | IG61: 0 | IH61: 0 | II61: 0 | IJ61: 0 | IK61: 0 | IL61: 0 | IM61: 0 | IN61: 0 | IO61: 0 | IP61: 0 | IQ61: 0 | IR61: 0 | IS61: 0 | IT61: 0 | IU61: 0 | IV61: 0 | IW61: 0 | IX61: 0 | IY61: 0 | IZ61: 0 | JA61: 0 | JB61: 0 | JC61: 0 | JD61: 0 | JE61: 0 | JF61: 0 | JG61: 0 | JH61: 1700 | JI61: 1700 | JJ61: NA | JN61: NA
A62: R | B62: 2017 | C62: 7759WBLNCH2415T | D62: BLANCHARD REFINING CO LLC | E62: 2401 5TH AVE S | F62: TEXAS CITY | G62: TX | H62: 77590 | I62: 221112 | J62: =VLOOKUP(C62,'2016-2021 BD OES Pull_rev'!F:N, 9, FALSE) -> Manufacturing | K62: TX0003522 | P62: 1 | Q62: NA | R62: 0 | W62: 0 | X62: 0 | Y62: 0 | Z62: 0 | AA62: 0 | AB62: 106990 | AC62: 1,3-Butadiene | AD62: NO | AE62: NO | AF62: GENERAL MANAGER, BLANCHARD REFINING CO LLC | AG62: RICHARD HERNANDEZ | AH62: 43278 | AI62: GALVESTON | AL62: BLANCHARD REFINING CO LLC | AR62: NO | AS62: YES | AT62: NO | AU62: NO | AV62: NO | AW62: YES | AX62: LAVELLE EDMONDSON | AY62: 4099437304 | BA62: LEDMONDSON@MARATHONPETROLEUM.COM | BN62: 29.374444 | BO62: -94.925 | BP62: 25243391 | BQ62: 78697862 | BR62: TXD008080533 | CG62: MARATHON PETROLEUM CORP | CH62: 968393996 | CI62: MARATHON PETROLEUM CORP | CJ62: 110028042188 | CK62: 1317216265367 | CL62: 106-99-0 | CM62: NA | CO62: TRI | CP62: Pounds | CQ62: YES | CR62: YES | CS62: NO | CT62: NO | DN62: 1 | DO62: NA | DQ62: 0 | DS62: 1 | DU62: 1 | DV62: E1 | DW62: 1 | FX62: NA | FZ62: 0 | GB62: NA | GD62: 0 | GF62: 0 | GK62: NA | GM62: 0 | GO62: NA | GQ62: 0 | GS62: NA | GU62: 0 | HA62: NA | HC62: 0 | HE62: NA | HG62: 0 | HI62: NA | HK62: 0 | HM62: 0 | HQ62: 0 | HR62: 0 | HS62: 0 | HT62: 0 | HU62: 0 | HV62: 0 | HW62: 0 | HX62: 0 | HY62: 0 | HZ62: 0 | IA62: 0 | IB62: 0 | IC62: 0 | ID62: 0 | IE62: 0 | IF62: 0 | IG62: 0 | IH62: 0 | II62: 0 | IJ62: 0 | IK62: 0 | IL62: 0 | IM62: 0 | IN62: 0 | IO62: 0 | IP62: 0 | IQ62: 0 | IR62: 0 | IS62: 0 | IT62: 0 | IU62: 0 | IV62: 0 | IW62: 0 | IX62: 0 | IY62: 0 | IZ62: 0 | JA62: 0 | JB62: 0 | JC62: 0 | JD62: 0 | JE62: 0 | JF62: 0 | JG62: 0 | JH62: 0 | JI62: 0 | JJ62: NA | JN62: NA
A63: R | B63: 2018 | C63: 7759WBLNCH2415T | D63: BLANCHARD REFINING CO LLC | E63: 2401 5TH AVE S | F63: TEXAS CITY | G63: TX | H63: 77590 | I63: 324110 | J63: =VLOOKUP(C63,'2016-2021 BD OES Pull_rev'!F:N, 9, FALSE) -> Manufacturing | K63: TX0003522 | P63: 1380 | Q63: NA | R63: 0 | W63: 0 | X63: 0 | Y63: 0 | Z63: 0 | AA63: 0 | AB63: 106990 | AC63: 1,3-Butadiene | AD63: NO | AE63: NO | AF63: GENERAL MANAGER | AG63: KEVIN BOGARD | AH63: 43642 | AI63: GALVESTON | AL63: BLANCHARD REFINING CO LLC | AR63: NO | AS63: YES | AT63: NO | AU63: NO | AV63: NO | AW63: YES | AX63: LAVELLE EDMONDSON | AY63: 4099437304 | BA63: LEDMONDSON@MARATHONPETROLEUM.COM | BN63: 29.374444 | BO63: -94.925 | BP63: 25243391 | BQ63: 78697862 | BR63: TXD008080533 | CG63: MARATHON PETROLEUM CORP | CH63: 968393996 | CI63: MARATHON PETROLEUM CORP | CJ63: 110028042188 | CK63: 1318217185115 | CL63: 106-99-0 | CM63: NA | CN63: NO | CO63: TRI | CP63: Pounds | CQ63: YES | CR63: YES | CS63: NO | CT63: NO | DN63: 3 | DO63: 80 | DQ63: 80 | DR63: O | DS63: 1300 | DU63: 1300 | DV63: O | DW63: 1380 | FX63: NA | FZ63: 0 | GB63: NA | GD63: 0 | GF63: 0 | GK63: NA | GM63: 0 | GO63: NA | GQ63: 0 | GS63: NA | GU63: 0 | HA63: NA | HC63: 0 | HE63: NA | HG63: 0 | HI63: NA | HK63: 0 | HM63: 0 | HO63: 0 | HQ63: 0 | HR63: 0 | HS63: 0 | HT63: 0 | HU63: 0 | HV63: 0 | HW63: 0 | HX63: 0 | HY63: 0 | HZ63: 0 | IA63: 0 | IB63: 0 | IC63: 0 | ID63: 0 | IE63: 0 | IF63: 0 | IG63: 0 | IH63: 0 | II63: 0 | IJ63: 0 | IK63: 0 | IL63: 0 | IM63: 0 | IN63: 0 | IO63: 0 | IP63: 0 | IQ63: 0 | IR63: 0 | IS63: 0 | IT63: 0 | IU63: 0 | IV63: 0 | IW63: 0 | IX63: 0 | IY63: 0 | IZ63: 0 | JA63: 0 | JB63: 0 | JC63: 0 | JD63: 0 | JE63: 0 | JF63: 0 | JG63: 0 | JH63: 2500 | JI63: 2500 | JJ63: NA | JN63: NA
A64: R | B64: 2018 | C64: 7759WBLNCH2415T | D64: BLANCHARD REFINING CO LLC | E64: 2401 5TH AVE S | F64: TEXAS CITY | G64: TX | H64: 77590 | I64: 221112 | J64: =VLOOKUP(C64,'2016-2021 BD OES Pull_rev'!F:N, 9, FALSE) -> Manufacturing | K64: TX0003522 | P64: 3 | Q64: NA | R64: 0 | W64: 0 | X64: 0 | Y64: 0 | Z64: 0 | AA64: 0 | AB64: 106990 | AC64: 1,3-Butadiene | AD64: NO | AE64: NO | AF64: GENERAL MANAGER | AG64: KEVIN BOGARD | AH64: 43642 | AI64: GALVESTON | AL64: BLANCHARD REFINING CO LLC | AR64: NO | AS64: YES | AT64: NO | AU64: NO | AV64: NO | AW64: YES | AX64: LAVELLE EDMONDSON | AY64: 4099437304 | BA64: LEDMONDSON@MARATHONPETROLEUM.COM | BN64: 29.374444 | BO64: -94.925 | BP64: 25243391 | BQ64: 78697862 | BR64: TXD008080533 | CG64: MARATHON PETROLEUM CORP | CH64: 968393996 | CI64: MARATHON PETROLEUM CORP | CJ64: 110028042188 | CK64: 1318217184427 | CL64: 106-99-0 | CM64: NA | CN64: NO | CO64: TRI | CP64: Pounds | CQ64: YES | CR64: YES | CS64: NO | CT64: NO | DN64: 1 | DO64: NA | DQ64: 0 | DS64: 3 | DU64: 3 | DV64: E1 | DW64: 3 | FX64: NA | FZ64: 0 | GB64: NA | GD64: 0 | GF64: 0 | GK64: NA | GM64: 0 | GO64: NA | GQ64: 0 | GS64: NA | GU64: 0 | HA64: NA | HC64: 0 | HE64: NA | HG64: 0 | HI64: NA | HK64: 0 | HM64: 0 | HO64: 0 | HQ64: 0 | HR64: 0 | HS64: 0 | HT64: 0 | HU64: 0 | HV64: 0 | HW64: 0 | HX64: 0 | HY64: 0 | HZ64: 0 | IA64: 0 | IB64: 0 | IC64: 0 | ID64: 0 | IE64: 0 | IF64: 0 | IG64: 0 | IH64: 0 | II64: 0 | IJ64: 0 | IK64: 0 | IL64: 0 | IM64: 0 | IN64: 0 | IO64: 0 | IP64: 0 | IQ64: 0 | IR64: 0 | IS64: 0 | IT64: 0 | IU64: 0 | IV64: 0 | IW64: 0 | IX64: 0 | IY64: 0 | IZ64: 0 | JA64: 0 | JB64: 0 | JC64: 0 | JD64: 0 | JE64: 0 | JF64: 0 | JG64: 0 | JH64: 0 | JI64: 0 | JJ64: NA | JN64: NA
A65: R | B65: 2019 | C65: 7759WBLNCH2415T | D65: BLANCHARD REFINING CO LLC | E65: 2401 5TH AVE S | F65: TEXAS CITY | G65: TX | H65: 77590 | I65: 324110 | J65: =VLOOKUP(C65,'2016-2021 BD OES Pull_rev'!F:N, 9, FALSE) -> Manufacturing | K65: TX0003522 | P65: 2160 | Q65: NA | R65: 0 | W65: 0 | X65: 0 | Y65: 0 | Z65: 0 | AA65: =SUM(X65:Z65) -> 0 | AB65: 106990 | AC65: 1,3-Butadiene | AD65: NO | AE65: NO | AF65: GENERAL MANAGER | AG65: KEVIN BOGARD | AH65: 44011 | AI65: GALVESTON | AL65: BLANCHARD REFINING CO LLC | AR65: NO | AS65: YES | AT65: NO | AU65: NO | AV65: NO | AW65: YES | AX65: LAVELLE EDMONDSON | AY65: 4099437304 | BA65: LEDMONDSON@MARATHONPETROLEUM.COM | BN65: 29.374444 | BO65: -94.925 | BP65: 25243391 | BQ65: 78697862 | BR65: TXD008080533 | CG65: MARATHON PETROLEUM CORP | CH65: 968393996 | CI65: MARATHON PETROLEUM CORP | CJ65: 110028042188 | CK65: 1319218285815 | CL65: 106-99-0 | CM65: NA | CN65: NO | CO65: TRI | CP65: Pounds | CQ65: YES | CR65: YES | CS65: NO | CT65: NO | DN65: 4 | DO65: 260 | DQ65: 260 | DR65: O | DS65: 1900 | DU65: 1900 | DV65: O | DW65: 2160 | FX65: NA | FZ65: 0 | GB65: NA | GD65: 0 | GF65: 0 | GK65: NA | GM65: 0 | GO65: NA | GQ65: 0 | GS65: NA | GU65: 0 | HA65: NA | HC65: 0 | HE65: NA | HG65: 0 | HI65: NA | HK65: 0 | HM65: 0 | HO65: 0 | HQ65: 0 | HR65: 0 | HS65: 0 | HT65: 0 | HU65: 0 | HV65: 0 | HW65: 0 | HX65: 0 | HY65: 0 | HZ65: 0 | IA65: 0 | IB65: 0 | IC65: 0 | ID65: 0 | IE65: 0 | IF65: 0 | IG65: 0 | IH65: 0 | II65: 0 | IJ65: 0 | IK65: 0 | IL65: 0 | IM65: 0 | IN65: 0 | IO65: 0 | IP65: 0 | IQ65: 0 | IR65: 0 | IS65: 0 | IT65: 0 | IU65: 0 | IV65: 0 | IW65: 0 | IX65: 0 | IY65: 0 | IZ65: 0 | JA65: 0 | JB65: 0 | JC65: 0 | JD65: 0 | JE65: 0 | JF65: 0 | JG65: 0 | JH65: 6100 | JI65: 6100 | JJ65: NA | JN65: NA
A66: R | B66: 2020 | C66: 7759WBLNCH2415T | D66: BLANCHARD REFINING CO LLC | E66: 2401 5TH AVE S | F66: TEXAS CITY | G66: TX | H66: 77590 | I66: 324110 | J66: =VLOOKUP(C66,'2016-2021 BD OES Pull_rev'!F:N, 9, FALSE) -> Manufacturing | K66: TX0003522 | P66: 1860 | Q66: NA | R66: 0 | W66: 0 | X66: 0 | Y66: 0 | Z66: 0 | AA66: 0 | AB66: 106990 | AC66: 1,3-Butadiene | AD66: NO | AE66: NO | AF66: GENERAL MANAGER | AG66: KEVIN BOGARD | AH66: 44362 | AI66: GALVESTON | AL66: BLANCHARD REFINING CO LLC | AR66: NO | AS66: YES | AT66: NO | AU66: NO | AV66: NO | AW66: YES | AX66: LAVELLE EDMONDSON | AY66: 4099437304 | BA66: LEDMONDSON@MARATHONPETROLEUM.COM | BN66: 29.374444 | BO66: -94.925 | BP66: 25243391 | BQ66: 78697862 | BR66: TXD008080533 | CG66: MARATHON PETROLEUM CORP | CH66: 968393996 | CI66: MARATHON PETROLEUM CORP | CJ66: 110028042188 | CK66: 1320218771261 | CL66: 106-99-0 | CM66: NA | CN66: NO | CO66: TRI | CP66: Pounds | CQ66: YES | CR66: YES | CS66: NO | CT66: NO | DN66: 4 | DO66: 660 | DQ66: 660 | DR66: O | DS66: 1200 | DU66: 1200 | DV66: O | DW66: 1860 | FX66: NA | FZ66: 0 | GB66: NA | GD66: 0 | GF66: 0 | GK66: NA | GM66: 0 | GO66: NA | GQ66: 0 | GS66: NA | GU66: 0 | HA66: NA | HC66: 0 | HE66: NA | HG66: 0 | HI66: NA | HK66: 0 | HM66: 0 | HO66: 0 | HQ66: 0 | HR66: 0 | HS66: 0 | HT66: 0 | HU66: 0 | HV66: 0 | HW66: 0 | HX66: 0 | HY66: 0 | HZ66: 0 | IA66: 0 | IB66: 0 | IC66: 0 | ID66: 0 | IE66: 0 | IF66: 0 | IG66: 0 | IH66: 0 | II66: 0 | IJ66: 0 | IK66: 0 | IL66: 0 | IM66: 0 | IN66: 0 | IO66: 0 | IP66: 0 | IQ66: 0 | IR66: 0 | IS66: 0 | IT66: 0 | IU66: 0 | IV66: 0 | IW66: 0 | IX66: 0 | IY66: 0 | IZ66: 0 | JA66: 0 | JB66: 0 | JC66: 0 | JD66: 0 | JE66: 0 | JF66: 0 | JG66: 0 | JH66: 2500 | JI66: 2500 | JJ66: NA | JN66: NA
A67: R | B67: 2021 | C67: 7759WBLNCH2415T | D67: BLANCHARD REFINING CO LLC | E67: 2401 5TH AVE S | F67: TEXAS CITY | G67: TX | H67: 77590 | I67: 324110 | J67: =VLOOKUP(C67,'2016-2021 BD OES Pull_rev'!F:N, 9, FALSE) -> Manufacturing | K67: TX0003522 | P67: 1780 | Q67: NA | R67: 0 | W67: 0 | X67: 0 | Y67: 0 | Z67: 0 | AA67: 0 | AB67: 106990 | AC67: 1,3-Butadiene | AD67: NO | AE67: NO | AF67: GENERAL MANAGER | AG67: KEVIN BOGARD | AH67: 44735 | AI67: GALVESTON | AL67: BLANCHARD REFINING CO LLC | AR67: NO | AS67: YES | AT67: NO | AU67: NO | AV67: NO | AW67: YES | AX67: LAVELLE EDMONDSON | AY67: 4099437304 | BA67: LEDMONDSON@MARATHONPETROLEUM.COM | BN67: 29.374444 | BO67: -94.925 | BP67: 25243391 | BQ67: 78697862 | BR67: TXD008080533 | CG67: MARATHON PETROLEUM CORP | CH67: 968393996 | CI67: MARATHON PETROLEUM CORP | CJ67: 110028042188 | CK67: 1321219889235 | CL67: 106-99-0 | CM67: NA | CN67: NO | CO67: TRI | CP67: Pounds | CQ67: YES | CR67: YES | CS67: NO | CT67: NO | DN67: 4 | DO67: 680 | DQ67: 680 | DR67: O | DS67: 1100 | DU67: 1100 | DV67: O | DW67: 1780 | FX67: NA | FZ67: 0 | GB67: NA | GD67: 0 | GF67: 0 | GK67: NA | GM67: 0 | GO67: NA | GQ67: 0 | GS67: NA | GU67: 0 | HA67: NA | HC67: 0 | HE67: NA | HG67: 0 | HI67: NA | HK67: 0 | HM67: 0 | HO67: 0 | HQ67: 0 | HR67: 0 | HS67: 0 | HT67: 0 | HU67: 0 | HV67: 0 | HW67: 0 | HX67: 0 | HY67: 0 | HZ67: 0 | IA67: 0 | IB67: 0 | IC67: 0 | ID67: 0 | IE67: 0 | IF67: 0 | IG67: 0 | IH67: 0 | II67: 0 | IJ67: 0 | IK67: 0 | IL67: 0 | IM67: 0 | IN67: 0 | IO67: 0 | IP67: 0 | IQ67: 0 | IR67: 0 | IS67: 0 | IT67: 0 | IU67: 0 | IV67: 0 | IW67: 0 | IX67: 0 | IY67: 0 | IZ67: 0 | JA67: 0 | JB67: 0 | JC67: 0 | JD67: 0 | JE67: 0 | JF67: 0 | JG67: 0 | JH67: 12000 | JI67: 12000 | JJ67: NA | JN67: NA
A68: R | B68: 2016 | C68: 28214TRNSM7401O | D68: BLANCHARD TERMINAL CO - CHARLOTTE EAST NC TERMINAL | E68: 7401 OLD MT HOLLY RD | F68: CHARLOTTE | G68: NC | H68: 28214 | I68: 424710 | J68: =VLOOKUP(C68,'2016-2021 BD OES Pull_rev'!F:N, 9, FALSE) -> Repackaging | K68: NC0021971 | P68: 1 | Q68: PAW CREEK | R68: 0 | S68: M2 | W68: 1 | X68: 0 | Y68: 0 | Z68: 0 | AA68: 0 | AB68: 106990 | AC68: 1,3-Butadiene | AD68: NO | AE68: NO | AF68: VICE PRESIDENT, BLANCHARD TERMINAL COMPANY | AG68: ANGELA BROWN | AH68: 2017-06-22 | AI68: MECKLENBURG | AL68: BLANCHARD TERMINAL CO - CHARLOTTE EAST NC TERMINAL | AM68: 539 S. MAIN STREET | AN68: FINDLAY | AO68: OH | AQ68: 45840 | AR68: YES | AS68: NO | AT68: NO | AU68: NO | AV68: NO | AW68: NO | AX68: GREG MOORE | AY68: 4194213774 | BA68: WGMOORE@MARATHONPETROLEUM.COM | BN68: 35.277522 | BO68: -80.931366 | BP68: 79495661 | BR68: NCD000609982 | CG68: MARATHON PETROLEUM CORP | CH68: 968393996 | CI68: MARATHON PETROLEUM CORP | CJ68: 110000492672 | CK68: 1316215218544 | CL68: 106-99-0 | CM68: NA | CO68: TRI | CP68: Pounds | CQ68: YES | CR68: YES | CS68: NO | CT68: NO | DN68: 2 | DO68: 0 | DQ68: 0 | DR68: E1 | DS68: 1 | DU68: 1 | DV68: M2 | DW68: 1 | DX68: 0 | DZ68: 100 | FX68: NA | FZ68: 0 | GB68: NA | GD68: 0 | GF68: 0 | GK68: NA | GM68: 0 | GO68: NA | GQ68: 0 | GS68: NA | GU68: 0 | HA68: NA | HC68: 0 | HE68: NA | HG68: 0 | HI68: 0 | HK68: 0 | HL68: O | HM68: 0 | HQ68: 0 | HR68: 0 | HS68: 0 | HT68: 0 | HU68: 0 | HV68: 0 | HW68: 0 | HX68: 0 | HY68: 0 | HZ68: 0 | IA68: 0 | IB68: 0 | IC68: 0 | ID68: 0 | IE68: 0 | IF68: 0 | IG68: 0 | IH68: 0 | II68: 0 | IJ68: 0 | IK68: 0 | IL68: 0 | IM68: 0 | IN68: 0 | IO68: 0 | IP68: 0 | IQ68: 0 | IR68: 0 | IS68: 0 | IT68: 0 | IU68: 0 | IV68: 0 | IW68: 0 | IX68: 0 | IY68: 0 | IZ68: 0 | JA68: 0 | JB68: 0 | JC68: 0 | JD68: 0 | JE68: 0 | JF68: 0 | JG68: 0 | JH68: 0 | JI68: 0 | JJ68: NA | JN68: NA
A69: R | B69: 2016 | C69: 37209BPXPL14095 | D69: BLANCHARD TERMINAL CO - NASHVILLE 51 AVE TN TERMINAL | E69: 1409 51ST AVE N | F69: NASHVILLE | G69: TN | H69: 37209 | I69: 424710 | J69: =VLOOKUP(C69,'2016-2021 BD OES Pull_rev'!F:N, 9, FALSE) -> Repackaging | K69: TNR053661 | P69: 2 | Q69: CHEATHAM RESERVOIR | R69: 0 | S69: M2 | W69: 1 | X69: 0 | Y69: 0 | Z69: 0 | AA69: 0 | AB69: 106990 | AC69: 1,3-Butadiene | AD69: NO | AE69: NO | AF69: VICE PRESIDENT, BLANCHARD TERMINAL COMPANY | AG69: ANGELA BROWN | AH69: 2017-06-22 | AI69: DAVIDSON | AL69: BLANCHARD TERMINAL CO - NASHVILLE 51 AVE TN TERMINAL | AM69: 539 SOUTH MAIN STREET | AN69: FINDLAY | AO69: OH | AQ69: 45840 | AR69: YES | AS69: NO | AT69: NO | AU69: NO | AV69: NO | AW69: NO | AX69: GREG MOORE | AY69: 4194213774 | BA69: WGMOORE@MARATHONPETROLEUM.COM | BN69: 36.16294 | BO69: -86.849152 | BP69: 79495655 | BR69: TND000604363 | CG69: MARATHON PETROLEUM CORP | CH69: 968393996 | CI69: MARATHON PETROLEUM CORP | CJ69: 110000370937 | CK69: 1316215218518 | CL69: 106-99-0 | CM69: NA | CO69: TRI | CP69: Pounds | CQ69: YES | CR69: YES | CS69: NO | CT69: NO | DN69: 2 | DO69: 1 | DQ69: 1 | DR69: E1 | DS69: 1 | DU69: 1 | DV69: M2 | DW69: 2 | DX69: 0 | DZ69: 100 | FX69: NA | FZ69: 0 | GB69: NA | GD69: 0 | GF69: 0 | GK69: NA | GM69: 0 | GO69: NA | GQ69: 0 | GS69: NA | GU69: 0 | HA69: NA | HC69: 0 | HE69: NA | HG69: 0 | HI69: 0 | HK69: 0 | HL69: O | HM69: 0 | HQ69: 0 | HR69: 0 | HS69: 0 | HT69: 0 | HU69: 0 | HV69: 0 | HW69: 0 | HX69: 0 | HY69: 0 | HZ69: 0 | IA69: 0 | IB69: 0 | IC69: 0 | ID69: 0 | IE69: 0 | IF69: 0 | IG69: 0 | IH69: 0 | II69: 0 | IJ69: 0 | IK69: 0 | IL69: 0 | IM69: 0 | IN69: 0 | IO69: 0 | IP69: 0 | IQ69: 0 | IR69: 0 | IS69: 0 | IT69: 0 | IU69: 0 | IV69: 0 | IW69: 0 | IX69: 0 | IY69: 0 | IZ69: 0 | JA69: 0 | JB69: 0 | JC69: 0 | JD69: 0 | JE69: 0 | JF69: 0 | JG69: 0 | JH69: 0 | JI69: 0 | JJ69: NA | JN69: NA
A70: R | B70: 2016 | C70: 2757WBPPRD377BU | D70: BLANCHARD TERMINAL CO - SELMA BUFFALO NC TERMINAL | E70: 3707 BUFFALO ROAD | F70: SELMA | G70: NC | H70: 27576 | I70: 424710 | J70: =VLOOKUP(C70,'2016-2021 BD OES Pull_rev'!F:N, 9, FALSE) -> Repackaging | K70: NC0036145 | P70: 3 | Q70: UNNAMED TRIBUTARY OF MILL CREEK WITHIN THE NEUSE RIVER BASIN | R70: 0 | S70: M2 | W70: 1 | X70: 0 | Y70: 0 | Z70: 0 | AA70: 0 | AB70: 106990 | AC70: 1,3-Butadiene | AD70: NO | AE70: NO | AF70: VICE PRESIDENT, BLANCHARD TERMINAL COMPANY | AG70: ANGELA BROWN | AH70: 2017-06-22 | AI70: JOHNSTON | AL70: BLANCHARD TERMINAL CO - SELMA BUFFALO NC TERMINAL | AM70: 539 SOUTH MAIN STREET | AN70: FINDLAY | AO70: OH | AQ70: 45840 | AR70: YES | AS70: NO | AT70: NO | AU70: NO | AV70: NO | AW70: NO | AX70: GREG MOORE | AY70: 4194213774 | BA70: WGMOORE@MARATHONPETROLEUM.COM | BN70: 35.54906 | BO70: -78.306319 | BP70: 79495122 | BR70: NCR000148429 | CG70: MARATHON PETROLEUM CORP | CH70: 968393996 | CI70: MARATHON PETROLEUM CORP | CJ70: 110000800116 | CK70: 1316215218621 | CL70: 106-99-0 | CM70: NA | CO70: TRI | CP70: Pounds | CQ70: YES | CR70: YES | CS70: NO | CT70: NO | DN70: 2 | DO70: 2 | DQ70: 2 | DR70: E1 | DS70: 1 | DU70: 1 | DV70: M2 | DW70: 3 | DX70: 0 | DZ70: 100 | FX70: NA | FZ70: 0 | GB70: NA | GD70: 0 | GF70: 0 | GK70: NA | GM70: 0 | GO70: NA | GQ70: 0 | GS70: NA | GU70: 0 | HA70: NA | HC70: 0 | HE70: NA | HG70: 0 | HI70: 0 | HK70: 0 | HL70: O | HM70: 0 | HQ70: 0 | HR70: 0 | HS70: 0 | HT70: 0 | HU70: 0 | HV70: 0 | HW70: 0 | HX70: 0 | HY70: 0 | HZ70: 0 | IA70: 0 | IB70: 0 | IC70: 0 | ID70: 0 | IE70: 0 | IF70: 0 | IG70: 0 | IH70: 0 | II70: 0 | IJ70: 0 | IK70: 0 | IL70: 0 | IM70: 0 | IN70: 0 | IO70: 0 | IP70: 0 | IQ70: 0 | IR70: 0 | IS70: 0 | IT70: 0 | IU70: 0 | IV70: 0 | IW70: 0 | IX70: 0 | IY70: 0 | IZ70: 0 | JA70: 0 | JB70: 0 | JC70: 0 | JD70: 0 | JE70: 0 | JF70: 0 | JG70: 0 | JH70: 0 | JI70: 0 | JJ70: NA | JN70: NA
A71: R | B71: 2016 | C71: 98248RCCHR4519G | D71: BP CHERRY POINT REFINERY | E71: 4519 GRANDVIEW RD | F71: BLAINE | G71: WA | H71: 98230 | I71: 324110 | J71: =VLOOKUP(C71,'2016-2021 BD OES Pull_rev'!F:N, 9, FALSE) -> Processing - Incorporation into formulation, mixture, or reaction product | K71: WAR311344 | L71: WAR311151 | M71: WAR311117 | N71: WAR311052 | O71: WA0022900 | P71: 379.32 | Q71: STRAIT OF GEORGIA | R71: 0 | S71: M2 | T71: TERRELL CREEK | U71: 0 | V71: M2 | W71: 2 | X71: 0 | Y71: 0 | Z71: 0 | AA71: 0 | AB71: 106990 | AC71: 1,3-Butadiene | AD71: NO | AE71: NO | AF71: HSSEQ MANAGER | AG71: RACHEL LEWIS | AH71: 2017-06-23 | AI71: WHATCOM | AL71: BP CHERRY POINT REFINERY | AM71: 4519 GRANDVIEW RD | AN71: BLAINE | AO71: WA | AQ71: 98230 | AR71: YES | AS71: NO | AT71: NO | AU71: NO | AV71: NO | AW71: NO | AX71: PAMELA BRADY | AY71: 3603711500 | BA71: PAMELA.BRADY@BP.COM | BN71: 48.884 | BO71: -122.735 | BP71: 135609048 | BR71: WAD069548154 | CG71: BP PRODUCTS NA INC | CH71: 39596507 | CJ71: 110000490157 | CK71: 1316215296258 | CL71: 106-99-0 | CM71: NA | CO71: TRI | CP71: Pounds | CQ71: YES | CR71: YES | CS71: NO | CT71: NO | DN71: 1 | DO71: 379.32 | DQ71: 379.32 | DR71: O | DS71: 0 | DU71: 0 | DV71: E1 | DW71: 379.32 | DX71: 0 | DZ71: 0 | EA71: 0 | EC71: 0 | FX71: NA | FZ71: 0 | GB71: NA | GD71: 0 | GF71: 0 | GK71: NA | GM71: 0 | GO71: NA | GQ71: 0 | GS71: 0 | GU71: 0 | GV71: M2 | HA71: NA | HC71: 0 | HE71: NA | HG71: 0 | HI71: 0 | HK71: 0 | HL71: M2 | HM71: 0 | HQ71: 0 | HR71: 0 | HS71: 0 | HT71: 0 | HU71: 0 | HV71: 0 | HW71: 0 | HX71: 0 | HY71: 0 | HZ71: 0 | IA71: 0 | IB71: 0 | IC71: 0 | ID71: 0 | IE71: 0 | IF71: 0 | IG71: 0 | IH71: 0 | II71: 0 | IJ71: 0 | IK71: 0 | IL71: 0 | IM71: 0 | IN71: 0 | IO71: 0 | IP71: 0 | IQ71: 0 | IR71: 0 | IS71: 0 | IT71: 0 | IU71: 0 | IV71: 0 | IW71: 0 | IX71: 0 | IY71: 0 | IZ71: 0 | JA71: 0 | JB71: 0 | JC71: 0 | JD71: 0 | JE71: 0 | JF71: 0 | JG71: 0 | JH71: 4 | JI71: 4 | JJ71: NA | JN71: NA
